Workbook

Sheet Introduction
C4: Joint Monitoring Programme for Water Supply, Sanitation and Hygiene
C6: Estimates on household water, sanitation and hygiene by wealth quintile and sub-national region in
C7: =+Water!B5 -> Lao People's Democratic Republic
C9: Updated May 2021
C11: Follow the links below to find the following information:
C13: JMP Estimates
C14: WASH status and trends by wealth quintile (customized quintiles made without water and sanitation assets)
C15: Water
C16: Sanitation
C17: Hygiene
C19: Data inputs
C20: customized wealth quintiles and subnational data:
C21: =IF(INDIRECT(CONCATENATE("Water","!B105"))=0,"",INDIRECT(CONCATENATE("Water","!B105"))) -> MICS00
C22: =IF(INDIRECT(CONCATENATE("Water","!B106"))=0,"",INDIRECT(CONCATENATE("Water","!B106"))) -> MICS06
C23: =IF(INDIRECT(CONCATENATE("Water","!B107"))=0,"",INDIRECT(CONCATENATE("Water","!B107"))) -> MICS12
C24: =IF(INDIRECT(CONCATENATE("Water","!B108"))=0,"",INDIRECT(CONCATENATE("Water","!B108"))) -> MICS17
C25: =IF(INDIRECT(CONCATENATE("Water","!B109"))=0,"",INDIRECT(CONCATENATE("Water","!B109"))) -> 
C26: =IF(INDIRECT(CONCATENATE("Water","!B110"))=0,"",INDIRECT(CONCATENATE("Water","!B110"))) -> 
C27: =IF(INDIRECT(CONCATENATE("Water","!B111"))=0,"",INDIRECT(CONCATENATE("Water","!B111"))) -> 
C28: =IF(INDIRECT(CONCATENATE("Water","!B112"))=0,"",INDIRECT(CONCATENATE("Water","!B112"))) -> 
C29: =IF(INDIRECT(CONCATENATE("Water","!B113"))=0,"",INDIRECT(CONCATENATE("Water","!B113"))) -> 
C30: =IF(INDIRECT(CONCATENATE("Water","!B114"))=0,"",INDIRECT(CONCATENATE("Water","!B114"))) -> 
C31: =IF(INDIRECT(CONCATENATE("Water","!B115"))=0,"",INDIRECT(CONCATENATE("Water","!B115"))) -> 
C32: =IF(INDIRECT(CONCATENATE("Water","!B116"))=0,"",INDIRECT(CONCATENATE("Water","!B116"))) -> 
L55: =+IF(ISNUMBER(M48), "", "Insufficient data to estimate safely managed sanitation services at national level") -> Insufficient data to estimate safely managed sanitation services at national level

Sheet Water
A1: BGD
B4: Summary of trends in use of drinking water by wealth quintile (%)
B5: =IF(ISERROR(INDIRECT(CONCATENATE($B105,"!A2"))),"",INDIRECT(CONCATENATE($B105,"!A2"))) -> Lao People's Democratic Republic
B7: =B118 -> National use of drinking water sources, 2000–2020 | J7: =B218 -> Urban use of drinking water sources, 2000–2020 | R7: =B318 -> Rural use of drinking water sources, 2000–2020
B31: =IF(ISERROR(INDIRECT(CONCATENATE($B105,"!A2"))),"",INDIRECT(CONCATENATE($B105,"!A2"))) -> Lao People's Democratic Republic | F31: Poorest | J31: Poor | N31: Middle | R31: Rich | V31: Richest
F32: Basic | G32: Limited | H32: Unimproved | I32: Surface water | J32: Basic | K32: Limited | L32: Unimproved | M32: Surface water | N32: Basic | O32: Limited | P32: Unimproved | Q32: Surface water | R32: Basic | S32: Limited | T32: Unimproved | U32: Surface water | V32: Basic | W32: Limited | X32: Unimproved | Y32: Surface water
B33: NATIONAL | D33: Estimate | E33: =C99 -> 2000 | F33: =E99 -> 22.05033961 | G33: =F99 -> 0.2440785275 | H33: 29.82029274 | I33: 47.88528911 | J33: =J99 -> 34.56387699 | K33: =K99 -> 0.7941023401 | L33: 35.30225544 | M33: 29.33976522 | N33: =O99 -> 45.47423474 | O33: =P99 -> 0.347579238 | P33: 35.45156512 | Q33: 18.7266209 | R33: =T99 -> 53.25158298 | S33: =U99 -> 0.2937850981 | T33: 34.70758372 | U33: 11.7470482 | V33: =Y99 -> 56.28712019 | W33: =Z99 -> 0.463793006 | X33: 33.78632818 | Y33: 9.462758631
E34: =C100 -> 2020 | F34: =E100 -> 73.41578978 | G34: 0.8126504252 | H34: 21.61597841 | I34: 4.155581387 | J34: =J100 -> 76.35957643 | K34: 1.754355229 | L34: 18.31489668 | M34: 3.571171666 | N34: =O100 -> 87.07114217 | O34: 0.6655223868 | P34: 10.18720796 | Q34: 2.076127481 | R34: =T100 -> 96.72275248 | S34: 0.5336123685 | T34: 2.231919672 | U34: 0.5117154801 | V34: =Y100 -> 99.18275675 | W34: 0.8172432476 | X34: 0 | Y34: 0
B36: URBAN | D36: Estimate | E36: =C199 -> 2000 | F36: =E199 -> 55.12103358 | G36: =F199 -> 0.2133753737 | H36: 40.72850706 | I36: 3.937083984 | J36: =J199 -> 75.15179948 | K36: =K199 -> 0.07859849066 | L36: 22.45115764 | M36: 2.318444389 | N36: =O199 -> 74.3206915 | O36: =P199 -> 0.09920748022 | P36: 20.75339317 | Q36: 4.826707845 | R36: =T199 -> 73.86385038 | S36: =U199 -> 0.2070267769 | T36: 20.71412177 | U36: 5.215001074 | V36: =Y199 -> 87.84920768 | W36: =Z199 -> 0 | X36: 10.79180583 | Y36: 1.358986483
E37: =C200 -> 2020 | F37: =E200 -> 86.24534431 | G37: 0.3338586267 | H37: 10.62131484 | I37: 2.799482226 | J37: =J200 -> 99.24317376 | K37: 0.103794769 | L37: 0 | M37: 0.6530314711 | N37: =O200 -> 99.86669227 | O37: 0.133307733 | P37: 0 | Q37: 0 | R37: =T200 -> 99.72050179 | S37: 0.2794982115 | T37: 0 | U37: 0 | V37: =Y200 -> 100 | W37: 0 | X37: 0 | Y37: 0
B39: RURAL | D39: Estimate | E39: =C299 -> 2000 | F39: =E299 -> 21.23710532 | G39: =F299 -> 0.1100700533 | H39: 25.3427092 | I39: 53.31011543 | J39: =J299 -> 26.52311686 | K39: =K299 -> 0.8381925024 | L39: 40.02761474 | M39: 32.6110759 | N39: =O299 -> 33.22363542 | O39: =P299 -> 0.5813006638 | P39: 34.82131627 | Q39: 31.37374765 | R39: =T299 -> 29.25114086 | S39: =U299 -> 0.3997482051 | T39: 42.525969 | U39: 27.82314193 | V39: =Y299 -> 38.79308563 | W39: =Z299 -> 0.6004913569 | X39: 47.30228629 | Y39: 13.30413672
E40: =C300 -> 2020 | F40: =E300 -> 71.10862472 | G40: 0.368549762 | H40: 24.70667159 | I40: 3.816153927 | J40: =J300 -> 75.69582657 | K40: 2.392165093 | L40: 16.81426535 | M40: 5.097742983 | N40: =O300 -> 82.42476204 | O40: 1.442153102 | P40: 15.06469159 | Q40: 1.068393265 | R40: =T300 -> 92.02910048 | S40: 1.257676339 | T40: 6.71322318 | U40: 0 | V40: =Y300 -> 98.47566176 | W40: 1.524338237 | X40: 0 | Y40: 0
A97: NATIONAL | D97: Poorest | I97: Poor | N97: Middle | S97: Rich | X97: Richest
D98: Improved | E98: Basic | F98: Limited | G98: Unimproved | H98: Surface water | I98: Improved | J98: Basic | K98: Limited | L98: Unimproved | M98: Surface water | N98: Improved | O98: Basic | P98: Limited | Q98: Unimproved | R98: Surface water | S98: Improved | T98: Basic | U98: Limited | V98: Unimproved | W98: Surface water | X98: Improved | Y98: Basic | Z98: Limited | AA98: Unimproved | AB98: Surface water
A99: Forecast period: | C99: 2000 | D99: =IF((D101+H101)>100,D101*100/(D101+H101),D101) -> 22.29441814 | E99: =D99*AVERAGEIF(E105:E116,">0")/100 -> 22.05033961 | F99: =D99*(100-AVERAGEIF(E105:E116,">0"))/100 -> 0.2440785275 | G99: =100-(E99+F99+H99) -> 29.82029274 | H99: =IF((D101+H101)>100,H101*100/(D101+H101),H101) -> 47.88528911 | I99: =IF((I101+M101)>100,I101*100/(I101+M101),I101) -> 35.35797933 | J99: =I99*AVERAGEIF(J105:J116,">0")/100 -> 34.56387699 | K99: =I99*(100-AVERAGEIF(J105:J116,">0"))/100 -> 0.7941023401 | L99: =100-(J99+K99+M99) -> 35.30225544 | M99: =IF((I101+M101)>100,M101*100/(I101+M101),M101) -> 29.33976522 | N99: =IF((N101+R101)>100,N101*100/(N101+R101),N101) -> 45.82181398 | O99: =N99*AVERAGEIF(O105:O116,">0")/100 -> 45.47423474 | P99: =N99*(100-AVERAGEIF(O105:O116,">0"))/100 -> 0.347579238 | Q99: =100-(O99+P99+R99) -> 35.45156512 | R99: =IF((N101+R101)>100,R101*100/(N101+R101),R101) -> 18.7266209 | S99: =IF((S101+W101)>100,S101*100/(S101+W101),S101) -> 53.54536808 | T99: =S99*AVERAGEIF(T105:T116,">0")/100 -> 53.25158298 | U99: =S99*(100-AVERAGEIF(T105:T116,">0"))/100 -> 0.2937850981 | V99: =100-(T99+U99+W99) -> 34.70758372 | W99: =IF((S101+W101)>100,W101*100/(S101+W101),W101) -> 11.7470482 | X99: =IF((X101+AB101)>100,X101*100/(X101+AB101),X101) -> 56.75091319 | Y99: =X99*AVERAGEIF(Y105:Y116,">0")/100 -> 56.28712019 | Z99: =X99*(100-AVERAGEIF(Y105:Y116,">0"))/100 -> 0.463793006 | AA99: =100-(Y99+Z99+AB99) -> 33.78632818 | AB99: =IF((X101+AB101)>100,AB101*100/(X101+AB101),AB101) -> 9.462758631
C100: 2020 | D100: =IF((D102+H102)>100,D102*100/(D102+H102),D102) -> 74.2284402 | E100: =D100*AVERAGEIF(E105:E116,">0")/100 -> 73.41578978 | F100: =D100*(100-AVERAGEIF(E105:E116,">0"))/100 -> 0.8126504252 | G100: =100-(E100+F100+H100) -> 21.61597841 | H100: =IF((D102+H102)>100,H102*100/(D102+H102),H102) -> 4.155581387 | I100: =IF((I102+M102)>100,I102*100/(I102+M102),I102) -> 78.11393166 | J100: =I100*AVERAGEIF(J105:J116,">0")/100 -> 76.35957643 | K100: =I100*(100-AVERAGEIF(J105:J116,">0"))/100 -> 1.754355229 | L100: =100-(J100+K100+M100) -> 18.31489668 | M100: =IF((I102+M102)>100,M102*100/(I102+M102),M102) -> 3.571171666 | N100: =IF((N102+R102)>100,N102*100/(N102+R102),N102) -> 87.73666456 | O100: =N100*AVERAGEIF(O105:O116,">0")/100 -> 87.07114217 | P100: =N100*(100-AVERAGEIF(O105:O116,">0"))/100 -> 0.6655223868 | Q100: =100-(O100+P100+R100) -> 10.18720796 | R100: =IF((N102+R102)>100,R102*100/(N102+R102),R102) -> 2.076127481 | S100: =IF((S102+W102)>100,S102*100/(S102+W102),S102) -> 97.25636485 | T100: =S100*AVERAGEIF(T105:T116,">0")/100 -> 96.72275248 | U100: =S100*(100-AVERAGEIF(T105:T116,">0"))/100 -> 0.5336123685 | V100: =100-(T100+U100+W100) -> 2.231919672 | W100: =IF((S102+W102)>100,W102*100/(S102+W102),W102) -> 0.5117154801 | X100: =IF((X102+AB102)>100,X102*100/(X102+AB102),X102) -> 100 | Y100: =X100*AVERAGEIF(Y105:Y116,">0")/100 -> 99.18275675 | Z100: =X100*(100-AVERAGEIF(Y105:Y116,">0"))/100 -> 0.8172432476 | AA100: =100-(Y100+Z100+AB100) -> 0 | AB100: =IF((X102+AB102)>100,AB102*100/(X102+AB102),AB102) -> 0
A101: Regression period: | C101: =MinRegYear(C99,C105:C116) -> 2000 | D101: =IF(MAX(C105:C116)-MIN(C105:C116)<5,AVERAGEIF(C105:C116,">0",D105:D116), IF(FORECAST($C101,D$105:D$116,$C$105:$C$116)<0,0, IF(FORECAST($C101,D$105:D$116,$C$105:$C$116)>100,100, FORECAST($C101,D$105:D$116,$C$105:$C$116)))) -> 22.29441814 | H101: =IF(MAX(C105:C116)-MIN(C105:C116)<5,AVERAGEIF(C105:C116,">0",H105:H116), IF(FORECAST($C101,H$105:H$116,$C$105:$C$116)<0,0, IF(FORECAST($C101,H$105:H$116,$C$105:$C$116)>100,100, FORECAST($C101,H$105:H$116,$C$105:$C$116)))) -> 47.88528911 | I101: =IF(MAX(C105:C116)-MIN(C105:C116)<5,AVERAGEIF(C105:C116,">0",I105:I116), IF(FORECAST($C101,I$105:I$116,$C$105:$C$116)<0,0, IF(FORECAST($C101,I$105:I$116,$C$105:$C$116)>100,100, FORECAST($C101,I$105:I$116,$C$105:$C$116)))) -> 35.35797933 | M101: =IF(MAX(C105:C116)-MIN(C105:C116)<5,AVERAGEIF(C105:C116,">0",M105:M116), IF(FORECAST($C101,M$105:M$116,$C$105:$C$116)<0,0, IF(FORECAST($C101,M$105:M$116,$C$105:$C$116)>100,100, FORECAST($C101,M$105:M$116,$C$105:$C$116)))) -> 29.33976522 | N101: =IF(MAX(C105:C116)-MIN(C105:C116)<5,AVERAGEIF(C105:C116,">0",N105:N116), IF(FORECAST($C101,N$105:N$116,$C$105:$C$116)<0,0, IF(FORECAST($C101,N$105:N$116,$C$105:$C$116)>100,100, FORECAST($C101,N$105:N$116,$C$105:$C$116)))) -> 45.82181398 | R101: =IF(MAX(C105:C116)-MIN(C105:C116)<5,AVERAGEIF(C105:C116,">0",R105:R116), IF(FORECAST($C101,R$105:R$116,$C$105:$C$116)<0,0, IF(FORECAST($C101,R$105:R$116,$C$105:$C$116)>100,100, FORECAST($C101,R$105:R$116,$C$105:$C$116)))) -> 18.7266209 | S101: =IF(MAX(C105:C116)-MIN(C105:C116)<5,AVERAGEIF(C105:C116,">0",S105:S116), IF(FORECAST($C101,S$105:S$116,$C$105:$C$116)<0,0, IF(FORECAST($C101,S$105:S$116,$C$105:$C$116)>100,100, FORECAST($C101,S$105:S$116,$C$105:$C$116)))) -> 53.54536808 | W101: =IF(MAX(C105:C116)-MIN(C105:C116)<5,AVERAGEIF(C105:C116,">0",W105:W116), IF(FORECAST($C101,W$105:W$116,$C$105:$C$116)<0,0, IF(FORECAST($C101,W$105:W$116,$C$105:$C$116)>100,100, FORECAST($C101,W$105:W$116,$C$105:$C$116)))) -> 11.7470482 | X101: =IF(MAX(C105:C116)-MIN(C105:C116)<5,AVERAGEIF(C105:C116,">0",X105:X116), IF(FORECAST($C101,X$105:X$116,$C$105:$C$116)<0,0, IF(FORECAST($C101,X$105:X$116,$C$105:$C$116)>100,100, FORECAST($C101,X$105:X$116,$C$105:$C$116)))) -> 56.75091319 | AB101: =IF(MAX(C105:C116)-MIN(C105:C116)<5,AVERAGEIF(C105:C116,">0",AB105:AB116), IF(FORECAST($C101,AB$105:AB$116,$C$105:$C$116)<0,0, IF(FORECAST($C101,AB$105:AB$116,$C$105:$C$116)>100,100, FORECAST($C101,AB$105:AB$116,$C$105:$C$116)))) -> 9.462758631
C102: =MaxRegYear(C100,C105:C116) -> 2019 | D102: =IF(MAX(C105:C116)-MIN(C105:C116)<5,AVERAGEIF(C105:C116,">0",D105:D116), IF(FORECAST($C102,D$105:D$116,$C$105:$C$116)<0,0, IF(FORECAST($C102,D$105:D$116,$C$105:$C$116)>100,100, FORECAST($C102,D$105:D$116,$C$105:$C$116)))) -> 74.2284402 | H102: =IF(MAX(C105:C116)-MIN(C105:C116)<5,AVERAGEIF(C105:C116,">0",H105:H116), IF(FORECAST($C102,H$105:H$116,$C$105:$C$116)<0,0, IF(FORECAST($C102,H$105:H$116,$C$105:$C$116)>100,100, FORECAST($C102,H$105:H$116,$C$105:$C$116)))) -> 4.155581387 | I102: =IF(MAX(C105:C116)-MIN(C105:C116)<5,AVERAGEIF(C105:C116,">0",I105:I116), IF(FORECAST($C102,I$105:I$116,$C$105:$C$116)<0,0, IF(FORECAST($C102,I$105:I$116,$C$105:$C$116)>100,100, FORECAST($C102,I$105:I$116,$C$105:$C$116)))) -> 78.11393166 | M102: =IF(MAX(C105:C116)-MIN(C105:C116)<5,AVERAGEIF(C105:C116,">0",M105:M116), IF(FORECAST($C102,M$105:M$116,$C$105:$C$116)<0,0, IF(FORECAST($C102,M$105:M$116,$C$105:$C$116)>100,100, FORECAST($C102,M$105:M$116,$C$105:$C$116)))) -> 3.571171666 | N102: =IF(MAX(C105:C116)-MIN(C105:C116)<5,AVERAGEIF(C105:C116,">0",N105:N116), IF(FORECAST($C102,N$105:N$116,$C$105:$C$116)<0,0, IF(FORECAST($C102,N$105:N$116,$C$105:$C$116)>100,100, FORECAST($C102,N$105:N$116,$C$105:$C$116)))) -> 87.73666456 | R102: =IF(MAX(C105:C116)-MIN(C105:C116)<5,AVERAGEIF(C105:C116,">0",R105:R116), IF(FORECAST($C102,R$105:R$116,$C$105:$C$116)<0,0, IF(FORECAST($C102,R$105:R$116,$C$105:$C$116)>100,100, FORECAST($C102,R$105:R$116,$C$105:$C$116)))) -> 2.076127481 | S102: =IF(MAX(C105:C116)-MIN(C105:C116)<5,AVERAGEIF(C105:C116,">0",S105:S116), IF(FORECAST($C102,S$105:S$116,$C$105:$C$116)<0,0, IF(FORECAST($C102,S$105:S$116,$C$105:$C$116)>100,100, FORECAST($C102,S$105:S$116,$C$105:$C$116)))) -> 97.25636485 | W102: =IF(MAX(C105:C116)-MIN(C105:C116)<5,AVERAGEIF(C105:C116,">0",W105:W116), IF(FORECAST($C102,W$105:W$116,$C$105:$C$116)<0,0, IF(FORECAST($C102,W$105:W$116,$C$105:$C$116)>100,100, FORECAST($C102,W$105:W$116,$C$105:$C$116)))) -> 0.5117154801 | X102: =IF(MAX(C105:C116)-MIN(C105:C116)<5,AVERAGEIF(C105:C116,">0",X105:X116), IF(FORECAST($C102,X$105:X$116,$C$105:$C$116)<0,0, IF(FORECAST($C102,X$105:X$116,$C$105:$C$116)>100,100, FORECAST($C102,X$105:X$116,$C$105:$C$116)))) -> 100 | AB102: =IF(MAX(C105:C116)-MIN(C105:C116)<5,AVERAGEIF(C105:C116,">0",AB105:AB116), IF(FORECAST($C102,AB$105:AB$116,$C$105:$C$116)<0,0, IF(FORECAST($C102,AB$105:AB$116,$C$105:$C$116)>100,100, FORECAST($C102,AB$105:AB$116,$C$105:$C$116)))) -> 0
B104: Survey | C104: Year | D104: Improved | E104: Basic | H104: Surface water | I104: Improved | J104: Basic | M104: Surface water | N104: Improved | O104: Basic | R104: Surface water | S104: Improved | T104: Basic | W104: Surface water | X104: Improved | Y104: Basic | AB104: Surface water
B105: MICS00 | C105: 2000 | D105: =IF(ISERROR(INDIRECT(CONCATENATE($B105,"!C16"))),"",INDIRECT(CONCATENATE($B105,"!C16"))) -> 15.22584945 | E105: =IF(ISERROR(INDIRECT(CONCATENATE($B105,"!C23"))),"",INDIRECT(CONCATENATE($B105,"!C23"))) -> 97.98764892 | H105: =IF(ISERROR(INDIRECT(CONCATENATE($B105,"!C21"))),"",INDIRECT(CONCATENATE($B105,"!C21"))) -> 53.02850212 | I105: =IF(ISERROR(INDIRECT(CONCATENATE($B105,"!D16"))),"",INDIRECT(CONCATENATE($B105,"!D16"))) -> 37.41201777 | J105: =IF(ISERROR(INDIRECT(CONCATENATE($B105,"!D23"))),"",INDIRECT(CONCATENATE($B105,"!D23"))) -> 94.65249592 | M105: =IF(ISERROR(INDIRECT(CONCATENATE($B105,"!D21"))),"",INDIRECT(CONCATENATE($B105,"!D21"))) -> 29.44851312 | N105: =IF(ISERROR(INDIRECT(CONCATENATE($B105,"!E16"))),"",INDIRECT(CONCATENATE($B105,"!E16"))) -> 53.66345203 | O105: =IF(ISERROR(INDIRECT(CONCATENATE($B105,"!E23"))),"",INDIRECT(CONCATENATE($B105,"!E23"))) -> 98.79862489 | R105: =IF(ISERROR(INDIRECT(CONCATENATE($B105,"!E21"))),"",INDIRECT(CONCATENATE($B105,"!E21"))) -> 16.30233814 | S105: =IF(ISERROR(INDIRECT(CONCATENATE($B105,"!F16"))),"",INDIRECT(CONCATENATE($B105,"!F16"))) -> 59.58206868 | T105: =IF(ISERROR(INDIRECT(CONCATENATE($B105,"!F23"))),"",INDIRECT(CONCATENATE($B105,"!F23"))) -> 99.20202847 | W105: =IF(ISERROR(INDIRECT(CONCATENATE($B105,"!F21"))),"",INDIRECT(CONCATENATE($B105,"!F21"))) -> 9.970258372 | X105: =IF(ISERROR(INDIRECT(CONCATENATE($B105,"!G16"))),"",INDIRECT(CONCATENATE($B105,"!G16"))) -> 45.91779114 | Y105: =IF(ISERROR(INDIRECT(CONCATENATE($B105,"!G23"))),"",INDIRECT(CONCATENATE($B105,"!G23"))) -> 96.92277783 | AB105: =IF(ISERROR(INDIRECT(CONCATENATE($B105,"!G221"))),"",INDIRECT(CONCATENATE($B105,"!G21"))) -> 11.91522678
B106: MICS06 | C106: 2006 | D106: 46.83854028 | E106: 99.86445698 | H106: 25.41031326 | I106: 45.4241143 | J106: 98.24396198 | M106: 20.75319043 | N106: 47.66793481 | O106: 99.14374593 | R106: 17.25663546 | S106: 57.7790633 | T106: 99.36394422 | W106: 10.95439094 | X106: 89.66004834 | Y106: 99.86674985 | AB106: 2.073104483
B107: MICS12 | C107: 2012 | D107: 61.21139646 | E107: 98.78713993 | H107: 21.84390996 | I107: 62.93664639 | J107: 98.93170174 | M107: 13.68319443 | N107: 70.69110691 | O107: 99.56598796 | R107: 8.119337945 | S107: 81.68104176 | T107: 99.57662864 | W107: 4.630380385 | X107: 96.29352705 | Y107: 99.94149933 | AB107: 0.7159274861
B108: MICS17 | C108: 2017 | D108: 61.56982175 | E108: 98.98156785 | H108: 10.70370636 | I108: 74.42010368 | J108: 99.18826885 | M108: 6.005701106 | N108: 88.47632902 | O108: 99.45745983 | R108: 2.5562105 | S108: 95.65955579 | T108: 99.66273565 | W108: 0.7364975594 | X108: 99.45186428 | Y108: 100 | AB108: 0
D111: =IF(ISERROR(INDIRECT(CONCATENATE($B111,"!C16"))),"",INDIRECT(CONCATENATE($B111,"!C16"))) ->  | E111: =IF(ISERROR(INDIRECT(CONCATENATE($B111,"!C23"))),"",INDIRECT(CONCATENATE($B111,"!C23"))) ->  | H111: =IF(ISERROR(INDIRECT(CONCATENATE($B111,"!C21"))),"",INDIRECT(CONCATENATE($B111,"!C21"))) ->  | I111: =IF(ISERROR(INDIRECT(CONCATENATE($B111,"!D16"))),"",INDIRECT(CONCATENATE($B111,"!D16"))) ->  | J111: =IF(ISERROR(INDIRECT(CONCATENATE($B111,"!D23"))),"",INDIRECT(CONCATENATE($B111,"!D23"))) ->  | M111: =IF(ISERROR(INDIRECT(CONCATENATE($B111,"!D21"))),"",INDIRECT(CONCATENATE($B111,"!D21"))) ->  | N111: =IF(ISERROR(INDIRECT(CONCATENATE($B111,"!E16"))),"",INDIRECT(CONCATENATE($B111,"!E16"))) ->  | O111: =IF(ISERROR(INDIRECT(CONCATENATE($B111,"!E23"))),"",INDIRECT(CONCATENATE($B111,"!E23"))) ->  | R111: =IF(ISERROR(INDIRECT(CONCATENATE($B111,"!E21"))),"",INDIRECT(CONCATENATE($B111,"!E21"))) ->  | S111: =IF(ISERROR(INDIRECT(CONCATENATE($B111,"!F16"))),"",INDIRECT(CONCATENATE($B111,"!F16"))) ->  | T111: =IF(ISERROR(INDIRECT(CONCATENATE($B111,"!F23"))),"",INDIRECT(CONCATENATE($B111,"!F23"))) ->  | W111: =IF(ISERROR(INDIRECT(CONCATENATE($B111,"!F21"))),"",INDIRECT(CONCATENATE($B111,"!F21"))) ->  | X111: =IF(ISERROR(INDIRECT(CONCATENATE($B111,"!G16"))),"",INDIRECT(CONCATENATE($B111,"!G16"))) ->  | Y111: =IF(ISERROR(INDIRECT(CONCATENATE($B111,"!G23"))),"",INDIRECT(CONCATENATE($B111,"!G23"))) ->  | AB111: =IF(ISERROR(INDIRECT(CONCATENATE($B111,"!G221"))),"",INDIRECT(CONCATENATE($B111,"!G21"))) -> 
D112: =IF(ISERROR(INDIRECT(CONCATENATE($B112,"!C16"))),"",INDIRECT(CONCATENATE($B112,"!C16"))) ->  | E112: =IF(ISERROR(INDIRECT(CONCATENATE($B112,"!C23"))),"",INDIRECT(CONCATENATE($B112,"!C23"))) ->  | H112: =IF(ISERROR(INDIRECT(CONCATENATE($B112,"!C21"))),"",INDIRECT(CONCATENATE($B112,"!C21"))) ->  | I112: =IF(ISERROR(INDIRECT(CONCATENATE($B112,"!D16"))),"",INDIRECT(CONCATENATE($B112,"!D16"))) ->  | J112: =IF(ISERROR(INDIRECT(CONCATENATE($B112,"!D23"))),"",INDIRECT(CONCATENATE($B112,"!D23"))) ->  | M112: =IF(ISERROR(INDIRECT(CONCATENATE($B112,"!D21"))),"",INDIRECT(CONCATENATE($B112,"!D21"))) ->  | N112: =IF(ISERROR(INDIRECT(CONCATENATE($B112,"!E16"))),"",INDIRECT(CONCATENATE($B112,"!E16"))) ->  | O112: =IF(ISERROR(INDIRECT(CONCATENATE($B112,"!E23"))),"",INDIRECT(CONCATENATE($B112,"!E23"))) ->  | R112: =IF(ISERROR(INDIRECT(CONCATENATE($B112,"!E21"))),"",INDIRECT(CONCATENATE($B112,"!E21"))) ->  | S112: =IF(ISERROR(INDIRECT(CONCATENATE($B112,"!F16"))),"",INDIRECT(CONCATENATE($B112,"!F16"))) ->  | T112: =IF(ISERROR(INDIRECT(CONCATENATE($B112,"!F23"))),"",INDIRECT(CONCATENATE($B112,"!F23"))) ->  | W112: =IF(ISERROR(INDIRECT(CONCATENATE($B112,"!F21"))),"",INDIRECT(CONCATENATE($B112,"!F21"))) ->  | X112: =IF(ISERROR(INDIRECT(CONCATENATE($B112,"!G16"))),"",INDIRECT(CONCATENATE($B112,"!G16"))) ->  | Y112: =IF(ISERROR(INDIRECT(CONCATENATE($B112,"!G23"))),"",INDIRECT(CONCATENATE($B112,"!G23"))) ->  | AB112: =IF(ISERROR(INDIRECT(CONCATENATE($B112,"!G221"))),"",INDIRECT(CONCATENATE($B112,"!G21"))) -> 
B118: =CONCATENATE("National use of drinking water sources, ",C99,"–",C100) -> National use of drinking water sources, 2000–2020 | S118: Data points used for regression
E153: =IF(ISERROR(INDIRECT(CONCATENATE($B153,"!M18"))),"",INDIRECT(CONCATENATE($B153,"!M18"))) ->  | F153: =IF(ISERROR(INDIRECT(CONCATENATE($B153,"!M19"))),"",INDIRECT(CONCATENATE($B153,"!M19"))) ->  | G153: =IF(ISERROR(INDIRECT(CONCATENATE($B153,"!M20"))),"",INDIRECT(CONCATENATE($B153,"!M20"))) ->  | H153: =IF(ISERROR(INDIRECT(CONCATENATE($B153,"!M21"))),"",INDIRECT(CONCATENATE($B153,"!M21"))) ->  | J153: =IF(ISERROR(INDIRECT(CONCATENATE($B153,"!N18"))),"",INDIRECT(CONCATENATE($B153,"!N18"))) ->  | K153: =IF(ISERROR(INDIRECT(CONCATENATE($B153,"!N19"))),"",INDIRECT(CONCATENATE($B153,"!N19"))) ->  | L153: =IF(ISERROR(INDIRECT(CONCATENATE($B153,"!N20"))),"",INDIRECT(CONCATENATE($B153,"!N20"))) ->  | M153: =IF(ISERROR(INDIRECT(CONCATENATE($B153,"!N21"))),"",INDIRECT(CONCATENATE($B153,"!N21"))) ->  | O153: =IF(ISERROR(INDIRECT(CONCATENATE($B153,"!O18"))),"",INDIRECT(CONCATENATE($B153,"!O18"))) ->  | P153: =IF(ISERROR(INDIRECT(CONCATENATE($B153,"!O19"))),"",INDIRECT(CONCATENATE($B153,"!O19"))) ->  | Q153: =IF(ISERROR(INDIRECT(CONCATENATE($B153,"!O20"))),"",INDIRECT(CONCATENATE($B153,"!O20"))) ->  | R153: =IF(ISERROR(INDIRECT(CONCATENATE($B153,"!O21"))),"",INDIRECT(CONCATENATE($B153,"!O21"))) ->  | T153: =IF(ISERROR(INDIRECT(CONCATENATE($B153,"!P18"))),"",INDIRECT(CONCATENATE($B153,"!P18"))) ->  | U153: =IF(ISERROR(INDIRECT(CONCATENATE($B153,"!P19"))),"",INDIRECT(CONCATENATE($B153,"!P19"))) ->  | V153: =IF(ISERROR(INDIRECT(CONCATENATE($B153,"!P20"))),"",INDIRECT(CONCATENATE($B153,"!P20"))) ->  | W153: =IF(ISERROR(INDIRECT(CONCATENATE($B153,"!P21"))),"",INDIRECT(CONCATENATE($B153,"!P21"))) ->  | Y153: =IF(ISERROR(INDIRECT(CONCATENATE($B153,"!Q18"))),"",INDIRECT(CONCATENATE($B153,"!Q18"))) ->  | Z153: =IF(ISERROR(INDIRECT(CONCATENATE($B153,"!Q19"))),"",INDIRECT(CONCATENATE($B153,"!Q19"))) ->  | AA153: =IF(ISERROR(INDIRECT(CONCATENATE($B153,"!Q20"))),"",INDIRECT(CONCATENATE($B153,"!Q20"))) ->  | AB153: =IF(ISERROR(INDIRECT(CONCATENATE($B153,"!Q21"))),"",INDIRECT(CONCATENATE($B153,"!Q1"))) -> 
A197: URBAN | D197: Poorest | I197: Poor | N197: Middle | S197: Rich | X197: Richest
D198: Improved | E198: Basic | F198: Limited | G198: Unimproved | H198: Surface water | I198: Improved | J198: Basic | K198: Limited | L198: Unimproved | M198: Surface water | N198: Improved | O198: Basic | P198: Limited | Q198: Unimproved | R198: Surface water | S198: Improved | T198: Basic | U198: Limited | V198: Unimproved | W198: Surface water | X198: Improved | Y198: Basic | Z198: Limited | AA198: Unimproved | AB198: Surface water
A199: Forecast period: | C199: 2000 | D199: =IF((D201+H201)>100,D201*100/(D201+H201),D201) -> 55.33440896 | E199: =D199*AVERAGEIF(E205:E216,">0")/100 -> 55.12103358 | F199: =D199*(100-AVERAGEIF(E205:E216,">0"))/100 -> 0.2133753737 | G199: =100-(E199+F199+H199) -> 40.72850706 | H199: =IF((D201+H201)>100,H201*100/(D201+H201),H201) -> 3.937083984 | I199: =IF((I201+M201)>100,I201*100/(I201+M201),I201) -> 75.23039797 | J199: =I199*AVERAGEIF(J205:J216,">0")/100 -> 75.15179948 | K199: =I199*(100-AVERAGEIF(J205:J216,">0"))/100 -> 0.07859849066 | L199: =100-(J199+K199+M199) -> 22.45115764 | M199: =IF((I201+M201)>100,M201*100/(I201+M201),M201) -> 2.318444389 | N199: =IF((N201+R201)>100,N201*100/(N201+R201),N201) -> 74.41989898 | O199: =N199*AVERAGEIF(O205:O216,">0")/100 -> 74.3206915 | P199: =N199*(100-AVERAGEIF(O205:O216,">0"))/100 -> 0.09920748022 | Q199: =100-(O199+P199+R199) -> 20.75339317 | R199: =IF((N201+R201)>100,R201*100/(N201+R201),R201) -> 4.826707845 | S199: =IF((S201+W201)>100,S201*100/(S201+W201),S201) -> 74.07087715 | T199: =S199*AVERAGEIF(T205:T216,">0")/100 -> 73.86385038 | U199: =S199*(100-AVERAGEIF(T205:T216,">0"))/100 -> 0.2070267769 | V199: =100-(T199+U199+W199) -> 20.71412177 | W199: =IF((S201+W201)>100,W201*100/(S201+W201),W201) -> 5.215001074 | X199: =IF((X201+AB201)>100,X201*100/(X201+AB201),X201) -> 87.84920768 | Y199: =X199*AVERAGEIF(Y205:Y216,">0")/100 -> 87.84920768 | Z199: =X199*(100-AVERAGEIF(Y205:Y216,">0"))/100 -> 0 | AA199: =100-(Y199+Z199+AB199) -> 10.79180583 | AB199: =IF((X201+AB201)>100,AB201*100/(X201+AB201),AB201) -> 1.358986483
C200: 2020 | D200: =IF((D202+H202)>100,D202*100/(D202+H202),D202) -> 86.57920294 | E200: =D200*AVERAGEIF(E205:E216,">0")/100 -> 86.24534431 | F200: =D200*(100-AVERAGEIF(E205:E216,">0"))/100 -> 0.3338586267 | G200: =100-(E200+F200+H200) -> 10.62131484 | H200: =IF((D202+H202)>100,H202*100/(D202+H202),H202) -> 2.799482226 | I200: =IF((I202+M202)>100,I202*100/(I202+M202),I202) -> 99.34696853 | J200: =I200*AVERAGEIF(J205:J216,">0")/100 -> 99.24317376 | K200: =I200*(100-AVERAGEIF(J205:J216,">0"))/100 -> 0.103794769 | L200: =100-(J200+K200+M200) -> 0 | M200: =IF((I202+M202)>100,M202*100/(I202+M202),M202) -> 0.6530314711 | N200: =IF((N202+R202)>100,N202*100/(N202+R202),N202) -> 100 | O200: =N200*AVERAGEIF(O205:O216,">0")/100 -> 99.86669227 | P200: =N200*(100-AVERAGEIF(O205:O216,">0"))/100 -> 0.133307733 | Q200: =100-(O200+P200+R200) -> 0 | R200: =IF((N202+R202)>100,R202*100/(N202+R202),R202) -> 0 | S200: =IF((S202+W202)>100,S202*100/(S202+W202),S202) -> 100 | T200: =S200*AVERAGEIF(T205:T216,">0")/100 -> 99.72050179 | U200: =S200*(100-AVERAGEIF(T205:T216,">0"))/100 -> 0.2794982115 | V200: =100-(T200+U200+W200) -> 0 | W200: =IF((S202+W202)>100,W202*100/(S202+W202),W202) -> 0 | X200: =IF((X202+AB202)>100,X202*100/(X202+AB202),X202) -> 100 | Y200: =X200*AVERAGEIF(Y205:Y216,">0")/100 -> 100 | Z200: =X200*(100-AVERAGEIF(Y205:Y216,">0"))/100 -> 0 | AA200: =100-(Y200+Z200+AB200) -> 0 | AB200: =IF((X202+AB202)>100,AB202*100/(X202+AB202),AB202) -> 0
A201: Regression period: | C201: =MinRegYear(C199,C205:C216) -> 2000 | D201: =IF(MAX(C205:C216)-MIN(C205:C216)<5,AVERAGEIF(C205:C216,">0",D205:D216), IF(FORECAST($C201,D$205:D$216,$C$205:$C$216)<0,0, IF(FORECAST($C201,D$205:D$216,$C$205:$C$216)>100,100, FORECAST($C201,D$205:D$216,$C$205:$C$216)))) -> 55.33440896 | H201: =IF(MAX(C205:C216)-MIN(C205:C216)<5,AVERAGEIF(C205:C216,">0",H205:H216), IF(FORECAST($C201,H$205:H$216,$C$205:$C$216)<0,0, IF(FORECAST($C201,H$205:H$216,$C$205:$C$216)>100,100, FORECAST($C201,H$205:H$216,$C$205:$C$216)))) -> 3.937083984 | I201: =IF(MAX(C205:C216)-MIN(C205:C216)<5,AVERAGEIF(C205:C216,">0",I205:I216), IF(FORECAST($C201,I$205:I$216,$C$205:$C$216)<0,0, IF(FORECAST($C201,I$205:I$216,$C$205:$C$216)>100,100, FORECAST($C201,I$205:I$216,$C$205:$C$216)))) -> 75.23039797 | M201: =IF(MAX(C205:C216)-MIN(C205:C216)<5,AVERAGEIF(C205:C216,">0",M205:M216), IF(FORECAST($C201,M$205:M$216,$C$205:$C$216)<0,0, IF(FORECAST($C201,M$205:M$216,$C$205:$C$216)>100,100, FORECAST($C201,M$205:M$216,$C$205:$C$216)))) -> 2.318444389 | N201: =IF(MAX(C205:C216)-MIN(C205:C216)<5,AVERAGEIF(C205:C216,">0",N205:N216), IF(FORECAST($C201,N$205:N$216,$C$205:$C$216)<0,0, IF(FORECAST($C201,N$205:N$216,$C$205:$C$216)>100,100, FORECAST($C201,N$205:N$216,$C$205:$C$216)))) -> 74.41989898 | R201: =IF(MAX(C205:C216)-MIN(C205:C216)<5,AVERAGEIF(C205:C216,">0",R205:R216), IF(FORECAST($C201,R$205:R$216,$C$205:$C$216)<0,0, IF(FORECAST($C201,R$205:R$216,$C$205:$C$216)>100,100, FORECAST($C201,R$205:R$216,$C$205:$C$216)))) -> 4.826707845 | S201: =IF(MAX(C205:C216)-MIN(C205:C216)<5,AVERAGEIF(C205:C216,">0",S205:S216), IF(FORECAST($C201,S$205:S$216,$C$205:$C$216)<0,0, IF(FORECAST($C201,S$205:S$216,$C$205:$C$216)>100,100, FORECAST($C201,S$205:S$216,$C$205:$C$216)))) -> 74.07087715 | W201: =IF(MAX(C205:C216)-MIN(C205:C216)<5,AVERAGEIF(C205:C216,">0",W205:W216), IF(FORECAST($C201,W$205:W$216,$C$205:$C$216)<0,0, IF(FORECAST($C201,W$205:W$216,$C$205:$C$216)>100,100, FORECAST($C201,W$205:W$216,$C$205:$C$216)))) -> 5.215001074 | X201: =IF(MAX(C205:C216)-MIN(C205:C216)<5,AVERAGEIF(C205:C216,">0",X205:X216), IF(FORECAST($C201,X$205:X$216,$C$205:$C$216)<0,0, IF(FORECAST($C201,X$205:X$216,$C$205:$C$216)>100,100, FORECAST($C201,X$205:X$216,$C$205:$C$216)))) -> 87.84920768 | AB201: =IF(MAX(C205:C216)-MIN(C205:C216)<5,AVERAGEIF(C205:C216,">0",AB205:AB216), IF(FORECAST($C201,AB$205:AB$216,$C$205:$C$216)<0,0, IF(FORECAST($C201,AB$205:AB$216,$C$205:$C$216)>100,100, FORECAST($C201,AB$205:AB$216,$C$205:$C$216)))) -> 1.358986483
C202: =MaxRegYear(C200,C205:C216) -> 2019 | D202: =IF(MAX(C205:C216)-MIN(C205:C216)<5,AVERAGEIF(C205:C216,">0",D205:D216), IF(FORECAST($C202,D$205:D$216,$C$205:$C$216)<0,0, IF(FORECAST($C202,D$205:D$216,$C$205:$C$216)>100,100, FORECAST($C202,D$205:D$216,$C$205:$C$216)))) -> 86.57920294 | H202: =IF(MAX(C205:C216)-MIN(C205:C216)<5,AVERAGEIF(C205:C216,">0",H205:H216), IF(FORECAST($C202,H$205:H$216,$C$205:$C$216)<0,0, IF(FORECAST($C202,H$205:H$216,$C$205:$C$216)>100,100, FORECAST($C202,H$205:H$216,$C$205:$C$216)))) -> 2.799482226 | I202: =IF(MAX(C205:C216)-MIN(C205:C216)<5,AVERAGEIF(C205:C216,">0",I205:I216), IF(FORECAST($C202,I$205:I$216,$C$205:$C$216)<0,0, IF(FORECAST($C202,I$205:I$216,$C$205:$C$216)>100,100, FORECAST($C202,I$205:I$216,$C$205:$C$216)))) -> 100 | M202: =IF(MAX(C205:C216)-MIN(C205:C216)<5,AVERAGEIF(C205:C216,">0",M205:M216), IF(FORECAST($C202,M$205:M$216,$C$205:$C$216)<0,0, IF(FORECAST($C202,M$205:M$216,$C$205:$C$216)>100,100, FORECAST($C202,M$205:M$216,$C$205:$C$216)))) -> 0.6573240037 | N202: =IF(MAX(C205:C216)-MIN(C205:C216)<5,AVERAGEIF(C205:C216,">0",N205:N216), IF(FORECAST($C202,N$205:N$216,$C$205:$C$216)<0,0, IF(FORECAST($C202,N$205:N$216,$C$205:$C$216)>100,100, FORECAST($C202,N$205:N$216,$C$205:$C$216)))) -> 100 | R202: =IF(MAX(C205:C216)-MIN(C205:C216)<5,AVERAGEIF(C205:C216,">0",R205:R216), IF(FORECAST($C202,R$205:R$216,$C$205:$C$216)<0,0, IF(FORECAST($C202,R$205:R$216,$C$205:$C$216)>100,100, FORECAST($C202,R$205:R$216,$C$205:$C$216)))) -> 0 | S202: =IF(MAX(C205:C216)-MIN(C205:C216)<5,AVERAGEIF(C205:C216,">0",S205:S216), IF(FORECAST($C202,S$205:S$216,$C$205:$C$216)<0,0, IF(FORECAST($C202,S$205:S$216,$C$205:$C$216)>100,100, FORECAST($C202,S$205:S$216,$C$205:$C$216)))) -> 100 | W202: =IF(MAX(C205:C216)-MIN(C205:C216)<5,AVERAGEIF(C205:C216,">0",W205:W216), IF(FORECAST($C202,W$205:W$216,$C$205:$C$216)<0,0, IF(FORECAST($C202,W$205:W$216,$C$205:$C$216)>100,100, FORECAST($C202,W$205:W$216,$C$205:$C$216)))) -> 0 | X202: =IF(MAX(C205:C216)-MIN(C205:C216)<5,AVERAGEIF(C205:C216,">0",X205:X216), IF(FORECAST($C202,X$205:X$216,$C$205:$C$216)<0,0, IF(FORECAST($C202,X$205:X$216,$C$205:$C$216)>100,100, FORECAST($C202,X$205:X$216,$C$205:$C$216)))) -> 100 | AB202: =IF(MAX(C205:C216)-MIN(C205:C216)<5,AVERAGEIF(C205:C216,">0",AB205:AB216), IF(FORECAST($C202,AB$205:AB$216,$C$205:$C$216)<0,0, IF(FORECAST($C202,AB$205:AB$216,$C$205:$C$216)>100,100, FORECAST($C202,AB$205:AB$216,$C$205:$C$216)))) -> 0
B204: Survey | C204: Year | D204: Improved | E204: Basic | H204: Surface water | I204: Improved | J204: Basic | M204: Surface water | N204: Improved | O204: Basic | R204: Surface water | S204: Improved | T204: Basic | W204: Surface water | X204: Improved | Y204: Basic | AB204: Surface water
B205: MICS00 | C205: 2000 | D205: =IF(ISERROR(INDIRECT(CONCATENATE($B205,"!H16"))),"",INDIRECT(CONCATENATE($B205,"!H16"))) -> 64.48751311 | E205: =IF(ISERROR(INDIRECT(CONCATENATE($B205,"!H23"))),"",INDIRECT(CONCATENATE($B205,"!H23"))) -> 100 | H205: =IF(ISERROR(INDIRECT(CONCATENATE($B205,"!H21"))),"",INDIRECT(CONCATENATE($B205,"!H21"))) -> 4.079803766 | I205: =IF(ISERROR(INDIRECT(CONCATENATE($B205,"!I16"))),"",INDIRECT(CONCATENATE($B205,"!I16"))) -> 75.0717389 | J205: =IF(ISERROR(INDIRECT(CONCATENATE($B205,"!I23"))),"",INDIRECT(CONCATENATE($B205,"!I23"))) -> 100 | M205: =IF(ISERROR(INDIRECT(CONCATENATE($B205,"!I21"))),"",INDIRECT(CONCATENATE($B205,"!I21"))) -> 2.348794803 | N205: =IF(ISERROR(INDIRECT(CONCATENATE($B205,"!J16"))),"",INDIRECT(CONCATENATE($B205,"!J16"))) -> 69.10848648 | O205: =IF(ISERROR(INDIRECT(CONCATENATE($B205,"!J23"))),"",INDIRECT(CONCATENATE($B205,"!J23"))) -> 99.55568201 | R205: =IF(ISERROR(INDIRECT(CONCATENATE($B205,"!J21"))),"",INDIRECT(CONCATENATE($B205,"!J21"))) -> 5.58717115 | S205: =IF(ISERROR(INDIRECT(CONCATENATE($B205,"!K16"))),"",INDIRECT(CONCATENATE($B205,"!K16"))) -> 66.43397871 | T205: =IF(ISERROR(INDIRECT(CONCATENATE($B205,"!K23"))),"",INDIRECT(CONCATENATE($B205,"!K23"))) -> 98.88200715 | W205: =IF(ISERROR(INDIRECT(CONCATENATE($B205,"!K21"))),"",INDIRECT(CONCATENATE($B205,"!K21"))) -> 7.024294006 | X205: =IF(ISERROR(INDIRECT(CONCATENATE($B205,"!L16"))),"",INDIRECT(CONCATENATE($B205,"!L16"))) -> 83.26290132 | Y205: =IF(ISERROR(INDIRECT(CONCATENATE($B205,"!L23"))),"",INDIRECT(CONCATENATE($B205,"!L23"))) -> 100 | AB205: =IF(ISERROR(INDIRECT(CONCATENATE($B205,"!L221"))),"",INDIRECT(CONCATENATE($B205,"!L21"))) -> 1.886354371
B206: MICS06 | C206: 2006 | D206: 50.14002455 | E206: 98.87438754 | H206: 3.474592145 | I206: 83.43069488 | J206: 99.730729 | M206: 1.360048398 | N206: 91.89430189 | O206: 100 | R206: 1.832766511 | S206: 95.64446672 | T206: 100 | W206: 0.377588532 | X206: 99.77605547 | Y206: 100 | AB206: 0
B207: MICS12 | C207: 2012 | D207: 77.08196414 | E207: 100 | H207: 2.960499595 | I207: 91.10135524 | J207: 99.97109197 | M207: 2.120553966 | N207: 96.45201001 | O207: 100 | R207: 0.9615716563 | S207: 99.22168184 | T207: 100 | W207: 0.05666082582 | X207: 99.17500188 | Y207: 100 | AB207: 0
B208: MICS17 | C208: 2017 | D208: 87.18433347 | E208: 99.58316986 | H208: 3.137858243 | I208: 97.66803845 | J208: 99.88027089 | M208: 0.3844217846 | N208: 99.13729046 | O208: 99.91108706 | R208: 0 | S208: 99.77122445 | T208: 100 | W208: 0 | X208: 99.69872994 | Y208: 100 | AB208: 0
B218: =CONCATENATE("Urban use of drinking water sources, ",C199,"–",C200) -> Urban use of drinking water sources, 2000–2020 | S218: Data points used for regression
E253: =IF(ISERROR(INDIRECT(CONCATENATE($B253,"!M18"))),"",INDIRECT(CONCATENATE($B253,"!M18"))) ->  | F253: =IF(ISERROR(INDIRECT(CONCATENATE($B253,"!M19"))),"",INDIRECT(CONCATENATE($B253,"!M19"))) ->  | G253: =IF(ISERROR(INDIRECT(CONCATENATE($B253,"!M20"))),"",INDIRECT(CONCATENATE($B253,"!M20"))) ->  | H253: =IF(ISERROR(INDIRECT(CONCATENATE($B253,"!M21"))),"",INDIRECT(CONCATENATE($B253,"!M21"))) ->  | J253: =IF(ISERROR(INDIRECT(CONCATENATE($B253,"!N18"))),"",INDIRECT(CONCATENATE($B253,"!N18"))) ->  | K253: =IF(ISERROR(INDIRECT(CONCATENATE($B253,"!N19"))),"",INDIRECT(CONCATENATE($B253,"!N19"))) ->  | L253: =IF(ISERROR(INDIRECT(CONCATENATE($B253,"!N20"))),"",INDIRECT(CONCATENATE($B253,"!N20"))) ->  | M253: =IF(ISERROR(INDIRECT(CONCATENATE($B253,"!N21"))),"",INDIRECT(CONCATENATE($B253,"!N21"))) ->  | O253: =IF(ISERROR(INDIRECT(CONCATENATE($B253,"!O18"))),"",INDIRECT(CONCATENATE($B253,"!O18"))) ->  | P253: =IF(ISERROR(INDIRECT(CONCATENATE($B253,"!O19"))),"",INDIRECT(CONCATENATE($B253,"!O19"))) ->  | Q253: =IF(ISERROR(INDIRECT(CONCATENATE($B253,"!O20"))),"",INDIRECT(CONCATENATE($B253,"!O20"))) ->  | R253: =IF(ISERROR(INDIRECT(CONCATENATE($B253,"!O21"))),"",INDIRECT(CONCATENATE($B253,"!O21"))) ->  | T253: =IF(ISERROR(INDIRECT(CONCATENATE($B253,"!P18"))),"",INDIRECT(CONCATENATE($B253,"!P18"))) ->  | U253: =IF(ISERROR(INDIRECT(CONCATENATE($B253,"!P19"))),"",INDIRECT(CONCATENATE($B253,"!P19"))) ->  | V253: =IF(ISERROR(INDIRECT(CONCATENATE($B253,"!P20"))),"",INDIRECT(CONCATENATE($B253,"!P20"))) ->  | W253: =IF(ISERROR(INDIRECT(CONCATENATE($B253,"!P21"))),"",INDIRECT(CONCATENATE($B253,"!P21"))) ->  | Y253: =IF(ISERROR(INDIRECT(CONCATENATE($B253,"!Q18"))),"",INDIRECT(CONCATENATE($B253,"!Q18"))) ->  | Z253: =IF(ISERROR(INDIRECT(CONCATENATE($B253,"!Q19"))),"",INDIRECT(CONCATENATE($B253,"!Q19"))) ->  | AA253: =IF(ISERROR(INDIRECT(CONCATENATE($B253,"!Q20"))),"",INDIRECT(CONCATENATE($B253,"!Q20"))) ->  | AB253: =IF(ISERROR(INDIRECT(CONCATENATE($B253,"!Q21"))),"",INDIRECT(CONCATENATE($B253,"!Q1"))) -> 
E254: =IF(ISERROR(INDIRECT(CONCATENATE($B254,"!M18"))),"",INDIRECT(CONCATENATE($B254,"!M18"))) ->  | F254: =IF(ISERROR(INDIRECT(CONCATENATE($B254,"!M19"))),"",INDIRECT(CONCATENATE($B254,"!M19"))) ->  | G254: =IF(ISERROR(INDIRECT(CONCATENATE($B254,"!M20"))),"",INDIRECT(CONCATENATE($B254,"!M20"))) ->  | H254: =IF(ISERROR(INDIRECT(CONCATENATE($B254,"!M21"))),"",INDIRECT(CONCATENATE($B254,"!M21"))) ->  | J254: =IF(ISERROR(INDIRECT(CONCATENATE($B254,"!N18"))),"",INDIRECT(CONCATENATE($B254,"!N18"))) ->  | K254: =IF(ISERROR(INDIRECT(CONCATENATE($B254,"!N19"))),"",INDIRECT(CONCATENATE($B254,"!N19"))) ->  | L254: =IF(ISERROR(INDIRECT(CONCATENATE($B254,"!N20"))),"",INDIRECT(CONCATENATE($B254,"!N20"))) ->  | M254: =IF(ISERROR(INDIRECT(CONCATENATE($B254,"!N21"))),"",INDIRECT(CONCATENATE($B254,"!N21"))) ->  | O254: =IF(ISERROR(INDIRECT(CONCATENATE($B254,"!O18"))),"",INDIRECT(CONCATENATE($B254,"!O18"))) ->  | P254: =IF(ISERROR(INDIRECT(CONCATENATE($B254,"!O19"))),"",INDIRECT(CONCATENATE($B254,"!O19"))) ->  | Q254: =IF(ISERROR(INDIRECT(CONCATENATE($B254,"!O20"))),"",INDIRECT(CONCATENATE($B254,"!O20"))) ->  | R254: =IF(ISERROR(INDIRECT(CONCATENATE($B254,"!O21"))),"",INDIRECT(CONCATENATE($B254,"!O21"))) ->  | T254: =IF(ISERROR(INDIRECT(CONCATENATE($B254,"!P18"))),"",INDIRECT(CONCATENATE($B254,"!P18"))) ->  | U254: =IF(ISERROR(INDIRECT(CONCATENATE($B254,"!P19"))),"",INDIRECT(CONCATENATE($B254,"!P19"))) ->  | V254: =IF(ISERROR(INDIRECT(CONCATENATE($B254,"!P20"))),"",INDIRECT(CONCATENATE($B254,"!P20"))) ->  | W254: =IF(ISERROR(INDIRECT(CONCATENATE($B254,"!P21"))),"",INDIRECT(CONCATENATE($B254,"!P21"))) ->  | Y254: =IF(ISERROR(INDIRECT(CONCATENATE($B254,"!Q18"))),"",INDIRECT(CONCATENATE($B254,"!Q18"))) ->  | Z254: =IF(ISERROR(INDIRECT(CONCATENATE($B254,"!Q19"))),"",INDIRECT(CONCATENATE($B254,"!Q19"))) ->  | AA254: =IF(ISERROR(INDIRECT(CONCATENATE($B254,"!Q20"))),"",INDIRECT(CONCATENATE($B254,"!Q20"))) ->  | AB254: =IF(ISERROR(INDIRECT(CONCATENATE($B254,"!Q21"))),"",INDIRECT(CONCATENATE($B254,"!Q1"))) -> 
E255: =IF(ISERROR(INDIRECT(CONCATENATE($B255,"!M18"))),"",INDIRECT(CONCATENATE($B255,"!M18"))) ->  | F255: =IF(ISERROR(INDIRECT(CONCATENATE($B255,"!M19"))),"",INDIRECT(CONCATENATE($B255,"!M19"))) ->  | G255: =IF(ISERROR(INDIRECT(CONCATENATE($B255,"!M20"))),"",INDIRECT(CONCATENATE($B255,"!M20"))) ->  | H255: =IF(ISERROR(INDIRECT(CONCATENATE($B255,"!M21"))),"",INDIRECT(CONCATENATE($B255,"!M21"))) ->  | J255: =IF(ISERROR(INDIRECT(CONCATENATE($B255,"!N18"))),"",INDIRECT(CONCATENATE($B255,"!N18"))) ->  | K255: =IF(ISERROR(INDIRECT(CONCATENATE($B255,"!N19"))),"",INDIRECT(CONCATENATE($B255,"!N19"))) ->  | L255: =IF(ISERROR(INDIRECT(CONCATENATE($B255,"!N20"))),"",INDIRECT(CONCATENATE($B255,"!N20"))) ->  | M255: =IF(ISERROR(INDIRECT(CONCATENATE($B255,"!N21"))),"",INDIRECT(CONCATENATE($B255,"!N21"))) ->  | O255: =IF(ISERROR(INDIRECT(CONCATENATE($B255,"!O18"))),"",INDIRECT(CONCATENATE($B255,"!O18"))) ->  | P255: =IF(ISERROR(INDIRECT(CONCATENATE($B255,"!O19"))),"",INDIRECT(CONCATENATE($B255,"!O19"))) ->  | Q255: =IF(ISERROR(INDIRECT(CONCATENATE($B255,"!O20"))),"",INDIRECT(CONCATENATE($B255,"!O20"))) ->  | R255: =IF(ISERROR(INDIRECT(CONCATENATE($B255,"!O21"))),"",INDIRECT(CONCATENATE($B255,"!O21"))) ->  | T255: =IF(ISERROR(INDIRECT(CONCATENATE($B255,"!P18"))),"",INDIRECT(CONCATENATE($B255,"!P18"))) ->  | U255: =IF(ISERROR(INDIRECT(CONCATENATE($B255,"!P19"))),"",INDIRECT(CONCATENATE($B255,"!P19"))) ->  | V255: =IF(ISERROR(INDIRECT(CONCATENATE($B255,"!P20"))),"",INDIRECT(CONCATENATE($B255,"!P20"))) ->  | W255: =IF(ISERROR(INDIRECT(CONCATENATE($B255,"!P21"))),"",INDIRECT(CONCATENATE($B255,"!P21"))) ->  | Y255: =IF(ISERROR(INDIRECT(CONCATENATE($B255,"!Q18"))),"",INDIRECT(CONCATENATE($B255,"!Q18"))) ->  | Z255: =IF(ISERROR(INDIRECT(CONCATENATE($B255,"!Q19"))),"",INDIRECT(CONCATENATE($B255,"!Q19"))) ->  | AA255: =IF(ISERROR(INDIRECT(CONCATENATE($B255,"!Q20"))),"",INDIRECT(CONCATENATE($B255,"!Q20"))) ->  | AB255: =IF(ISERROR(INDIRECT(CONCATENATE($B255,"!Q21"))),"",INDIRECT(CONCATENATE($B255,"!Q1"))) -> 
E256: =IF(ISERROR(INDIRECT(CONCATENATE($B256,"!M18"))),"",INDIRECT(CONCATENATE($B256,"!M18"))) ->  | F256: =IF(ISERROR(INDIRECT(CONCATENATE($B256,"!M19"))),"",INDIRECT(CONCATENATE($B256,"!M19"))) ->  | G256: =IF(ISERROR(INDIRECT(CONCATENATE($B256,"!M20"))),"",INDIRECT(CONCATENATE($B256,"!M20"))) ->  | H256: =IF(ISERROR(INDIRECT(CONCATENATE($B256,"!M21"))),"",INDIRECT(CONCATENATE($B256,"!M21"))) ->  | J256: =IF(ISERROR(INDIRECT(CONCATENATE($B256,"!N18"))),"",INDIRECT(CONCATENATE($B256,"!N18"))) ->  | K256: =IF(ISERROR(INDIRECT(CONCATENATE($B256,"!N19"))),"",INDIRECT(CONCATENATE($B256,"!N19"))) ->  | L256: =IF(ISERROR(INDIRECT(CONCATENATE($B256,"!N20"))),"",INDIRECT(CONCATENATE($B256,"!N20"))) ->  | M256: =IF(ISERROR(INDIRECT(CONCATENATE($B256,"!N21"))),"",INDIRECT(CONCATENATE($B256,"!N21"))) ->  | O256: =IF(ISERROR(INDIRECT(CONCATENATE($B256,"!O18"))),"",INDIRECT(CONCATENATE($B256,"!O18"))) ->  | P256: =IF(ISERROR(INDIRECT(CONCATENATE($B256,"!O19"))),"",INDIRECT(CONCATENATE($B256,"!O19"))) ->  | Q256: =IF(ISERROR(INDIRECT(CONCATENATE($B256,"!O20"))),"",INDIRECT(CONCATENATE($B256,"!O20"))) ->  | R256: =IF(ISERROR(INDIRECT(CONCATENATE($B256,"!O21"))),"",INDIRECT(CONCATENATE($B256,"!O21"))) ->  | T256: =IF(ISERROR(INDIRECT(CONCATENATE($B256,"!P18"))),"",INDIRECT(CONCATENATE($B256,"!P18"))) ->  | U256: =IF(ISERROR(INDIRECT(CONCATENATE($B256,"!P19"))),"",INDIRECT(CONCATENATE($B256,"!P19"))) ->  | V256: =IF(ISERROR(INDIRECT(CONCATENATE($B256,"!P20"))),"",INDIRECT(CONCATENATE($B256,"!P20"))) ->  | W256: =IF(ISERROR(INDIRECT(CONCATENATE($B256,"!P21"))),"",INDIRECT(CONCATENATE($B256,"!P21"))) ->  | Y256: =IF(ISERROR(INDIRECT(CONCATENATE($B256,"!Q18"))),"",INDIRECT(CONCATENATE($B256,"!Q18"))) ->  | Z256: =IF(ISERROR(INDIRECT(CONCATENATE($B256,"!Q19"))),"",INDIRECT(CONCATENATE($B256,"!Q19"))) ->  | AA256: =IF(ISERROR(INDIRECT(CONCATENATE($B256,"!Q20"))),"",INDIRECT(CONCATENATE($B256,"!Q20"))) ->  | AB256: =IF(ISERROR(INDIRECT(CONCATENATE($B256,"!Q21"))),"",INDIRECT(CONCATENATE($B256,"!Q1"))) -> 
E257: =IF(ISERROR(INDIRECT(CONCATENATE($B257,"!M18"))),"",INDIRECT(CONCATENATE($B257,"!M18"))) ->  | F257: =IF(ISERROR(INDIRECT(CONCATENATE($B257,"!M19"))),"",INDIRECT(CONCATENATE($B257,"!M19"))) ->  | G257: =IF(ISERROR(INDIRECT(CONCATENATE($B257,"!M20"))),"",INDIRECT(CONCATENATE($B257,"!M20"))) ->  | H257: =IF(ISERROR(INDIRECT(CONCATENATE($B257,"!M21"))),"",INDIRECT(CONCATENATE($B257,"!M21"))) ->  | J257: =IF(ISERROR(INDIRECT(CONCATENATE($B257,"!N18"))),"",INDIRECT(CONCATENATE($B257,"!N18"))) ->  | K257: =IF(ISERROR(INDIRECT(CONCATENATE($B257,"!N19"))),"",INDIRECT(CONCATENATE($B257,"!N19"))) ->  | L257: =IF(ISERROR(INDIRECT(CONCATENATE($B257,"!N20"))),"",INDIRECT(CONCATENATE($B257,"!N20"))) ->  | M257: =IF(ISERROR(INDIRECT(CONCATENATE($B257,"!N21"))),"",INDIRECT(CONCATENATE($B257,"!N21"))) ->  | O257: =IF(ISERROR(INDIRECT(CONCATENATE($B257,"!O18"))),"",INDIRECT(CONCATENATE($B257,"!O18"))) ->  | P257: =IF(ISERROR(INDIRECT(CONCATENATE($B257,"!O19"))),"",INDIRECT(CONCATENATE($B257,"!O19"))) ->  | Q257: =IF(ISERROR(INDIRECT(CONCATENATE($B257,"!O20"))),"",INDIRECT(CONCATENATE($B257,"!O20"))) ->  | R257: =IF(ISERROR(INDIRECT(CONCATENATE($B257,"!O21"))),"",INDIRECT(CONCATENATE($B257,"!O21"))) ->  | T257: =IF(ISERROR(INDIRECT(CONCATENATE($B257,"!P18"))),"",INDIRECT(CONCATENATE($B257,"!P18"))) ->  | U257: =IF(ISERROR(INDIRECT(CONCATENATE($B257,"!P19"))),"",INDIRECT(CONCATENATE($B257,"!P19"))) ->  | V257: =IF(ISERROR(INDIRECT(CONCATENATE($B257,"!P20"))),"",INDIRECT(CONCATENATE($B257,"!P20"))) ->  | W257: =IF(ISERROR(INDIRECT(CONCATENATE($B257,"!P21"))),"",INDIRECT(CONCATENATE($B257,"!P21"))) ->  | Y257: =IF(ISERROR(INDIRECT(CONCATENATE($B257,"!Q18"))),"",INDIRECT(CONCATENATE($B257,"!Q18"))) ->  | Z257: =IF(ISERROR(INDIRECT(CONCATENATE($B257,"!Q19"))),"",INDIRECT(CONCATENATE($B257,"!Q19"))) ->  | AA257: =IF(ISERROR(INDIRECT(CONCATENATE($B257,"!Q20"))),"",INDIRECT(CONCATENATE($B257,"!Q20"))) ->  | AB257: =IF(ISERROR(INDIRECT(CONCATENATE($B257,"!Q21"))),"",INDIRECT(CONCATENATE($B257,"!Q1"))) -> 
A297: RURAL | D297: Poorest | I297: Poor | N297: Middle | S297: Rich | X297: Richest
D298: Improved | E298: Basic | F298: Limited | G298: Unimproved | H298: Surface water | I298: Improved | J298: Basic | K298: Limited | L298: Unimproved | M298: Surface water | N298: Improved | O298: Basic | P298: Limited | Q298: Unimproved | R298: Surface water | S298: Improved | T298: Basic | U298: Limited | V298: Unimproved | W298: Surface water | X298: Improved | Y298: Basic | Z298: Limited | AA298: Unimproved | AB298: Surface water
A299: Forecast period: | C299: 2000 | D299: =IF((D301+H301)>100,D301*100/(D301+H301),D301) -> 21.34717537 | E299: =D299*AVERAGEIF(E305:E316,">0")/100 -> 21.23710532 | F299: =D299*(100-AVERAGEIF(E305:E316,">0"))/100 -> 0.1100700533 | G299: =100-(E299+F299+H299) -> 25.3427092 | H299: =IF((D301+H301)>100,H301*100/(D301+H301),H301) -> 53.31011543 | I299: =IF((I301+M301)>100,I301*100/(I301+M301),I301) -> 27.36130936 | J299: =I299*AVERAGEIF(J305:J316,">0")/100 -> 26.52311686 | K299: =I299*(100-AVERAGEIF(J305:J316,">0"))/100 -> 0.8381925024 | L299: =100-(J299+K299+M299) -> 40.02761474 | M299: =IF((I301+M301)>100,M301*100/(I301+M301),M301) -> 32.6110759 | N299: =IF((N301+R301)>100,N301*100/(N301+R301),N301) -> 33.80493608 | O299: =N299*AVERAGEIF(O305:O316,">0")/100 -> 33.22363542 | P299: =N299*(100-AVERAGEIF(O305:O316,">0"))/100 -> 0.5813006638 | Q299: =100-(O299+P299+R299) -> 34.82131627 | R299: =IF((N301+R301)>100,R301*100/(N301+R301),R301) -> 31.37374765 | S299: =IF((S301+W301)>100,S301*100/(S301+W301),S301) -> 29.65088906 | T299: =S299*AVERAGEIF(T305:T316,">0")/100 -> 29.25114086 | U299: =S299*(100-AVERAGEIF(T305:T316,">0"))/100 -> 0.3997482051 | V299: =100-(T299+U299+W299) -> 42.525969 | W299: =IF((S301+W301)>100,W301*100/(S301+W301),W301) -> 27.82314193 | X299: =IF((X301+AB301)>100,X301*100/(X301+AB301),X301) -> 39.39357699 | Y299: =X299*AVERAGEIF(Y305:Y316,">0")/100 -> 38.79308563 | Z299: =X299*(100-AVERAGEIF(Y305:Y316,">0"))/100 -> 0.6004913569 | AA299: =100-(Y299+Z299+AB299) -> 47.30228629 | AB299: =IF((X301+AB301)>100,AB301*100/(X301+AB301),AB301) -> 13.30413672
C300: 2020 | D300: =IF((D302+H302)>100,D302*100/(D302+H302),D302) -> 71.47717448 | E300: =D300*AVERAGEIF(E305:E316,">0")/100 -> 71.10862472 | F300: =D300*(100-AVERAGEIF(E305:E316,">0"))/100 -> 0.368549762 | G300: =100-(E300+F300+H300) -> 24.70667159 | H300: =IF((D302+H302)>100,H302*100/(D302+H302),H302) -> 3.816153927 | I300: =IF((I302+M302)>100,I302*100/(I302+M302),I302) -> 78.08799166 | J300: =I300*AVERAGEIF(J305:J316,">0")/100 -> 75.69582657 | K300: =I300*(100-AVERAGEIF(J305:J316,">0"))/100 -> 2.392165093 | L300: =100-(J300+K300+M300) -> 16.81426535 | M300: =IF((I302+M302)>100,M302*100/(I302+M302),M302) -> 5.097742983 | N300: =IF((N302+R302)>100,N302*100/(N302+R302),N302) -> 83.86691514 | O300: =N300*AVERAGEIF(O305:O316,">0")/100 -> 82.42476204 | P300: =N300*(100-AVERAGEIF(O305:O316,">0"))/100 -> 1.442153102 | Q300: =100-(O300+P300+R300) -> 15.06469159 | R300: =IF((N302+R302)>100,R302*100/(N302+R302),R302) -> 1.068393265 | S300: =IF((S302+W302)>100,S302*100/(S302+W302),S302) -> 93.28677682 | T300: =S300*AVERAGEIF(T305:T316,">0")/100 -> 92.02910048 | U300: =S300*(100-AVERAGEIF(T305:T316,">0"))/100 -> 1.257676339 | V300: =100-(T300+U300+W300) -> 6.71322318 | W300: =IF((S302+W302)>100,W302*100/(S302+W302),W302) -> 0 | X300: =IF((X302+AB302)>100,X302*100/(X302+AB302),X302) -> 100 | Y300: =X300*AVERAGEIF(Y305:Y316,">0")/100 -> 98.47566176 | Z300: =X300*(100-AVERAGEIF(Y305:Y316,">0"))/100 -> 1.524338237 | AA300: =100-(Y300+Z300+AB300) -> 0 | AB300: =IF((X302+AB302)>100,AB302*100/(X302+AB302),AB302) -> 0
A301: Regression period: | C301: =MinRegYear(C299,C305:C316) -> 2000 | D301: =IF(MAX(C305:C316)-MIN(C305:C316)<5,AVERAGEIF(C305:C316,">0",D305:D316), IF(FORECAST($C301,D$305:D$316,$C$305:$C$316)<0,0, IF(FORECAST($C301,D$305:D$316,$C$305:$C$316)>100,100, FORECAST($C301,D$305:D$316,$C$305:$C$316)))) -> 21.34717537 | H301: =IF(MAX(C305:C316)-MIN(C305:C316)<5,AVERAGEIF(C305:C316,">0",H305:H316), IF(FORECAST($C301,H$305:H$316,$C$305:$C$316)<0,0, IF(FORECAST($C301,H$305:H$316,$C$305:$C$316)>100,100, FORECAST($C301,H$305:H$316,$C$305:$C$316)))) -> 53.31011543 | I301: =IF(MAX(C305:C316)-MIN(C305:C316)<5,AVERAGEIF(C305:C316,">0",I305:I316), IF(FORECAST($C301,I$305:I$316,$C$305:$C$316)<0,0, IF(FORECAST($C301,I$305:I$316,$C$305:$C$316)>100,100, FORECAST($C301,I$305:I$316,$C$305:$C$316)))) -> 27.36130936 | M301: =IF(MAX(C305:C316)-MIN(C305:C316)<5,AVERAGEIF(C305:C316,">0",M305:M316), IF(FORECAST($C301,M$305:M$316,$C$305:$C$316)<0,0, IF(FORECAST($C301,M$305:M$316,$C$305:$C$316)>100,100, FORECAST($C301,M$305:M$316,$C$305:$C$316)))) -> 32.6110759 | N301: =IF(MAX(C305:C316)-MIN(C305:C316)<5,AVERAGEIF(C305:C316,">0",N305:N316), IF(FORECAST($C301,N$305:N$316,$C$305:$C$316)<0,0, IF(FORECAST($C301,N$305:N$316,$C$305:$C$316)>100,100, FORECAST($C301,N$305:N$316,$C$305:$C$316)))) -> 33.80493608 | R301: =IF(MAX(C305:C316)-MIN(C305:C316)<5,AVERAGEIF(C305:C316,">0",R305:R316), IF(FORECAST($C301,R$305:R$316,$C$305:$C$316)<0,0, IF(FORECAST($C301,R$305:R$316,$C$305:$C$316)>100,100, FORECAST($C301,R$305:R$316,$C$305:$C$316)))) -> 31.37374765 | S301: =IF(MAX(C305:C316)-MIN(C305:C316)<5,AVERAGEIF(C305:C316,">0",S305:S316), IF(FORECAST($C301,S$305:S$316,$C$305:$C$316)<0,0, IF(FORECAST($C301,S$305:S$316,$C$305:$C$316)>100,100, FORECAST($C301,S$305:S$316,$C$305:$C$316)))) -> 29.65088906 | W301: =IF(MAX(C305:C316)-MIN(C305:C316)<5,AVERAGEIF(C305:C316,">0",W305:W316), IF(FORECAST($C301,W$305:W$316,$C$305:$C$316)<0,0, IF(FORECAST($C301,W$305:W$316,$C$305:$C$316)>100,100, FORECAST($C301,W$305:W$316,$C$305:$C$316)))) -> 27.82314193 | X301: =IF(MAX(C305:C316)-MIN(C305:C316)<5,AVERAGEIF(C305:C316,">0",X305:X316), IF(FORECAST($C301,X$305:X$316,$C$305:$C$316)<0,0, IF(FORECAST($C301,X$305:X$316,$C$305:$C$316)>100,100, FORECAST($C301,X$305:X$316,$C$305:$C$316)))) -> 39.39357699 | AB301: =IF(MAX(C305:C316)-MIN(C305:C316)<5,AVERAGEIF(C305:C316,">0",AB305:AB316), IF(FORECAST($C301,AB$305:AB$316,$C$305:$C$316)<0,0, IF(FORECAST($C301,AB$305:AB$316,$C$305:$C$316)>100,100, FORECAST($C301,AB$305:AB$316,$C$305:$C$316)))) -> 13.30413672
C302: =MaxRegYear(C300,C305:C316) -> 2019 | D302: =IF(MAX(C305:C316)-MIN(C305:C316)<5,AVERAGEIF(C305:C316,">0",D305:D316), IF(FORECAST($C302,D$305:D$316,$C$305:$C$316)<0,0, IF(FORECAST($C302,D$305:D$316,$C$305:$C$316)>100,100, FORECAST($C302,D$305:D$316,$C$305:$C$316)))) -> 71.47717448 | H302: =IF(MAX(C305:C316)-MIN(C305:C316)<5,AVERAGEIF(C305:C316,">0",H305:H316), IF(FORECAST($C302,H$305:H$316,$C$305:$C$316)<0,0, IF(FORECAST($C302,H$305:H$316,$C$305:$C$316)>100,100, FORECAST($C302,H$305:H$316,$C$305:$C$316)))) -> 3.816153927 | I302: =IF(MAX(C305:C316)-MIN(C305:C316)<5,AVERAGEIF(C305:C316,">0",I305:I316), IF(FORECAST($C302,I$305:I$316,$C$305:$C$316)<0,0, IF(FORECAST($C302,I$305:I$316,$C$305:$C$316)>100,100, FORECAST($C302,I$305:I$316,$C$305:$C$316)))) -> 78.08799166 | M302: =IF(MAX(C305:C316)-MIN(C305:C316)<5,AVERAGEIF(C305:C316,">0",M305:M316), IF(FORECAST($C302,M$305:M$316,$C$305:$C$316)<0,0, IF(FORECAST($C302,M$305:M$316,$C$305:$C$316)>100,100, FORECAST($C302,M$305:M$316,$C$305:$C$316)))) -> 5.097742983 | N302: =IF(MAX(C305:C316)-MIN(C305:C316)<5,AVERAGEIF(C305:C316,">0",N305:N316), IF(FORECAST($C302,N$305:N$316,$C$305:$C$316)<0,0, IF(FORECAST($C302,N$305:N$316,$C$305:$C$316)>100,100, FORECAST($C302,N$305:N$316,$C$305:$C$316)))) -> 83.86691514 | R302: =IF(MAX(C305:C316)-MIN(C305:C316)<5,AVERAGEIF(C305:C316,">0",R305:R316), IF(FORECAST($C302,R$305:R$316,$C$305:$C$316)<0,0, IF(FORECAST($C302,R$305:R$316,$C$305:$C$316)>100,100, FORECAST($C302,R$305:R$316,$C$305:$C$316)))) -> 1.068393265 | S302: =IF(MAX(C305:C316)-MIN(C305:C316)<5,AVERAGEIF(C305:C316,">0",S305:S316), IF(FORECAST($C302,S$305:S$316,$C$305:$C$316)<0,0, IF(FORECAST($C302,S$305:S$316,$C$305:$C$316)>100,100, FORECAST($C302,S$305:S$316,$C$305:$C$316)))) -> 93.28677682 | W302: =IF(MAX(C305:C316)-MIN(C305:C316)<5,AVERAGEIF(C305:C316,">0",W305:W316), IF(FORECAST($C302,W$305:W$316,$C$305:$C$316)<0,0, IF(FORECAST($C302,W$305:W$316,$C$305:$C$316)>100,100, FORECAST($C302,W$305:W$316,$C$305:$C$316)))) -> 0 | X302: =IF(MAX(C305:C316)-MIN(C305:C316)<5,AVERAGEIF(C305:C316,">0",X305:X316), IF(FORECAST($C302,X$305:X$316,$C$305:$C$316)<0,0, IF(FORECAST($C302,X$305:X$316,$C$305:$C$316)>100,100, FORECAST($C302,X$305:X$316,$C$305:$C$316)))) -> 100 | AB302: =IF(MAX(C305:C316)-MIN(C305:C316)<5,AVERAGEIF(C305:C316,">0",AB305:AB316), IF(FORECAST($C302,AB$305:AB$316,$C$305:$C$316)<0,0, IF(FORECAST($C302,AB$305:AB$316,$C$305:$C$316)>100,100, FORECAST($C302,AB$305:AB$316,$C$305:$C$316)))) -> 0
B304: Survey | C304: Year | D304: Improved | E304: Basic | H304: Surface water | I304: Improved | J304: Basic | M304: Surface water | N304: Improved | O304: Basic | R304: Surface water | S304: Improved | T304: Basic | W304: Surface water | X304: Improved | Y304: Basic | AB304: Surface water
B305: MICS00 | C305: 2000 | D305: =IF(ISERROR(INDIRECT(CONCATENATE($B305,"!M16"))),"",INDIRECT(CONCATENATE($B305,"!M16"))) -> 12.76265564 | E305: =IF(ISERROR(INDIRECT(CONCATENATE($B305,"!M23"))),"",INDIRECT(CONCATENATE($B305,"!M23"))) -> 100 | H305: =IF(ISERROR(INDIRECT(CONCATENATE($B305,"!M21"))),"",INDIRECT(CONCATENATE($B305,"!M21"))) -> 59.96348583 | I305: =IF(ISERROR(INDIRECT(CONCATENATE($B305,"!N16"))),"",INDIRECT(CONCATENATE($B305,"!N16"))) -> 26.30024126 | J305: =IF(ISERROR(INDIRECT(CONCATENATE($B305,"!N23"))),"",INDIRECT(CONCATENATE($B305,"!N23"))) -> 92.29781168 | M305: =IF(ISERROR(INDIRECT(CONCATENATE($B305,"!N21"))),"",INDIRECT(CONCATENATE($B305,"!N21"))) -> 31.61402831 | N305: =IF(ISERROR(INDIRECT(CONCATENATE($B305,"!O16"))),"",INDIRECT(CONCATENATE($B305,"!O16"))) -> 32.65150534 | O305: =IF(ISERROR(INDIRECT(CONCATENATE($B305,"!O23"))),"",INDIRECT(CONCATENATE($B305,"!O23"))) -> 95.74535003 | R305: =IF(ISERROR(INDIRECT(CONCATENATE($B305,"!O21"))),"",INDIRECT(CONCATENATE($B305,"!O21"))) -> 33.47131478 | S305: =IF(ISERROR(INDIRECT(CONCATENATE($B305,"!P16"))),"",INDIRECT(CONCATENATE($B305,"!P16"))) -> 33.54129964 | T305: =IF(ISERROR(INDIRECT(CONCATENATE($B305,"!P23"))),"",INDIRECT(CONCATENATE($B305,"!P23"))) -> 96.62552584 | W305: =IF(ISERROR(INDIRECT(CONCATENATE($B305,"!P21"))),"",INDIRECT(CONCATENATE($B305,"!P21"))) -> 27.85097881 | X305: =IF(ISERROR(INDIRECT(CONCATENATE($B305,"!Q16"))),"",INDIRECT(CONCATENATE($B305,"!Q16"))) -> 40.71733978 | Y305: =IF(ISERROR(INDIRECT(CONCATENATE($B305,"!Q23"))),"",INDIRECT(CONCATENATE($B305,"!Q23"))) -> 95.08547448 | AB305: =IF(ISERROR(INDIRECT(CONCATENATE($B305,"!Q221"))),"",INDIRECT(CONCATENATE($B305,"!Q21"))) -> 12.51952554
B306: MICS06 | C306: 2006 | D306: 47.27340906 | E306: 99.91018516 | H306: 26.55028415 | I306: 43.98710348 | J306: 97.91832722 | M306: 24.73554511 | N306: 51.59278277 | O306: 99.13325065 | R306: 19.02100237 | S306: 43.41115807 | T306: 99.18184492 | W306: 19.22794085 | X306: 56.01850708 | Y306: 99.42582069 | AB306: 10.36161923
B307: MICS12 | C307: 2012 | D307: 59.98503768 | E307: 98.97611785 | H307: 23.9156623 | I307: 61.67179353 | J307: 98.63539041 | M307: 16.83583757 | N307: 64.99133116 | O307: 99.05429725 | R307: 11.223589 | S307: 70.55218399 | T307: 99.30956828 | W307: 8.056769146 | X307: 84.72943407 | Y307: 99.66881005 | AB307: 3.600829266
B308: MICS17 | C308: 2017 | D308: 57.7123343 | E308: 99.05122171 | H308: 11.63794247 | I308: 70.92998763 | J308: 98.89478075 | M308: 6.576437234 | N308: 78.20356016 | O308: 99.18880877 | R308: 5.953431637 | S308: 88.32291832 | T308: 99.49032951 | W308: 2.571920895 | X308: 96.12499477 | Y308: 99.72254184 | AB308: 0.5616228927
B318: =CONCATENATE("Rural use of drinking water sources, ",C299,"–",C300) -> Rural use of drinking water sources, 2000–2020 | S318: Data points used for regression

Sheet Sanitation
B4: Summary of trends in use of sanitation facilities by wealth quintile (%)
B5: =IF(ISERROR(INDIRECT(CONCATENATE($B105,"!A2"))),"",INDIRECT(CONCATENATE($B105,"!A2"))) -> Lao People's Democratic Republic
B7: =B118 -> National use of sanitation facilities, 2000–2020 | J7: =B218 -> Urban use of sanitation facilities, 2000–2020 | R7: =B318 -> Rural use of sanitation facilities, 2000–2020
B31: =IF(ISERROR(INDIRECT(CONCATENATE($B105,"!A2"))),"",INDIRECT(CONCATENATE($B105,"!A2"))) -> Lao People's Democratic Republic | F31: Poorest | J31: Poor | N31: Middle | R31: Rich | V31: Richest
F32: Basic | G32: Limited | H32: Unimproved | I32: Open defecation | J32: Basic | K32: Limited | L32: Unimproved | M32: Open defecation | N32: Basic | O32: Limited | P32: Unimproved | Q32: Open defecation | R32: Basic | S32: Limited | T32: Unimproved | U32: Open defecation | V32: Basic | W32: Limited | X32: Unimproved | Y32: Open defecation
B33: NATIONAL | D33: Estimate | E33: =C99 -> 2000 | F33: =E99 -> 5.458335584 | G33: =F99 -> 0.2124893282 | H33: 7.280810991 | I33: 87.0483641 | J33: =J99 -> 11.89482496 | K33: =K99 -> 0.554527701 | L33: 7.786888303 | M33: 79.76375904 | N33: =O99 -> 30.03367895 | O33: =P99 -> 1.658544039 | P33: 10.99361766 | Q33: 57.31415935 | R33: =T99 -> 38.72878724 | S33: =U99 -> 1.718933038 | T33: 8.70294878 | U33: 50.84933094 | V33: =Y99 -> 41.31348822 | W33: =Z99 -> 0.8769512143 | X33: 8.5993063 | Y33: 49.21025427
E34: =C100 -> 2020 | F34: =E100 -> 32.02354676 | G34: 1.246655108 | H34: 3.577747591 | I34: 63.15205054 | J34: =J100 -> 56.78601783 | K34: 2.647321001 | L34: 3.22111934 | M34: 37.34554183 | N34: =O100 -> 75.15436342 | O34: 4.150234862 | P34: 0.002979369579 | Q34: 20.69242235 | R34: =T100 -> 95.75023505 | S34: 4.249764946 | T34: 0 | U34: 0 | V34: =Y100 -> 97.92144565 | W34: 2.07855435 | X34: 0 | Y34: 0
B36: URBAN | D36: Estimate | E36: =C199 -> 2000 | F36: =E199 -> 34.06955587 | G36: =F199 -> 3.864242825 | H36: 7.038364921 | I36: 55.02783639 | J36: =J199 -> 61.8427588 | K36: =K199 -> 4.057611124 | L36: 5.682660526 | M36: 28.41696955 | N36: =O199 -> 51.9537752 | O36: =P199 -> 2.099749522 | P36: 10.11293792 | Q36: 35.83353735 | R36: =T199 -> 65.87422875 | S36: =U199 -> 1.118797875 | T36: 14.48979958 | U36: 18.51717379 | V36: =Y199 -> 89.71455266 | W36: =Z199 -> 1.067116473 | X36: 2.928126688 | Y36: 6.290204181
E37: =C200 -> 2020 | F37: =E200 -> 72.54514621 | G37: 8.228227623 | H37: 3.32816706 | I37: 15.89845911 | J37: =J200 -> 93.84280979 | K37: 6.157190209 | L37: 0 | M37: 0 | N37: =O200 -> 96.11542534 | O37: 3.884574656 | P37: 0 | Q37: 0 | R37: =T200 -> 98.32997861 | S37: 1.67002139 | T37: 0 | U37: 0 | V37: =Y200 -> 98.82452429 | W37: 1.175475714 | X37: 0 | Y37: 0
B39: RURAL | D39: Estimate | E39: =C299 -> 2000 | F39: =E299 -> 6.193814537 | G39: =F299 -> 0.2099818069 | H39: 6.434986776 | I39: 87.16121688 | J39: =J299 -> 4.312509357 | K39: =K299 -> 0.1569556204 | L39: 8.378909595 | M39: 87.15162543 | N39: =O299 -> 9.213473819 | O39: =P299 -> 0.3611451684 | P39: 8.170883734 | Q39: 82.25449728 | R39: =T299 -> 12.62603231 | S39: =U299 -> 0.6120742779 | T39: 10.55954922 | U39: 76.20234419 | V39: =Y299 -> 25.1816543 | W39: =Z299 -> 0.6091408733 | X39: 10.92191482 | Y39: 63.28729
E40: =C300 -> 2020 | F40: =E300 -> 26.32437784 | G40: 0.8924452599 | H40: 3.454675262 | I40: 69.32850164 | J40: =J300 -> 49.60204555 | K40: 1.805287638 | L40: 3.287762343 | M40: 45.30490447 | N40: =O300 -> 66.49875876 | O40: 2.606585301 | P40: 2.283547649 | Q40: 28.61110829 | R40: =T300 -> 87.17091856 | S40: 4.225799185 | T40: 0 | U40: 8.603282251 | V40: =Y300 -> 97.63814621 | W40: 2.36185379 | X40: 0 | Y40: 0
A97: NATIONAL | D97: Poorest | I97: Poor | N97: Middle | S97: Rich | X97: Richest
D98: Improved | E98: Basic | F98: Limited | G98: Unimproved | H98: Open defecation | I98: Improved | J98: Basic | K98: Limited | L98: Unimproved | M98: Open defecation | N98: Improved | O98: Basic | P98: Limited | Q98: Unimproved | R98: Open defecation | S98: Improved | T98: Basic | U98: Limited | V98: Unimproved | W98: Open defecation | X98: Improved | Y98: Basic | Z98: Limited | AA98: Unimproved | AB98: Open defecation
A99: Forecast period: | C99: 2000 | D99: =IF((D101+H101)>100,D101*100/(D101+H101),D101) -> 5.670824912 | E99: =D99*AVERAGEIF(E105:E116,">0")/100 -> 5.458335584 | F99: =D99*(100-AVERAGEIF(E105:E116,">0"))/100 -> 0.2124893282 | G99: =100-(E99+F99+H99) -> 7.280810991 | H99: =IF((D101+H101)>100,H101*100/(D101+H101),H101) -> 87.0483641 | I99: =IF((I101+M101)>100,I101*100/(I101+M101),I101) -> 12.44935266 | J99: =I99*AVERAGEIF(J105:J116,">0")/100 -> 11.89482496 | K99: =I99*(100-AVERAGEIF(J105:J116,">0"))/100 -> 0.554527701 | L99: =100-(J99+K99+M99) -> 7.786888303 | M99: =IF((I101+M101)>100,M101*100/(I101+M101),M101) -> 79.76375904 | N99: =IF((N101+R101)>100,N101*100/(N101+R101),N101) -> 31.69222299 | O99: =N99*AVERAGEIF(O105:O116,">0")/100 -> 30.03367895 | P99: =N99*(100-AVERAGEIF(O105:O116,">0"))/100 -> 1.658544039 | Q99: =100-(O99+P99+R99) -> 10.99361766 | R99: =IF((N101+R101)>100,R101*100/(N101+R101),R101) -> 57.31415935 | S99: =IF((S101+W101)>100,S101*100/(S101+W101),S101) -> 40.44772028 | T99: =S99*AVERAGEIF(T105:T116,">0")/100 -> 38.72878724 | U99: =S99*(100-AVERAGEIF(T105:T116,">0"))/100 -> 1.718933038 | V99: =100-(T99+U99+W99) -> 8.70294878 | W99: =IF((S101+W101)>100,W101*100/(S101+W101),W101) -> 50.84933094 | X99: =IF((X101+AB101)>100,X101*100/(X101+AB101),X101) -> 42.19043943 | Y99: =X99*AVERAGEIF(Y105:Y116,">0")/100 -> 41.31348822 | Z99: =X99*(100-AVERAGEIF(Y105:Y116,">0"))/100 -> 0.8769512143 | AA99: =100-(Y99+Z99+AB99) -> 8.5993063 | AB99: =IF((X101+AB101)>100,AB101*100/(X101+AB101),AB101) -> 49.21025427
C100: 2020 | D100: =IF((D102+H102)>100,D102*100/(D102+H102),D102) -> 33.27020186 | E100: =D100*AVERAGEIF(E105:E116,">0")/100 -> 32.02354676 | F100: =D100*(100-AVERAGEIF(E105:E116,">0"))/100 -> 1.246655108 | G100: =100-(E100+F100+H100) -> 3.577747591 | H100: =IF((D102+H102)>100,H102*100/(D102+H102),H102) -> 63.15205054 | I100: =IF((I102+M102)>100,I102*100/(I102+M102),I102) -> 59.43333883 | J100: =I100*AVERAGEIF(J105:J116,">0")/100 -> 56.78601783 | K100: =I100*(100-AVERAGEIF(J105:J116,">0"))/100 -> 2.647321001 | L100: =100-(J100+K100+M100) -> 3.22111934 | M100: =IF((I102+M102)>100,M102*100/(I102+M102),M102) -> 37.34554183 | N100: =IF((N102+R102)>100,N102*100/(N102+R102),N102) -> 79.30459828 | O100: =N100*AVERAGEIF(O105:O116,">0")/100 -> 75.15436342 | P100: =N100*(100-AVERAGEIF(O105:O116,">0"))/100 -> 4.150234862 | Q100: =100-(O100+P100+R100) -> 0.002979369579 | R100: =IF((N102+R102)>100,R102*100/(N102+R102),R102) -> 20.69242235 | S100: =IF((S102+W102)>100,S102*100/(S102+W102),S102) -> 100 | T100: =S100*AVERAGEIF(T105:T116,">0")/100 -> 95.75023505 | U100: =S100*(100-AVERAGEIF(T105:T116,">0"))/100 -> 4.249764946 | V100: =100-(T100+U100+W100) -> 0 | W100: =IF((S102+W102)>100,W102*100/(S102+W102),W102) -> 0 | X100: =IF((X102+AB102)>100,X102*100/(X102+AB102),X102) -> 100 | Y100: =X100*AVERAGEIF(Y105:Y116,">0")/100 -> 97.92144565 | Z100: =X100*(100-AVERAGEIF(Y105:Y116,">0"))/100 -> 2.07855435 | AA100: =100-(Y100+Z100+AB100) -> 0 | AB100: =IF((X102+AB102)>100,AB102*100/(X102+AB102),AB102) -> 0
A101: Regression period: | C101: =MinRegYear(C99,C105:C116) -> 2000 | D101: =IF(MAX(C105:C116)-MIN(C105:C116)<5,AVERAGEIF(C105:C116,">0",D105:D116), IF(FORECAST($C101,D$105:D$116,$C$105:$C$116)<0,0, IF(FORECAST($C101,D$105:D$116,$C$105:$C$116)>100,100, FORECAST($C101,D$105:D$116,$C$105:$C$116)))) -> 5.670824912 | H101: =IF(MAX(C105:C116)-MIN(C105:C116)<5,AVERAGEIF(C105:C116,">0",H105:H116), IF(FORECAST($C101,H$105:H$116,$C$105:$C$116)<0,0, IF(FORECAST($C101,H$105:H$116,$C$105:$C$116)>100,100, FORECAST($C101,H$105:H$116,$C$105:$C$116)))) -> 87.0483641 | I101: =IF(MAX(C105:C116)-MIN(C105:C116)<5,AVERAGEIF(C105:C116,">0",I105:I116), IF(FORECAST($C101,I$105:I$116,$C$105:$C$116)<0,0, IF(FORECAST($C101,I$105:I$116,$C$105:$C$116)>100,100, FORECAST($C101,I$105:I$116,$C$105:$C$116)))) -> 12.44935266 | M101: =IF(MAX(C105:C116)-MIN(C105:C116)<5,AVERAGEIF(C105:C116,">0",M105:M116), IF(FORECAST($C101,M$105:M$116,$C$105:$C$116)<0,0, IF(FORECAST($C101,M$105:M$116,$C$105:$C$116)>100,100, FORECAST($C101,M$105:M$116,$C$105:$C$116)))) -> 79.76375904 | N101: =IF(MAX(C105:C116)-MIN(C105:C116)<5,AVERAGEIF(C105:C116,">0",N105:N116), IF(FORECAST($C101,N$105:N$116,$C$105:$C$116)<0,0, IF(FORECAST($C101,N$105:N$116,$C$105:$C$116)>100,100, FORECAST($C101,N$105:N$116,$C$105:$C$116)))) -> 31.69222299 | R101: =IF(MAX(C105:C116)-MIN(C105:C116)<5,AVERAGEIF(C105:C116,">0",R105:R116), IF(FORECAST($C101,R$105:R$116,$C$105:$C$116)<0,0, IF(FORECAST($C101,R$105:R$116,$C$105:$C$116)>100,100, FORECAST($C101,R$105:R$116,$C$105:$C$116)))) -> 57.31415935 | S101: =IF(MAX(C105:C116)-MIN(C105:C116)<5,AVERAGEIF(C105:C116,">0",S105:S116), IF(FORECAST($C101,S$105:S$116,$C$105:$C$116)<0,0, IF(FORECAST($C101,S$105:S$116,$C$105:$C$116)>100,100, FORECAST($C101,S$105:S$116,$C$105:$C$116)))) -> 40.44772028 | W101: =IF(MAX(C105:C116)-MIN(C105:C116)<5,AVERAGEIF(C105:C116,">0",W105:W116), IF(FORECAST($C101,W$105:W$116,$C$105:$C$116)<0,0, IF(FORECAST($C101,W$105:W$116,$C$105:$C$116)>100,100, FORECAST($C101,W$105:W$116,$C$105:$C$116)))) -> 50.84933094 | X101: =IF(MAX(C105:C116)-MIN(C105:C116)<5,AVERAGEIF(C105:C116,">0",X105:X116), IF(FORECAST($C101,X$105:X$116,$C$105:$C$116)<0,0, IF(FORECAST($C101,X$105:X$116,$C$105:$C$116)>100,100, FORECAST($C101,X$105:X$116,$C$105:$C$116)))) -> 42.19043943 | AB101: =IF(MAX(C105:C116)-MIN(C105:C116)<5,AVERAGEIF(C105:C116,">0",AB105:AB116), IF(FORECAST($C101,AB$105:AB$116,$C$105:$C$116)<0,0, IF(FORECAST($C101,AB$105:AB$116,$C$105:$C$116)>100,100, FORECAST($C101,AB$105:AB$116,$C$105:$C$116)))) -> 49.21025427
C102: =MaxRegYear(C100,C105:C116) -> 2019 | D102: =IF(MAX(C105:C116)-MIN(C105:C116)<5,AVERAGEIF(C105:C116,">0",D105:D116), IF(FORECAST($C102,D$105:D$116,$C$105:$C$116)<0,0, IF(FORECAST($C102,D$105:D$116,$C$105:$C$116)>100,100, FORECAST($C102,D$105:D$116,$C$105:$C$116)))) -> 33.27020186 | H102: =IF(MAX(C105:C116)-MIN(C105:C116)<5,AVERAGEIF(C105:C116,">0",H105:H116), IF(FORECAST($C102,H$105:H$116,$C$105:$C$116)<0,0, IF(FORECAST($C102,H$105:H$116,$C$105:$C$116)>100,100, FORECAST($C102,H$105:H$116,$C$105:$C$116)))) -> 63.15205054 | I102: =IF(MAX(C105:C116)-MIN(C105:C116)<5,AVERAGEIF(C105:C116,">0",I105:I116), IF(FORECAST($C102,I$105:I$116,$C$105:$C$116)<0,0, IF(FORECAST($C102,I$105:I$116,$C$105:$C$116)>100,100, FORECAST($C102,I$105:I$116,$C$105:$C$116)))) -> 59.43333883 | M102: =IF(MAX(C105:C116)-MIN(C105:C116)<5,AVERAGEIF(C105:C116,">0",M105:M116), IF(FORECAST($C102,M$105:M$116,$C$105:$C$116)<0,0, IF(FORECAST($C102,M$105:M$116,$C$105:$C$116)>100,100, FORECAST($C102,M$105:M$116,$C$105:$C$116)))) -> 37.34554183 | N102: =IF(MAX(C105:C116)-MIN(C105:C116)<5,AVERAGEIF(C105:C116,">0",N105:N116), IF(FORECAST($C102,N$105:N$116,$C$105:$C$116)<0,0, IF(FORECAST($C102,N$105:N$116,$C$105:$C$116)>100,100, FORECAST($C102,N$105:N$116,$C$105:$C$116)))) -> 79.30459828 | R102: =IF(MAX(C105:C116)-MIN(C105:C116)<5,AVERAGEIF(C105:C116,">0",R105:R116), IF(FORECAST($C102,R$105:R$116,$C$105:$C$116)<0,0, IF(FORECAST($C102,R$105:R$116,$C$105:$C$116)>100,100, FORECAST($C102,R$105:R$116,$C$105:$C$116)))) -> 20.69242235 | S102: =IF(MAX(C105:C116)-MIN(C105:C116)<5,AVERAGEIF(C105:C116,">0",S105:S116), IF(FORECAST($C102,S$105:S$116,$C$105:$C$116)<0,0, IF(FORECAST($C102,S$105:S$116,$C$105:$C$116)>100,100, FORECAST($C102,S$105:S$116,$C$105:$C$116)))) -> 100 | W102: =IF(MAX(C105:C116)-MIN(C105:C116)<5,AVERAGEIF(C105:C116,">0",W105:W116), IF(FORECAST($C102,W$105:W$116,$C$105:$C$116)<0,0, IF(FORECAST($C102,W$105:W$116,$C$105:$C$116)>100,100, FORECAST($C102,W$105:W$116,$C$105:$C$116)))) -> 0 | X102: =IF(MAX(C105:C116)-MIN(C105:C116)<5,AVERAGEIF(C105:C116,">0",X105:X116), IF(FORECAST($C102,X$105:X$116,$C$105:$C$116)<0,0, IF(FORECAST($C102,X$105:X$116,$C$105:$C$116)>100,100, FORECAST($C102,X$105:X$116,$C$105:$C$116)))) -> 100 | AB102: =IF(MAX(C105:C116)-MIN(C105:C116)<5,AVERAGEIF(C105:C116,">0",AB105:AB116), IF(FORECAST($C102,AB$105:AB$116,$C$105:$C$116)<0,0, IF(FORECAST($C102,AB$105:AB$116,$C$105:$C$116)>100,100, FORECAST($C102,AB$105:AB$116,$C$105:$C$116)))) -> 0
B104: Survey | C104: Year | D104: Improved | E104: Not shared | H104: Open defecation | I104: Improved | J104: Not shared | M104: Open defecation | N104: Improved | O104: Not shared | R104: Open defecation | S104: Improved | T104: Not shared | W104: Open defecation | X104: Improved | Y104: Not shared | AB104: Open defecation
B105: MICS00 | C105: 2000 | D105: =IF(ISERROR(INDIRECT(CONCATENATE($B105,"!C122"))),"",INDIRECT(CONCATENATE($B105,"!C122"))) -> 5.71344259 | E105: =IF(ISERROR(INDIRECT(CONCATENATE($B105,"!C129"))),"",INDIRECT(CONCATENATE($B105,"!C129"))) -> N/A | H105: =IF(ISERROR(INDIRECT(CONCATENATE($B105,"!C127"))),"",INDIRECT(CONCATENATE($B105,"!C127"))) -> 88.08654068 | I105: =IF(ISERROR(INDIRECT(CONCATENATE($B105,"!D122"))),"",INDIRECT(CONCATENATE($B105,"!D122"))) -> 16.08245217 | J105: =IF(ISERROR(INDIRECT(CONCATENATE($B105,"!D129"))),"",INDIRECT(CONCATENATE($B105,"!D129"))) -> N/A | M105: =IF(ISERROR(INDIRECT(CONCATENATE($B105,"!D127"))),"",INDIRECT(CONCATENATE($B105,"!D127"))) -> 77.104453 | N105: =IF(ISERROR(INDIRECT(CONCATENATE($B105,"!E122"))),"",INDIRECT(CONCATENATE($B105,"!E122"))) -> 42.83512121 | O105: =IF(ISERROR(INDIRECT(CONCATENATE($B105,"!E129"))),"",INDIRECT(CONCATENATE($B105,"!E129"))) -> N/A | R105: =IF(ISERROR(INDIRECT(CONCATENATE($B105,"!E127"))),"",INDIRECT(CONCATENATE($B105,"!E127"))) -> 45.16811455 | S105: =IF(ISERROR(INDIRECT(CONCATENATE($B105,"!F122"))),"",INDIRECT(CONCATENATE($B105,"!F122"))) -> 41.55178079 | T105: =IF(ISERROR(INDIRECT(CONCATENATE($B105,"!F129"))),"",INDIRECT(CONCATENATE($B105,"!F129"))) -> N/A | W105: =IF(ISERROR(INDIRECT(CONCATENATE($B105,"!F127"))),"",INDIRECT(CONCATENATE($B105,"!F127"))) -> 47.59230853 | X105: =IF(ISERROR(INDIRECT(CONCATENATE($B105,"!G122"))),"",INDIRECT(CONCATENATE($B105,"!G122"))) -> 22.18335599 | Y105: =IF(ISERROR(INDIRECT(CONCATENATE($B105,"!G129"))),"",INDIRECT(CONCATENATE($B105,"!G129"))) -> N/A | AB105: =IF(ISERROR(INDIRECT(CONCATENATE($B105,"!G2127"))),"",INDIRECT(CONCATENATE($B105,"!G127"))) -> 66.0740078
B106: MICS06 | C106: 2006 | D106: 15.85996343 | E106: 99.12050351 | H106: 76.69904124 | I106: 24.67648154 | J106: 97.87707208 | M106: 67.32955372 | N106: 31.11370699 | O106: 94.96774646 | R106: 62.62516249 | S106: 57.03208277 | T106: 94.45582615 | W106: 39.87789311 | X106: 95.37832788 | Y106: 97.36052915 | AB106: 3.863435403
B107: MICS12 | C107: 2012 | D107: 19.7153095 | E107: 96.12859553 | H107: 74.59301603 | I107: 35.51273349 | J107: 94.47145676 | M107: 59.9007 | N107: 58.22814936 | O107: 94.97124679 | R107: 38.3545167 | S107: 83.83564059 | T107: 95.82085463 | W107: 15.7910825 | X107: 98.70085162 | Y107: 97.45762336 | AB107: 1.151694904
B108: MICS17 | C108: 2017 | D108: 32.23554167 | E108: 93.50971481 | H108: 64.79533347 | I108: 60.07519165 | J108: 94.28866308 | M108: 36.58150824 | N108: 82.29892151 | O108: 94.36115471 | R108: 15.64774917 | S108: 95.52043742 | T108: 96.97402438 | W108: 2.539806478 | X108: 99.02655983 | Y108: 98.94618444 | AB108: 0.07854723541
B118: =CONCATENATE("National use of sanitation facilities, ",C99,"–",C100) -> National use of sanitation facilities, 2000–2020 | S118: Data points used for regression
A197: URBAN | D197: Poorest | I197: Poor | N197: Middle | S197: Rich | X197: Richest
D198: Improved | E198: Basic | F198: Limited | G198: Unimproved | H198: Open defecation | I198: Improved | J198: Basic | K198: Limited | L198: Unimproved | M198: Open defecation | N198: Improved | O198: Basic | P198: Limited | Q198: Unimproved | R198: Open defecation | S198: Improved | T198: Basic | U198: Limited | V198: Unimproved | W198: Open defecation | X198: Improved | Y198: Basic | Z198: Limited | AA198: Unimproved | AB198: Open defecation
A199: Forecast period: | C199: 2000 | D199: =IF((D201+H201)>100,D201*100/(D201+H201),D201) -> 37.93379869 | E199: =D199*AVERAGEIF(E205:E216,">0")/100 -> 34.06955587 | F199: =D199*(100-AVERAGEIF(E205:E216,">0"))/100 -> 3.864242825 | G199: =100-(E199+F199+H199) -> 7.038364921 | H199: =IF((D201+H201)>100,H201*100/(D201+H201),H201) -> 55.02783639 | I199: =IF((I201+M201)>100,I201*100/(I201+M201),I201) -> 65.90036992 | J199: =I199*AVERAGEIF(J205:J216,">0")/100 -> 61.8427588 | K199: =I199*(100-AVERAGEIF(J205:J216,">0"))/100 -> 4.057611124 | L199: =100-(J199+K199+M199) -> 5.682660526 | M199: =IF((I201+M201)>100,M201*100/(I201+M201),M201) -> 28.41696955 | N199: =IF((N201+R201)>100,N201*100/(N201+R201),N201) -> 54.05352473 | O199: =N199*AVERAGEIF(O205:O216,">0")/100 -> 51.9537752 | P199: =N199*(100-AVERAGEIF(O205:O216,">0"))/100 -> 2.099749522 | Q199: =100-(O199+P199+R199) -> 10.11293792 | R199: =IF((N201+R201)>100,R201*100/(N201+R201),R201) -> 35.83353735 | S199: =IF((S201+W201)>100,S201*100/(S201+W201),S201) -> 66.99302663 | T199: =S199*AVERAGEIF(T205:T216,">0")/100 -> 65.87422875 | U199: =S199*(100-AVERAGEIF(T205:T216,">0"))/100 -> 1.118797875 | V199: =100-(T199+U199+W199) -> 14.48979958 | W199: =IF((S201+W201)>100,W201*100/(S201+W201),W201) -> 18.51717379 | X199: =IF((X201+AB201)>100,X201*100/(X201+AB201),X201) -> 90.78166913 | Y199: =X199*AVERAGEIF(Y205:Y216,">0")/100 -> 89.71455266 | Z199: =X199*(100-AVERAGEIF(Y205:Y216,">0"))/100 -> 1.067116473 | AA199: =100-(Y199+Z199+AB199) -> 2.928126688 | AB199: =IF((X201+AB201)>100,AB201*100/(X201+AB201),AB201) -> 6.290204181
C200: 2020 | D200: =IF((D202+H202)>100,D202*100/(D202+H202),D202) -> 80.77337383 | E200: =D200*AVERAGEIF(E205:E216,">0")/100 -> 72.54514621 | F200: =D200*(100-AVERAGEIF(E205:E216,">0"))/100 -> 8.228227623 | G200: =100-(E200+F200+H200) -> 3.32816706 | H200: =IF((D202+H202)>100,H202*100/(D202+H202),H202) -> 15.89845911 | I200: =IF((I202+M202)>100,I202*100/(I202+M202),I202) -> 100 | J200: =I200*AVERAGEIF(J205:J216,">0")/100 -> 93.84280979 | K200: =I200*(100-AVERAGEIF(J205:J216,">0"))/100 -> 6.157190209 | L200: =100-(J200+K200+M200) -> 0 | M200: =IF((I202+M202)>100,M202*100/(I202+M202),M202) -> 0 | N200: =IF((N202+R202)>100,N202*100/(N202+R202),N202) -> 100 | O200: =N200*AVERAGEIF(O205:O216,">0")/100 -> 96.11542534 | P200: =N200*(100-AVERAGEIF(O205:O216,">0"))/100 -> 3.884574656 | Q200: =100-(O200+P200+R200) -> 0 | R200: =IF((N202+R202)>100,R202*100/(N202+R202),R202) -> 0 | S200: =IF((S202+W202)>100,S202*100/(S202+W202),S202) -> 100 | T200: =S200*AVERAGEIF(T205:T216,">0")/100 -> 98.32997861 | U200: =S200*(100-AVERAGEIF(T205:T216,">0"))/100 -> 1.67002139 | V200: =100-(T200+U200+W200) -> 0 | W200: =IF((S202+W202)>100,W202*100/(S202+W202),W202) -> 0 | X200: =IF((X202+AB202)>100,X202*100/(X202+AB202),X202) -> 100 | Y200: =X200*AVERAGEIF(Y205:Y216,">0")/100 -> 98.82452429 | Z200: =X200*(100-AVERAGEIF(Y205:Y216,">0"))/100 -> 1.175475714 | AA200: =100-(Y200+Z200+AB200) -> 0 | AB200: =IF((X202+AB202)>100,AB202*100/(X202+AB202),AB202) -> 0
A201: Regression period: | C201: =MinRegYear(C199,C205:C216) -> 2000 | D201: =IF(MAX(C205:C216)-MIN(C205:C216)<5,AVERAGEIF(C205:C216,">0",D205:D216), IF(FORECAST($C201,D$205:D$216,$C$205:$C$216)<0,0, IF(FORECAST($C201,D$205:D$216,$C$205:$C$216)>100,100, FORECAST($C201,D$205:D$216,$C$205:$C$216)))) -> 37.93379869 | H201: =IF(MAX(C205:C216)-MIN(C205:C216)<5,AVERAGEIF(C205:C216,">0",H205:H216), IF(FORECAST($C201,H$205:H$216,$C$205:$C$216)<0,0, IF(FORECAST($C201,H$205:H$216,$C$205:$C$216)>100,100, FORECAST($C201,H$205:H$216,$C$205:$C$216)))) -> 55.02783639 | I201: =IF(MAX(C205:C216)-MIN(C205:C216)<5,AVERAGEIF(C205:C216,">0",I205:I216), IF(FORECAST($C201,I$205:I$216,$C$205:$C$216)<0,0, IF(FORECAST($C201,I$205:I$216,$C$205:$C$216)>100,100, FORECAST($C201,I$205:I$216,$C$205:$C$216)))) -> 65.90036992 | M201: =IF(MAX(C205:C216)-MIN(C205:C216)<5,AVERAGEIF(C205:C216,">0",M205:M216), IF(FORECAST($C201,M$205:M$216,$C$205:$C$216)<0,0, IF(FORECAST($C201,M$205:M$216,$C$205:$C$216)>100,100, FORECAST($C201,M$205:M$216,$C$205:$C$216)))) -> 28.41696955 | N201: =IF(MAX(C205:C216)-MIN(C205:C216)<5,AVERAGEIF(C205:C216,">0",N205:N216), IF(FORECAST($C201,N$205:N$216,$C$205:$C$216)<0,0, IF(FORECAST($C201,N$205:N$216,$C$205:$C$216)>100,100, FORECAST($C201,N$205:N$216,$C$205:$C$216)))) -> 54.05352473 | R201: =IF(MAX(C205:C216)-MIN(C205:C216)<5,AVERAGEIF(C205:C216,">0",R205:R216), IF(FORECAST($C201,R$205:R$216,$C$205:$C$216)<0,0, IF(FORECAST($C201,R$205:R$216,$C$205:$C$216)>100,100, FORECAST($C201,R$205:R$216,$C$205:$C$216)))) -> 35.83353735 | S201: =IF(MAX(C205:C216)-MIN(C205:C216)<5,AVERAGEIF(C205:C216,">0",S205:S216), IF(FORECAST($C201,S$205:S$216,$C$205:$C$216)<0,0, IF(FORECAST($C201,S$205:S$216,$C$205:$C$216)>100,100, FORECAST($C201,S$205:S$216,$C$205:$C$216)))) -> 66.99302663 | W201: =IF(MAX(C205:C216)-MIN(C205:C216)<5,AVERAGEIF(C205:C216,">0",W205:W216), IF(FORECAST($C201,W$205:W$216,$C$205:$C$216)<0,0, IF(FORECAST($C201,W$205:W$216,$C$205:$C$216)>100,100, FORECAST($C201,W$205:W$216,$C$205:$C$216)))) -> 18.51717379 | X201: =IF(MAX(C205:C216)-MIN(C205:C216)<5,AVERAGEIF(C205:C216,">0",X205:X216), IF(FORECAST($C201,X$205:X$216,$C$205:$C$216)<0,0, IF(FORECAST($C201,X$205:X$216,$C$205:$C$216)>100,100, FORECAST($C201,X$205:X$216,$C$205:$C$216)))) -> 90.78166913 | AB201: =IF(MAX(C205:C216)-MIN(C205:C216)<5,AVERAGEIF(C205:C216,">0",AB205:AB216), IF(FORECAST($C201,AB$205:AB$216,$C$205:$C$216)<0,0, IF(FORECAST($C201,AB$205:AB$216,$C$205:$C$216)>100,100, FORECAST($C201,AB$205:AB$216,$C$205:$C$216)))) -> 6.290204181
C202: =MaxRegYear(C200,C205:C216) -> 2019 | D202: =IF(MAX(C205:C216)-MIN(C205:C216)<5,AVERAGEIF(C205:C216,">0",D205:D216), IF(FORECAST($C202,D$205:D$216,$C$205:$C$216)<0,0, IF(FORECAST($C202,D$205:D$216,$C$205:$C$216)>100,100, FORECAST($C202,D$205:D$216,$C$205:$C$216)))) -> 80.77337383 | H202: =IF(MAX(C205:C216)-MIN(C205:C216)<5,AVERAGEIF(C205:C216,">0",H205:H216), IF(FORECAST($C202,H$205:H$216,$C$205:$C$216)<0,0, IF(FORECAST($C202,H$205:H$216,$C$205:$C$216)>100,100, FORECAST($C202,H$205:H$216,$C$205:$C$216)))) -> 15.89845911 | I202: =IF(MAX(C205:C216)-MIN(C205:C216)<5,AVERAGEIF(C205:C216,">0",I205:I216), IF(FORECAST($C202,I$205:I$216,$C$205:$C$216)<0,0, IF(FORECAST($C202,I$205:I$216,$C$205:$C$216)>100,100, FORECAST($C202,I$205:I$216,$C$205:$C$216)))) -> 100 | M202: =IF(MAX(C205:C216)-MIN(C205:C216)<5,AVERAGEIF(C205:C216,">0",M205:M216), IF(FORECAST($C202,M$205:M$216,$C$205:$C$216)<0,0, IF(FORECAST($C202,M$205:M$216,$C$205:$C$216)>100,100, FORECAST($C202,M$205:M$216,$C$205:$C$216)))) -> 0 | N202: =IF(MAX(C205:C216)-MIN(C205:C216)<5,AVERAGEIF(C205:C216,">0",N205:N216), IF(FORECAST($C202,N$205:N$216,$C$205:$C$216)<0,0, IF(FORECAST($C202,N$205:N$216,$C$205:$C$216)>100,100, FORECAST($C202,N$205:N$216,$C$205:$C$216)))) -> 100 | R202: =IF(MAX(C205:C216)-MIN(C205:C216)<5,AVERAGEIF(C205:C216,">0",R205:R216), IF(FORECAST($C202,R$205:R$216,$C$205:$C$216)<0,0, IF(FORECAST($C202,R$205:R$216,$C$205:$C$216)>100,100, FORECAST($C202,R$205:R$216,$C$205:$C$216)))) -> 0 | S202: =IF(MAX(C205:C216)-MIN(C205:C216)<5,AVERAGEIF(C205:C216,">0",S205:S216), IF(FORECAST($C202,S$205:S$216,$C$205:$C$216)<0,0, IF(FORECAST($C202,S$205:S$216,$C$205:$C$216)>100,100, FORECAST($C202,S$205:S$216,$C$205:$C$216)))) -> 100 | W202: =IF(MAX(C205:C216)-MIN(C205:C216)<5,AVERAGEIF(C205:C216,">0",W205:W216), IF(FORECAST($C202,W$205:W$216,$C$205:$C$216)<0,0, IF(FORECAST($C202,W$205:W$216,$C$205:$C$216)>100,100, FORECAST($C202,W$205:W$216,$C$205:$C$216)))) -> 0 | X202: =IF(MAX(C205:C216)-MIN(C205:C216)<5,AVERAGEIF(C205:C216,">0",X205:X216), IF(FORECAST($C202,X$205:X$216,$C$205:$C$216)<0,0, IF(FORECAST($C202,X$205:X$216,$C$205:$C$216)>100,100, FORECAST($C202,X$205:X$216,$C$205:$C$216)))) -> 100 | AB202: =IF(MAX(C205:C216)-MIN(C205:C216)<5,AVERAGEIF(C205:C216,">0",AB205:AB216), IF(FORECAST($C202,AB$205:AB$216,$C$205:$C$216)<0,0, IF(FORECAST($C202,AB$205:AB$216,$C$205:$C$216)>100,100, FORECAST($C202,AB$205:AB$216,$C$205:$C$216)))) -> 0
B204: Survey | C204: Year | D204: Improved | E204: Not shared | H204: Open defecation | I204: Improved | J204: Not shared | M204: Open defecation | N204: Improved | O204: Not shared | R204: Open defecation | S204: Improved | T204: Not shared | W204: Open defecation | X204: Improved | Y204: Not shared | AB204: Open defecation
B205: MICS00 | C205: 2000 | D205: =IF(ISERROR(INDIRECT(CONCATENATE($B205,"!H122"))),"",INDIRECT(CONCATENATE($B205,"!H122"))) -> 40.81563859 | E205: =IF(ISERROR(INDIRECT(CONCATENATE($B205,"!H129"))),"",INDIRECT(CONCATENATE($B205,"!H129"))) -> N/A | H205: =IF(ISERROR(INDIRECT(CONCATENATE($B205,"!H127"))),"",INDIRECT(CONCATENATE($B205,"!H127"))) -> 53.70357762 | I205: =IF(ISERROR(INDIRECT(CONCATENATE($B205,"!I122"))),"",INDIRECT(CONCATENATE($B205,"!I122"))) -> 64.65661117 | J205: =IF(ISERROR(INDIRECT(CONCATENATE($B205,"!I129"))),"",INDIRECT(CONCATENATE($B205,"!I129"))) -> N/A | M205: =IF(ISERROR(INDIRECT(CONCATENATE($B205,"!I127"))),"",INDIRECT(CONCATENATE($B205,"!I127"))) -> 28.83633703 | N205: =IF(ISERROR(INDIRECT(CONCATENATE($B205,"!J122"))),"",INDIRECT(CONCATENATE($B205,"!J122"))) -> 39.1233482 | O205: =IF(ISERROR(INDIRECT(CONCATENATE($B205,"!J129"))),"",INDIRECT(CONCATENATE($B205,"!J129"))) -> N/A | R205: =IF(ISERROR(INDIRECT(CONCATENATE($B205,"!J127"))),"",INDIRECT(CONCATENATE($B205,"!J127"))) -> 47.3183699 | S205: =IF(ISERROR(INDIRECT(CONCATENATE($B205,"!K122"))),"",INDIRECT(CONCATENATE($B205,"!K122"))) -> 54.36195897 | T205: =IF(ISERROR(INDIRECT(CONCATENATE($B205,"!K129"))),"",INDIRECT(CONCATENATE($B205,"!K129"))) -> N/A | W205: =IF(ISERROR(INDIRECT(CONCATENATE($B205,"!K127"))),"",INDIRECT(CONCATENATE($B205,"!K127"))) -> 25.43973845 | X205: =IF(ISERROR(INDIRECT(CONCATENATE($B205,"!L122"))),"",INDIRECT(CONCATENATE($B205,"!L122"))) -> 87.07189497 | Y205: =IF(ISERROR(INDIRECT(CONCATENATE($B205,"!L129"))),"",INDIRECT(CONCATENATE($B205,"!L129"))) -> N/A | AB205: =IF(ISERROR(INDIRECT(CONCATENATE($B205,"!L2127"))),"",INDIRECT(CONCATENATE($B205,"!L127"))) -> 8.731178938
B206: MICS06 | C206: 2006 | D206: 46.89228598 | E206: 86.86307195 | H206: 44.36132297 | I206: 77.6463787 | J206: 90.03869255 | M206: 18.92425828 | N206: 94.07392258 | O206: 93.8933456 | R206: 4.479441211 | S206: 99.39717935 | T206: 98.29054667 | W206: 0.377588532 | X206: 100 | Y206: 99.34299755 | AB206: 0
B207: MICS12 | C207: 2012 | D207: 65.24567592 | E207: 91.2418166 | H207: 31.09873482 | I207: 93.48708076 | J207: 96.17337665 | M207: 5.871309855 | N207: 98.47985336 | O207: 95.86638746 | R207: 1.0421203 | S207: 99.41685949 | T207: 97.93291513 | W207: 0.5846143554 | X207: 100 | Y207: 98.014581 | AB207: 0
B208: MICS17 | C208: 2017 | D208: 77.69660111 | E208: 91.33469073 | H208: 18.86727832 | I208: 96.14356239 | J208: 95.31636017 | M208: 1.697396552 | N208: 98.02114661 | O208: 98.58654297 | R208: 0.60255425 | S208: 99.19519041 | T208: 98.76647404 | W208: 0.0237994332 | X208: 99.50676299 | Y208: 99.11599431 | AB208: 0
B218: =CONCATENATE("Urban use of sanitation facilities, ",C199,"–",C200) -> Urban use of sanitation facilities, 2000–2020 | S218: Data points used for regression
A297: RURAL | D297: Poorest | I297: Poor | N297: Middle | S297: Rich | X297: Richest
D298: Improved | E298: Basic | F298: Limited | G298: Unimproved | H298: Open defecation | I298: Improved | J298: Basic | K298: Limited | L298: Unimproved | M298: Open defecation | N298: Improved | O298: Basic | P298: Limited | Q298: Unimproved | R298: Open defecation | S298: Improved | T298: Basic | U298: Limited | V298: Unimproved | W298: Open defecation | X298: Improved | Y298: Basic | Z298: Limited | AA298: Unimproved | AB298: Open defecation
A299: Forecast period: | C299: 2000 | D299: =IF((D301+H301)>100,D301*100/(D301+H301),D301) -> 6.403796344 | E299: =D299*AVERAGEIF(E305:E316,">0")/100 -> 6.193814537 | F299: =D299*(100-AVERAGEIF(E305:E316,">0"))/100 -> 0.2099818069 | G299: =100-(E299+F299+H299) -> 6.434986776 | H299: =IF((D301+H301)>100,H301*100/(D301+H301),H301) -> 87.16121688 | I299: =IF((I301+M301)>100,I301*100/(I301+M301),I301) -> 4.469464977 | J299: =I299*AVERAGEIF(J305:J316,">0")/100 -> 4.312509357 | K299: =I299*(100-AVERAGEIF(J305:J316,">0"))/100 -> 0.1569556204 | L299: =100-(J299+K299+M299) -> 8.378909595 | M299: =IF((I301+M301)>100,M301*100/(I301+M301),M301) -> 87.15162543 | N299: =IF((N301+R301)>100,N301*100/(N301+R301),N301) -> 9.574618987 | O299: =N299*AVERAGEIF(O305:O316,">0")/100 -> 9.213473819 | P299: =N299*(100-AVERAGEIF(O305:O316,">0"))/100 -> 0.3611451684 | Q299: =100-(O299+P299+R299) -> 8.170883734 | R299: =IF((N301+R301)>100,R301*100/(N301+R301),R301) -> 82.25449728 | S299: =IF((S301+W301)>100,S301*100/(S301+W301),S301) -> 13.23810659 | T299: =S299*AVERAGEIF(T305:T316,">0")/100 -> 12.62603231 | U299: =S299*(100-AVERAGEIF(T305:T316,">0"))/100 -> 0.6120742779 | V299: =100-(T299+U299+W299) -> 10.55954922 | W299: =IF((S301+W301)>100,W301*100/(S301+W301),W301) -> 76.20234419 | X299: =IF((X301+AB301)>100,X301*100/(X301+AB301),X301) -> 25.79079518 | Y299: =X299*AVERAGEIF(Y305:Y316,">0")/100 -> 25.1816543 | Z299: =X299*(100-AVERAGEIF(Y305:Y316,">0"))/100 -> 0.6091408733 | AA299: =100-(Y299+Z299+AB299) -> 10.92191482 | AB299: =IF((X301+AB301)>100,AB301*100/(X301+AB301),AB301) -> 63.28729
C300: 2020 | D300: =IF((D302+H302)>100,D302*100/(D302+H302),D302) -> 27.2168231 | E300: =D300*AVERAGEIF(E305:E316,">0")/100 -> 26.32437784 | F300: =D300*(100-AVERAGEIF(E305:E316,">0"))/100 -> 0.8924452599 | G300: =100-(E300+F300+H300) -> 3.454675262 | H300: =IF((D302+H302)>100,H302*100/(D302+H302),H302) -> 69.32850164 | I300: =IF((I302+M302)>100,I302*100/(I302+M302),I302) -> 51.40733318 | J300: =I300*AVERAGEIF(J305:J316,">0")/100 -> 49.60204555 | K300: =I300*(100-AVERAGEIF(J305:J316,">0"))/100 -> 1.805287638 | L300: =100-(J300+K300+M300) -> 3.287762343 | M300: =IF((I302+M302)>100,M302*100/(I302+M302),M302) -> 45.30490447 | N300: =IF((N302+R302)>100,N302*100/(N302+R302),N302) -> 69.10534406 | O300: =N300*AVERAGEIF(O305:O316,">0")/100 -> 66.49875876 | P300: =N300*(100-AVERAGEIF(O305:O316,">0"))/100 -> 2.606585301 | Q300: =100-(O300+P300+R300) -> 2.283547649 | R300: =IF((N302+R302)>100,R302*100/(N302+R302),R302) -> 28.61110829 | S300: =IF((S302+W302)>100,S302*100/(S302+W302),S302) -> 91.39671775 | T300: =S300*AVERAGEIF(T305:T316,">0")/100 -> 87.17091856 | U300: =S300*(100-AVERAGEIF(T305:T316,">0"))/100 -> 4.225799185 | V300: =100-(T300+U300+W300) -> 0 | W300: =IF((S302+W302)>100,W302*100/(S302+W302),W302) -> 8.603282251 | X300: =IF((X302+AB302)>100,X302*100/(X302+AB302),X302) -> 100 | Y300: =X300*AVERAGEIF(Y305:Y316,">0")/100 -> 97.63814621 | Z300: =X300*(100-AVERAGEIF(Y305:Y316,">0"))/100 -> 2.36185379 | AA300: =100-(Y300+Z300+AB300) -> 0 | AB300: =IF((X302+AB302)>100,AB302*100/(X302+AB302),AB302) -> 0
A301: Regression period: | C301: =MinRegYear(C299,C305:C316) -> 2000 | D301: =IF(MAX(C305:C316)-MIN(C305:C316)<5,AVERAGEIF(C305:C316,">0",D305:D316), IF(FORECAST($C301,D$305:D$316,$C$305:$C$316)<0,0, IF(FORECAST($C301,D$305:D$316,$C$305:$C$316)>100,100, FORECAST($C301,D$305:D$316,$C$305:$C$316)))) -> 6.403796344 | H301: =IF(MAX(C305:C316)-MIN(C305:C316)<5,AVERAGEIF(C305:C316,">0",H305:H316), IF(FORECAST($C301,H$305:H$316,$C$305:$C$316)<0,0, IF(FORECAST($C301,H$305:H$316,$C$305:$C$316)>100,100, FORECAST($C301,H$305:H$316,$C$305:$C$316)))) -> 87.16121688 | I301: =IF(MAX(C305:C316)-MIN(C305:C316)<5,AVERAGEIF(C305:C316,">0",I305:I316), IF(FORECAST($C301,I$305:I$316,$C$305:$C$316)<0,0, IF(FORECAST($C301,I$305:I$316,$C$305:$C$316)>100,100, FORECAST($C301,I$305:I$316,$C$305:$C$316)))) -> 4.469464977 | M301: =IF(MAX(C305:C316)-MIN(C305:C316)<5,AVERAGEIF(C305:C316,">0",M305:M316), IF(FORECAST($C301,M$305:M$316,$C$305:$C$316)<0,0, IF(FORECAST($C301,M$305:M$316,$C$305:$C$316)>100,100, FORECAST($C301,M$305:M$316,$C$305:$C$316)))) -> 87.15162543 | N301: =IF(MAX(C305:C316)-MIN(C305:C316)<5,AVERAGEIF(C305:C316,">0",N305:N316), IF(FORECAST($C301,N$305:N$316,$C$305:$C$316)<0,0, IF(FORECAST($C301,N$305:N$316,$C$305:$C$316)>100,100, FORECAST($C301,N$305:N$316,$C$305:$C$316)))) -> 9.574618987 | R301: =IF(MAX(C305:C316)-MIN(C305:C316)<5,AVERAGEIF(C305:C316,">0",R305:R316), IF(FORECAST($C301,R$305:R$316,$C$305:$C$316)<0,0, IF(FORECAST($C301,R$305:R$316,$C$305:$C$316)>100,100, FORECAST($C301,R$305:R$316,$C$305:$C$316)))) -> 82.25449728 | S301: =IF(MAX(C305:C316)-MIN(C305:C316)<5,AVERAGEIF(C305:C316,">0",S305:S316), IF(FORECAST($C301,S$305:S$316,$C$305:$C$316)<0,0, IF(FORECAST($C301,S$305:S$316,$C$305:$C$316)>100,100, FORECAST($C301,S$305:S$316,$C$305:$C$316)))) -> 13.23810659 | W301: =IF(MAX(C305:C316)-MIN(C305:C316)<5,AVERAGEIF(C305:C316,">0",W305:W316), IF(FORECAST($C301,W$305:W$316,$C$305:$C$316)<0,0, IF(FORECAST($C301,W$305:W$316,$C$305:$C$316)>100,100, FORECAST($C301,W$305:W$316,$C$305:$C$316)))) -> 76.20234419 | X301: =IF(MAX(C305:C316)-MIN(C305:C316)<5,AVERAGEIF(C305:C316,">0",X305:X316), IF(FORECAST($C301,X$305:X$316,$C$305:$C$316)<0,0, IF(FORECAST($C301,X$305:X$316,$C$305:$C$316)>100,100, FORECAST($C301,X$305:X$316,$C$305:$C$316)))) -> 25.79079518 | AB301: =IF(MAX(C305:C316)-MIN(C305:C316)<5,AVERAGEIF(C305:C316,">0",AB305:AB316), IF(FORECAST($C301,AB$305:AB$316,$C$305:$C$316)<0,0, IF(FORECAST($C301,AB$305:AB$316,$C$305:$C$316)>100,100, FORECAST($C301,AB$305:AB$316,$C$305:$C$316)))) -> 63.28729
C302: =MaxRegYear(C300,C305:C316) -> 2019 | D302: =IF(MAX(C305:C316)-MIN(C305:C316)<5,AVERAGEIF(C305:C316,">0",D305:D316), IF(FORECAST($C302,D$305:D$316,$C$305:$C$316)<0,0, IF(FORECAST($C302,D$305:D$316,$C$305:$C$316)>100,100, FORECAST($C302,D$305:D$316,$C$305:$C$316)))) -> 27.2168231 | H302: =IF(MAX(C305:C316)-MIN(C305:C316)<5,AVERAGEIF(C305:C316,">0",H305:H316), IF(FORECAST($C302,H$305:H$316,$C$305:$C$316)<0,0, IF(FORECAST($C302,H$305:H$316,$C$305:$C$316)>100,100, FORECAST($C302,H$305:H$316,$C$305:$C$316)))) -> 69.32850164 | I302: =IF(MAX(C305:C316)-MIN(C305:C316)<5,AVERAGEIF(C305:C316,">0",I305:I316), IF(FORECAST($C302,I$305:I$316,$C$305:$C$316)<0,0, IF(FORECAST($C302,I$305:I$316,$C$305:$C$316)>100,100, FORECAST($C302,I$305:I$316,$C$305:$C$316)))) -> 51.40733318 | M302: =IF(MAX(C305:C316)-MIN(C305:C316)<5,AVERAGEIF(C305:C316,">0",M305:M316), IF(FORECAST($C302,M$305:M$316,$C$305:$C$316)<0,0, IF(FORECAST($C302,M$305:M$316,$C$305:$C$316)>100,100, FORECAST($C302,M$305:M$316,$C$305:$C$316)))) -> 45.30490447 | N302: =IF(MAX(C305:C316)-MIN(C305:C316)<5,AVERAGEIF(C305:C316,">0",N305:N316), IF(FORECAST($C302,N$305:N$316,$C$305:$C$316)<0,0, IF(FORECAST($C302,N$305:N$316,$C$305:$C$316)>100,100, FORECAST($C302,N$305:N$316,$C$305:$C$316)))) -> 69.10534406 | R302: =IF(MAX(C305:C316)-MIN(C305:C316)<5,AVERAGEIF(C305:C316,">0",R305:R316), IF(FORECAST($C302,R$305:R$316,$C$305:$C$316)<0,0, IF(FORECAST($C302,R$305:R$316,$C$305:$C$316)>100,100, FORECAST($C302,R$305:R$316,$C$305:$C$316)))) -> 28.61110829 | S302: =IF(MAX(C305:C316)-MIN(C305:C316)<5,AVERAGEIF(C305:C316,">0",S305:S316), IF(FORECAST($C302,S$305:S$316,$C$305:$C$316)<0,0, IF(FORECAST($C302,S$305:S$316,$C$305:$C$316)>100,100, FORECAST($C302,S$305:S$316,$C$305:$C$316)))) -> 91.96341705 | W302: =IF(MAX(C305:C316)-MIN(C305:C316)<5,AVERAGEIF(C305:C316,">0",W305:W316), IF(FORECAST($C302,W$305:W$316,$C$305:$C$316)<0,0, IF(FORECAST($C302,W$305:W$316,$C$305:$C$316)>100,100, FORECAST($C302,W$305:W$316,$C$305:$C$316)))) -> 8.656626333 | X302: =IF(MAX(C305:C316)-MIN(C305:C316)<5,AVERAGEIF(C305:C316,">0",X305:X316), IF(FORECAST($C302,X$305:X$316,$C$305:$C$316)<0,0, IF(FORECAST($C302,X$305:X$316,$C$305:$C$316)>100,100, FORECAST($C302,X$305:X$316,$C$305:$C$316)))) -> 100 | AB302: =IF(MAX(C305:C316)-MIN(C305:C316)<5,AVERAGEIF(C305:C316,">0",AB305:AB316), IF(FORECAST($C302,AB$305:AB$316,$C$305:$C$316)<0,0, IF(FORECAST($C302,AB$305:AB$316,$C$305:$C$316)>100,100, FORECAST($C302,AB$305:AB$316,$C$305:$C$316)))) -> 0
B304: Survey | C304: Year | D304: Improved | E304: Not shared | H304: Open defecation | I304: Improved | J304: Not shared | M304: Open defecation | N304: Improved | O304: Not shared | R304: Open defecation | S304: Improved | T304: Not shared | W304: Open defecation | X304: Improved | Y304: Not shared | AB304: Open defecation
B305: MICS00 | C305: 2000 | D305: =IF(ISERROR(INDIRECT(CONCATENATE($B305,"!M122"))),"",INDIRECT(CONCATENATE($B305,"!M122"))) -> 5.808032828 | E305: =IF(ISERROR(INDIRECT(CONCATENATE($B305,"!M129"))),"",INDIRECT(CONCATENATE($B305,"!M129"))) -> N/A | H305: =IF(ISERROR(INDIRECT(CONCATENATE($B305,"!M127"))),"",INDIRECT(CONCATENATE($B305,"!M127"))) -> 88.16291013 | I305: =IF(ISERROR(INDIRECT(CONCATENATE($B305,"!N122"))),"",INDIRECT(CONCATENATE($B305,"!N122"))) -> 5.862810622 | J305: =IF(ISERROR(INDIRECT(CONCATENATE($B305,"!N129"))),"",INDIRECT(CONCATENATE($B305,"!N129"))) -> N/A | M305: =IF(ISERROR(INDIRECT(CONCATENATE($B305,"!N127"))),"",INDIRECT(CONCATENATE($B305,"!N127"))) -> 87.19838129 | N305: =IF(ISERROR(INDIRECT(CONCATENATE($B305,"!O122"))),"",INDIRECT(CONCATENATE($B305,"!O122"))) -> 10.89480175 | O305: =IF(ISERROR(INDIRECT(CONCATENATE($B305,"!O129"))),"",INDIRECT(CONCATENATE($B305,"!O129"))) -> N/A | R305: =IF(ISERROR(INDIRECT(CONCATENATE($B305,"!O127"))),"",INDIRECT(CONCATENATE($B305,"!O127"))) -> 81.57236091 | S305: =IF(ISERROR(INDIRECT(CONCATENATE($B305,"!P122"))),"",INDIRECT(CONCATENATE($B305,"!P122"))) -> 16.93691927 | T305: =IF(ISERROR(INDIRECT(CONCATENATE($B305,"!P129"))),"",INDIRECT(CONCATENATE($B305,"!P129"))) -> N/A | W305: =IF(ISERROR(INDIRECT(CONCATENATE($B305,"!P127"))),"",INDIRECT(CONCATENATE($B305,"!P127"))) -> 70.73714569 | X305: =IF(ISERROR(INDIRECT(CONCATENATE($B305,"!Q122"))),"",INDIRECT(CONCATENATE($B305,"!Q122"))) -> 17.42336562 | Y305: =IF(ISERROR(INDIRECT(CONCATENATE($B305,"!Q129"))),"",INDIRECT(CONCATENATE($B305,"!Q129"))) -> N/A | AB305: =IF(ISERROR(INDIRECT(CONCATENATE($B305,"!Q2127"))),"",INDIRECT(CONCATENATE($B305,"!Q127"))) -> 68.42966458
B306: MICS06 | C306: 2006 | D306: 15.16348129 | E306: 99.64530565 | H306: 79.34551231 | I306: 19.70460554 | J306: 99.13812125 | M306: 71.0346922 | N306: 27.90685668 | O306: 98.86015928 | R306: 64.80382408 | S306: 32.3853041 | T306: 95.08035159 | W306: 62.7318368 | X306: 63.40475503 | Y306: 98.39782326 | AB306: 34.02520906
B307: MICS12 | C307: 2012 | D307: 16.76273144 | E307: 96.28426555 | H307: 77.2981981 | I307: 28.46921628 | J307: 96.59891563 | M307: 66.94794183 | N307: 43.71161528 | O307: 95.21505329 | R307: 51.81716818 | S307: 62.95293123 | T307: 95.33295167 | W307: 34.83218324 | X307: 89.11433248 | Y307: 96.54029142 | AB307: 10.64900141
B308: MICS17 | C308: 2017 | D308: 26.22072595 | E308: 94.23336673 | H308: 70.98850837 | I308: 50.30572153 | J308: 93.72776789 | M308: 46.33942146 | N308: 65.44706421 | O308: 94.60908384 | R308: 32.00786677 | S308: 85.69758049 | T308: 95.7159606 | W308: 12.08188866 | X308: 96.58876712 | Y308: 97.97632395 | AB308: 1.808072341
B318: =CONCATENATE("Rural use of sanitation facilities, ",C299,"–",C300) -> Rural use of sanitation facilities, 2000–2020 | S318: Data points used for regression

Sheet Hygiene
B4: Access to hygiene facilities by wealth quintile (%)
B5: =IF(ISERROR(INDIRECT(CONCATENATE($E$32,"!A2"))),"",INDIRECT(CONCATENATE($E$32,"!A2"))) -> Lao_PDR
B7: =CONCATENATE("National ",IF(ISERROR(INDIRECT(CONCATENATE($E$32,"!A2"))),"",INDIRECT(CONCATENATE($E$32,"!A210")))) -> National Access to hygiene facilities | K7: =CONCATENATE("Urban ",IF(ISERROR(INDIRECT(CONCATENATE($E$32,"!A2"))),"",INDIRECT(CONCATENATE($E$32,"!A210")))) -> Urban Access to hygiene facilities | S7: =CONCATENATE("Rural ",IF(ISERROR(INDIRECT(CONCATENATE($E$32,"!A2"))),"",INDIRECT(CONCATENATE($E$32,"!A210")))) -> Rural Access to hygiene facilities
E32: =INDEX(B88:B100,A88) -> MICS17 | G32: =IF(ISERROR(INDIRECT(CONCATENATE($E$32,"!A2"))),"",INDIRECT(CONCATENATE($E$32,"!A2"))) -> Lao_PDR | K32: Poorest | N32: Poor | Q32: Middle | T32: Rich | W32: Richest
K33: Basic | L33: Limited | M33: No facility | N33: Basic | O33: Limited | P33: No facility | Q33: Basic | R33: Limited | S33: No facility | T33: Basic | U33: Limited | V33: No facility | W33: Basic | X33: Limited | Y33: No facility
B34: >>> Select Survey : | G34: NATIONAL | J34: =IF(ISERROR(INDIRECT(CONCATENATE(#REF!,"!A2"))),"",INDIRECT(CONCATENATE(#REF!,"!A210"))) ->  | K34: =IF(ISERROR(INDIRECT(CONCATENATE($E$32,"!C222"))),"",INDIRECT(CONCATENATE($E$32,"!C222"))) -> 21.24040259 | L34: =IF(ISERROR(INDIRECT(CONCATENATE($E$32,"!C223"))),"",INDIRECT(CONCATENATE($E$32,"!C223"))) -> 54.21882391 | M34: =IF(ISERROR(INDIRECT(CONCATENATE($E$32,"!C224"))),"",INDIRECT(CONCATENATE($E$32,"!C224"))) -> 24.54077349 | N34: =IF(ISERROR(INDIRECT(CONCATENATE($E$32,"!D222"))),"",INDIRECT(CONCATENATE($E$32,"!D222"))) -> 37.74142204 | O34: =IF(ISERROR(INDIRECT(CONCATENATE($E$32,"!D223"))),"",INDIRECT(CONCATENATE($E$32,"!D223"))) -> 45.09938075 | P34: =IF(ISERROR(INDIRECT(CONCATENATE($E$32,"!D224"))),"",INDIRECT(CONCATENATE($E$32,"!D224"))) -> 17.15919721 | Q34: =IF(ISERROR(INDIRECT(CONCATENATE($E$32,"!E222"))),"",INDIRECT(CONCATENATE($E$32,"!E222"))) -> 54.90491182 | R34: =IF(ISERROR(INDIRECT(CONCATENATE($E$32,"!E223"))),"",INDIRECT(CONCATENATE($E$32,"!E223"))) -> 31.50423062 | S34: =IF(ISERROR(INDIRECT(CONCATENATE($E$32,"!E224"))),"",INDIRECT(CONCATENATE($E$32,"!E224"))) -> 13.59085756 | T34: =IF(ISERROR(INDIRECT(CONCATENATE($E$32,"!F222"))),"",INDIRECT(CONCATENATE($E$32,"!F222"))) -> 66.62726098 | U34: =IF(ISERROR(INDIRECT(CONCATENATE($E$32,"!F223"))),"",INDIRECT(CONCATENATE($E$32,"!F223"))) -> 22.56284961 | V34: =IF(ISERROR(INDIRECT(CONCATENATE($E$32,"!F224"))),"",INDIRECT(CONCATENATE($E$32,"!F224"))) -> 10.80988941 | W34: =IF(ISERROR(INDIRECT(CONCATENATE($E$32,"!G222"))),"",INDIRECT(CONCATENATE($E$32,"!G222"))) -> 85.08966264 | X34: =IF(ISERROR(INDIRECT(CONCATENATE($E$32,"!G223"))),"",INDIRECT(CONCATENATE($E$32,"!G223"))) -> 10.02591284 | Y34: =IF(ISERROR(INDIRECT(CONCATENATE($E$32,"!G224"))),"",INDIRECT(CONCATENATE($E$32,"!G224"))) -> 4.884424522
G37: URBAN | J37: =IF(ISERROR(INDIRECT(CONCATENATE(#REF!,"!A2"))),"",INDIRECT(CONCATENATE(#REF!,"!A210"))) ->  | K37: =IF(ISERROR(INDIRECT(CONCATENATE($E$32,"!H222"))),"",INDIRECT(CONCATENATE($E$32,"!H222"))) -> 44.26368422 | L37: =IF(ISERROR(INDIRECT(CONCATENATE($E$32,"!H223"))),"",INDIRECT(CONCATENATE($E$32,"!H223"))) -> 35.7364939 | M37: =IF(ISERROR(INDIRECT(CONCATENATE($E$32,"!H224"))),"",INDIRECT(CONCATENATE($E$32,"!H224"))) -> 19.99982187 | N37: =IF(ISERROR(INDIRECT(CONCATENATE($E$32,"!I222"))),"",INDIRECT(CONCATENATE($E$32,"!I222"))) -> 63.60708888 | O37: =IF(ISERROR(INDIRECT(CONCATENATE($E$32,"!I223"))),"",INDIRECT(CONCATENATE($E$32,"!I223"))) -> 22.85789576 | P37: =IF(ISERROR(INDIRECT(CONCATENATE($E$32,"!I224"))),"",INDIRECT(CONCATENATE($E$32,"!I224"))) -> 13.53501536 | Q37: =IF(ISERROR(INDIRECT(CONCATENATE($E$32,"!J222"))),"",INDIRECT(CONCATENATE($E$32,"!J222"))) -> 76.91881645 | R37: =IF(ISERROR(INDIRECT(CONCATENATE($E$32,"!J223"))),"",INDIRECT(CONCATENATE($E$32,"!J223"))) -> 13.62228018 | S37: =IF(ISERROR(INDIRECT(CONCATENATE($E$32,"!J224"))),"",INDIRECT(CONCATENATE($E$32,"!J224"))) -> 9.458903368 | T37: =IF(ISERROR(INDIRECT(CONCATENATE($E$32,"!K222"))),"",INDIRECT(CONCATENATE($E$32,"!K222"))) -> 85.34306913 | U37: =IF(ISERROR(INDIRECT(CONCATENATE($E$32,"!K223"))),"",INDIRECT(CONCATENATE($E$32,"!K223"))) -> 9.553866308 | V37: =IF(ISERROR(INDIRECT(CONCATENATE($E$32,"!K224"))),"",INDIRECT(CONCATENATE($E$32,"!K224"))) -> 5.103064559 | W37: =IF(ISERROR(INDIRECT(CONCATENATE($E$32,"!L222"))),"",INDIRECT(CONCATENATE($E$32,"!L222"))) -> 92.62165888 | X37: =IF(ISERROR(INDIRECT(CONCATENATE($E$32,"!L223"))),"",INDIRECT(CONCATENATE($E$32,"!L223"))) -> 4.786136652 | Y37: =IF(ISERROR(INDIRECT(CONCATENATE($E$32,"!L224"))),"",INDIRECT(CONCATENATE($E$32,"!L224"))) -> 2.592204469
G40: RURAL | J40: =IF(ISERROR(INDIRECT(CONCATENATE(#REF!,"!A2"))),"",INDIRECT(CONCATENATE(#REF!,"!A210"))) ->  | K40: =IF(ISERROR(INDIRECT(CONCATENATE($E$32,"!M222"))),"",INDIRECT(CONCATENATE($E$32,"!M222"))) -> 18.00285814 | L40: =IF(ISERROR(INDIRECT(CONCATENATE($E$32,"!M223"))),"",INDIRECT(CONCATENATE($E$32,"!M223"))) -> 55.65755196 | M40: =IF(ISERROR(INDIRECT(CONCATENATE($E$32,"!M224"))),"",INDIRECT(CONCATENATE($E$32,"!M224"))) -> 26.3395899 | N40: =IF(ISERROR(INDIRECT(CONCATENATE($E$32,"!N222"))),"",INDIRECT(CONCATENATE($E$32,"!N222"))) -> 31.9427128 | O40: =IF(ISERROR(INDIRECT(CONCATENATE($E$32,"!N223"))),"",INDIRECT(CONCATENATE($E$32,"!N223"))) -> 50.46994768 | P40: =IF(ISERROR(INDIRECT(CONCATENATE($E$32,"!N224"))),"",INDIRECT(CONCATENATE($E$32,"!N224"))) -> 17.58733952 | Q40: =IF(ISERROR(INDIRECT(CONCATENATE($E$32,"!O222"))),"",INDIRECT(CONCATENATE($E$32,"!O222"))) -> 44.33163336 | R40: =IF(ISERROR(INDIRECT(CONCATENATE($E$32,"!O223"))),"",INDIRECT(CONCATENATE($E$32,"!O223"))) -> 39.45352495 | S40: =IF(ISERROR(INDIRECT(CONCATENATE($E$32,"!O224"))),"",INDIRECT(CONCATENATE($E$32,"!O224"))) -> 16.21484169 | T40: =IF(ISERROR(INDIRECT(CONCATENATE($E$32,"!P222"))),"",INDIRECT(CONCATENATE($E$32,"!P222"))) -> 58.08791028 | U40: =IF(ISERROR(INDIRECT(CONCATENATE($E$32,"!P223"))),"",INDIRECT(CONCATENATE($E$32,"!P223"))) -> 30.72889438 | V40: =IF(ISERROR(INDIRECT(CONCATENATE($E$32,"!P224"))),"",INDIRECT(CONCATENATE($E$32,"!P224"))) -> 11.18319534 | W40: =IF(ISERROR(INDIRECT(CONCATENATE($E$32,"!Q222"))),"",INDIRECT(CONCATENATE($E$32,"!Q222"))) -> 70.22022673 | X40: =IF(ISERROR(INDIRECT(CONCATENATE($E$32,"!Q223"))),"",INDIRECT(CONCATENATE($E$32,"!Q223"))) -> 21.13055098 | Y40: =IF(ISERROR(INDIRECT(CONCATENATE($E$32,"!Q224"))),"",INDIRECT(CONCATENATE($E$32,"!Q224"))) -> 8.649222283
A88: 4 | B88: MICS00
B89: MICS06
B90: MICS12
B91: MICS17
B92: Template
B93: Input

Sheet MICS00
A2: =A1026 -> Lao People's Democratic Republic
A3: =A1034 -> 2000
A4: Use of drinking water sources
A5: by wealth quintile and sub-national region
A6: Notes:
A7: WHO/UNICEF JMP customised wealth index excludes water,
A8: sanitation and hygiene assets.
A9: Survey used for analysis: | B9: =A1025 -> MICS00
A10: =B1028 -> 
A11: =B1027 -> 
A14: Use of drinking water sources | C14: NATIONAL wealth index quintile | H14: URBAN wealth index quintile | M14: RURAL wealth index quintile | R14: SUB-REGIONS: | BA14: Raw numbers of respondents: | BB14: Use of drinking water sources | BC14: NATIONAL wealth index quintile | BH14: URBAN wealth index quintile | BM14: RURAL wealth index quintile | BR14: SUB-REGIONS:
A15: Weighted percentage (used in graphs) | C15: Poorest | D15: Poor | E15: Middle | F15: Rich | G15: Richest | H15: Poorest | I15: Poor | J15: Middle | K15: Rich | L15: Richest | M15: Poorest | N15: Poor | O15: Middle | P15: Rich | Q15: Richest | R15: central | S15: north | T15: south | BA15: Water data, raw numbers (weighted) | BC15: Poorest | BD15: Poor | BE15: Middle | BF15: Rich | BG15: Richest | BH15: Poorest | BI15: Poor | BJ15: Middle | BK15: Rich | BL15: Richest | BM15: Poorest | BN15: Poor | BO15: Middle | BP15: Rich | BQ15: Richest | BR15: central | BS15: north | BT15: south
A16: Water | B16: Improved | C16: 15.22584945 | D16: 37.41201777 | E16: 53.66345203 | F16: 59.58206868 | G16: 45.91779114 | H16: 64.48751311 | I16: 75.0717389 | J16: 69.10848648 | K16: 66.43397871 | L16: 83.26290132 | M16: 12.76265564 | N16: 26.30024126 | O16: 32.65150534 | P16: 33.54129964 | Q16: 40.71733978 | R16: 47.06722756 | S16: 23.76900654 | T16: 54.68974378 | BA16: Water | BB16: Improved | BC16: N/A | BD16: N/A | BE16: N/A | BF16: N/A | BG16: N/A | BH16: N/A | BI16: N/A | BJ16: N/A | BK16: N/A | BL16: N/A | BM16: N/A | BN16: N/A | BO16: N/A | BP16: N/A | BQ16: N/A | BR16: N/A | BS16: N/A | BT16: N/A
B17: Not Improved | C17: 84.77415055 | D17: 62.58798223 | E17: 46.33654797 | F17: 40.41793132 | G17: 54.08220886 | H17: 35.51248689 | I17: 24.9282611 | J17: 30.89151352 | K17: 33.56602129 | L17: 16.73709868 | M17: 87.23734436 | N17: 73.69975874 | O17: 67.34849466 | P17: 66.45870036 | Q17: 59.28266022 | R17: 52.93277244 | S17: 76.23099346 | T17: 45.31025622 | BB17: Not Improved | BC17: N/A | BD17: N/A | BE17: N/A | BF17: N/A | BG17: N/A | BH17: N/A | BI17: N/A | BJ17: N/A | BK17: N/A | BL17: N/A | BM17: N/A | BN17: N/A | BO17: N/A | BP17: N/A | BQ17: N/A | BR17: N/A | BS17: N/A | BT17: N/A
A18: Water ladder | B18: Basic | C18: 14.91945191 | D18: 35.39018939 | E18: 52.99721553 | F18: 59.07366334 | G18: 44.50479869 | H18: 64.48751311 | I18: 75.0077094 | J18: 68.80142504 | K18: 65.69125158 | L18: 83.23751313 | M18: 12.76265564 | N18: 24.23919264 | O18: 31.26229808 | P18: 32.40945716 | Q18: 38.71627572 | R18: 44.94801175 | S18: 23.75098503 | T18: 54.16792738 | BA18: Water ladder | BB18: Basic | BC18: N/A | BD18: N/A | BE18: N/A | BF18: N/A | BG18: N/A | BH18: N/A | BI18: N/A | BJ18: N/A | BK18: N/A | BL18: N/A | BM18: N/A | BN18: N/A | BO18: N/A | BP18: N/A | BQ18: N/A | BR18: N/A | BS18: N/A | BT18: N/A
B19: Limited | C19: 0.3063975454 | D19: 1.999410372 | E19: 0.6444374681 | F19: 0.475182841 | G19: 1.412992451 | H19: 0 | I19: 0 | J19: 0.3070614363 | K19: 0.7427271292 | L19: 0 | M19: 0 | N19: 2.0227438 | O19: 1.389207261 | P19: 1.131842489 | Q19: 2.001064056 | R19: 2.119215811 | S19: 0 | T19: 0.4841149773 | BB19: Limited | BC19: N/A | BD19: N/A | BE19: N/A | BF19: N/A | BG19: N/A | BH19: N/A | BI19: N/A | BJ19: N/A | BK19: N/A | BL19: N/A | BM19: N/A | BN19: N/A | BO19: N/A | BP19: N/A | BQ19: N/A | BR19: N/A | BS19: N/A | BT19: N/A
B20: Unimproved | C20: 31.74564843 | D20: 33.16188712 | E20: 30.05600886 | F20: 30.48089544 | G20: 42.16698208 | H20: 31.43268313 | I20: 22.6434958 | J20: 25.30434237 | K20: 26.54172728 | L20: 14.8761325 | M20: 27.27385854 | N20: 42.12403524 | O20: 33.87717988 | P20: 38.60772154 | Q20: 46.76313468 | R20: 40.12223192 | S20: 26.58786446 | T20: 32.09531014 | BB20: Unimproved | BC20: N/A | BD20: N/A | BE20: N/A | BF20: N/A | BG20: N/A | BH20: N/A | BI20: N/A | BJ20: N/A | BK20: N/A | BL20: N/A | BM20: N/A | BN20: N/A | BO20: N/A | BP20: N/A | BQ20: N/A | BR20: N/A | BS20: N/A | BT20: N/A
B21: Surface water | C21: 53.02850212 | D21: 29.44851312 | E21: 16.30233814 | F21: 9.970258372 | G21: 11.91522678 | H21: 4.079803766 | I21: 2.348794803 | J21: 5.58717115 | K21: 7.024294006 | L21: 1.886354371 | M21: 59.96348583 | N21: 31.61402831 | O21: 33.47131478 | P21: 27.85097881 | Q21: 12.51952554 | R21: 12.81054052 | S21: 49.66115051 | T21: 13.2526475 | BB21: Surface water | BC21: N/A | BD21: N/A | BE21: N/A | BF21: N/A | BG21: N/A | BH21: N/A | BI21: N/A | BJ21: N/A | BK21: N/A | BL21: N/A | BM21: N/A | BN21: N/A | BO21: N/A | BP21: N/A | BQ21: N/A | BR21: N/A | BS21: N/A | BT21: N/A
A22: Improved water point at more than 30 minutes | B22: Yes | C22: 2.012351076 | D22: 5.347504078 | E22: 1.201375111 | F22: 0.7979715333 | G22: 3.077222174 | H22: 0 | I22: 0 | J22: 0.4443179875 | K22: 1.117992846 | L22: 0 | M22: 0 | N22: 7.702188315 | O22: 4.254649968 | P22: 3.374474158 | Q22: 4.914525523 | R22: 4.502529511 | S22: 0 | T22: 0.8858131488 | BA22: Improved water point at more than 30 minutes | BB22: Yes | BC22: N/A | BD22: N/A | BE22: N/A | BF22: N/A | BG22: N/A | BH22: N/A | BI22: N/A | BJ22: N/A | BK22: N/A | BL22: N/A | BM22: N/A | BN22: N/A | BO22: N/A | BP22: N/A | BQ22: N/A | BR22: N/A | BS22: N/A | BT22: N/A
B23: No | C23: 97.98764892 | D23: 94.65249592 | E23: 98.79862489 | F23: 99.20202847 | G23: 96.92277783 | H23: 100 | I23: 100 | J23: 99.55568201 | K23: 98.88200715 | L23: 100 | M23: 100 | N23: 92.29781168 | O23: 95.74535003 | P23: 96.62552584 | Q23: 95.08547448 | R23: 95.49747049 | S23: 100 | T23: 99.11418685 | BB23: No | BC23: N/A | BD23: N/A | BE23: N/A | BF23: N/A | BG23: N/A | BH23: N/A | BI23: N/A | BJ23: N/A | BK23: N/A | BL23: N/A | BM23: N/A | BN23: N/A | BO23: N/A | BP23: N/A | BQ23: N/A | BR23: N/A | BS23: N/A | BT23: N/A
A24: Manually calculated ratios | B24: Improved wells
B25: Improved springs
B26: Other
C27: NATIONAL wealth index quintile | H27: URBAN wealth index quintile | M27: RURAL wealth index quintile | R27: SUB-REGIONS: | BA27: Raw numbers of respondents: | BB27: Use of drinking water sources | BC27: NATIONAL wealth index quintile | BH27: URBAN wealth index quintile | BM27: RURAL wealth index quintile | BR27: SUB-REGIONS:
A28: Percentage based on weighted population | C28: Poorest | D28: Poor | E28: Middle | F28: Rich | G28: Richest | H28: Poorest | I28: Poor | J28: Middle | K28: Rich | L28: Richest | M28: Poorest | N28: Poor | O28: Middle | P28: Rich | Q28: Richest | R28: central | S28: north | T28: south | BA28: Water data, raw numbers (weighted) | BC28: Poorest | BD28: Poor | BE28: Middle | BF28: Rich | BG28: Richest | BH28: Poorest | BI28: Poor | BJ28: Middle | BK28: Rich | BL28: Richest | BM28: Poorest | BN28: Poor | BO28: Middle | BP28: Rich | BQ28: Richest | BR28: central | BS28: north | BT28: south
A29: Piped water | B29: Yes | C29: 4.158497769 | D29: 8.920453665 | E29: 23.83971322 | F29: 22.89446986 | G29: 8.991546717 | H29: 14.56675301 | I29: 30.80726839 | J29: 27.18075174 | K29: 36.67630136 | L29: 44.44813088 | M29: 3.61971512 | N29: 4.122244843 | O29: 5.284963307 | P29: 9.519418048 | Q29: 8.125635055 | R29: 10.31034209 | S29: 13.39320886 | T29: 18.41130678 | BA29: Piped water | BB29: Yes | BC29: N/A | BD29: N/A | BE29: N/A | BF29: N/A | BG29: N/A | BH29: N/A | BI29: N/A | BJ29: N/A | BK29: N/A | BL29: N/A | BM29: N/A | BN29: N/A | BO29: N/A | BP29: N/A | BQ29: N/A | BR29: N/A | BS29: N/A | BT29: N/A
B30: No | C30: 95.84150223 | D30: 91.07954633 | E30: 76.16028678 | F30: 77.10553014 | G30: 91.00845328 | H30: 85.43324699 | I30: 69.19273161 | J30: 72.81924826 | K30: 63.32369864 | L30: 55.55186912 | M30: 96.38028488 | N30: 95.87775516 | O30: 94.71503669 | P30: 90.48058195 | Q30: 91.87436494 | R30: 89.68965791 | S30: 86.60679114 | T30: 81.58869322 | BB30: No | BC30: N/A | BD30: N/A | BE30: N/A | BF30: N/A | BG30: N/A | BH30: N/A | BI30: N/A | BJ30: N/A | BK30: N/A | BL30: N/A | BM30: N/A | BN30: N/A | BO30: N/A | BP30: N/A | BQ30: N/A | BR30: N/A | BS30: N/A | BT30: N/A
A31: Piped water on premises | B31: Yes | C31: 0.8615611871 | D31: 6.308903413 | E31: 20.63610666 | F31: 17.53114865 | G31: 7.043401326 | H31: 9.030512646 | I31: 26.06748757 | J31: 20.76451061 | K31: 32.56330135 | L31: 43.00076367 | M31: 0.692768444 | N31: 1.261400007 | O31: 1.843426757 | P31: 6.166446711 | Q31: 6.866976975 | R31: 8.881657274 | S31: 7.634129048 | T31: 15.23694354 | BA31: Piped water on premises | BB31: Yes | BC31: N/A | BD31: N/A | BE31: N/A | BF31: N/A | BG31: N/A | BH31: N/A | BI31: N/A | BJ31: N/A | BK31: N/A | BL31: N/A | BM31: N/A | BN31: N/A | BO31: N/A | BP31: N/A | BQ31: N/A | BR31: N/A | BS31: N/A | BT31: N/A
B32: No | C32: 99.13843881 | D32: 93.69109659 | E32: 79.36389334 | F32: 82.46885135 | G32: 92.95659867 | H32: 90.96948735 | I32: 73.93251243 | J32: 79.23548939 | K32: 67.43669865 | L32: 56.99923633 | M32: 99.30723156 | N32: 98.73859999 | O32: 98.15657324 | P32: 93.83355329 | Q32: 93.13302303 | R32: 91.11834273 | S32: 92.36587095 | T32: 84.76305646 | BB32: No | BC32: N/A | BD32: N/A | BE32: N/A | BF32: N/A | BG32: N/A | BH32: N/A | BI32: N/A | BJ32: N/A | BK32: N/A | BL32: N/A | BM32: N/A | BN32: N/A | BO32: N/A | BP32: N/A | BQ32: N/A | BR32: N/A | BS32: N/A | BT32: N/A
A33: Piped water into dwelling | B33: Yes | C33: N/A | D33: N/A | E33: N/A | F33: N/A | G33: N/A | H33: N/A | I33: N/A | J33: N/A | K33: N/A | L33: N/A | M33: N/A | N33: N/A | O33: N/A | P33: N/A | Q33: N/A | R33: N/A | S33: N/A | T33: N/A | BA33: Piped water into dwelling | BB33: Yes | BC33: N/A | BD33: N/A | BE33: N/A | BF33: N/A | BG33: N/A | BH33: N/A | BI33: N/A | BJ33: N/A | BK33: N/A | BL33: N/A | BM33: N/A | BN33: N/A | BO33: N/A | BP33: N/A | BQ33: N/A | BR33: N/A | BS33: N/A | BT33: N/A
B34: No | C34: N/A | D34: N/A | E34: N/A | F34: N/A | G34: N/A | H34: N/A | I34: N/A | J34: N/A | K34: N/A | L34: N/A | M34: N/A | N34: N/A | O34: N/A | P34: N/A | Q34: N/A | R34: N/A | S34: N/A | T34: N/A | BB34: No | BC34: N/A | BD34: N/A | BE34: N/A | BF34: N/A | BG34: N/A | BH34: N/A | BI34: N/A | BJ34: N/A | BK34: N/A | BL34: N/A | BM34: N/A | BN34: N/A | BO34: N/A | BP34: N/A | BQ34: N/A | BR34: N/A | BS34: N/A | BT34: N/A
A35: Water source on premises | B35: Yes | C35: 4.997766193 | D35: 17.53291025 | E35: 46.34144989 | F35: 48.99629847 | G35: 31.9315076 | H35: 46.32045509 | I35: 69.15146875 | J35: 55.83057647 | K35: 66.24064894 | L35: 88.63645546 | M35: 3.585819896 | N35: 6.958485063 | O35: 12.07471531 | P35: 18.2294886 | Q35: 29.60637165 | R35: 39.94761489 | S35: 19.0892618 | T35: 28.19892676 | BA35: Water source on premises | BB35: Yes | BC35: N/A | BD35: N/A | BE35: N/A | BF35: N/A | BG35: N/A | BH35: N/A | BI35: N/A | BJ35: N/A | BK35: N/A | BL35: N/A | BM35: N/A | BN35: N/A | BO35: N/A | BP35: N/A | BQ35: N/A | BR35: N/A | BS35: N/A | BT35: N/A
B36: No | C36: 95.00223381 | D36: 82.46708975 | E36: 53.65855011 | F36: 51.00370153 | G36: 68.0684924 | H36: 53.67954491 | I36: 30.84853125 | J36: 44.16942353 | K36: 33.75935106 | L36: 11.36354454 | M36: 96.4141801 | N36: 93.04151494 | O36: 87.92528469 | P36: 81.7705114 | Q36: 70.39362835 | R36: 60.05238511 | S36: 80.9107382 | T36: 71.80107324 | BB36: No | BC36: N/A | BD36: N/A | BE36: N/A | BF36: N/A | BG36: N/A | BH36: N/A | BI36: N/A | BJ36: N/A | BK36: N/A | BL36: N/A | BM36: N/A | BN36: N/A | BO36: N/A | BP36: N/A | BQ36: N/A | BR36: N/A | BS36: N/A | BT36: N/A
A37: Improved Water source on premises | B37: Yes | C37: 10.83806184 | D37: 34.88864806 | E37: 70.10383025 | F37: 63.41425568 | G37: 42.6856774 | H37: 50.12237523 | I37: 74.3908684 | J37: 64.96624656 | K37: 81.82338661 | L37: 94.07973997 | M37: 8.549241868 | N37: 10.97468962 | O37: 19.23720405 | P37: 37.07816014 | Q37: 41.31535078 | R37: 61.97301855 | S37: 47.19920451 | T37: 42.89662797 | BA37: Improved water source on premises | BB37: Yes | BC37: N/A | BD37: N/A | BE37: N/A | BF37: N/A | BG37: N/A | BH37: N/A | BI37: N/A | BJ37: N/A | BK37: N/A | BL37: N/A | BM37: N/A | BN37: N/A | BO37: N/A | BP37: N/A | BQ37: N/A | BR37: N/A | BS37: N/A | BT37: N/A
B38: No | C38: 89.16193816 | D38: 65.11135194 | E38: 29.89616975 | F38: 36.58574432 | G38: 57.3143226 | H38: 49.87762477 | I38: 25.6091316 | J38: 35.03375344 | K38: 18.17661339 | L38: 5.920260027 | M38: 91.45075813 | N38: 89.02531038 | O38: 80.76279595 | P38: 62.92183986 | Q38: 58.68464922 | R38: 38.02698145 | S38: 52.80079549 | T38: 57.10337203 | BB38: No | BC38: N/A | BD38: N/A | BE38: N/A | BF38: N/A | BG38: N/A | BH38: N/A | BI38: N/A | BJ38: N/A | BK38: N/A | BL38: N/A | BM38: N/A | BN38: N/A | BO38: N/A | BP38: N/A | BQ38: N/A | BR38: N/A | BS38: N/A | BT38: N/A
A39: Piped water on premises available when needed | B39: Yes | C39: N/A | D39: N/A | E39: N/A | F39: N/A | G39: N/A | H39: N/A | I39: N/A | J39: N/A | K39: N/A | L39: N/A | M39: N/A | N39: N/A | O39: N/A | P39: N/A | Q39: N/A | R39: N/A | S39: N/A | T39: N/A | BA39: Piped water on premises available when needed | BB39: Yes | BC39: N/A | BD39: N/A | BE39: N/A | BF39: N/A | BG39: N/A | BH39: N/A | BI39: N/A | BJ39: N/A | BK39: N/A | BL39: N/A | BM39: N/A | BN39: N/A | BO39: N/A | BP39: N/A | BQ39: N/A | BR39: N/A | BS39: N/A | BT39: N/A
B40: No | C40: N/A | D40: N/A | E40: N/A | F40: N/A | G40: N/A | H40: N/A | I40: N/A | J40: N/A | K40: N/A | L40: N/A | M40: N/A | N40: N/A | O40: N/A | P40: N/A | Q40: N/A | R40: N/A | S40: N/A | T40: N/A | BB40: No | BC40: N/A | BD40: N/A | BE40: N/A | BF40: N/A | BG40: N/A | BH40: N/A | BI40: N/A | BJ40: N/A | BK40: N/A | BL40: N/A | BM40: N/A | BN40: N/A | BO40: N/A | BP40: N/A | BQ40: N/A | BR40: N/A | BS40: N/A | BT40: N/A
A41: Water point at more than 30 minutes | B41: Yes | C41: 4.168262665 | D41: 4.371830114 | E41: 2.132443224 | F41: 1.625666759 | G41: 4.597830851 | H41: 0.8861133013 | I41: 0.2389470632 | J41: 0.9750689884 | K41: 1.336908833 | L41: 0 | M41: 4.435597118 | N41: 5.14047614 | O41: 3.291416491 | P41: 4.291297778 | Q41: 5.781755618 | R41: 5.500436543 | S41: 2.159861264 | T41: 1.931964543 | BA41: Water point at more than 30 minutes | BB41: Yes | BC41: N/A | BD41: N/A | BE41: N/A | BF41: N/A | BG41: N/A | BH41: N/A | BI41: N/A | BJ41: N/A | BK41: N/A | BL41: N/A | BM41: N/A | BN41: N/A | BO41: N/A | BP41: N/A | BQ41: N/A | BR41: N/A | BS41: N/A | BT41: N/A
B42: No | C42: 95.83173734 | D42: 95.62816989 | E42: 97.86755678 | F42: 98.37433324 | G42: 95.40216915 | H42: 99.1138867 | I42: 99.76105294 | J42: 99.02493101 | K42: 98.66309117 | L42: 100 | M42: 95.56440288 | N42: 94.85952386 | O42: 96.70858351 | P42: 95.70870222 | Q42: 94.21824438 | R42: 94.49956346 | S42: 97.84013874 | T42: 98.06803546 | BB42: No | BC42: N/A | BD42: N/A | BE42: N/A | BF42: N/A | BG42: N/A | BH42: N/A | BI42: N/A | BJ42: N/A | BK42: N/A | BL42: N/A | BM42: N/A | BN42: N/A | BO42: N/A | BP42: N/A | BQ42: N/A | BR42: N/A | BS42: N/A | BT42: N/A
A43: Water source available when needed | B43: Yes | C43: N/A | D43: N/A | E43: N/A | F43: N/A | G43: N/A | H43: N/A | I43: N/A | J43: N/A | K43: N/A | L43: N/A | M43: N/A | N43: N/A | O43: N/A | P43: N/A | Q43: N/A | R43: N/A | S43: N/A | T43: N/A | BA43: Water source available when needed | BB43: Yes | BC43: N/A | BD43: N/A | BE43: N/A | BF43: N/A | BG43: N/A | BH43: N/A | BI43: N/A | BJ43: N/A | BK43: N/A | BL43: N/A | BM43: N/A | BN43: N/A | BO43: N/A | BP43: N/A | BQ43: N/A | BR43: N/A | BS43: N/A | BT43: N/A
B44: No | C44: N/A | D44: N/A | E44: N/A | F44: N/A | G44: N/A | H44: N/A | I44: N/A | J44: N/A | K44: N/A | L44: N/A | M44: N/A | N44: N/A | O44: N/A | P44: N/A | Q44: N/A | R44: N/A | S44: N/A | T44: N/A | BB44: No | BC44: N/A | BD44: N/A | BE44: N/A | BF44: N/A | BG44: N/A | BH44: N/A | BI44: N/A | BJ44: N/A | BK44: N/A | BL44: N/A | BM44: N/A | BN44: N/A | BO44: N/A | BP44: N/A | BQ44: N/A | BR44: N/A | BS44: N/A | BT44: N/A
A45: Improved water source available when needed | B45: Yes | C45: N/A | D45: N/A | E45: N/A | F45: N/A | G45: N/A | H45: N/A | I45: N/A | J45: N/A | K45: N/A | L45: N/A | M45: N/A | N45: N/A | O45: N/A | P45: N/A | Q45: N/A | R45: N/A | S45: N/A | T45: N/A | BA45: Improved water source available when needed | BB45: Yes | BC45: N/A | BD45: N/A | BE45: N/A | BF45: N/A | BG45: N/A | BH45: N/A | BI45: N/A | BJ45: N/A | BK45: N/A | BL45: N/A | BM45: N/A | BN45: N/A | BO45: N/A | BP45: N/A | BQ45: N/A | BR45: N/A | BS45: N/A | BT45: N/A
B46: No | C46: N/A | D46: N/A | E46: N/A | F46: N/A | G46: N/A | H46: N/A | I46: N/A | J46: N/A | K46: N/A | L46: N/A | M46: N/A | N46: N/A | O46: N/A | P46: N/A | Q46: N/A | R46: N/A | S46: N/A | T46: N/A | BB46: No | BC46: N/A | BD46: N/A | BE46: N/A | BF46: N/A | BG46: N/A | BH46: N/A | BI46: N/A | BJ46: N/A | BK46: N/A | BL46: N/A | BM46: N/A | BN46: N/A | BO46: N/A | BP46: N/A | BQ46: N/A | BR46: N/A | BS46: N/A | BT46: N/A
A47: Microbiological quality at point of collection | B47: Not contaminated (No E. coli in 100 mL) | C47: N/A | D47: N/A | E47: N/A | F47: N/A | G47: N/A | H47: N/A | I47: N/A | J47: N/A | K47: N/A | L47: N/A | M47: N/A | N47: N/A | O47: N/A | P47: N/A | Q47: N/A | R47: N/A | S47: N/A | T47: N/A | BA47: Microbiological quality at point of collection | BB47: Not contaminated (No E. coli in 100 mL) | BC47: N/A | BD47: N/A | BE47: N/A | BF47: N/A | BG47: N/A | BH47: N/A | BI47: N/A | BJ47: N/A | BK47: N/A | BL47: N/A | BM47: N/A | BN47: N/A | BO47: N/A | BP47: N/A | BQ47: N/A | BR47: N/A | BS47: N/A | BT47: N/A
B48: Contaminated (E. coli detected in 100 mL) | C48: N/A | D48: N/A | E48: N/A | F48: N/A | G48: N/A | H48: N/A | I48: N/A | J48: N/A | K48: N/A | L48: N/A | M48: N/A | N48: N/A | O48: N/A | P48: N/A | Q48: N/A | R48: N/A | S48: N/A | T48: N/A | BB48: Contaminated (E. coli detected in 100 mL) | BC48: N/A | BD48: N/A | BE48: N/A | BF48: N/A | BG48: N/A | BH48: N/A | BI48: N/A | BJ48: N/A | BK48: N/A | BL48: N/A | BM48: N/A | BN48: N/A | BO48: N/A | BP48: N/A | BQ48: N/A | BR48: N/A | BS48: N/A | BT48: N/A
B49: Highly contaminated (>100 CFU/100 mL) | C49: N/A | D49: N/A | E49: N/A | F49: N/A | G49: N/A | H49: N/A | I49: N/A | J49: N/A | K49: N/A | L49: N/A | M49: N/A | N49: N/A | O49: N/A | P49: N/A | Q49: N/A | R49: N/A | S49: N/A | T49: N/A | BB49: Highly contaminated (>100 CFU/100 mL) | BC49: N/A | BD49: N/A | BE49: N/A | BF49: N/A | BG49: N/A | BH49: N/A | BI49: N/A | BJ49: N/A | BK49: N/A | BL49: N/A | BM49: N/A | BN49: N/A | BO49: N/A | BP49: N/A | BQ49: N/A | BR49: N/A | BS49: N/A | BT49: N/A
A50: Microbiological quality of improved water sources at point of collection | B50: Not contaminated (No E. coli in 100 mL) | C50: N/A | D50: N/A | E50: N/A | F50: N/A | G50: N/A | H50: N/A | I50: N/A | J50: N/A | K50: N/A | L50: N/A | M50: N/A | N50: N/A | O50: N/A | P50: N/A | Q50: N/A | R50: N/A | S50: N/A | T50: N/A | BA50: Microbiological quality of improved water sources at point of collection | BB50: Not contaminated (No E. coli in 100 mL) | BC50: N/A | BD50: N/A | BE50: N/A | BF50: N/A | BG50: N/A | BH50: N/A | BI50: N/A | BJ50: N/A | BK50: N/A | BL50: N/A | BM50: N/A | BN50: N/A | BO50: N/A | BP50: N/A | BQ50: N/A | BR50: N/A | BS50: N/A | BT50: N/A
B51: Contaminated (E. coli detected in 100 mL) | C51: N/A | D51: N/A | E51: N/A | F51: N/A | G51: N/A | H51: N/A | I51: N/A | J51: N/A | K51: N/A | L51: N/A | M51: N/A | N51: N/A | O51: N/A | P51: N/A | Q51: N/A | R51: N/A | S51: N/A | T51: N/A | BB51: Contaminated (E. coli detected in 100 mL) | BC51: N/A | BD51: N/A | BE51: N/A | BF51: N/A | BG51: N/A | BH51: N/A | BI51: N/A | BJ51: N/A | BK51: N/A | BL51: N/A | BM51: N/A | BN51: N/A | BO51: N/A | BP51: N/A | BQ51: N/A | BR51: N/A | BS51: N/A | BT51: N/A
B52: Highly contaminated (>100 CFU/100 mL) | C52: N/A | D52: N/A | E52: N/A | F52: N/A | G52: N/A | H52: N/A | I52: N/A | J52: N/A | K52: N/A | L52: N/A | M52: N/A | N52: N/A | O52: N/A | P52: N/A | Q52: N/A | R52: N/A | S52: N/A | T52: N/A | BB52: Highly contaminated (>100 CFU/100 mL) | BC52: N/A | BD52: N/A | BE52: N/A | BF52: N/A | BG52: N/A | BH52: N/A | BI52: N/A | BJ52: N/A | BK52: N/A | BL52: N/A | BM52: N/A | BN52: N/A | BO52: N/A | BP52: N/A | BQ52: N/A | BR52: N/A | BS52: N/A | BT52: N/A
A53: Microbiological quality of piped on premises at point of collection | B53: Not contaminated (No E. coli in 100 mL) | C53: N/A | D53: N/A | E53: N/A | F53: N/A | G53: N/A | H53: N/A | I53: N/A | J53: N/A | K53: N/A | L53: N/A | M53: N/A | N53: N/A | O53: N/A | P53: N/A | Q53: N/A | R53: N/A | S53: N/A | T53: N/A | BA53: Microbiological quality of piped on premises at point of collection | BB53: Not contaminated (No E. coli in 100 mL) | BC53: N/A | BD53: N/A | BE53: N/A | BF53: N/A | BG53: N/A | BH53: N/A | BI53: N/A | BJ53: N/A | BK53: N/A | BL53: N/A | BM53: N/A | BN53: N/A | BO53: N/A | BP53: N/A | BQ53: N/A | BR53: N/A | BS53: N/A | BT53: N/A
B54: Contaminated (E. coli detected in 100 mL) | C54: N/A | D54: N/A | E54: N/A | F54: N/A | G54: N/A | H54: N/A | I54: N/A | J54: N/A | K54: N/A | L54: N/A | M54: N/A | N54: N/A | O54: N/A | P54: N/A | Q54: N/A | R54: N/A | S54: N/A | T54: N/A | BB54: Contaminated (E. coli detected in 100 mL) | BC54: N/A | BD54: N/A | BE54: N/A | BF54: N/A | BG54: N/A | BH54: N/A | BI54: N/A | BJ54: N/A | BK54: N/A | BL54: N/A | BM54: N/A | BN54: N/A | BO54: N/A | BP54: N/A | BQ54: N/A | BR54: N/A | BS54: N/A | BT54: N/A
B55: Highly contaminated (>100 CFU/100 mL) | C55: N/A | D55: N/A | E55: N/A | F55: N/A | G55: N/A | H55: N/A | I55: N/A | J55: N/A | K55: N/A | L55: N/A | M55: N/A | N55: N/A | O55: N/A | P55: N/A | Q55: N/A | R55: N/A | S55: N/A | T55: N/A | BB55: Highly contaminated (>100 CFU/100 mL) | BC55: N/A | BD55: N/A | BE55: N/A | BF55: N/A | BG55: N/A | BH55: N/A | BI55: N/A | BJ55: N/A | BK55: N/A | BL55: N/A | BM55: N/A | BN55: N/A | BO55: N/A | BP55: N/A | BQ55: N/A | BR55: N/A | BS55: N/A | BT55: N/A
C56: NATIONAL wealth index quintile | H56: URBAN wealth index quintile | M56: RURAL wealth index quintile | R56: SUB-REGIONS: | BA56: Raw numbers of respondents: | BB56: Use of drinking water sources | BC56: NATIONAL wealth index quintile | BH56: URBAN wealth index quintile | BM56: RURAL wealth index quintile | BR56: SUB-REGIONS:
A57: Percentage based on weighted population | C57: Poorest | D57: Poor | E57: Middle | F57: Rich | G57: Richest | H57: Poorest | I57: Poor | J57: Middle | K57: Rich | L57: Richest | M57: Poorest | N57: Poor | O57: Middle | P57: Rich | Q57: Richest | R57: central | S57: north | T57: south | BA57: Water data, raw numbers (weighted) | BC57: Poorest | BD57: Poor | BE57: Middle | BF57: Rich | BG57: Richest | BH57: Poorest | BI57: Poor | BJ57: Middle | BK57: Rich | BL57: Richest | BM57: Poorest | BN57: Poor | BO57: Middle | BP57: Rich | BQ57: Richest | BR57: central | BS57: north | BT57: south
A58: main source of water | B58: piped into dwelling | C58: 0.0239322552 | D58: 4.316914985 | E58: 12.20458019 | F58: 10.35636851 | G58: 0.9100768855 | H58: 4.10188137 | I58: 18.46512446 | J58: 11.82426151 | K58: 16.3616857 | L58: 36.43635393 | M58: 0 | N58: 0.1367610389 | O58: 0 | P58: 0.6296068708 | Q58: 0.2915787269 | R58: 7.937137868 | S58: 3.096194753 | T58: 5.033633134
B59: piped into yard or plot | C59: 0.8376289319 | D59: 1.991988428 | E59: 8.431526463 | F59: 7.174780138 | G59: 6.13332444 | H59: 4.928631277 | I59: 7.602363107 | J59: 8.940249101 | K59: 16.20161565 | L59: 6.564409734 | M59: 0.692768444 | N59: 1.124638968 | O59: 1.843426757 | P59: 5.53683984 | Q59: 6.575398248 | R59: 0.9445194063 | S59: 4.537934294 | T59: 10.20331041
B60: public tap | C60: 3.296936581 | D60: 2.611550252 | E60: 3.203606565 | F60: 5.363321209 | G60: 1.948145391 | H60: 5.536240368 | I60: 4.739780817 | J60: 6.416241128 | K60: 4.113000007 | L60: 1.447367213 | M60: 2.926946676 | N60: 2.860844836 | O60: 3.44153655 | P60: 3.352971337 | Q60: 1.258658081 | R60: 1.428684816 | S60: 5.759079808 | T60: 3.174363238
B61: tubewell/borehole with pump | C61: 6.100227656 | D61: 16.52822262 | E61: 11.4473363 | F61: 19.82961722 | G61: 27.42940919 | H61: 31.83481866 | I61: 21.19392856 | J61: 21.99805044 | K61: 9.260412849 | L61: 4.423384752 | M61: 4.752199639 | N61: 15.10766754 | O61: 17.10264288 | P61: 15.71601838 | Q61: 25.37706857 | R61: 13.37407731 | S61: 2.103521626 | T61: 33.67848235
B62: protected dug well or protected spring | C62: 4.90729339 | D62: 8.777171295 | E62: 11.68587323 | F62: 11.61106216 | G62: 8.223680488 | H62: 14.96846017 | I62: 13.76615703 | J62: 12.96081475 | K62: 11.93558328 | L62: 13.35561889 | M62: 4.304144824 | N62: 7.018381737 | O62: 9.97576549 | P62: 7.625788206 | Q62: 6.503107273 | R62: 15.5726645 | S62: 7.988655164 | T62: 1.972640012
B63: bottled water | C63: 0 | D63: 3.012842266 | E63: 6.38079194 | F63: 5.130680106 | G63: 1.226084245 | H63: 3.11748127 | I63: 9.304384924 | J63: 6.579571461 | K63: 8.219513564 | L63: 20.42821424 | M63: 0 | N63: 0 | O63: 0.1551488965 | P63: 0.5914269355 | Q63: 0.6433900355 | R63: 7.683149456 | S63: 0.157567163 | T63: 0.4534804626
B64: rainwater collection | C64: 0.05983063799 | D64: 0.04584078734 | E64: 0.09567075353 | F64: 0.04584227119 | G64: 0 | H64: 0 | I64: 0 | J64: 0.1535307182 | K64: 0 | L64: 0.456094213 | M64: 0.0865960555 | N64: 0 | O64: 0 | P64: 0 | Q64: 0 | R64: 0.04762282721 | S64: 0.102418656 | T64: 0
B65: unprotected dug well or unprotected spring | C65: 14.77312269 | D65: 13.66177748 | E65: 18.25296883 | F65: 17.57411793 | G65: 16.1857877 | H65: 17.88378266 | I65: 13.54069151 | J65: 17.26819901 | K65: 20.58714005 | L65: 12.04440982 | M65: 12.79374363 | N65: 17.75044233 | O65: 14.88677737 | P65: 17.40413766 | Q65: 17.28686208 | R65: 25.20834987 | S65: 11.83329394 | T65: 8.933565112
B66: pond, river or stream | C66: 53.02850212 | D66: 29.43796891 | E66: 16.29467231 | F66: 9.962069808 | G66: 11.91522678 | H66: 4.079803766 | I66: 2.342777261 | J66: 5.58717115 | K66: 7.024294006 | L66: 1.88349733 | M66: 59.96348583 | N66: 31.59760573 | O66: 33.47131478 | P66: 27.85097881 | Q66: 12.51952554 | R66: 12.81054052 | S66: 49.64941306 | T66: 13.24162951
B67: tanker truck vendor | C67: 0 | D67: 0.1274871298 | E67: 0.2140665895 | F67: 0.07039706389 | G67: 0.04707049231 | H67: 0 | I67: 0 | J67: 0.2357673713 | K67: 0.3421676619 | L67: 0.1514583402 | M67: 0 | N67: 0.05194713683 | O67: 0.1329847684 | P67: 0.08864807344 | Q67: 0.06813884195 | R67: 0.07937137868 | S67: 0.02363507445 | T67: 0.1738341773
B68: gfs | C68: 8.483733705 | D68: 11.09502728 | E68: 4.555218567 | F68: 5.513106572 | G68: 6.294474145 | H68: 7.570335935 | I68: 5.170281522 | J68: 3.747509077 | K68: 2.65664453 | L68: 2.014035251 | M68: 7.05912999 | N68: 14.35993592 | O68: 9.004095017 | P68: 5.713329336 | Q68: 6.423997702 | R68: 6.119533296 | S68: 13.23564169 | T68: 2.615070667
B69: other | C69: 8.488792029 | D69: 8.393208554 | E69: 7.111203844 | F69: 7.368637012 | G69: 19.4160649 | H69: 5.978564536 | I69: 3.874510803 | J69: 4.288634287 | K69: 3.297942701 | L69: 0.7951562863 | M69: 7.420984919 | N69: 9.991774771 | O69: 9.986307489 | P69: 15.15981079 | Q69: 22.81378896 | R69: 8.730851655 | S69: 1.512644765 | T69: 20.34615675
B70: don't know | C70: 0 | D70: 0 | E70: 0.1224844203 | F70: 0 | G70: 0.2706553308 | H70: 0 | I70: 0 | J70: 0 | K70: 0 | L70: 0 | M70: 0 | N70: 0 | O70: 0 | P70: 0.3304437641 | Q70: 0.2384859468 | R70: 0.06349710294 | S70: 0 | T70: 0.1738341773
A108: =A1026 -> Lao People's Democratic Republic
A109: =A1034 -> 2000
A110: Use of sanitation facilities
A111: by wealth quintile and sub-national region
A112: Notes:
A113: WHO/UNICEF JMP customised wealth index excludes water,
A114: sanitation and hygiene assets.
A115: Survey used for analysis: | B115: =A1025 -> MICS00
A116: =B1030 -> Ratio of Improved latrines based on: | B116: MICS06
A117: =B1029 -> Ratio of Shared improved based on: | B117: MICS06
A120: Use of sanitation facilities | C120: NATIONAL wealth index quintile | H120: URBAN wealth index quintile | M120: RURAL wealth index quintile | R120: SUB-REGIONS: | BA120: Raw numbers of respondents: | BB120: Use of sanitation facilities | BC120: NATIONAL wealth index quintile | BH120: URBAN wealth index quintile | BM120: RURAL wealth index quintile | BR120: SUB-REGIONS:
A121: Weighted percentage (used in graphs) | C121: Poorest | D121: Poor | E121: Middle | F121: Rich | G121: Richest | H121: Poorest | I121: Poor | J121: Middle | K121: Rich | L121: Richest | M121: Poorest | N121: Poor | O121: Middle | P121: Rich | Q121: Richest | R121: central | S121: north | T121: south | BA121: Sanitation data, raw numbers (weighted) | BC121: Poorest | BD121: Poor | BE121: Middle | BF121: Rich | BG121: Richest | BH121: Poorest | BI121: Poor | BJ121: Middle | BK121: Rich | BL121: Richest | BM121: Poorest | BN121: Poor | BO121: Middle | BP121: Rich | BQ121: Richest | BR121: central | BS121: north | BT121: south
A122: Sanitation | B122: Improved | C122: =C153+C154+C155*MICS06!C130/100 -> 5.71344259 | D122: =D153+D154+D155*MICS06!D130/100 -> 16.08245217 | E122: =E153+E154+E155*MICS06!E130/100 -> 42.83512121 | F122: =F153+F154+F155*MICS06!F130/100 -> 41.55178079 | G122: =G153+G154+G155*MICS06!G130/100 -> 22.18335599 | H122: =H153+H154+H155*MICS06!H130/100 -> 40.81563859 | I122: =I153+I154+I155*MICS06!I130/100 -> 64.65661117 | J122: =J153+J154+J155*MICS06!J130/100 -> 39.1233482 | K122: =K153+K154+K155*MICS06!K130/100 -> 54.36195897 | L122: =L153+L154+L155*MICS06!L130/100 -> 87.07189497 | M122: =M153+M154+M155*MICS06!M130/100 -> 5.808032828 | N122: =N153+N154+N155*MICS06!N130/100 -> 5.862810622 | O122: =O153+O154+O155*MICS06!O130/100 -> 10.89480175 | P122: =P153+P154+P155*MICS06!P130/100 -> 16.93691927 | Q122: =Q153+Q154+Q155*MICS06!Q130/100 -> 17.42336562 | R122: =R153+R154+R155*MICS06!R130/100 -> 32.93749271 | S122: =S153+S154+S155*MICS06!S130/100 -> 25.29685797 | T122: =T153+T154+T155*MICS06!T130/100 -> 16.47286488 | BA122: Sanitation | BB122: Improved | BC122: N/A | BD122: N/A | BE122: N/A | BF122: N/A | BG122: N/A | BH122: N/A | BI122: N/A | BJ122: N/A | BK122: N/A | BL122: N/A | BM122: N/A | BN122: N/A | BO122: N/A | BP122: N/A | BQ122: N/A | BR122: N/A | BS122: N/A | BT122: N/A
B123: Not Improved | C123: =100-C122 -> 94.28655741 | D123: =100-D122 -> 83.91754783 | E123: 57.16487879 | F123: 58.44821921 | G123: 77.81664401 | H123: 59.18436141 | I123: 35.34338883 | J123: 60.8766518 | K123: 45.63804103 | L123: 12.92810503 | M123: 94.19196717 | N123: 94.13718938 | O123: 89.10519825 | P123: 83.06308073 | Q123: 82.57663438 | R123: 67.06250729 | S123: 74.70314203 | T123: 83.52713512 | BB123: Not Improved | BC123: N/A | BD123: N/A | BE123: N/A | BF123: N/A | BG123: N/A | BH123: N/A | BI123: N/A | BJ123: N/A | BK123: N/A | BL123: N/A | BM123: N/A | BN123: N/A | BO123: N/A | BP123: N/A | BQ123: N/A | BR123: N/A | BS123: N/A | BT123: N/A
A124: Sanitation ladder | B124: Basic | C124: =C122*MICS06!C129/100 -> 5.663193062 | D124: =D122*MICS06!D129/100 -> 15.74103331 | E124: =E122*MICS06!E129/100 -> 40.67954931 | F124: =F122*MICS06!F129/100 -> 39.24807783 | G124: =G122*MICS06!G129/100 -> 21.59783277 | H124: =H122*MICS06!H129/100 -> 35.45371752 | I124: =I122*MICS06!I129/100 -> 58.21596735 | J124: =J122*MICS06!J129/100 -> 36.73422054 | K124: =K122*MICS06!K129/100 -> 53.43266665 | L124: =L122*MICS06!L129/100 -> 86.49983048 | M124: =M122*MICS06!M129/100 -> 5.787432064 | N124: =N122*MICS06!N129/100 -> 5.812280302 | O124: =O122*MICS06!O129/100 -> 10.77061836 | P124: =P122*MICS06!P129/100 -> 16.10368239 | Q124: =Q122*MICS06!Q129/100 -> 17.1442125 | R124: =R122*MICS06!R129/100 -> 31.59193533 | S124: =S122*MICS06!S129/100 -> 24.91381119 | T124: =T122*MICS06!T129/100 -> 15.46908081 | BA124: Sanitation ladder | BB124: Basic | BC124: N/A | BD124: N/A | BE124: N/A | BF124: N/A | BG124: N/A | BH124: N/A | BI124: N/A | BJ124: N/A | BK124: N/A | BL124: N/A | BM124: N/A | BN124: N/A | BO124: N/A | BP124: N/A | BQ124: N/A | BR124: N/A | BS124: N/A | BT124: N/A
B125: Limited | C125: =C122*MICS06!C128/100 -> 0.05024952709 | D125: =D122*MICS06!D128/100 -> 0.3414188671 | E125: =E122*MICS06!E128/100 -> 2.155571902 | F125: =F122*MICS06!F128/100 -> 2.303702964 | G125: =G122*MICS06!G128/100 -> 0.5855232155 | H125: =H122*MICS06!H128/100 -> 5.361921075 | I125: =I122*MICS06!I128/100 -> 6.440643825 | J125: =J122*MICS06!J128/100 -> 2.389127664 | K125: =K122*MICS06!K128/100 -> 0.9292923188 | L125: =L122*MICS06!L128/100 -> 0.5720644865 | M125: =M122*MICS06!M128/100 -> 0.02060076402 | N125: =N122*MICS06!N128/100 -> 0.05053031911 | O125: =O122*MICS06!O128/100 -> 0.1241833872 | P125: =P122*MICS06!P128/100 -> 0.83323688 | Q125: =Q122*MICS06!Q128/100 -> 0.2791531119 | R125: =R122*MICS06!R128/100 -> 1.345557379 | S125: =S122*MICS06!S128/100 -> 0.3830467872 | T125: =T122*MICS06!T128/100 -> 1.003784076 | BB125: Limited | BC125: N/A | BD125: N/A | BE125: N/A | BF125: N/A | BG125: N/A | BH125: N/A | BI125: N/A | BJ125: N/A | BK125: N/A | BL125: N/A | BM125: N/A | BN125: N/A | BO125: N/A | BP125: N/A | BQ125: N/A | BR125: N/A | BS125: N/A | BT125: N/A
B126: Unimproved | C126: =100-(C124+C125+C127) -> 6.200016731 | D126: =100-(D124+D125+D127) -> 6.813094826 | E126: 11.99676423 | F126: 10.85591068 | G126: 11.74263621 | H126: 5.480783793 | I126: 6.507051801 | J126: 13.55828189 | K126: 20.19830258 | L126: 4.196926091 | M126: 6.029057047 | N126: 6.938808084 | O126: 7.532837343 | P126: 12.32593504 | Q126: 14.1469698 | R126: 10.01036029 | S126: 10.28968579 | T126: 8.740648836 | BB126: Unimproved | BC126: N/A | BD126: N/A | BE126: N/A | BF126: N/A | BG126: N/A | BH126: N/A | BI126: N/A | BJ126: N/A | BK126: N/A | BL126: N/A | BM126: N/A | BN126: N/A | BO126: N/A | BP126: N/A | BQ126: N/A | BR126: N/A | BS126: N/A | BT126: N/A
B127: Open defecation | C127: =C158 -> 88.08654068 | D127: =D158 -> 77.104453 | E127: 45.16811455 | F127: 47.59230853 | G127: 66.0740078 | H127: 53.70357762 | I127: 28.83633703 | J127: 47.3183699 | K127: 25.43973845 | L127: 8.731178938 | M127: 88.16291013 | N127: 87.19838129 | O127: 81.57236091 | P127: 70.73714569 | Q127: 68.42966458 | R127: 57.052147 | S127: 64.41345624 | T127: 74.78648628 | BB127: Open defecation | BC127: N/A | BD127: N/A | BE127: N/A | BF127: N/A | BG127: N/A | BH127: N/A | BI127: N/A | BJ127: N/A | BK127: N/A | BL127: N/A | BM127: N/A | BN127: N/A | BO127: N/A | BP127: N/A | BQ127: N/A | BR127: N/A | BS127: N/A | BT127: N/A
A128: Shared among Improved Sanitation | B128: Yes | C128: N/A | D128: N/A | E128: N/A | F128: N/A | G128: N/A | H128: N/A | I128: N/A | J128: N/A | K128: N/A | L128: N/A | M128: N/A | N128: N/A | O128: N/A | P128: N/A | Q128: N/A | R128: N/A | S128: N/A | T128: N/A | BA128: Shared among improved sanitation facilities | BB128: Yes | BC128: N/A | BD128: N/A | BE128: N/A | BF128: N/A | BG128: N/A | BH128: N/A | BI128: N/A | BJ128: N/A | BK128: N/A | BL128: N/A | BM128: N/A | BN128: N/A | BO128: N/A | BP128: N/A | BQ128: N/A | BR128: N/A | BS128: N/A | BT128: N/A
B129: No | C129: N/A | D129: N/A | E129: N/A | F129: N/A | G129: N/A | H129: N/A | I129: N/A | J129: N/A | K129: N/A | L129: N/A | M129: N/A | N129: N/A | O129: N/A | P129: N/A | Q129: N/A | R129: N/A | S129: N/A | T129: N/A | BB129: No | BC129: N/A | BD129: N/A | BE129: N/A | BF129: N/A | BG129: N/A | BH129: N/A | BI129: N/A | BJ129: N/A | BK129: N/A | BL129: N/A | BM129: N/A | BN129: N/A | BO129: N/A | BP129: N/A | BQ129: N/A | BR129: N/A | BS129: N/A | BT129: N/A
A130: Manually calculated ratios | B130: Improved latrines
B131: Other
B132: Other
C133: NATIONAL wealth index quintile | H133: URBAN wealth index quintile | M133: RURAL wealth index quintile | R133: SUB-REGIONS: | BA133: Raw numbers of respondents: | BB133: Use of sanitation facilities | BC133: NATIONAL wealth index quintile | BH133: URBAN wealth index quintile | BM133: RURAL wealth index quintile | BR133: SUB-REGIONS:
A134: Percentage based on weighted population | C134: Poorest | D134: Poor | E134: Middle | F134: Rich | G134: Richest | H134: Poorest | I134: Poor | J134: Middle | K134: Rich | L134: Richest | M134: Poorest | N134: Poor | O134: Middle | P134: Rich | Q134: Richest | R134: central | S134: north | T134: south | BA134: Sanitation data, raw numbers (weighted) | BC134: Poorest | BD134: Poor | BE134: Middle | BF134: Rich | BG134: Richest | BH134: Poorest | BI134: Poor | BJ134: Middle | BK134: Rich | BL134: Richest | BM134: Poorest | BN134: Poor | BO134: Middle | BP134: Rich | BQ134: Richest | BR134: central | BS134: north | BT134: south
A135: Sanitation type | B135: Sewer connection | C135: N/A | D135: N/A | E135: N/A | F135: N/A | G135: N/A | H135: N/A | I135: N/A | J135: N/A | K135: N/A | L135: N/A | M135: N/A | N135: N/A | O135: N/A | P135: N/A | Q135: N/A | R135: N/A | S135: N/A | T135: N/A | BA135: Sanitation type | BB135: Sewer connection | BC135: N/A | BD135: N/A | BE135: N/A | BF135: N/A | BG135: N/A | BH135: N/A | BI135: N/A | BJ135: N/A | BK135: N/A | BL135: N/A | BM135: N/A | BN135: N/A | BO135: N/A | BP135: N/A | BQ135: N/A | BR135: N/A | BS135: N/A | BT135: N/A
B136: Septic tank connection | C136: N/A | D136: N/A | E136: N/A | F136: N/A | G136: N/A | H136: N/A | I136: N/A | J136: N/A | K136: N/A | L136: N/A | M136: N/A | N136: N/A | O136: N/A | P136: N/A | Q136: N/A | R136: N/A | S136: N/A | T136: N/A | BB136: Septic tank connection | BC136: N/A | BD136: N/A | BE136: N/A | BF136: N/A | BG136: N/A | BH136: N/A | BI136: N/A | BJ136: N/A | BK136: N/A | BL136: N/A | BM136: N/A | BN136: N/A | BO136: N/A | BP136: N/A | BQ136: N/A | BR136: N/A | BS136: N/A | BT136: N/A
B137: Improved latrines | C137: N/A | D137: N/A | E137: N/A | F137: N/A | G137: N/A | H137: N/A | I137: N/A | J137: N/A | K137: N/A | L137: N/A | M137: N/A | N137: N/A | O137: N/A | P137: N/A | Q137: N/A | R137: N/A | S137: N/A | T137: N/A | BB137: Improved latrines | BC137: N/A | BD137: N/A | BE137: N/A | BF137: N/A | BG137: N/A | BH137: N/A | BI137: N/A | BJ137: N/A | BK137: N/A | BL137: N/A | BM137: N/A | BN137: N/A | BO137: N/A | BP137: N/A | BQ137: N/A | BR137: N/A | BS137: N/A | BT137: N/A
B138: Unimproved facilities | C138: N/A | D138: N/A | E138: N/A | F138: N/A | G138: N/A | H138: N/A | I138: N/A | J138: N/A | K138: N/A | L138: N/A | M138: N/A | N138: N/A | O138: N/A | P138: N/A | Q138: N/A | R138: N/A | S138: N/A | T138: N/A | BB138: Unimproved facilities | BC138: N/A | BD138: N/A | BE138: N/A | BF138: N/A | BG138: N/A | BH138: N/A | BI138: N/A | BJ138: N/A | BK138: N/A | BL138: N/A | BM138: N/A | BN138: N/A | BO138: N/A | BP138: N/A | BQ138: N/A | BR138: N/A | BS138: N/A | BT138: N/A
B139: Open defecation | C139: =C158 -> 88.08654068 | D139: =D158 -> 77.104453 | E139: 45.16811455 | F139: 47.59230853 | G139: 66.0740078 | H139: 53.70357762 | I139: 28.83633703 | J139: 47.3183699 | K139: 25.43973845 | L139: 8.731178938 | M139: 88.16291013 | N139: 87.19838129 | O139: 81.57236091 | P139: 70.73714569 | Q139: 68.42966458 | R139: 57.052147 | S139: 64.41345624 | T139: 74.78648628 | BB139: Open defecation | BC139: N/A | BD139: N/A | BE139: N/A | BF139: N/A | BG139: N/A | BH139: N/A | BI139: N/A | BJ139: N/A | BK139: N/A | BL139: N/A | BM139: N/A | BN139: N/A | BO139: N/A | BP139: N/A | BQ139: N/A | BR139: N/A | BS139: N/A | BT139: N/A
A140: Septic tank emptying practices | B140: Not emptied/treated and disposed in situ | C140: N/A | D140: N/A | E140: N/A | F140: N/A | G140: N/A | H140: N/A | I140: N/A | J140: N/A | K140: N/A | L140: N/A | M140: N/A | N140: N/A | O140: N/A | P140: N/A | Q140: N/A | R140: N/A | S140: N/A | T140: N/A | BA140: Septic tank emptying practices | BB140: Not emptied/treated and disposed in situ | BC140: N/A | BD140: N/A | BE140: N/A | BF140: N/A | BG140: N/A | BH140: N/A | BI140: N/A | BJ140: N/A | BK140: N/A | BL140: N/A | BM140: N/A | BN140: N/A | BO140: N/A | BP140: N/A | BQ140: N/A | BR140: N/A | BS140: N/A | BT140: N/A
B141: Emptied and buried on site | C141: N/A | D141: N/A | E141: N/A | F141: N/A | G141: N/A | H141: N/A | I141: N/A | J141: N/A | K141: N/A | L141: N/A | M141: N/A | N141: N/A | O141: N/A | P141: N/A | Q141: N/A | R141: N/A | S141: N/A | T141: N/A | BB141: Emptied and buried on site | BC141: N/A | BD141: N/A | BE141: N/A | BF141: N/A | BG141: N/A | BH141: N/A | BI141: N/A | BJ141: N/A | BK141: N/A | BL141: N/A | BM141: N/A | BN141: N/A | BO141: N/A | BP141: N/A | BQ141: N/A | BR141: N/A | BS141: N/A | BT141: N/A
B142: Emptied and discharged locally | C142: N/A | D142: N/A | E142: N/A | F142: N/A | G142: N/A | H142: N/A | I142: N/A | J142: N/A | K142: N/A | L142: N/A | M142: N/A | N142: N/A | O142: N/A | P142: N/A | Q142: N/A | R142: N/A | S142: N/A | T142: N/A | BB142: Emptied and discharged locally | BC142: N/A | BD142: N/A | BE142: N/A | BF142: N/A | BG142: N/A | BH142: N/A | BI142: N/A | BJ142: N/A | BK142: N/A | BL142: N/A | BM142: N/A | BN142: N/A | BO142: N/A | BP142: N/A | BQ142: N/A | BR142: N/A | BS142: N/A | BT142: N/A
B143: Emptied and removed offsite | C143: N/A | D143: N/A | E143: N/A | F143: N/A | G143: N/A | H143: N/A | I143: N/A | J143: N/A | K143: N/A | L143: N/A | M143: N/A | N143: N/A | O143: N/A | P143: N/A | Q143: N/A | R143: N/A | S143: N/A | T143: N/A | BB143: Emptied and removed offsite | BC143: N/A | BD143: N/A | BE143: N/A | BF143: N/A | BG143: N/A | BH143: N/A | BI143: N/A | BJ143: N/A | BK143: N/A | BL143: N/A | BM143: N/A | BN143: N/A | BO143: N/A | BP143: N/A | BQ143: N/A | BR143: N/A | BS143: N/A | BT143: N/A
A144: Latrine emptying practices | B144: Not emptied/treated and disposed in situ | C144: N/A | D144: N/A | E144: N/A | F144: N/A | G144: N/A | H144: N/A | I144: N/A | J144: N/A | K144: N/A | L144: N/A | M144: N/A | N144: N/A | O144: N/A | P144: N/A | Q144: N/A | R144: N/A | S144: N/A | T144: N/A | BA144: Latrine emptying practices | BB144: Not emptied/treated and disposed in situ | BC144: N/A | BD144: N/A | BE144: N/A | BF144: N/A | BG144: N/A | BH144: N/A | BI144: N/A | BJ144: N/A | BK144: N/A | BL144: N/A | BM144: N/A | BN144: N/A | BO144: N/A | BP144: N/A | BQ144: N/A | BR144: N/A | BS144: N/A | BT144: N/A
B145: Emptied and buried on site | C145: N/A | D145: N/A | E145: N/A | F145: N/A | G145: N/A | H145: N/A | I145: N/A | J145: N/A | K145: N/A | L145: N/A | M145: N/A | N145: N/A | O145: N/A | P145: N/A | Q145: N/A | R145: N/A | S145: N/A | T145: N/A | BB145: Emptied and buried on site | BC145: N/A | BD145: N/A | BE145: N/A | BF145: N/A | BG145: N/A | BH145: N/A | BI145: N/A | BJ145: N/A | BK145: N/A | BL145: N/A | BM145: N/A | BN145: N/A | BO145: N/A | BP145: N/A | BQ145: N/A | BR145: N/A | BS145: N/A | BT145: N/A
B146: Emptied and discharged locally | C146: N/A | D146: N/A | E146: N/A | F146: N/A | G146: N/A | H146: N/A | I146: N/A | J146: N/A | K146: N/A | L146: N/A | M146: N/A | N146: N/A | O146: N/A | P146: N/A | Q146: N/A | R146: N/A | S146: N/A | T146: N/A | BB146: Emptied and discharged locally | BC146: N/A | BD146: N/A | BE146: N/A | BF146: N/A | BG146: N/A | BH146: N/A | BI146: N/A | BJ146: N/A | BK146: N/A | BL146: N/A | BM146: N/A | BN146: N/A | BO146: N/A | BP146: N/A | BQ146: N/A | BR146: N/A | BS146: N/A | BT146: N/A
B147: Emptied and removed offsite | C147: N/A | D147: N/A | E147: N/A | F147: N/A | G147: N/A | H147: N/A | I147: N/A | J147: N/A | K147: N/A | L147: N/A | M147: N/A | N147: N/A | O147: N/A | P147: N/A | Q147: N/A | R147: N/A | S147: N/A | T147: N/A | BB147: Emptied and removed offsite | BC147: N/A | BD147: N/A | BE147: N/A | BF147: N/A | BG147: N/A | BH147: N/A | BI147: N/A | BJ147: N/A | BK147: N/A | BL147: N/A | BM147: N/A | BN147: N/A | BO147: N/A | BP147: N/A | BQ147: N/A | BR147: N/A | BS147: N/A | BT147: N/A
A148: Shared among improved sanitation facilities | B148: Yes | C148: N/A | D148: N/A | E148: N/A | F148: N/A | G148: N/A | H148: N/A | I148: N/A | J148: N/A | K148: N/A | L148: N/A | M148: N/A | N148: N/A | O148: N/A | P148: N/A | Q148: N/A | R148: N/A | S148: N/A | T148: N/A | BA148: Shared among improved sanitation facilities | BB148: Yes | BC148: N/A | BD148: N/A | BE148: N/A | BF148: N/A | BG148: N/A | BH148: N/A | BI148: N/A | BJ148: N/A | BK148: N/A | BL148: N/A | BM148: N/A | BN148: N/A | BO148: N/A | BP148: N/A | BQ148: N/A | BR148: N/A | BS148: N/A | BT148: N/A
B149: No | C149: N/A | D149: N/A | E149: N/A | F149: N/A | G149: N/A | H149: N/A | I149: N/A | J149: N/A | K149: N/A | L149: N/A | M149: N/A | N149: N/A | O149: N/A | P149: N/A | Q149: N/A | R149: N/A | S149: N/A | T149: N/A | BB149: No | BC149: N/A | BD149: N/A | BE149: N/A | BF149: N/A | BG149: N/A | BH149: N/A | BI149: N/A | BJ149: N/A | BK149: N/A | BL149: N/A | BM149: N/A | BN149: N/A | BO149: N/A | BP149: N/A | BQ149: N/A | BR149: N/A | BS149: N/A | BT149: N/A
B150: DK/missing | C150: N/A | D150: N/A | E150: N/A | F150: N/A | G150: N/A | H150: N/A | I150: N/A | J150: N/A | K150: N/A | L150: N/A | M150: N/A | N150: N/A | O150: N/A | P150: N/A | Q150: N/A | R150: N/A | S150: N/A | T150: N/A | BB150: DK/missing | BC150: N/A | BD150: N/A | BE150: N/A | BF150: N/A | BG150: N/A | BH150: N/A | BI150: N/A | BJ150: N/A | BK150: N/A | BL150: N/A | BM150: N/A | BN150: N/A | BO150: N/A | BP150: N/A | BQ150: N/A | BR150: N/A | BS150: N/A | BT150: N/A
A151: Shared among all sanitation facilities | B151: Yes | C151: N/A | D151: N/A | E151: N/A | F151: N/A | G151: N/A | H151: N/A | I151: N/A | J151: N/A | K151: N/A | L151: N/A | M151: N/A | N151: N/A | O151: N/A | P151: N/A | Q151: N/A | R151: N/A | S151: N/A | T151: N/A | BA151: Shared among all sanitation facilities | BB151: Yes | BC151: N/A | BD151: N/A | BE151: N/A | BF151: N/A | BG151: N/A | BH151: N/A | BI151: N/A | BJ151: N/A | BK151: N/A | BL151: N/A | BM151: N/A | BN151: N/A | BO151: N/A | BP151: N/A | BQ151: N/A | BR151: N/A | BS151: N/A | BT151: N/A
B152: No | C152: N/A | D152: N/A | E152: N/A | F152: N/A | G152: N/A | H152: N/A | I152: N/A | J152: N/A | K152: N/A | L152: N/A | M152: N/A | N152: N/A | O152: N/A | P152: N/A | Q152: N/A | R152: N/A | S152: N/A | T152: N/A | BB152: No | BC152: N/A | BD152: N/A | BE152: N/A | BF152: N/A | BG152: N/A | BH152: N/A | BI152: N/A | BJ152: N/A | BK152: N/A | BL152: N/A | BM152: N/A | BN152: N/A | BO152: N/A | BP152: N/A | BQ152: N/A | BR152: N/A | BS152: N/A | BT152: N/A
A153: type of toilet facility | B153: flush to sewage system or septic tank | C153: 0 | D153: 1.518848879 | E153: 1.773326422 | F153: 0.5541854781 | G153: 0.1059086077 | H153: 0.1979353187 | I153: 0.5243367535 | J153: 0.56930932 | K153: 1.134409933 | L153: 9.256626986 | M153: 0 | N153: 0 | O153: 0 | P153: 0.4800253174 | Q153: 0 | R153: 1.476307643 | S153: 0.1339320886 | T153: 0.5819665936 | BA153: type of toilet facility | BB153: flush to sewage system or septic tank | BC153: 0 | BD153: 116.9808193 | BE153: 136.3103172 | BF153: 42.68164778 | BG153: 8.132645488 | BH153: 4.70750618 | BI153: 12.94564199 | BJ153: 13.09197521 | BK153: 26.96267021 | BL153: 220.9067026 | BM153: 0 | BN153: 0 | BO153: 0 | BP153: 25.49093354 | BQ153: 0 | BR153: 218.8990374 | BS153: 15.62709212 | BT153: 69.57930028
B154: pour flush latrine( water seal type) | C154: 4.537456286 | D154: 13.40583587 | E154: 39.15132959 | F154: 39.44145685 | G154: 20.7692659 | H154: 39.47301484 | I154: 63.49973823 | J154: 36.3416936 | K154: 51.21296093 | L154: 77.23500162 | M154: 4.417176383 | N154: 4.91889264 | O154: 9.395513235 | P154: 13.89820174 | Q154: 16.73678745 | R154: 31.05008334 | S154: 22.52422595 | T154: 14.97997128 | BB154: pour flush latrine( water seal type) | BC154: 348.5684502 | BD154: 1032.509347 | BE154: 3009.446026 | BF154: 3037.658754 | BG154: 1594.856927 | BH154: 938.7888047 | BI154: 1567.780386 | BJ154: 835.7224009 | BK154: 1217.230329 | BL154: 1843.190782 | BM154: 234.4476515 | BN154: 261.1296784 | BO154: 498.8853666 | BP154: 738.0405242 | BQ154: 887.8235807 | BR154: 4603.941044 | BS154: 2628.109199 | BT154: 1790.989262
B155: traditional pit latrine | C155: 7.124714355 | D155: 7.548493542 | E155: 9.54585676 | F155: 10.83984805 | G155: 8.12346062 | H155: 6.62547223 | I155: 6.883390963 | J155: 14.74896857 | K155: 13.43058736 | L155: 3.868442412 | M155: 7.056210058 | N155: 7.831661259 | O155: 8.317368943 | P155: 10.52842836 | Q155: 8.518414133 | R155: 10.35002778 | S155: 12.7629402 | T155: 2.486584536 | BB155: traditional pit latrine | BC155: 547.3222185 | BD155: 581.3803939 | BE155: 733.7615604 | BF155: 834.8514975 | BG155: 623.7946734 | BH155: 157.5739573 | BI155: 169.9478713 | BJ155: 339.1708587 | BK155: 319.218377 | BL155: 92.31924963 | BM155: 374.5179574 | BN155: 415.7600776 | BO155: 441.637785 | BP155: 559.0944015 | BQ155: 451.8698083 | BR155: 1534.647015 | BS155: 1489.169955 | BT155: 297.2933739
B156: other | C156: 0.2512886796 | D156: 0.07039478523 | E156: 0 | F156: 0 | G156: 0 | H156: 0 | I156: 0 | J156: 0 | K156: 0 | L156: 0 | M156: 0.3637034331 | N156: 0 | O156: 0.1021081307 | P156: 0 | Q156: 0 | R156: 0 | S156: 0.1654455212 | T156: 0.04534804626 | BB156: other | BC156: 19.30405498 | BD156: 5.421763659 | BE156: 0 | BF156: 0 | BG156: 0 | BH156: 0 | BI156: 0 | BJ156: 0 | BK156: 0 | BL156: 0 | BM156: 19.30405498 | BN156: 0 | BO156: 5.421763659 | BP156: 0 | BQ156: 0 | BR156: 0 | BS156: 19.30405498 | BT156: 5.421763659
B157: missing | C157: 0 | D157: 0.3519739261 | E157: 4.361372673 | F157: 1.572201094 | G157: 4.92735707 | H157: 0 | I157: 0.2561970236 | J157: 1.021658609 | K157: 8.782303323 | L157: 0.9087500415 | M157: 0 | N157: 0.05106480719 | O157: 0.6126487842 | P157: 4.35619889 | Q157: 6.315133834 | R157: 0.07143424081 | S157: 0 | T157: 7.119643262 | BB157: missing | BC157: 0 | BD157: 27.10881829 | BE157: 335.2457196 | BF157: 121.086055 | BG157: 378.3681904 | BH157: 0 | BI157: 6.325390935 | BJ157: 23.49430919 | BK157: 208.7379009 | BL157: 21.68705463 | BM157: 0 | BN157: 2.710881829 | BO157: 32.53058195 | BP157: 231.3285828 | BQ157: 334.9940811 | BR157: 10.5918889 | BS157: 0 | BT157: 851.2168944
B158: no facilities/bush/field | C158: 88.08654068 | D158: 77.104453 | E158: 45.16811455 | F158: 47.59230853 | G158: 66.0740078 | H158: 53.70357762 | I158: 28.83633703 | J158: 47.3183699 | K158: 25.43973845 | L158: 8.731178938 | M158: 88.16291013 | N158: 87.19838129 | O158: 81.57236091 | P158: 70.73714569 | Q158: 68.42966458 | R158: 57.052147 | S158: 64.41345624 | T158: 74.78648628 | BB158: no facilities/bush/field | BC158: 6766.8286 | BD158: 5938.5382 | BE158: 3471.938355 | BF158: 3665.412086 | BG158: 5073.775334 | BH158: 1277.235034 | BI158: 711.9563775 | BJ158: 1088.144712 | BK158: 604.652038 | BL158: 208.3670382 | BM158: 4679.366508 | BN158: 4629.107998 | BO158: 4331.350098 | BP158: 3756.37662 | BQ158: 3629.936152 | BR158: 8459.388605 | BS158: 7515.71207 | BT158: 8941.3919
BB159: Total | BC159: 7682.023324 | BD159: 7701.939342 | BE159: 7686.701979 | BF159: 7701.690041 | BG159: 7678.92777 | BH159: 2378.305302 | BI159: 2468.955668 | BJ159: 2299.624256 | BK159: 2376.801315 | BL159: 2386.470827 | BM159: 5307.636172 | BN159: 5308.708636 | BO159: 5309.825595 | BP159: 5310.331062 | BQ159: 5304.623622 | BR159: 14827.46759 | BS159: 11667.92237 | BT159: 11955.89249
A208: =A1026 -> Lao People's Democratic Republic
A209: =A1034 -> 2000
A210: Access to hygiene facilities
A211: by wealth quintile and sub-national region
A212: Notes:
A213: WHO/UNICEF JMP customised wealth index excludes water,
A214: sanitation and hygiene assets.
A215: Survey used for analysis: | B215: =A1025 -> MICS00
A220: Access to handwashing | C220: NATIONAL wealth index quintile | H220: URBAN wealth index quintile | M220: RURAL wealth index quintile | R220: SUB-REGIONS: | BA220: Raw numbers of respondents: | BB220: Access to handwashing | BC220: NATIONAL wealth index quintile | BH220: URBAN wealth index quintile | BM220: RURAL wealth index quintile | BR220: SUB-REGIONS:
A221: Weighted percentage (used in graphs) | C221: Poorest | D221: Poor | E221: Middle | F221: Rich | G221: Richest | H221: Poorest | I221: Poor | J221: Middle | K221: Rich | L221: Richest | M221: Poorest | N221: Poor | O221: Middle | P221: Rich | Q221: Richest | R221: central | S221: north | T221: south | BA221: Hygiene data, raw numbers (weighted) | BC221: Poorest | BD221: Poor | BE221: Middle | BF221: Rich | BG221: Richest | BH221: Poorest | BI221: Poor | BJ221: Middle | BK221: Rich | BL221: Richest | BM221: Poorest | BN221: Poor | BO221: Middle | BP221: Rich | BQ221: Richest | BR221: central | BS221: north | BT221: south
A222: Hygiene ladder | B222: Basic | C222: N/A | D222: N/A | E222: N/A | F222: N/A | G222: N/A | H222: N/A | I222: N/A | J222: N/A | K222: N/A | L222: N/A | M222: N/A | N222: N/A | O222: N/A | P222: N/A | Q222: N/A | R222: N/A | S222: N/A | T222: N/A | BA222: Hygiene ladder | BB222: Basic | BC222: N/A | BD222: N/A | BE222: N/A | BF222: N/A | BG222: N/A | BH222: N/A | BI222: N/A | BJ222: N/A | BK222: N/A | BL222: N/A | BM222: N/A | BN222: N/A | BO222: N/A | BP222: N/A | BQ222: N/A | BR222: N/A | BS222: N/A | BT222: N/A
B223: Limited | C223: N/A | D223: N/A | E223: N/A | F223: N/A | G223: N/A | H223: N/A | I223: N/A | J223: N/A | K223: N/A | L223: N/A | M223: N/A | N223: N/A | O223: N/A | P223: N/A | Q223: N/A | R223: N/A | S223: N/A | T223: N/A | BB223: Limited | BC223: N/A | BD223: N/A | BE223: N/A | BF223: N/A | BG223: N/A | BH223: N/A | BI223: N/A | BJ223: N/A | BK223: N/A | BL223: N/A | BM223: N/A | BN223: N/A | BO223: N/A | BP223: N/A | BQ223: N/A | BR223: N/A | BS223: N/A | BT223: N/A
B224: No facility | C224: N/A | D224: N/A | E224: N/A | F224: N/A | G224: N/A | H224: N/A | I224: N/A | J224: N/A | K224: N/A | L224: N/A | M224: N/A | N224: N/A | O224: N/A | P224: N/A | Q224: N/A | R224: N/A | S224: N/A | T224: N/A | BB224: No facility | BC224: N/A | BD224: N/A | BE224: N/A | BF224: N/A | BG224: N/A | BH224: N/A | BI224: N/A | BJ224: N/A | BK224: N/A | BL224: N/A | BM224: N/A | BN224: N/A | BO224: N/A | BP224: N/A | BQ224: N/A | BR224: N/A | BS224: N/A | BT224: N/A
BA225: Observed handwashing place | BB225: Fixed | BC225: N/A | BD225: N/A | BE225: N/A | BF225: N/A | BG225: N/A | BH225: N/A | BI225: N/A | BJ225: N/A | BK225: N/A | BL225: N/A | BM225: N/A | BN225: N/A | BO225: N/A | BP225: N/A | BQ225: N/A | BR225: N/A | BS225: N/A | BT225: N/A
BB226: Mobile | BC226: N/A | BD226: N/A | BE226: N/A | BF226: N/A | BG226: N/A | BH226: N/A | BI226: N/A | BJ226: N/A | BK226: N/A | BL226: N/A | BM226: N/A | BN226: N/A | BO226: N/A | BP226: N/A | BQ226: N/A | BR226: N/A | BS226: N/A | BT226: N/A
BA227: Water / Soap | BB227: Water and soap | BC227: N/A | BD227: N/A | BE227: N/A | BF227: N/A | BG227: N/A | BH227: N/A | BI227: N/A | BJ227: N/A | BK227: N/A | BL227: N/A | BM227: N/A | BN227: N/A | BO227: N/A | BP227: N/A | BQ227: N/A | BR227: N/A | BS227: N/A | BT227: N/A
BB228: Water only | BC228: N/A | BD228: N/A | BE228: N/A | BF228: N/A | BG228: N/A | BH228: N/A | BI228: N/A | BJ228: N/A | BK228: N/A | BL228: N/A | BM228: N/A | BN228: N/A | BO228: N/A | BP228: N/A | BQ228: N/A | BR228: N/A | BS228: N/A | BT228: N/A
BB229: Soap only | BC229: N/A | BD229: N/A | BE229: N/A | BF229: N/A | BG229: N/A | BH229: N/A | BI229: N/A | BJ229: N/A | BK229: N/A | BL229: N/A | BM229: N/A | BN229: N/A | BO229: N/A | BP229: N/A | BQ229: N/A | BR229: N/A | BS229: N/A | BT229: N/A
BB230: Neither | BC230: N/A | BD230: N/A | BE230: N/A | BF230: N/A | BG230: N/A | BH230: N/A | BI230: N/A | BJ230: N/A | BK230: N/A | BL230: N/A | BM230: N/A | BN230: N/A | BO230: N/A | BP230: N/A | BQ230: N/A | BR230: N/A | BS230: N/A | BT230: N/A
BA259: Raw numbers of respondents: | BB259: Menstrual health and hygiene | BC259: NATIONAL wealth index quintile | BH259: URBAN wealth index quintile | BM259: RURAL wealth index quintile | BR259: SUB-REGIONS:
BA260: MHH data, raw numbers (weighted) | BC260: Poorest | BD260: Poor | BE260: Middle | BF260: Rich | BG260: Richest | BH260: Poorest | BI260: Poor | BJ260: Middle | BK260: Rich | BL260: Richest | BM260: Poorest | BN260: Poor | BO260: Middle | BP260: Rich | BQ260: Richest | BR260: central | BS260: north | BT260: south
BA261: Private place to wash and change | BB261: Yes | BC261: N/A | BD261: N/A | BE261: N/A | BF261: N/A | BG261: N/A | BH261: N/A | BI261: N/A | BJ261: N/A | BK261: N/A | BL261: N/A | BM261: N/A | BN261: N/A | BO261: N/A | BP261: N/A | BQ261: N/A | BR261: N/A | BS261: N/A | BT261: N/A
BB262: No | BC262: N/A | BD262: N/A | BE262: N/A | BF262: N/A | BG262: N/A | BH262: N/A | BI262: N/A | BJ262: N/A | BK262: N/A | BL262: N/A | BM262: N/A | BN262: N/A | BO262: N/A | BP262: N/A | BQ262: N/A | BR262: N/A | BS262: N/A | BT262: N/A
BB263: DK/not sure/missing | BC263: N/A | BD263: N/A | BE263: N/A | BF263: N/A | BG263: N/A | BH263: N/A | BI263: N/A | BJ263: N/A | BK263: N/A | BL263: N/A | BM263: N/A | BN263: N/A | BO263: N/A | BP263: N/A | BQ263: N/A | BR263: N/A | BS263: N/A | BT263: N/A
BA264: Use of menstrual materials | BB264: Materials reusable | BC264: N/A | BD264: N/A | BE264: N/A | BF264: N/A | BG264: N/A | BH264: N/A | BI264: N/A | BJ264: N/A | BK264: N/A | BL264: N/A | BM264: N/A | BN264: N/A | BO264: N/A | BP264: N/A | BQ264: N/A | BR264: N/A | BS264: N/A | BT264: N/A
BB265: Materials not reusable | BC265: N/A | BD265: N/A | BE265: N/A | BF265: N/A | BG265: N/A | BH265: N/A | BI265: N/A | BJ265: N/A | BK265: N/A | BL265: N/A | BM265: N/A | BN265: N/A | BO265: N/A | BP265: N/A | BQ265: N/A | BR265: N/A | BS265: N/A | BT265: N/A
BB266: No materials used | BC266: N/A | BD266: N/A | BE266: N/A | BF266: N/A | BG266: N/A | BH266: N/A | BI266: N/A | BJ266: N/A | BK266: N/A | BL266: N/A | BM266: N/A | BN266: N/A | BO266: N/A | BP266: N/A | BQ266: N/A | BR266: N/A | BS266: N/A | BT266: N/A
BB267: DK/not sure/missing | BC267: N/A | BD267: N/A | BE267: N/A | BF267: N/A | BG267: N/A | BH267: N/A | BI267: N/A | BJ267: N/A | BK267: N/A | BL267: N/A | BM267: N/A | BN267: N/A | BO267: N/A | BP267: N/A | BQ267: N/A | BR267: N/A | BS267: N/A | BT267: N/A
BA268: Use of menstrual materials with private place to wash and change | BB268: Materials reusable | BC268: N/A | BD268: N/A | BE268: N/A | BF268: N/A | BG268: N/A | BH268: N/A | BI268: N/A | BJ268: N/A | BK268: N/A | BL268: N/A | BM268: N/A | BN268: N/A | BO268: N/A | BP268: N/A | BQ268: N/A | BR268: N/A | BS268: N/A | BT268: N/A
BB269: Materials not reusable | BC269: N/A | BD269: N/A | BE269: N/A | BF269: N/A | BG269: N/A | BH269: N/A | BI269: N/A | BJ269: N/A | BK269: N/A | BL269: N/A | BM269: N/A | BN269: N/A | BO269: N/A | BP269: N/A | BQ269: N/A | BR269: N/A | BS269: N/A | BT269: N/A
BB270: No materials used | BC270: N/A | BD270: N/A | BE270: N/A | BF270: N/A | BG270: N/A | BH270: N/A | BI270: N/A | BJ270: N/A | BK270: N/A | BL270: N/A | BM270: N/A | BN270: N/A | BO270: N/A | BP270: N/A | BQ270: N/A | BR270: N/A | BS270: N/A | BT270: N/A
BA271: Awareness of menstruation before menarche | BB271: Yes | BC271: N/A | BD271: N/A | BE271: N/A | BF271: N/A | BG271: N/A | BH271: N/A | BI271: N/A | BJ271: N/A | BK271: N/A | BL271: N/A | BM271: N/A | BN271: N/A | BO271: N/A | BP271: N/A | BQ271: N/A | BR271: N/A | BS271: N/A | BT271: N/A
BB272: No | BC272: N/A | BD272: N/A | BE272: N/A | BF272: N/A | BG272: N/A | BH272: N/A | BI272: N/A | BJ272: N/A | BK272: N/A | BL272: N/A | BM272: N/A | BN272: N/A | BO272: N/A | BP272: N/A | BQ272: N/A | BR272: N/A | BS272: N/A | BT272: N/A
BB273: DK/not sure/missing | BC273: N/A | BD273: N/A | BE273: N/A | BF273: N/A | BG273: N/A | BH273: N/A | BI273: N/A | BJ273: N/A | BK273: N/A | BL273: N/A | BM273: N/A | BN273: N/A | BO273: N/A | BP273: N/A | BQ273: N/A | BR273: N/A | BS273: N/A | BT273: N/A
BA274: Participation in (all) activities during menstruation | BB274: Yes | BC274: N/A | BD274: N/A | BE274: N/A | BF274: N/A | BG274: N/A | BH274: N/A | BI274: N/A | BJ274: N/A | BK274: N/A | BL274: N/A | BM274: N/A | BN274: N/A | BO274: N/A | BP274: N/A | BQ274: N/A | BR274: N/A | BS274: N/A | BT274: N/A
BB275: No | BC275: N/A | BD275: N/A | BE275: N/A | BF275: N/A | BG275: N/A | BH275: N/A | BI275: N/A | BJ275: N/A | BK275: N/A | BL275: N/A | BM275: N/A | BN275: N/A | BO275: N/A | BP275: N/A | BQ275: N/A | BR275: N/A | BS275: N/A | BT275: N/A
BB276: DK/not sure/missing/no such activity | BC276: N/A | BD276: N/A | BE276: N/A | BF276: N/A | BG276: N/A | BH276: N/A | BI276: N/A | BJ276: N/A | BK276: N/A | BL276: N/A | BM276: N/A | BN276: N/A | BO276: N/A | BP276: N/A | BQ276: N/A | BR276: N/A | BS276: N/A | BT276: N/A
BA277: Participation in specific activities during menstruation | BB277: Did not go to school (amongst those usually attending school) | BC277: N/A | BD277: N/A | BE277: N/A | BF277: N/A | BG277: N/A | BH277: N/A | BI277: N/A | BJ277: N/A | BK277: N/A | BL277: N/A | BM277: N/A | BN277: N/A | BO277: N/A | BP277: N/A | BQ277: N/A | BR277: N/A | BS277: N/A | BT277: N/A
BB278: Did not go to work (amongst those who usually work) | BC278: N/A | BD278: N/A | BE278: N/A | BF278: N/A | BG278: N/A | BH278: N/A | BI278: N/A | BJ278: N/A | BK278: N/A | BL278: N/A | BM278: N/A | BN278: N/A | BO278: N/A | BP278: N/A | BQ278: N/A | BR278: N/A | BS278: N/A | BT278: N/A
BB279: Did not participate in social activities | BC279: N/A | BD279: N/A | BE279: N/A | BF279: N/A | BG279: N/A | BH279: N/A | BI279: N/A | BJ279: N/A | BK279: N/A | BL279: N/A | BM279: N/A | BN279: N/A | BO279: N/A | BP279: N/A | BQ279: N/A | BR279: N/A | BS279: N/A | BT279: N/A
BB280: Did not cook food | BC280: N/A | BD280: N/A | BE280: N/A | BF280: N/A | BG280: N/A | BH280: N/A | BI280: N/A | BJ280: N/A | BK280: N/A | BL280: N/A | BM280: N/A | BN280: N/A | BO280: N/A | BP280: N/A | BQ280: N/A | BR280: N/A | BS280: N/A | BT280: N/A
BB281: Did not eat with others | BC281: N/A | BD281: N/A | BE281: N/A | BF281: N/A | BG281: N/A | BH281: N/A | BI281: N/A | BJ281: N/A | BK281: N/A | BL281: N/A | BM281: N/A | BN281: N/A | BO281: N/A | BP281: N/A | BQ281: N/A | BR281: N/A | BS281: N/A | BT281: N/A
BB282: Did not bathe in regular place | BC282: N/A | BD282: N/A | BE282: N/A | BF282: N/A | BG282: N/A | BH282: N/A | BI282: N/A | BJ282: N/A | BK282: N/A | BL282: N/A | BM282: N/A | BN282: N/A | BO282: N/A | BP282: N/A | BQ282: N/A | BR282: N/A | BS282: N/A | BT282: N/A
BB283: Did not participate in other activities | BC283: N/A | BD283: N/A | BE283: N/A | BF283: N/A | BG283: N/A | BH283: N/A | BI283: N/A | BJ283: N/A | BK283: N/A | BL283: N/A | BM283: N/A | BN283: N/A | BO283: N/A | BP283: N/A | BQ283: N/A | BR283: N/A | BS283: N/A | BT283: N/A
BB284: DK/not sure/missing/no such activity | BC284: N/A | BD284: N/A | BE284: N/A | BF284: N/A | BG284: N/A | BH284: N/A | BI284: N/A | BJ284: N/A | BK284: N/A | BL284: N/A | BM284: N/A | BN284: N/A | BO284: N/A | BP284: N/A | BQ284: N/A | BR284: N/A | BS284: N/A | BT284: N/A
BA339: Raw numbers of respondents: | BB339: Basic water, sanitation and hygiene | BC339: NATIONAL wealth index quintile | BH339: URBAN wealth index quintile | BM339: RURAL wealth index quintile | BR339: SUB-REGIONS:
BA340: WatSan data, raw numbers (weighted) | BC340: Poorest | BD340: Poor | BE340: Middle | BF340: Rich | BG340: Richest | BH340: Poorest | BI340: Poor | BJ340: Middle | BK340: Rich | BL340: Richest | BM340: Poorest | BN340: Poor | BO340: Middle | BP340: Rich | BQ340: Richest | BR340: central | BS340: north | BT340: south
BA341: Use of Basic Water Sanitation and Hygiene | BB341: Yes | BC341: N/A | BD341: N/A | BE341: N/A | BF341: N/A | BG341: N/A | BH341: N/A | BI341: N/A | BJ341: N/A | BK341: N/A | BL341: N/A | BM341: N/A | BN341: N/A | BO341: N/A | BP341: N/A | BQ341: N/A | BR341: N/A | BS341: N/A | BT341: N/A
BB342: No | BC342: N/A | BD342: N/A | BE342: N/A | BF342: N/A | BG342: N/A | BH342: N/A | BI342: N/A | BJ342: N/A | BK342: N/A | BL342: N/A | BM342: N/A | BN342: N/A | BO342: N/A | BP342: N/A | BQ342: N/A | BR342: N/A | BS342: N/A | BT342: N/A
BA343: Use of Basic Water and Sanitation | BB343: Yes | BC343: N/A | BD343: N/A | BE343: N/A | BF343: N/A | BG343: N/A | BH343: N/A | BI343: N/A | BJ343: N/A | BK343: N/A | BL343: N/A | BM343: N/A | BN343: N/A | BO343: N/A | BP343: N/A | BQ343: N/A | BR343: N/A | BS343: N/A | BT343: N/A
BB344: No | BC344: N/A | BD344: N/A | BE344: N/A | BF344: N/A | BG344: N/A | BH344: N/A | BI344: N/A | BJ344: N/A | BK344: N/A | BL344: N/A | BM344: N/A | BN344: N/A | BO344: N/A | BP344: N/A | BQ344: N/A | BR344: N/A | BS344: N/A | BT344: N/A
BA345: Use of Basic Water and Hygiene | BB345: Yes | BC345: N/A | BD345: N/A | BE345: N/A | BF345: N/A | BG345: N/A | BH345: N/A | BI345: N/A | BJ345: N/A | BK345: N/A | BL345: N/A | BM345: N/A | BN345: N/A | BO345: N/A | BP345: N/A | BQ345: N/A | BR345: N/A | BS345: N/A | BT345: N/A
BB346: No | BC346: N/A | BD346: N/A | BE346: N/A | BF346: N/A | BG346: N/A | BH346: N/A | BI346: N/A | BJ346: N/A | BK346: N/A | BL346: N/A | BM346: N/A | BN346: N/A | BO346: N/A | BP346: N/A | BQ346: N/A | BR346: N/A | BS346: N/A | BT346: N/A
BA347: Use of Basic Sanitation and Hygiene | BB347: Yes | BC347: N/A | BD347: N/A | BE347: N/A | BF347: N/A | BG347: N/A | BH347: N/A | BI347: N/A | BJ347: N/A | BK347: N/A | BL347: N/A | BM347: N/A | BN347: N/A | BO347: N/A | BP347: N/A | BQ347: N/A | BR347: N/A | BS347: N/A | BT347: N/A
BB348: No | BC348: N/A | BD348: N/A | BE348: N/A | BF348: N/A | BG348: N/A | BH348: N/A | BI348: N/A | BJ348: N/A | BK348: N/A | BL348: N/A | BM348: N/A | BN348: N/A | BO348: N/A | BP348: N/A | BQ348: N/A | BR348: N/A | BS348: N/A | BT348: N/A
BA349: Use of Basic Water | BB349: Yes | BC349: N/A | BD349: N/A | BE349: N/A | BF349: N/A | BG349: N/A | BH349: N/A | BI349: N/A | BJ349: N/A | BK349: N/A | BL349: N/A | BM349: N/A | BN349: N/A | BO349: N/A | BP349: N/A | BQ349: N/A | BR349: N/A | BS349: N/A | BT349: N/A
BB350: No | BC350: N/A | BD350: N/A | BE350: N/A | BF350: N/A | BG350: N/A | BH350: N/A | BI350: N/A | BJ350: N/A | BK350: N/A | BL350: N/A | BM350: N/A | BN350: N/A | BO350: N/A | BP350: N/A | BQ350: N/A | BR350: N/A | BS350: N/A | BT350: N/A
BA351: Use of Basic Sanitation | BB351: Yes | BC351: N/A | BD351: N/A | BE351: N/A | BF351: N/A | BG351: N/A | BH351: N/A | BI351: N/A | BJ351: N/A | BK351: N/A | BL351: N/A | BM351: N/A | BN351: N/A | BO351: N/A | BP351: N/A | BQ351: N/A | BR351: N/A | BS351: N/A | BT351: N/A
BB352: No | BC352: N/A | BD352: N/A | BE352: N/A | BF352: N/A | BG352: N/A | BH352: N/A | BI352: N/A | BJ352: N/A | BK352: N/A | BL352: N/A | BM352: N/A | BN352: N/A | BO352: N/A | BP352: N/A | BQ352: N/A | BR352: N/A | BS352: N/A | BT352: N/A
BA353: Access to Basic Hygiene | BB353: Yes | BC353: N/A | BD353: N/A | BE353: N/A | BF353: N/A | BG353: N/A | BH353: N/A | BI353: N/A | BJ353: N/A | BK353: N/A | BL353: N/A | BM353: N/A | BN353: N/A | BO353: N/A | BP353: N/A | BQ353: N/A | BR353: N/A | BS353: N/A | BT353: N/A
BB354: No | BC354: N/A | BD354: N/A | BE354: N/A | BF354: N/A | BG354: N/A | BH354: N/A | BI354: N/A | BJ354: N/A | BK354: N/A | BL354: N/A | BM354: N/A | BN354: N/A | BO354: N/A | BP354: N/A | BQ354: N/A | BR354: N/A | BS354: N/A | BT354: N/A
C399: INITIAL (national) Wealth Index | H399: URBAN Wealth Index | M399: RURAL Wealth Index
C400: Component Matrix | H400: Component Matrix | M400: Component Matrix
E401: Component | J401: Component | O401: Component
B402: Note: The INITIAL (national) Wealth Index is based on the first component of the Principal Component Analysis (PCA) which has been obtained at national level. The final national-level (NATIONAL) Wealth Index is based on the URBAN and RURAL specific wealth indexes. Regression procedures are used to establish the relationships between the two sets of scores (urban and rural) and the initial (national) wealth factors. This allows best use of the available information for each area and a better precision of the FINAL (NATIONAL) Wealth Index. For dependency reasons, all WASH variables (contained in the generic MICS and DHS scripts) have been excluded from the sets of asset variables used in the PCAs. The PCA can extracts as many components as there are asset variables in the input. Only the first of the components is used to represent the Wealth Index. The scores represent the weights of the asset variables on the Wealth Index (correlations between the variables and the component). The communalities are the proportion of each variable's variance that can be explained by the component. Proportion of explained variance is the part of the model's total variance that is explained by the component. For more information on the procedure used: The DHS Wealth Index, DHS Comparative Reports No. 6, Shea Oscar Rutstein, Kiersten Johnson, ORC Macro International Inc., 2004. The DHS Wealth Index: Approaches for Rural and Urban Areas, Shea O. Rutstein, ORC Macro International Inc., 2008. MICS Methodological Paper No. 4, Review of options for reporting water, sanitation and hygiene coverage by wealth quintile, UNICEF, 2016. | E402: 1 | J402: 1 | O402: 1
C403: Has palm/bamboo wall | E403: -0.7880673341 | H403: Has wood floor | J403: -0.8550247138 | M403: Has palm/bamboo wall | O403: -0.7873196259
C404: Has palm/bamboo floor | E404: -0.7413039994 | H404: Has cement floor | J404: 0.7765831919 | M404: Has wood wall | O404: 0.7498260845
C405: Has iron roof | E405: 0.6915175969 | H405: Has cement wall | J405: 0.7735414467 | M405: Has palm/bamboo floor | O405: -0.7482741637
C406: Has wood wall | E406: 0.6822071218 | H406: Has wood wall | J406: -0.6963736689 | M406: Has iron roof | O406: 0.6684189418
C407: Has grass roof | E407: -0.6514068526 | H407: Has ceramic tile roof | J407: 0.5162082968 | M407: Has wood floor | O407: 0.6589064124
C408: Household has: television | E408: 0.5724955163 | H408: Has iron roof | J408: -0.4942573018 | M408: Has grass roof | O408: -0.6059440337
C409: Has wood floor | E409: 0.5302340588 | H409: Small land | J409: -0.2840560627 | M409: Household has: television | O409: 0.5003098836
C410: Has palm/bamboo roof | E410: -0.3722804379 | H410: Has cement roof | J410: 0.2812716619 | M410: Small land | O410: 0.365548015
C411: bile 'Household has: mobile telephone' | E411: 0.355912833 | H411: cattle1 | J411: -0.2412879073 | M411: Has palm/bamboo roof | O411: -0.3547871554
C412: Household has: radio | E412: 0.3441466954 | H412: Has dung wall | J412: 0.2366137793 | M412: bile 'Household has: mobile telephone' | O412: 0.2960513287
C413: Has cement floor | E413: 0.2045477143 | H413: Has dung roof | J413: 0.2332920659 | M413: Household has: radio | O413: 0.2904700179
C414: Has cement wall | E414: 0.1714527 | H414: Has dung floor | J414: 0.2108688079 | M414: cattle5 | O414: 0.2034456002
C415: Has dung floor | E415: -0.1581171373 | H415: pig1 | J415: -0.1984334063 | M415: cattle10 | O415: 0.1959828664
C416: Has ceramic tile roof | E416: 0.1123854004 | H416: chicken1 | J416: -0.1800184049 | M416: Has wood roof | O416: 0.1911107104
C417: Has wood roof | E417: 0.09472017483 | H417: cattle5 | J417: -0.1766854592 | M417: Medium land | O417: 0.1760841121
C418: Has iron floor | E418: 0.05681220788 | H418: Has palm/bamboo floor | J418: 0.1454368371 | M418: Has dung floor | O418: -0.1490925534
C419: Has other roof | E419: -0.05010329081 | H419: bile 'Household has: mobile telephone' | J419: 0.1138097858 | M419: Big land | O419: 0.1289136773
C420: Has ceramic tile floor | E420: 0.03932513325 | H420: Has palm/bamboo roof | J420: 0.08230852023 | M420: goat1 | O420: -0.1230771778
... 163 more rows

Sheet MICS06
A2: =A1026 -> Lao People's Democratic Republic
A3: =A1034 -> 2006
A4: Use of drinking water sources
A5: by wealth quintile and sub-national region
A6: Notes:
A7: WHO/UNICEF JMP customised wealth index excludes water,
A8: sanitation and hygiene assets.
A9: Survey used for analysis: | B9: =A1025 -> MICS06
A10: =B1028 -> 
A11: =B1027 -> 
A14: Use of drinking water sources | C14: NATIONAL wealth index quintile | H14: URBAN wealth index quintile | M14: RURAL wealth index quintile | R14: SUB-REGIONS: | BA14: Raw numbers of respondents: | BB14: Use of drinking water sources | BC14: NATIONAL wealth index quintile | BH14: URBAN wealth index quintile | BM14: RURAL wealth index quintile | BR14: SUB-REGIONS:
A15: Weighted percentage (used in graphs) | C15: Poorest | D15: Poor | E15: Middle | F15: Rich | G15: Richest | H15: Poorest | I15: Poor | J15: Middle | K15: Rich | L15: Richest | M15: Poorest | N15: Poor | O15: Middle | P15: Rich | Q15: Richest | R15: Centre | S15: North | T15: South | BA15: Water data, raw numbers (weighted) | BC15: Poorest | BD15: Poor | BE15: Middle | BF15: Rich | BG15: Richest | BH15: Poorest | BI15: Poor | BJ15: Middle | BK15: Rich | BL15: Richest | BM15: Poorest | BN15: Poor | BO15: Middle | BP15: Rich | BQ15: Richest | BR15: Centre | BS15: North | BT15: South
A16: Water | B16: Improved | C16: 46.83854028 | D16: 45.4241143 | E16: 47.66793481 | F16: 57.7790633 | G16: 89.66004834 | H16: 50.14002455 | I16: 83.43069488 | J16: 91.89430189 | K16: 95.64446672 | L16: 99.77605547 | M16: 47.27340906 | N16: 43.98710348 | O16: 51.59278277 | P16: 43.41115807 | Q16: 56.01850708 | R16: 59.29537447 | S16: 57.03523274 | T16: 54.11413555 | BA16: Water | BB16: Improved | BC16: N/A | BD16: N/A | BE16: N/A | BF16: N/A | BG16: N/A | BH16: N/A | BI16: N/A | BJ16: N/A | BK16: N/A | BL16: N/A | BM16: N/A | BN16: N/A | BO16: N/A | BP16: N/A | BQ16: N/A | BR16: N/A | BS16: N/A | BT16: N/A
B17: Not Improved | C17: 53.16145972 | D17: 54.5758857 | E17: 52.33206519 | F17: 42.2209367 | G17: 10.33995166 | H17: 49.85997545 | I17: 16.56930512 | J17: 8.105698113 | K17: 4.355533277 | L17: 0.2239445318 | M17: 52.72659094 | N17: 56.01289652 | O17: 48.40721723 | P17: 56.58884193 | Q17: 43.98149292 | R17: 40.70462553 | S17: 42.96476726 | T17: 45.88586445 | BB17: Not Improved | BC17: N/A | BD17: N/A | BE17: N/A | BF17: N/A | BG17: N/A | BH17: N/A | BI17: N/A | BJ17: N/A | BK17: N/A | BL17: N/A | BM17: N/A | BN17: N/A | BO17: N/A | BP17: N/A | BQ17: N/A | BR17: N/A | BS17: N/A | BT17: N/A
A18: Water ladder | B18: Basic | C18: 46.7750539 | D18: 44.57056384 | E18: 47.25977617 | F18: 57.41155623 | G18: 89.5178078 | H18: 49.57564218 | I18: 83.20604021 | J18: 91.86363197 | K18: 95.64446672 | L18: 99.77605547 | M18: 47.23095053 | N18: 43.07143592 | O18: 51.07864887 | P18: 43.05598747 | Q18: 55.62362609 | R18: 58.95554127 | S18: 57.00058433 | T18: 53.11616362 | BA18: Water ladder | BB18: Basic | BC18: N/A | BD18: N/A | BE18: N/A | BF18: N/A | BG18: N/A | BH18: N/A | BI18: N/A | BJ18: N/A | BK18: N/A | BL18: N/A | BM18: N/A | BN18: N/A | BO18: N/A | BP18: N/A | BQ18: N/A | BR18: N/A | BS18: N/A | BT18: N/A
B19: Limited | C19: 0.06348637405 | D19: 0.7966658029 | E19: 0.4081586329 | F19: 0.3675070706 | G19: 0.1194417681 | H19: 0.5643823633 | I19: 0.2246546699 | J19: 0 | K19: 0 | L19: 0 | M19: 0.0424585345 | N19: 0.9156675596 | O19: 0.446594716 | P19: 0.3551705945 | Q19: 0.3212237532 | R19: 0.2828515808 | S19: 0.03464841413 | T19: 0.9979719279 | BB19: Limited | BC19: N/A | BD19: N/A | BE19: N/A | BF19: N/A | BG19: N/A | BH19: N/A | BI19: N/A | BJ19: N/A | BK19: N/A | BL19: N/A | BM19: N/A | BN19: N/A | BO19: N/A | BP19: N/A | BQ19: N/A | BR19: N/A | BS19: N/A | BT19: N/A
B20: Unimproved | C20: 27.75114647 | D20: 33.87957993 | E20: 35.07542973 | F20: 31.26654576 | G20: 8.289645944 | H20: 46.38538331 | I20: 15.20925672 | J20: 6.303601523 | K20: 3.977944745 | L20: 0.2239445318 | M20: 26.17630679 | N20: 31.27735141 | O20: 29.45375404 | P20: 37.36090108 | Q20: 33.69353092 | R20: 32.19820868 | S20: 26.88789705 | T20: 16.9025484 | BB20: Unimproved | BC20: N/A | BD20: N/A | BE20: N/A | BF20: N/A | BG20: N/A | BH20: N/A | BI20: N/A | BJ20: N/A | BK20: N/A | BL20: N/A | BM20: N/A | BN20: N/A | BO20: N/A | BP20: N/A | BQ20: N/A | BR20: N/A | BS20: N/A | BT20: N/A
B21: Surface water | C21: 25.41031326 | D21: 20.75319043 | E21: 17.25663546 | F21: 10.95439094 | G21: 2.073104483 | H21: 3.474592145 | I21: 1.360048398 | J21: 1.832766511 | K21: 0.377588532 | L21: 0 | M21: 26.55028415 | N21: 24.73554511 | O21: 19.02100237 | P21: 19.22794085 | Q21: 10.36161923 | R21: 8.563398467 | S21: 16.07687021 | T21: 28.98331606 | BB21: Surface water | BC21: N/A | BD21: N/A | BE21: N/A | BF21: N/A | BG21: N/A | BH21: N/A | BI21: N/A | BJ21: N/A | BK21: N/A | BL21: N/A | BM21: N/A | BN21: N/A | BO21: N/A | BP21: N/A | BQ21: N/A | BR21: N/A | BS21: N/A | BT21: N/A
A22: Improved water point at more than 30 minutes | B22: Yes | C22: 0.1355430243 | D22: 1.756038024 | E22: 0.8562540721 | F22: 0.6360557781 | G22: 0.1332501485 | H22: 1.125612459 | I22: 0.2692710041 | J22: 0 | K22: 0 | L22: 0 | M22: 0.08981483531 | N22: 2.081672779 | O22: 0.866749354 | P22: 0.8181550789 | Q22: 0.5741793107 | R22: 0.4774801733 | S22: 0.0607491413 | T22: 1.844198226 | BA22: Improved water point at more than 30 minutes | BB22: Yes | BC22: N/A | BD22: N/A | BE22: N/A | BF22: N/A | BG22: N/A | BH22: N/A | BI22: N/A | BJ22: N/A | BK22: N/A | BL22: N/A | BM22: N/A | BN22: N/A | BO22: N/A | BP22: N/A | BQ22: N/A | BR22: N/A | BS22: N/A | BT22: N/A
B23: No | C23: 99.86445698 | D23: 98.24396198 | E23: 99.14374593 | F23: 99.36394422 | G23: 99.86674985 | H23: 98.87438754 | I23: 99.730729 | J23: 100 | K23: 100 | L23: 100 | M23: 99.91018516 | N23: 97.91832722 | O23: 99.13325065 | P23: 99.18184492 | Q23: 99.42582069 | R23: 99.52251983 | S23: 99.93925086 | T23: 98.15580177 | BB23: No | BC23: N/A | BD23: N/A | BE23: N/A | BF23: N/A | BG23: N/A | BH23: N/A | BI23: N/A | BJ23: N/A | BK23: N/A | BL23: N/A | BM23: N/A | BN23: N/A | BO23: N/A | BP23: N/A | BQ23: N/A | BR23: N/A | BS23: N/A | BT23: N/A
A24: Manually calculated ratios | B24: Improved wells
B25: Improved springs
B26: Other
C27: NATIONAL wealth index quintile | H27: URBAN wealth index quintile | M27: RURAL wealth index quintile | R27: SUB-REGIONS: | BA27: Raw numbers of respondents: | BB27: Use of drinking water sources | BC27: NATIONAL wealth index quintile | BH27: URBAN wealth index quintile | BM27: RURAL wealth index quintile | BR27: SUB-REGIONS:
A28: Percentage based on weighted population | C28: Poorest | D28: Poor | E28: Middle | F28: Rich | G28: Richest | H28: Poorest | I28: Poor | J28: Middle | K28: Rich | L28: Richest | M28: Poorest | N28: Poor | O28: Middle | P28: Rich | Q28: Richest | R28: Centre | S28: North | T28: South | BA28: Water data, raw numbers (weighted) | BC28: Poorest | BD28: Poor | BE28: Middle | BF28: Rich | BG28: Richest | BH28: Poorest | BI28: Poor | BJ28: Middle | BK28: Rich | BL28: Richest | BM28: Poorest | BN28: Poor | BO28: Middle | BP28: Rich | BQ28: Richest | BR28: Centre | BS28: North | BT28: South
A29: Piped water | B29: Yes | C29: 21.97867405 | D29: 19.45153515 | E29: 16.98631667 | F29: 18.28804532 | G29: 54.59833001 | H29: 19.04465405 | I29: 39.88694745 | J29: 52.98568097 | K29: 64.46222088 | L29: 83.79619147 | M29: 22.33888614 | N29: 18.86011299 | O29: 22.22351444 | P29: 12.63109488 | Q29: 11.70737147 | R29: 22.78996174 | S29: 38.7689195 | T29: 14.36116548 | BA29: Piped water | BB29: Yes | BC29: N/A | BD29: N/A | BE29: N/A | BF29: N/A | BG29: N/A | BH29: N/A | BI29: N/A | BJ29: N/A | BK29: N/A | BL29: N/A | BM29: N/A | BN29: N/A | BO29: N/A | BP29: N/A | BQ29: N/A | BR29: N/A | BS29: N/A | BT29: N/A
B30: No | C30: 78.02132595 | D30: 80.54846485 | E30: 83.01368333 | F30: 81.71195468 | G30: 45.40166999 | H30: 80.95534595 | I30: 60.11305255 | J30: 47.01431903 | K30: 35.53777912 | L30: 16.20380853 | M30: 77.66111386 | N30: 81.13988701 | O30: 77.77648556 | P30: 87.36890512 | Q30: 88.29262853 | R30: 77.21003826 | S30: 61.2310805 | T30: 85.63883452 | BB30: No | BC30: N/A | BD30: N/A | BE30: N/A | BF30: N/A | BG30: N/A | BH30: N/A | BI30: N/A | BJ30: N/A | BK30: N/A | BL30: N/A | BM30: N/A | BN30: N/A | BO30: N/A | BP30: N/A | BQ30: N/A | BR30: N/A | BS30: N/A | BT30: N/A
A31: Piped water on premises | B31: Yes | C31: 4.495845686 | D31: 4.722929917 | E31: 6.532516642 | F31: 13.53434833 | G31: 53.86425344 | H31: 13.5305138 | I31: 38.29556838 | J31: 52.98568097 | K31: 64.00693244 | L31: 83.79619147 | M31: 4.702209351 | N31: 2.792049921 | O31: 7.174523633 | P31: 4.392064685 | Q31: 6.836149109 | R31: 20.28193026 | S31: 14.30017284 | T31: 12.17210741 | BA31: Piped water on premises | BB31: Yes | BC31: N/A | BD31: N/A | BE31: N/A | BF31: N/A | BG31: N/A | BH31: N/A | BI31: N/A | BJ31: N/A | BK31: N/A | BL31: N/A | BM31: N/A | BN31: N/A | BO31: N/A | BP31: N/A | BQ31: N/A | BR31: N/A | BS31: N/A | BT31: N/A
B32: No | C32: 95.50415431 | D32: 95.27707008 | E32: 93.46748336 | F32: 86.46565167 | G32: 46.13574656 | H32: 86.4694862 | I32: 61.70443162 | J32: 47.01431903 | K32: 35.99306756 | L32: 16.20380853 | M32: 95.29779065 | N32: 97.20795008 | O32: 92.82547637 | P32: 95.60793531 | Q32: 93.16385089 | R32: 79.71806974 | S32: 85.69982716 | T32: 87.82789259 | BB32: No | BC32: N/A | BD32: N/A | BE32: N/A | BF32: N/A | BG32: N/A | BH32: N/A | BI32: N/A | BJ32: N/A | BK32: N/A | BL32: N/A | BM32: N/A | BN32: N/A | BO32: N/A | BP32: N/A | BQ32: N/A | BR32: N/A | BS32: N/A | BT32: N/A
A33: Piped water into dwelling | B33: Yes | C33: N/A | D33: N/A | E33: N/A | F33: N/A | G33: N/A | H33: N/A | I33: N/A | J33: N/A | K33: N/A | L33: N/A | M33: N/A | N33: N/A | O33: N/A | P33: N/A | Q33: N/A | R33: N/A | S33: N/A | T33: N/A | BA33: Piped water into dwelling | BB33: Yes | BC33: N/A | BD33: N/A | BE33: N/A | BF33: N/A | BG33: N/A | BH33: N/A | BI33: N/A | BJ33: N/A | BK33: N/A | BL33: N/A | BM33: N/A | BN33: N/A | BO33: N/A | BP33: N/A | BQ33: N/A | BR33: N/A | BS33: N/A | BT33: N/A
B34: No | C34: N/A | D34: N/A | E34: N/A | F34: N/A | G34: N/A | H34: N/A | I34: N/A | J34: N/A | K34: N/A | L34: N/A | M34: N/A | N34: N/A | O34: N/A | P34: N/A | Q34: N/A | R34: N/A | S34: N/A | T34: N/A | BB34: No | BC34: N/A | BD34: N/A | BE34: N/A | BF34: N/A | BG34: N/A | BH34: N/A | BI34: N/A | BJ34: N/A | BK34: N/A | BL34: N/A | BM34: N/A | BN34: N/A | BO34: N/A | BP34: N/A | BQ34: N/A | BR34: N/A | BS34: N/A | BT34: N/A
A35: Water source on premises | B35: Yes | C35: 11.17388808 | D35: 16.1489757 | E35: 29.79111295 | F35: 53.28889709 | G35: 88.48675774 | H35: 41.34836903 | I35: 79.21956087 | J35: 89.16832145 | K35: 95.62003144 | L35: 98.80125099 | M35: 11.2315341 | N35: 12.51219316 | O35: 24.2866091 | P35: 28.55167437 | Q35: 52.98931319 | R35: 56.71082461 | S35: 22.13460309 | T35: 29.84060931 | BA35: Water source on premises | BB35: Yes | BC35: N/A | BD35: N/A | BE35: N/A | BF35: N/A | BG35: N/A | BH35: N/A | BI35: N/A | BJ35: N/A | BK35: N/A | BL35: N/A | BM35: N/A | BN35: N/A | BO35: N/A | BP35: N/A | BQ35: N/A | BR35: N/A | BS35: N/A | BT35: N/A
B36: No | C36: 88.82611192 | D36: 83.8510243 | E36: 70.20888705 | F36: 46.71110291 | G36: 11.51324226 | H36: 58.65163097 | I36: 20.78043913 | J36: 10.83167855 | K36: 4.379968564 | L36: 1.198749011 | M36: 88.7684659 | N36: 87.48780684 | O36: 75.7133909 | P36: 71.44832563 | Q36: 47.01068681 | R36: 43.28917539 | S36: 77.86539691 | T36: 70.15939069 | BB36: No | BC36: N/A | BD36: N/A | BE36: N/A | BF36: N/A | BG36: N/A | BH36: N/A | BI36: N/A | BJ36: N/A | BK36: N/A | BL36: N/A | BM36: N/A | BN36: N/A | BO36: N/A | BP36: N/A | BQ36: N/A | BR36: N/A | BS36: N/A | BT36: N/A
A37: Improved Water source on premises | B37: Yes | C37: 19.72616887 | D37: 24.54645761 | E37: 43.77259994 | F37: 71.69722695 | G37: 94.28872271 | H37: 57.26600709 | I37: 84.57264055 | J37: 92.05831284 | K37: 95.81535642 | L37: 98.79856043 | M37: 19.89113427 | N37: 19.32684951 | O37: 34.28629891 | P37: 46.28194386 | Q37: 74.3885396 | R37: 78.56655625 | S37: 33.23240296 | T37: 49.85010512 | BA37: Improved water source on premises | BB37: Yes | BC37: N/A | BD37: N/A | BE37: N/A | BF37: N/A | BG37: N/A | BH37: N/A | BI37: N/A | BJ37: N/A | BK37: N/A | BL37: N/A | BM37: N/A | BN37: N/A | BO37: N/A | BP37: N/A | BQ37: N/A | BR37: N/A | BS37: N/A | BT37: N/A
B38: No | C38: 80.27383113 | D38: 75.45354239 | E38: 56.22740006 | F38: 28.30277305 | G38: 5.711277294 | H38: 42.73399291 | I38: 15.42735945 | J38: 7.941687156 | K38: 4.184643576 | L38: 1.201439569 | M38: 80.10886573 | N38: 80.67315049 | O38: 65.71370109 | P38: 53.71805614 | Q38: 25.6114604 | R38: 21.43344375 | S38: 66.76759704 | T38: 50.14989488 | BB38: No | BC38: N/A | BD38: N/A | BE38: N/A | BF38: N/A | BG38: N/A | BH38: N/A | BI38: N/A | BJ38: N/A | BK38: N/A | BL38: N/A | BM38: N/A | BN38: N/A | BO38: N/A | BP38: N/A | BQ38: N/A | BR38: N/A | BS38: N/A | BT38: N/A
A39: Piped water on premises available when needed | B39: Yes | C39: N/A | D39: N/A | E39: N/A | F39: N/A | G39: N/A | H39: N/A | I39: N/A | J39: N/A | K39: N/A | L39: N/A | M39: N/A | N39: N/A | O39: N/A | P39: N/A | Q39: N/A | R39: N/A | S39: N/A | T39: N/A | BA39: Piped water on premises available when needed | BB39: Yes | BC39: N/A | BD39: N/A | BE39: N/A | BF39: N/A | BG39: N/A | BH39: N/A | BI39: N/A | BJ39: N/A | BK39: N/A | BL39: N/A | BM39: N/A | BN39: N/A | BO39: N/A | BP39: N/A | BQ39: N/A | BR39: N/A | BS39: N/A | BT39: N/A
B40: No | C40: N/A | D40: N/A | E40: N/A | F40: N/A | G40: N/A | H40: N/A | I40: N/A | J40: N/A | K40: N/A | L40: N/A | M40: N/A | N40: N/A | O40: N/A | P40: N/A | Q40: N/A | R40: N/A | S40: N/A | T40: N/A | BB40: No | BC40: N/A | BD40: N/A | BE40: N/A | BF40: N/A | BG40: N/A | BH40: N/A | BI40: N/A | BJ40: N/A | BK40: N/A | BL40: N/A | BM40: N/A | BN40: N/A | BO40: N/A | BP40: N/A | BQ40: N/A | BR40: N/A | BS40: N/A | BT40: N/A
A41: Water point at more than 30 minutes | B41: Yes | C41: 1.92457782 | D41: 4.954394894 | E41: 4.316353675 | F41: 2.976879762 | G41: 0.8204248358 | H41: 1.887867241 | I41: 0.9130542136 | J41: 0 | K41: 0 | L41: 0 | M41: 1.121364504 | N41: 5.011409463 | O41: 4.739735829 | P41: 4.135760883 | Q41: 4.107346966 | R41: 4.347675037 | S41: 0.238732599 | T41: 4.336468182 | BA41: Water point at more than 30 minutes | BB41: Yes | BC41: N/A | BD41: N/A | BE41: N/A | BF41: N/A | BG41: N/A | BH41: N/A | BI41: N/A | BJ41: N/A | BK41: N/A | BL41: N/A | BM41: N/A | BN41: N/A | BO41: N/A | BP41: N/A | BQ41: N/A | BR41: N/A | BS41: N/A | BT41: N/A
B42: No | C42: 98.07542218 | D42: 95.04560511 | E42: 95.68364632 | F42: 97.02312024 | G42: 99.17957516 | H42: 98.11213276 | I42: 99.08694579 | J42: 100 | K42: 100 | L42: 100 | M42: 98.8786355 | N42: 94.98859054 | O42: 95.26026417 | P42: 95.86423912 | Q42: 95.89265303 | R42: 95.65232496 | S42: 99.7612674 | T42: 95.66353182 | BB42: No | BC42: N/A | BD42: N/A | BE42: N/A | BF42: N/A | BG42: N/A | BH42: N/A | BI42: N/A | BJ42: N/A | BK42: N/A | BL42: N/A | BM42: N/A | BN42: N/A | BO42: N/A | BP42: N/A | BQ42: N/A | BR42: N/A | BS42: N/A | BT42: N/A
A43: Water source available when needed | B43: Yes | C43: N/A | D43: N/A | E43: N/A | F43: N/A | G43: N/A | H43: N/A | I43: N/A | J43: N/A | K43: N/A | L43: N/A | M43: N/A | N43: N/A | O43: N/A | P43: N/A | Q43: N/A | R43: N/A | S43: N/A | T43: N/A | BA43: Water source available when needed | BB43: Yes | BC43: N/A | BD43: N/A | BE43: N/A | BF43: N/A | BG43: N/A | BH43: N/A | BI43: N/A | BJ43: N/A | BK43: N/A | BL43: N/A | BM43: N/A | BN43: N/A | BO43: N/A | BP43: N/A | BQ43: N/A | BR43: N/A | BS43: N/A | BT43: N/A
B44: No | C44: N/A | D44: N/A | E44: N/A | F44: N/A | G44: N/A | H44: N/A | I44: N/A | J44: N/A | K44: N/A | L44: N/A | M44: N/A | N44: N/A | O44: N/A | P44: N/A | Q44: N/A | R44: N/A | S44: N/A | T44: N/A | BB44: No | BC44: N/A | BD44: N/A | BE44: N/A | BF44: N/A | BG44: N/A | BH44: N/A | BI44: N/A | BJ44: N/A | BK44: N/A | BL44: N/A | BM44: N/A | BN44: N/A | BO44: N/A | BP44: N/A | BQ44: N/A | BR44: N/A | BS44: N/A | BT44: N/A
A45: Improved water source available when needed | B45: Yes | C45: N/A | D45: N/A | E45: N/A | F45: N/A | G45: N/A | H45: N/A | I45: N/A | J45: N/A | K45: N/A | L45: N/A | M45: N/A | N45: N/A | O45: N/A | P45: N/A | Q45: N/A | R45: N/A | S45: N/A | T45: N/A | BA45: Improved water source available when needed | BB45: Yes | BC45: N/A | BD45: N/A | BE45: N/A | BF45: N/A | BG45: N/A | BH45: N/A | BI45: N/A | BJ45: N/A | BK45: N/A | BL45: N/A | BM45: N/A | BN45: N/A | BO45: N/A | BP45: N/A | BQ45: N/A | BR45: N/A | BS45: N/A | BT45: N/A
B46: No | C46: N/A | D46: N/A | E46: N/A | F46: N/A | G46: N/A | H46: N/A | I46: N/A | J46: N/A | K46: N/A | L46: N/A | M46: N/A | N46: N/A | O46: N/A | P46: N/A | Q46: N/A | R46: N/A | S46: N/A | T46: N/A | BB46: No | BC46: N/A | BD46: N/A | BE46: N/A | BF46: N/A | BG46: N/A | BH46: N/A | BI46: N/A | BJ46: N/A | BK46: N/A | BL46: N/A | BM46: N/A | BN46: N/A | BO46: N/A | BP46: N/A | BQ46: N/A | BR46: N/A | BS46: N/A | BT46: N/A
A47: Microbiological quality at point of collection | B47: Not contaminated (No E. coli in 100 mL) | C47: N/A | D47: N/A | E47: N/A | F47: N/A | G47: N/A | H47: N/A | I47: N/A | J47: N/A | K47: N/A | L47: N/A | M47: N/A | N47: N/A | O47: N/A | P47: N/A | Q47: N/A | R47: N/A | S47: N/A | T47: N/A | BA47: Microbiological quality at point of collection | BB47: Not contaminated (No E. coli in 100 mL) | BC47: N/A | BD47: N/A | BE47: N/A | BF47: N/A | BG47: N/A | BH47: N/A | BI47: N/A | BJ47: N/A | BK47: N/A | BL47: N/A | BM47: N/A | BN47: N/A | BO47: N/A | BP47: N/A | BQ47: N/A | BR47: N/A | BS47: N/A | BT47: N/A
B48: Contaminated (E. coli detected in 100 mL) | C48: N/A | D48: N/A | E48: N/A | F48: N/A | G48: N/A | H48: N/A | I48: N/A | J48: N/A | K48: N/A | L48: N/A | M48: N/A | N48: N/A | O48: N/A | P48: N/A | Q48: N/A | R48: N/A | S48: N/A | T48: N/A | BB48: Contaminated (E. coli detected in 100 mL) | BC48: N/A | BD48: N/A | BE48: N/A | BF48: N/A | BG48: N/A | BH48: N/A | BI48: N/A | BJ48: N/A | BK48: N/A | BL48: N/A | BM48: N/A | BN48: N/A | BO48: N/A | BP48: N/A | BQ48: N/A | BR48: N/A | BS48: N/A | BT48: N/A
B49: Highly contaminated (>100 CFU/100 mL) | C49: N/A | D49: N/A | E49: N/A | F49: N/A | G49: N/A | H49: N/A | I49: N/A | J49: N/A | K49: N/A | L49: N/A | M49: N/A | N49: N/A | O49: N/A | P49: N/A | Q49: N/A | R49: N/A | S49: N/A | T49: N/A | BB49: Highly contaminated (>100 CFU/100 mL) | BC49: N/A | BD49: N/A | BE49: N/A | BF49: N/A | BG49: N/A | BH49: N/A | BI49: N/A | BJ49: N/A | BK49: N/A | BL49: N/A | BM49: N/A | BN49: N/A | BO49: N/A | BP49: N/A | BQ49: N/A | BR49: N/A | BS49: N/A | BT49: N/A
A50: Microbiological quality of improved water sources at point of collection | B50: Not contaminated (No E. coli in 100 mL) | C50: N/A | D50: N/A | E50: N/A | F50: N/A | G50: N/A | H50: N/A | I50: N/A | J50: N/A | K50: N/A | L50: N/A | M50: N/A | N50: N/A | O50: N/A | P50: N/A | Q50: N/A | R50: N/A | S50: N/A | T50: N/A | BA50: Microbiological quality of improved water sources at point of collection | BB50: Not contaminated (No E. coli in 100 mL) | BC50: N/A | BD50: N/A | BE50: N/A | BF50: N/A | BG50: N/A | BH50: N/A | BI50: N/A | BJ50: N/A | BK50: N/A | BL50: N/A | BM50: N/A | BN50: N/A | BO50: N/A | BP50: N/A | BQ50: N/A | BR50: N/A | BS50: N/A | BT50: N/A
B51: Contaminated (E. coli detected in 100 mL) | C51: N/A | D51: N/A | E51: N/A | F51: N/A | G51: N/A | H51: N/A | I51: N/A | J51: N/A | K51: N/A | L51: N/A | M51: N/A | N51: N/A | O51: N/A | P51: N/A | Q51: N/A | R51: N/A | S51: N/A | T51: N/A | BB51: Contaminated (E. coli detected in 100 mL) | BC51: N/A | BD51: N/A | BE51: N/A | BF51: N/A | BG51: N/A | BH51: N/A | BI51: N/A | BJ51: N/A | BK51: N/A | BL51: N/A | BM51: N/A | BN51: N/A | BO51: N/A | BP51: N/A | BQ51: N/A | BR51: N/A | BS51: N/A | BT51: N/A
B52: Highly contaminated (>100 CFU/100 mL) | C52: N/A | D52: N/A | E52: N/A | F52: N/A | G52: N/A | H52: N/A | I52: N/A | J52: N/A | K52: N/A | L52: N/A | M52: N/A | N52: N/A | O52: N/A | P52: N/A | Q52: N/A | R52: N/A | S52: N/A | T52: N/A | BB52: Highly contaminated (>100 CFU/100 mL) | BC52: N/A | BD52: N/A | BE52: N/A | BF52: N/A | BG52: N/A | BH52: N/A | BI52: N/A | BJ52: N/A | BK52: N/A | BL52: N/A | BM52: N/A | BN52: N/A | BO52: N/A | BP52: N/A | BQ52: N/A | BR52: N/A | BS52: N/A | BT52: N/A
A53: Microbiological quality of piped on premises at point of collection | B53: Not contaminated (No E. coli in 100 mL) | C53: N/A | D53: N/A | E53: N/A | F53: N/A | G53: N/A | H53: N/A | I53: N/A | J53: N/A | K53: N/A | L53: N/A | M53: N/A | N53: N/A | O53: N/A | P53: N/A | Q53: N/A | R53: N/A | S53: N/A | T53: N/A | BA53: Microbiological quality of piped on premises at point of collection | BB53: Not contaminated (No E. coli in 100 mL) | BC53: N/A | BD53: N/A | BE53: N/A | BF53: N/A | BG53: N/A | BH53: N/A | BI53: N/A | BJ53: N/A | BK53: N/A | BL53: N/A | BM53: N/A | BN53: N/A | BO53: N/A | BP53: N/A | BQ53: N/A | BR53: N/A | BS53: N/A | BT53: N/A
B54: Contaminated (E. coli detected in 100 mL) | C54: N/A | D54: N/A | E54: N/A | F54: N/A | G54: N/A | H54: N/A | I54: N/A | J54: N/A | K54: N/A | L54: N/A | M54: N/A | N54: N/A | O54: N/A | P54: N/A | Q54: N/A | R54: N/A | S54: N/A | T54: N/A | BB54: Contaminated (E. coli detected in 100 mL) | BC54: N/A | BD54: N/A | BE54: N/A | BF54: N/A | BG54: N/A | BH54: N/A | BI54: N/A | BJ54: N/A | BK54: N/A | BL54: N/A | BM54: N/A | BN54: N/A | BO54: N/A | BP54: N/A | BQ54: N/A | BR54: N/A | BS54: N/A | BT54: N/A
B55: Highly contaminated (>100 CFU/100 mL) | C55: N/A | D55: N/A | E55: N/A | F55: N/A | G55: N/A | H55: N/A | I55: N/A | J55: N/A | K55: N/A | L55: N/A | M55: N/A | N55: N/A | O55: N/A | P55: N/A | Q55: N/A | R55: N/A | S55: N/A | T55: N/A | BB55: Highly contaminated (>100 CFU/100 mL) | BC55: N/A | BD55: N/A | BE55: N/A | BF55: N/A | BG55: N/A | BH55: N/A | BI55: N/A | BJ55: N/A | BK55: N/A | BL55: N/A | BM55: N/A | BN55: N/A | BO55: N/A | BP55: N/A | BQ55: N/A | BR55: N/A | BS55: N/A | BT55: N/A
C56: NATIONAL wealth index quintile | H56: URBAN wealth index quintile | M56: RURAL wealth index quintile | R56: SUB-REGIONS: | BA56: Raw numbers of respondents: | BB56: Use of drinking water sources | BC56: NATIONAL wealth index quintile | BH56: URBAN wealth index quintile | BM56: RURAL wealth index quintile | BR56: SUB-REGIONS:
A57: Percentage based on weighted population | C57: Poorest | D57: Poor | E57: Middle | F57: Rich | G57: Richest | H57: Poorest | I57: Poor | J57: Middle | K57: Rich | L57: Richest | M57: Poorest | N57: Poor | O57: Middle | P57: Rich | Q57: Richest | R57: Centre | S57: North | T57: South | BA57: Water data, raw numbers (weighted) | BC57: Poorest | BD57: Poor | BE57: Middle | BF57: Rich | BG57: Richest | BH57: Poorest | BI57: Poor | BJ57: Middle | BK57: Rich | BL57: Richest | BM57: Poorest | BN57: Poor | BO57: Middle | BP57: Rich | BQ57: Richest | BR57: Centre | BS57: North | BT57: South
A58: Main source of drinking water | B58: Piped into dwelling | C58: 0.3981575567 | D58: 1.043321986 | E58: 1.964507745 | F58: 6.069709034 | G58: 15.80470285 | H58: 6.701291461 | I58: 19.51196959 | J58: 19.37171862 | K58: 17.45070077 | L58: 20.17043128 | M58: 0.3227040641 | N58: 0.5197516363 | O58: 1.423237827 | P58: 1.137867652 | Q58: 2.311084768 | R58: 4.858455318 | S58: 5.062041687 | T58: 5.483637985
B59: Piped into yard or plot | C59: 4.09768813 | D59: 3.599192616 | E59: 4.496769978 | F59: 3.764301215 | G59: 3.264690621 | H59: 5.606393884 | I59: 3.965365131 | J59: 4.230392362 | K59: 5.439147206 | L59: 0.9309442342 | M59: 4.379505287 | N59: 2.164763464 | O59: 5.751285806 | P59: 3.254197034 | Q59: 3.358760099 | R59: 1.427558631 | S59: 7.4839083 | T59: 3.506782252
B60: Public tap/standpipe | C60: 17.48282837 | D60: 14.5677746 | E60: 10.45380002 | F60: 4.753696992 | G60: 0.600073707 | H60: 5.514140247 | I60: 1.591379077 | J60: 0 | K60: 0.455288443 | L60: 0 | M60: 17.63667679 | N60: 15.92468331 | O60: 14.9772534 | P60: 8.239030199 | Q60: 4.691879934 | R60: 2.508031484 | S60: 24.2886477 | T60: 2.189058066
B61: Tubewell/borehole | C61: 5.465739514 | D61: 13.3388938 | E61: 18.38165594 | F61: 17.73315504 | G61: 3.532600596 | H61: 8.585513484 | I61: 6.905241424 | J61: 2.697318276 | K61: 1.202694412 | L61: 0.7189008078 | M61: 4.829301961 | N61: 10.48251216 | O61: 16.96808759 | P61: 20.87913199 | Q61: 18.24697874 | R61: 10.40923097 | S61: 3.055287248 | T61: 28.06754239
B62: Protected well | C62: 0.9811483668 | D62: 1.53402521 | E62: 3.052244602 | F62: 2.405738688 | G62: 3.555018591 | H62: 1.815248936 | I62: 3.809148321 | J62: 6.069256244 | K62: 3.184819173 | L62: 0.9837755483 | M62: 1.10803187 | N62: 1.432244255 | O62: 2.970793931 | P62: 1.908733595 | Q62: 2.65055428 | R62: 1.850377809 | S62: 3.392342069 | T62: 1.614464664
B63: Unprotected well | C63: 13.85334478 | D63: 26.50593943 | E63: 29.74131351 | F63: 27.77545385 | G63: 7.609496096 | H63: 38.11375269 | I63: 13.73403794 | J63: 6.279840189 | K63: 3.977944745 | L63: 0.2239445318 | M63: 10.28517266 | N63: 23.38250364 | O63: 24.74043403 | P63: 31.18889196 | Q63: 30.46509216 | R63: 26.87482685 | S63: 16.64361088 | T63: 15.26024071
B64: Protected spring | C64: 18.3088493 | D64: 9.980023448 | E64: 5.807707146 | F64: 4.098821837 | G64: 0.5542326499 | H64: 6.702055127 | I64: 5.136148994 | J64: 1.35404753 | K64: 0 | L64: 0.2799306647 | M64: 18.85790987 | N64: 12.87806709 | O64: 7.690744354 | P64: 4.772918303 | Q64: 3.082770823 | R64: 5.85024046 | S64: 10.92238718 | T64: 6.991751534
B65: Unprotected spring | C65: 13.89780168 | D65: 7.197728655 | E65: 4.955433437 | F65: 3.085036916 | G65: 0.5578077974 | H65: 7.934975709 | I65: 0.9102880675 | J65: 0 | K65: 0 | L65: 0 | M65: 15.89113413 | N65: 7.831179629 | O65: 4.661664131 | P65: 5.561590696 | Q65: 2.784381104 | R65: 4.972538718 | S65: 10.19231355 | T65: 1.416870078
B66: Rainwater collection | C66: 0 | D66: 0.02377447088 | E66: 0.1337317547 | F66: 0.1877605073 | G66: 0.2112260202 | H66: 0.09406372722 | I66: 0 | J66: 0 | K66: 0.188794266 | L66: 0 | M66: 0 | N66: 0 | O66: 0.09556553186 | P66: 0.08347602652 | Q66: 0.4702678562 | R66: 0.1295399406 | S66: 0.04911789624 | T66: 0.168273078
B67: Tanker-truck | C67: 0 | D67: 0 | E67: 0 | F67: 0.2377883645 | G67: 0.09508179968 | H67: 0.5643823633 | I67: 0.3766204788 | J67: 0 | K67: 0.377588532 | L67: 0 | M67: 0 | N67: 0 | O67: 0 | P67: 0 | Q67: 0 | R67: 0.1435340432 | S67: 0 | T67: 0
B68: Surface water | C68: 25.41031326 | D68: 20.73158182 | E68: 17.25663546 | F68: 10.95439094 | G68: 2.06854351 | H68: 3.474592145 | I68: 1.360048398 | J68: 1.825857924 | K68: 0.377588532 | L68: 0 | M68: 26.55028415 | N68: 24.73554511 | O68: 18.99450068 | P68: 19.22794085 | Q68: 10.3442953 | R68: 8.551427489 | S68: 16.07687021 | T68: 28.98331606
B69: Bottled water | C69: 0.1041290463 | D69: 1.337108173 | E69: 3.377517621 | F69: 18.52809163 | G69: 62.04242151 | H69: 14.55693532 | I69: 42.13482186 | J69: 58.17156886 | K69: 67.34543392 | L69: 76.69207293 | M69: 0.1392792319 | N69: 0.5850815695 | O69: 1.715814331 | P69: 3.135803266 | Q69: 21.20621058 | R69: 32.11840581 | S69: 2.781500665 | T69: 6.092625573
B70: Other | C70: 0 | D70: 0.1406357888 | E70: 0.3786827867 | F70: 0.4060549934 | G70: 0.1041042576 | H70: 0.3366549103 | I70: 0.5649307182 | J70: 0 | K70: 0 | L70: 0 | M70: 0 | N70: 0.06366814498 | O70: 0.01061839243 | P70: 0.6104184203 | Q70: 0.3877243496 | R70: 0.3058324707 | S70: 0.05197262119 | T70: 0.225437615
A108: =A1026 -> Lao People's Democratic Republic
A109: =A1034 -> 2006
A110: Use of sanitation facilities
A111: by wealth quintile and sub-national region
A112: Notes:
A113: WHO/UNICEF JMP customised wealth index excludes water,
A114: sanitation and hygiene assets.
A115: Survey used for analysis: | B115: =A1025 -> MICS06
A116: =B1030 -> 
A117: =B1029 -> 
A120: Use of sanitation facilities | C120: NATIONAL wealth index quintile | H120: URBAN wealth index quintile | M120: RURAL wealth index quintile | R120: SUB-REGIONS: | BA120: Raw numbers of respondents: | BB120: Use of sanitation facilities | BC120: NATIONAL wealth index quintile | BH120: URBAN wealth index quintile | BM120: RURAL wealth index quintile | BR120: SUB-REGIONS:
A121: Weighted percentage (used in graphs) | C121: Poorest | D121: Poor | E121: Middle | F121: Rich | G121: Richest | H121: Poorest | I121: Poor | J121: Middle | K121: Rich | L121: Richest | M121: Poorest | N121: Poor | O121: Middle | P121: Rich | Q121: Richest | R121: Centre | S121: North | T121: South | BA121: Sanitation data, raw numbers (weighted) | BC121: Poorest | BD121: Poor | BE121: Middle | BF121: Rich | BG121: Richest | BH121: Poorest | BI121: Poor | BJ121: Middle | BK121: Rich | BL121: Richest | BM121: Poorest | BN121: Poor | BO121: Middle | BP121: Rich | BQ121: Richest | BR121: Centre | BS121: North | BT121: South
A122: Sanitation | B122: Improved | C122: 15.85996343 | D122: 24.67648154 | E122: 31.11370699 | F122: 57.03208277 | G122: 95.37832788 | H122: 46.89228598 | I122: 77.6463787 | J122: 94.07392258 | K122: 99.39717935 | L122: 100 | M122: 15.16348129 | N122: 19.70460554 | O122: 27.90685668 | P122: 32.3853041 | Q122: 63.40475503 | R122: 53.49610513 | S122: 43.43581586 | T122: 27.69054289 | BA122: Sanitation | BB122: Improved | BC122: 1049.619791 | BD122: 1633.213674 | BE122: 2061.704025 | BF122: 3773.977122 | BG122: 6313.685332 | BH122: 784.4221571 | BI122: 1297.621094 | BJ122: 1570.788841 | BK122: 1656.860281 | BL122: 1676.492749 | BM122: 750.2642916 | BN122: 975.2527082 | BO122: 1380.296912 | BP122: 1604.128599 | BQ122: 3136.072311 | BR122: 8210.430165 | BS122: 4706.594289 | BT122: 1915.17549
B123: Not Improved | C123: 84.14003657 | D123: 75.32351846 | E123: 68.88629301 | F123: 42.96791723 | G123: 4.621672118 | H123: 53.10771402 | I123: 22.3536213 | J123: 5.926077421 | K123: 0.602820647 | L123: 0 | M123: 84.83651871 | N123: 80.29539446 | O123: 72.09314332 | P123: 67.6146959 | Q123: 36.59524497 | R123: 46.50389487 | S123: 56.56418414 | T123: 72.30945711 | BB123: Not Improved | BC123: 5568.426938 | BD123: 4985.289338 | BE123: 4564.648874 | BF123: 2843.310795 | BG123: 305.9372513 | BH123: 888.3948975 | BI123: 373.572226 | BJ123: 98.95001746 | BK123: 10.04847012 | BL123: 0 | BM123: 4197.572405 | BN123: 3974.111573 | BO123: 3565.788301 | BP123: 3349.132283 | BQ123: 1810.043023 | BR123: 7137.285609 | BS123: 6129.150812 | BT123: 5001.176775
A124: Sanitation ladder | B124: Basic | C124: 15.72047561 | D124: 24.15261763 | E124: 29.50416939 | F124: 53.87012496 | G124: 92.86084472 | H124: 40.73208011 | I124: 69.9117842 | J124: 88.32915325 | K124: 97.69803096 | L124: 99.34299755 | M124: 15.10969728 | N124: 19.53477573 | O124: 27.58876297 | P124: 30.73444448 | Q124: 62.38889879 | R124: 51.31069048 | S124: 42.75529634 | T124: 26.00320276 | BA124: Sanitation ladder | BB124: Basic | BC124: 1040.388422 | BD124: 1598.541725 | BE124: 1953.741802 | BF124: 3564.741269 | BG124: 6147.037448 | BH124: 681.3731827 | BI124: 1168.361068 | BJ124: 1474.866195 | BK124: 1628.537028 | BL124: 1665.47815 | BM124: 747.6031466 | BN124: 966.8472123 | BO124: 1364.563725 | BP124: 1520.994069 | BQ124: 3085.82689 | BR124: 7875.018937 | BS124: 4630.958627 | BT124: 1798.473103
B125: Limited | C125: 0.1394878218 | D125: 0.5238639159 | E125: 1.563398799 | F125: 3.161957818 | G125: 2.517483164 | H125: 6.16020587 | I125: 7.734594506 | J125: 5.744769332 | K125: 1.699148394 | L125: 0.6570024538 | M125: 0.05378401069 | N125: 0.1698298086 | O125: 0.3180937173 | P125: 1.590261905 | Q125: 1.01585624 | R125: 2.185414647 | S125: 0.6573574301 | T125: 1.687340132 | BB125: Limited | BC125: 9.231369232 | BD125: 34.67194905 | BE125: 103.5269811 | BF125: 209.2358526 | BG125: 166.6478841 | BH125: 103.0489744 | BI125: 129.2600267 | BJ125: 95.92264585 | BK125: 28.32325328 | BL125: 11.0145985 | BM125: 2.661145018 | BN125: 8.405495886 | BO125: 15.73318631 | BP125: 78.69928888 | BQ125: 50.24542124 | BR125: 335.4112285 | BS125: 71.20042014 | BT125: 116.7023874
B126: Unimproved | C126: 7.440995333 | D126: 7.993964736 | E126: 6.307269319 | F126: 3.090024115 | G126: 0.7582367149 | H126: 8.746391054 | I126: 3.429363019 | J126: 1.446636209 | K126: 0.225232115 | L126: 0 | M126: 5.491006404 | N126: 9.26070226 | O126: 7.289319242 | P126: 4.943456814 | Q126: 2.57003591 | R126: 3.192239547 | S126: 10.57574241 | T126: 0.8448448193 | BB126: Unimproved | BC126: 492.4485483 | BD126: 529.0807969 | BE126: 417.6621807 | BF126: 204.4757924 | BG126: 50.19240882 | BH126: 146.3111212 | BI126: 57.3112857 | BJ126: 24.15504693 | BK126: 3.754413837 | BL126: 0 | BM126: 271.6860299 | BN126: 458.3458899 | BO126: 360.5359411 | BP126: 244.6430583 | BQ126: 127.1169403 | BR126: 489.9358525 | BS126: 1145.491431 | BT126: 58.4324438
B127: Open defecation | C127: 76.69904124 | D127: 67.32955372 | E127: 62.62516249 | F127: 39.87789311 | G127: 3.863435403 | H127: 44.36132297 | I127: 18.92425828 | J127: 4.479441211 | K127: 0.377588532 | L127: 0 | M127: 79.34551231 | N127: 71.0346922 | O127: 64.80382408 | P127: 62.7318368 | Q127: 34.02520906 | R127: 43.31165533 | S127: 46.01160382 | T127: 71.46461229 | BB127: Open defecation | BC127: 5075.97839 | BD127: 4456.208541 | BE127: 4146.986693 | BF127: 2638.835002 | BG127: 255.7448424 | BH127: 742.0837763 | BI127: 316.2609403 | BJ127: 74.79497053 | BK127: 6.294056285 | BL127: 0 | BM127: 3925.886375 | BN127: 3515.765683 | BO127: 3205.252359 | BP127: 3104.489224 | BQ127: 1682.926083 | BR127: 6647.349757 | BS127: 4983.659381 | BT127: 4942.744331
A128: Shared among Improved Sanitation | B128: Yes | C128: 0.879496491 | D128: 2.122927918 | E128: 5.032253536 | F128: 5.544173848 | G128: 2.639470853 | H128: 13.13692805 | I128: 9.96130745 | J128: 6.106654399 | K128: 1.709453332 | L128: 0.6570024538 | M128: 0.3546943454 | N128: 0.8618787536 | O128: 1.139840724 | P128: 4.919648413 | Q128: 1.602176744 | R128: 4.085184598 | S128: 1.514206972 | T128: 6.093561035 | BA128: Shared among improved sanitation facilities | BB128: Yes | BC128: N/A | BD128: N/A | BE128: N/A | BF128: N/A | BG128: N/A | BH128: N/A | BI128: N/A | BJ128: N/A | BK128: N/A | BL128: N/A | BM128: N/A | BN128: N/A | BO128: N/A | BP128: N/A | BQ128: N/A | BR128: N/A | BS128: N/A | BT128: N/A
B129: No | C129: 99.12050351 | D129: 97.87707208 | E129: 94.96774646 | F129: 94.45582615 | G129: 97.36052915 | H129: 86.86307195 | I129: 90.03869255 | J129: 93.8933456 | K129: 98.29054667 | L129: 99.34299755 | M129: 99.64530565 | N129: 99.13812125 | O129: 98.86015928 | P129: 95.08035159 | Q129: 98.39782326 | R129: 95.9148154 | S129: 98.48579303 | T129: 93.90643896 | BB129: No | BC129: N/A | BD129: N/A | BE129: N/A | BF129: N/A | BG129: N/A | BH129: N/A | BI129: N/A | BJ129: N/A | BK129: N/A | BL129: N/A | BM129: N/A | BN129: N/A | BO129: N/A | BP129: N/A | BQ129: N/A | BR129: N/A | BS129: N/A | BT129: N/A
A130: Manually calculated ratios | B130: Improved latrines | C130: =(C158+C159)/(C158+C159+C160+C161)*100 -> 16.50573265 | D130: =(D158+D159)/(D158+D159+D160+D161)*100 -> 15.33772826 | E130: 20.01355401 | F130: 14.35572208 | G130: 16.10374621 | H130: 17.27708451 | I130: 9.189310743 | J130: 15 | K130: 15 | L130: 15 | M130: =(M158+M159)/(M158+M159+M160+M161)*100 -> 19.7110975 | N130: 12.05258949 | O130: 18.02599506 | P130: 24.30269857 | Q130: 8.05992938 | R130: 3.971986733 | S130: 20.67470264 | T130: 36.63366337
B131: Other
B132: Other
C133: NATIONAL wealth index quintile | H133: URBAN wealth index quintile | M133: RURAL wealth index quintile | R133: SUB-REGIONS: | BA133: Raw numbers of respondents: | BB133: Use of sanitation facilities | BC133: NATIONAL wealth index quintile | BH133: URBAN wealth index quintile | BM133: RURAL wealth index quintile | BR133: SUB-REGIONS:
A134: Percentage based on weighted population | C134: Poorest | D134: Poor | E134: Middle | F134: Rich | G134: Richest | H134: Poorest | I134: Poor | J134: Middle | K134: Rich | L134: Richest | M134: Poorest | N134: Poor | O134: Middle | P134: Rich | Q134: Richest | R134: Centre | S134: North | T134: South | BA134: Sanitation data, raw numbers (weighted) | BC134: Poorest | BD134: Poor | BE134: Middle | BF134: Rich | BG134: Richest | BH134: Poorest | BI134: Poor | BJ134: Middle | BK134: Rich | BL134: Richest | BM134: Poorest | BN134: Poor | BO134: Middle | BP134: Rich | BQ134: Richest | BR134: Centre | BS134: North | BT134: South
A135: Sanitation type | B135: Sewer connection | C135: 0 | D135: 0 | E135: 0.3329183356 | F135: 1.587212194 | G135: 7.987778609 | H135: 0.4703186361 | I135: 4.707755985 | J135: 9.307991462 | K135: 6.937347133 | L135: 12.58867641 | M135: 0 | N135: 0 | O135: 0.08967176072 | P135: 0.3044423083 | Q135: 1.368479206 | R135: 3.701427439 | S135: 0.6835816044 | T135: 0.1980208289 | BA135: Sanitation type | BB135: Sewer connection | BC135: N/A | BD135: N/A | BE135: N/A | BF135: N/A | BG135: N/A | BH135: N/A | BI135: N/A | BJ135: N/A | BK135: N/A | BL135: N/A | BM135: N/A | BN135: N/A | BO135: N/A | BP135: N/A | BQ135: N/A | BR135: N/A | BS135: N/A | BT135: N/A
B136: Septic tank connection | C136: 0.7871590579 | D136: 2.61850999 | E136: 4.815687602 | F136: 16.8566988 | G136: 49.73077813 | H136: 9.215501157 | I136: 23.97881773 | J136: 40.18483054 | K136: 53.61970808 | L136: 65.83557606 | M136: 0.2321724099 | N136: 2.443687005 | O136: 3.293961902 | P136: 6.385414677 | Q136: 22.58167157 | R136: 27.54769874 | S136: 3.638574911 | T136: 4.76757204 | BB136: Septic tank connection | BC136: N/A | BD136: N/A | BE136: N/A | BF136: N/A | BG136: N/A | BH136: N/A | BI136: N/A | BJ136: N/A | BK136: N/A | BL136: N/A | BM136: N/A | BN136: N/A | BO136: N/A | BP136: N/A | BQ136: N/A | BR136: N/A | BS136: N/A | BT136: N/A
B137: Improved latrines | C137: 15.07280437 | D137: 22.05797155 | E137: 25.96510105 | F137: 38.58817178 | G137: 37.65977114 | H137: 37.20646618 | I137: 48.95980499 | J137: 44.58110058 | K137: 38.84012414 | L137: 21.57574753 | M137: 14.93130888 | N137: 17.26091853 | O137: 24.52322302 | P137: 25.69544711 | Q137: 39.45460425 | R137: 22.24697894 | S137: 39.11365935 | T137: 22.72495002 | BB137: Improved latrines | BC137: N/A | BD137: N/A | BE137: N/A | BF137: N/A | BG137: N/A | BH137: N/A | BI137: N/A | BJ137: N/A | BK137: N/A | BL137: N/A | BM137: N/A | BN137: N/A | BO137: N/A | BP137: N/A | BQ137: N/A | BR137: N/A | BS137: N/A | BT137: N/A
B138: Unimproved facilities | C138: 7.440995333 | D138: 7.993964736 | E138: 6.303047651 | F138: 3.090024115 | G138: 0.7582367149 | H138: 8.746391054 | I138: 3.429363019 | J138: 1.446636209 | K138: 0.225232115 | L138: 0 | M138: 5.491006404 | N138: 9.26070226 | O138: 7.289319242 | P138: 4.939030351 | Q138: 2.57003591 | R138: 3.192239547 | S138: 10.5714136 | T138: 0.8448448193 | BB138: Unimproved facilities | BC138: N/A | BD138: N/A | BE138: N/A | BF138: N/A | BG138: N/A | BH138: N/A | BI138: N/A | BJ138: N/A | BK138: N/A | BL138: N/A | BM138: N/A | BN138: N/A | BO138: N/A | BP138: N/A | BQ138: N/A | BR138: N/A | BS138: N/A | BT138: N/A
B139: Open defecation | C139: 76.69904124 | D139: 67.32955372 | E139: 62.58324536 | F139: 39.87789311 | G139: 3.863435403 | H139: 44.36132297 | I139: 18.92425828 | J139: 4.479441211 | K139: 0.377588532 | L139: 0 | M139: 79.34551231 | N139: 71.0346922 | O139: 64.80382408 | P139: 62.67566555 | Q139: 34.02520906 | R139: 43.31165533 | S139: 45.99277054 | T139: 71.46461229 | BB139: Open defecation | BC139: N/A | BD139: N/A | BE139: N/A | BF139: N/A | BG139: N/A | BH139: N/A | BI139: N/A | BJ139: N/A | BK139: N/A | BL139: N/A | BM139: N/A | BN139: N/A | BO139: N/A | BP139: N/A | BQ139: N/A | BR139: N/A | BS139: N/A | BT139: N/A
A140: Septic tank emptying practices | B140: Not emptied/treated and disposed in situ | C140: N/A | D140: N/A | E140: N/A | F140: N/A | G140: N/A | H140: N/A | I140: N/A | J140: N/A | K140: N/A | L140: N/A | M140: N/A | N140: N/A | O140: N/A | P140: N/A | Q140: N/A | R140: N/A | S140: N/A | T140: N/A | BA140: Septic tank emptying practices | BB140: Not emptied/treated and disposed in situ | BC140: N/A | BD140: N/A | BE140: N/A | BF140: N/A | BG140: N/A | BH140: N/A | BI140: N/A | BJ140: N/A | BK140: N/A | BL140: N/A | BM140: N/A | BN140: N/A | BO140: N/A | BP140: N/A | BQ140: N/A | BR140: N/A | BS140: N/A | BT140: N/A
B141: Emptied and buried on site | C141: N/A | D141: N/A | E141: N/A | F141: N/A | G141: N/A | H141: N/A | I141: N/A | J141: N/A | K141: N/A | L141: N/A | M141: N/A | N141: N/A | O141: N/A | P141: N/A | Q141: N/A | R141: N/A | S141: N/A | T141: N/A | BB141: Emptied and buried on site | BC141: N/A | BD141: N/A | BE141: N/A | BF141: N/A | BG141: N/A | BH141: N/A | BI141: N/A | BJ141: N/A | BK141: N/A | BL141: N/A | BM141: N/A | BN141: N/A | BO141: N/A | BP141: N/A | BQ141: N/A | BR141: N/A | BS141: N/A | BT141: N/A
B142: Emptied and discharged locally | C142: N/A | D142: N/A | E142: N/A | F142: N/A | G142: N/A | H142: N/A | I142: N/A | J142: N/A | K142: N/A | L142: N/A | M142: N/A | N142: N/A | O142: N/A | P142: N/A | Q142: N/A | R142: N/A | S142: N/A | T142: N/A | BB142: Emptied and discharged locally | BC142: N/A | BD142: N/A | BE142: N/A | BF142: N/A | BG142: N/A | BH142: N/A | BI142: N/A | BJ142: N/A | BK142: N/A | BL142: N/A | BM142: N/A | BN142: N/A | BO142: N/A | BP142: N/A | BQ142: N/A | BR142: N/A | BS142: N/A | BT142: N/A
B143: Emptied and removed offsite | C143: N/A | D143: N/A | E143: N/A | F143: N/A | G143: N/A | H143: N/A | I143: N/A | J143: N/A | K143: N/A | L143: N/A | M143: N/A | N143: N/A | O143: N/A | P143: N/A | Q143: N/A | R143: N/A | S143: N/A | T143: N/A | BB143: Emptied and removed offsite | BC143: N/A | BD143: N/A | BE143: N/A | BF143: N/A | BG143: N/A | BH143: N/A | BI143: N/A | BJ143: N/A | BK143: N/A | BL143: N/A | BM143: N/A | BN143: N/A | BO143: N/A | BP143: N/A | BQ143: N/A | BR143: N/A | BS143: N/A | BT143: N/A
A144: Latrine emptying practices | B144: Not emptied/treated and disposed in situ | C144: N/A | D144: N/A | E144: N/A | F144: N/A | G144: N/A | H144: N/A | I144: N/A | J144: N/A | K144: N/A | L144: N/A | M144: N/A | N144: N/A | O144: N/A | P144: N/A | Q144: N/A | R144: N/A | S144: N/A | T144: N/A | BA144: Latrine emptying practices | BB144: Not emptied/treated and disposed in situ | BC144: N/A | BD144: N/A | BE144: N/A | BF144: N/A | BG144: N/A | BH144: N/A | BI144: N/A | BJ144: N/A | BK144: N/A | BL144: N/A | BM144: N/A | BN144: N/A | BO144: N/A | BP144: N/A | BQ144: N/A | BR144: N/A | BS144: N/A | BT144: N/A
B145: Emptied and buried on site | C145: N/A | D145: N/A | E145: N/A | F145: N/A | G145: N/A | H145: N/A | I145: N/A | J145: N/A | K145: N/A | L145: N/A | M145: N/A | N145: N/A | O145: N/A | P145: N/A | Q145: N/A | R145: N/A | S145: N/A | T145: N/A | BB145: Emptied and buried on site | BC145: N/A | BD145: N/A | BE145: N/A | BF145: N/A | BG145: N/A | BH145: N/A | BI145: N/A | BJ145: N/A | BK145: N/A | BL145: N/A | BM145: N/A | BN145: N/A | BO145: N/A | BP145: N/A | BQ145: N/A | BR145: N/A | BS145: N/A | BT145: N/A
B146: Emptied and discharged locally | C146: N/A | D146: N/A | E146: N/A | F146: N/A | G146: N/A | H146: N/A | I146: N/A | J146: N/A | K146: N/A | L146: N/A | M146: N/A | N146: N/A | O146: N/A | P146: N/A | Q146: N/A | R146: N/A | S146: N/A | T146: N/A | BB146: Emptied and discharged locally | BC146: N/A | BD146: N/A | BE146: N/A | BF146: N/A | BG146: N/A | BH146: N/A | BI146: N/A | BJ146: N/A | BK146: N/A | BL146: N/A | BM146: N/A | BN146: N/A | BO146: N/A | BP146: N/A | BQ146: N/A | BR146: N/A | BS146: N/A | BT146: N/A
B147: Emptied and removed offsite | C147: N/A | D147: N/A | E147: N/A | F147: N/A | G147: N/A | H147: N/A | I147: N/A | J147: N/A | K147: N/A | L147: N/A | M147: N/A | N147: N/A | O147: N/A | P147: N/A | Q147: N/A | R147: N/A | S147: N/A | T147: N/A | BB147: Emptied and removed offsite | BC147: N/A | BD147: N/A | BE147: N/A | BF147: N/A | BG147: N/A | BH147: N/A | BI147: N/A | BJ147: N/A | BK147: N/A | BL147: N/A | BM147: N/A | BN147: N/A | BO147: N/A | BP147: N/A | BQ147: N/A | BR147: N/A | BS147: N/A | BT147: N/A
A148: Shared among improved sanitation facilities | B148: Yes | C148: 0.1394878218 | D148: 0.5238639159 | E148: 1.562352363 | F148: 3.161957818 | G148: 2.517483164 | H148: 6.16020587 | I148: 7.734594506 | J148: 5.744769332 | K148: 1.699148394 | L148: 0.6570024538 | M148: 0.05378401069 | N148: 0.1698298086 | O148: 0.3180937173 | P148: 1.588837955 | Q148: 1.01585624 | R148: 2.185414647 | S148: 0.6570883633 | T148: 1.687340132 | BA148: Shared among improved sanitation facilities | BB148: Yes | BC148: N/A | BD148: N/A | BE148: N/A | BF148: N/A | BG148: N/A | BH148: N/A | BI148: N/A | BJ148: N/A | BK148: N/A | BL148: N/A | BM148: N/A | BN148: N/A | BO148: N/A | BP148: N/A | BQ148: N/A | BR148: N/A | BS148: N/A | BT148: N/A
B149: No | C149: 15.72047561 | D149: 24.15261763 | E149: 29.48442125 | F149: 53.87012496 | G149: 92.86084472 | H149: 40.73208011 | I149: 69.9117842 | J149: 88.32915325 | K149: 97.69803096 | L149: 99.34299755 | M149: 15.10969728 | N149: 19.53477573 | O149: 27.58876297 | P149: 30.70692429 | Q149: 62.38889879 | R149: 51.31069048 | S149: 42.73779592 | T149: 26.00320276 | BB149: No | BC149: N/A | BD149: N/A | BE149: N/A | BF149: N/A | BG149: N/A | BH149: N/A | BI149: N/A | BJ149: N/A | BK149: N/A | BL149: N/A | BM149: N/A | BN149: N/A | BO149: N/A | BP149: N/A | BQ149: N/A | BR149: N/A | BS149: N/A | BT149: N/A
B150: DK/missing | C150: 84.14003657 | D150: 75.32351846 | E150: 68.95322638 | F150: 42.96791723 | G150: 4.621672118 | H150: 53.10771402 | I150: 22.3536213 | J150: 5.926077421 | K150: 0.602820647 | L150: 0 | M150: 84.83651871 | N150: 80.29539446 | O150: 72.09314332 | P150: 67.70423776 | Q150: 36.59524497 | R150: 46.50389487 | S150: 56.60511572 | T150: 72.30945711 | BB150: DK/missing | BC150: N/A | BD150: N/A | BE150: N/A | BF150: N/A | BG150: N/A | BH150: N/A | BI150: N/A | BJ150: N/A | BK150: N/A | BL150: N/A | BM150: N/A | BN150: N/A | BO150: N/A | BP150: N/A | BQ150: N/A | BR150: N/A | BS150: N/A | BT150: N/A
A151: Shared among all sanitation facilities | B151: Yes | C151: 0.9990177403 | D151: 1.603479522 | E151: 4.746888449 | F151: 5.447963944 | G151: 2.618653137 | H151: 12.25523741 | I151: 10.09414613 | J151: 6.014170566 | K151: 1.705588501 | L151: 0.6570024538 | M151: 0.5173557457 | N151: 0.8338240048 | O151: 1.084788509 | P151: 4.256842025 | Q151: 1.539764242 | R151: 3.981738542 | S151: 1.405608959 | T151: 6.205869334 | BA151: Shared among all sanitation facilities | BB151: Yes | BC151: N/A | BD151: N/A | BE151: N/A | BF151: N/A | BG151: N/A | BH151: N/A | BI151: N/A | BJ151: N/A | BK151: N/A | BL151: N/A | BM151: N/A | BN151: N/A | BO151: N/A | BP151: N/A | BQ151: N/A | BR151: N/A | BS151: N/A | BT151: N/A
B152: No | C152: 99.00098226 | D152: 98.39652048 | E152: 95.07422544 | F152: 94.55203606 | G152: 97.38134686 | H152: 87.74476259 | I152: 89.90585387 | J152: 93.98582943 | K152: 98.2944115 | L152: 99.34299755 | M152: 99.48264425 | N152: 99.166176 | O152: 98.91521149 | P152: 95.50325589 | Q152: 98.46023576 | R152: 96.01826146 | S152: 98.51860196 | T152: 93.79413067 | BB152: No | BC152: N/A | BD152: N/A | BE152: N/A | BF152: N/A | BG152: N/A | BH152: N/A | BI152: N/A | BJ152: N/A | BK152: N/A | BL152: N/A | BM152: N/A | BN152: N/A | BO152: N/A | BP152: N/A | BQ152: N/A | BR152: N/A | BS152: N/A | BT152: N/A
A153: Kind of toilet facility | B153: Flush to piped sewer system | C153: 0 | D153: 0 | E153: 0.3329183356 | F153: 1.587212194 | G153: 7.987778609 | H153: 0.4703186361 | I153: 4.707755985 | J153: 9.307991462 | K153: 6.937347133 | L153: 12.58867641 | M153: 0 | N153: 0 | O153: 0.08967176072 | P153: 0.3044423083 | Q153: 1.368479206 | R153: 3.701427439 | S153: 0.6835816044 | T153: 0.1980208289 | BA153: Kind of toilet facility | BB153: Flush to piped sewer system | BC153: 0 | BD153: 0 | BE153: 22.06034378 | BF153: 105.0304007 | BG153: 528.7607968 | BH153: 7.867570356 | BI153: 78.67570356 | BJ153: 155.4191504 | BK153: 115.6392465 | BL153: 211.0482472 | BM153: 0 | BN153: 0 | BO153: 4.435241696 | BP153: 15.07982177 | BQ153: 67.68655984 | BR153: 568.084563 | BS153: 74.07116021 | BT153: 13.69581809
B154: Flush to septic tank | C154: 0.7871590579 | D154: 2.61850999 | E154: 4.815687602 | F154: 16.8566988 | G154: 49.73077813 | H154: 9.215501157 | I154: 23.97881773 | J154: 40.18483054 | K154: 53.61970808 | L154: 65.83557606 | M154: 0.2321724099 | N154: 2.443687005 | O154: 3.293961902 | P154: 6.385414677 | Q154: 22.58167157 | R154: 27.54769874 | S154: 3.638574911 | T154: 4.76757204 | BB154: Flush to septic tank | BC154: 52.09455429 | BD154: 173.3061626 | BE154: 319.104455 | BF154: 1115.456293 | BG154: 3291.98982 | BH154: 154.158475 | BI154: 400.7324002 | BJ154: 670.9817306 | BK154: 893.7916065 | BL154: 1103.728659 | BM154: 11.48751169 | BN154: 120.9469718 | BO154: 162.9221625 | BP154: 316.2862473 | BQ154: 1116.91552 | BR154: 4227.942505 | BS154: 394.2667027 | BT154: 329.7420768
B155: Flush to pit (latrine) | C155: 13.55646669 | D155: 20.67328801 | E155: 24.43462784 | F155: 38.21264461 | G155: 37.54633828 | H155: 35.24264587 | I155: 48.73515032 | J155: 44.58110058 | K155: 38.84012414 | L155: 21.351803 | M155: 13.6492755 | N155: 15.99180279 | O155: 23.00733437 | P155: 24.15699092 | Q155: 39.29319607 | R155: 22.12194079 | S155: 36.4636556 | T155: 22.4439897 | BB155: Flush to pit (latrine) | BC155: 897.1733006 | BD155: 1368.262189 | BE155: 1619.12467 | BF155: 2528.640714 | BG155: 2485.425888 | BH155: 589.5449907 | BI155: 814.4585768 | BJ155: 744.3879598 | BK155: 647.4294283 | BL155: 357.961429 | BM155: 675.3438618 | BN155: 791.4925755 | BO155: 1137.962363 | BP155: 1196.558781 | BQ155: 1943.486796 | BR155: 3395.212597 | BS155: 3951.108775 | BT155: 1552.30539
B156: Flush to somewhere else | C156: 0.1206312887 | D156: 0.3506910551 | E156: 0.1863372887 | F156: 0.8496802891 | G156: 0.1672815131 | H156: 0.9555010023 | I156: 1.20927862 | J156: 0 | K156: 0.225232115 | L156: 0 | M156: 0.1613520321 | N156: 0 | O156: 0.3957489573 | P156: 0.1470940854 | Q156: 0.728843594 | R156: 0.1692774761 | S156: 0.5540946959 | T156: 0.358859405 | BB156: Flush to somewhere else | BC156: 7.983435053 | BD156: 23.21049805 | BE156: 12.34736633 | BF156: 56.2257911 | BG156: 11.07340482 | BH156: 15.98378372 | BI156: 20.20938352 | BJ156: 0 | BK156: 3.754413837 | BL156: 0 | BM156: 7.983435053 | BN156: 0 | BO156: 19.57408065 | BP156: 7.285953793 | BQ156: 36.04944477 | BR156: 25.9802259 | BS156: 60.04028887 | BT156: 24.81998059
B157: Flush to unknown place/not sure/DK where | C157: 0.08509490768 | D157: 0 | E157: 0 | F157: 0 | G157: 0 | H157: 0.3366549103 | I157: 0 | J157: 0 | K157: 0 | L157: 0 | M157: 0 | N157: 0 | O157: 0 | P157: 0 | Q157: 0 | R157: 0 | S157: 0.05197262119 | T157: 0 | BB157: Flush to unknown place/not sure/DK where | BC157: 5.631620755 | BD157: 0 | BE157: 0 | BF157: 0 | BG157: 0 | BH157: 5.631620755 | BI157: 0 | BJ157: 0 | BK157: 0 | BL157: 0 | BM157: 0 | BN157: 0 | BO157: 0 | BP157: 0 | BQ157: 0 | BR157: 0 | BS157: 5.631620755 | BT157: 0
B158: Ventilated Improved Pit latrine (VIP) | C158: 0.1226269341 | D158: 0.03967624829 | E158: 0 | F158: 0 | G158: 0.05671643344 | H158: 0 | I158: 0 | J158: 0 | K158: 0 | L158: 0.2239445318 | M158: 0.164021335 | N158: 0.05305678748 | O158: 0 | P158: 0 | Q158: 0 | R158: 0 | S158: 0.1095441202 | T158: 0.03796761049 | BB158: Ventilated Improved Pit latrine (VIP) | BC158: 8.115507803 | BD158: 2.625973688 | BE158: 0 | BF158: 0 | BG158: 3.754413837 | BH158: 0 | BI158: 0 | BJ158: 0 | BK158: 0 | BL158: 3.754413837 | BM158: 8.115507803 | BN158: 2.625973688 | BO158: 0 | BP158: 0 | BQ158: 0 | BR158: 0 | BS158: 11.86992164 | BT158: 2.625973688
B159: Pit latrine with slab | C159: 1.308615837 | D159: 1.345007299 | E159: 1.530473216 | F159: 0.3755271702 | G159: 0.05671643344 | H159: 1.6271654 | I159: 0.2246546699 | J159: 0 | K159: 0 | L159: 0 | M159: 1.118012047 | N159: 1.21605895 | O159: 1.515888653 | P159: 1.538456199 | Q159: 0.1614081863 | R159: 0.1250381512 | S159: 2.488487005 | T159: 0.2429927072 | BB159: Pit latrine with slab | BC159: 86.60480763 | BD159: 89.01934862 | BE159: 101.4145563 | BF159: 24.84971405 | BG159: 3.754413837 | BH159: 27.21950032 | BI159: 3.754413837 | BJ159: 0 | BK159: 0 | BL159: 0 | BM159: 55.31741034 | BN159: 60.18718731 | BO159: 74.9771445 | BP159: 76.20374908 | BQ159: 7.983435053 | BR159: 19.19050006 | BS159: 269.6461088 | BT159: 16.80623161
B160: Pit latrine without slab/open pit | C160: 6.273546019 | D160: 6.418764765 | E160: 5.107250501 | F160: 1.404179914 | G160: 0.198507517 | H160: 5.356751105 | I160: 0.3369820048 | J160: 0.7869762606 | K160: 0 | L160: 0 | M160: 5.22208635 | N160: 7.545489685 | O160: 6.208340082 | P160: 3.573108807 | Q160: 1.217640053 | R160: 1.939035276 | S160: 8.821836827 | T160: 0.4480178038 | BB160: Pit latrine without slab/open pit | BC160: 415.1862072 | BD160: 424.8261393 | BE160: 338.4244416 | BF160: 92.91862776 | BG160: 13.14044843 | BH160: 89.60864606 | BI160: 5.631620755 | BJ160: 13.14044843 | BK160: 0 | BL160: 0 | BM160: 258.3803048 | BN160: 373.4537714 | BO160: 307.0697907 | BP160: 176.9854008 | BQ160: 60.2258814 | BR160: 297.597623 | BS160: 955.9117518 | BT160: 30.98648952
B161: Hanging toilet/hanging latrine | C161: 0.9663971658 | D161: 1.224508916 | E161: 1.009459861 | F161: 0.836163912 | G161: 0.3924476847 | H161: 2.434138946 | I161: 1.883102394 | J161: 0.6596599489 | K161: 0 | L161: 0 | M161: 0 | N161: 1.715212574 | O161: 0.6852302027 | P161: 1.218827458 | Q161: 0.6235522631 | R161: 1.083926795 | S161: 1.146364176 | T161: 0.03796761049 | BB161: Hanging toilet/hanging latrine | BC161: 63.95661602 | BD161: 81.04415949 | BE161: 66.89037278 | BF161: 55.33137351 | BG161: 25.97855557 | BH161: 40.71869143 | BI161: 31.47028142 | BJ161: 11.0145985 | BK161: 0 | BL161: 0 | BM161: 0 | BN161: 84.89211851 | BO161: 33.89206973 | BP161: 60.37170369 | BQ161: 30.84161411 | BR161: 166.3580037 | BS161: 124.2171 | BT161: 2.625973688
B162: No facilities or bush or field | C162: 76.69904124 | D162: 67.32955372 | E162: 62.58324536 | F162: 39.87789311 | G162: 3.863435403 | H162: 44.36132297 | I162: 18.92425828 | J162: 4.479441211 | K162: 0.377588532 | L162: 0 | M162: 79.34551231 | N162: 71.0346922 | O162: 64.80382408 | P162: 62.67566555 | Q162: 34.02520906 | R162: 43.31165533 | S162: 45.99277054 | T162: 71.46461229 | BB162: No facilities or bush or field | BC162: 5075.97839 | BD162: 4456.208541 | BE162: 4146.986693 | BF162: 2638.835002 | BG162: 255.7448424 | BH162: 742.0837763 | BI162: 316.2609403 | BJ162: 74.79497053 | BK162: 6.294056285 | BL162: 0 | BM162: 3925.886375 | BN162: 3515.765683 | BO162: 3205.252359 | BP162: 3104.489224 | BQ162: 1682.926083 | BR162: 6647.349757 | BS162: 4983.659381 | BT162: 4942.744331
B163: Other | C163: 0.0804208591 | D163: 0 | E163: 0 | F163: 0 | G163: 0 | H163: 0 | I163: 0 | J163: 0 | K163: 0 | L163: 0 | M163: 0.1075680214 | N163: 0 | O163: 0 | P163: 0 | Q163: 0 | R163: 0 | S163: 0.04911789624 | T163: 0 | BB163: Other | BC163: 5.322290036 | BD163: 0 | BE163: 0 | BF163: 0 | BG163: 0 | BH163: 0 | BI163: 0 | BJ163: 0 | BK163: 0 | BL163: 0 | BM163: 5.322290036 | BN163: 0 | BO163: 0 | BP163: 0 | BQ163: 0 | BR163: 0 | BS163: 5.322290036 | BT163: 0
BB164: Total | BC164: 6618.04673 | BD164: 6618.503012 | BE164: 6626.352899 | BF164: 6617.287916 | BG164: 6619.622584 | BH164: 1672.817055 | BI164: 1671.19332 | BJ164: 1669.738858 | BK164: 1666.908751 | BL164: 1676.492749 | BM164: 4947.836697 | BN164: 4949.364282 | BO164: 4946.085212 | BP164: 4953.260882 | BQ164: 4946.115335 | BR164: 15347.71577 | BS164: 10835.7451 | BT164: 6916.352265
A208: =A1026 -> Lao People's Democratic Republic
A209: =A1034 -> 2006
A210: Access to hygiene facilities
A211: by wealth quintile and sub-national region
A212: Notes:
A213: WHO/UNICEF JMP customised wealth index excludes water,
A214: sanitation and hygiene assets.
A215: Survey used for analysis: | B215: =A1025 -> MICS06
A220: Access to handwashing | C220: NATIONAL wealth index quintile | H220: URBAN wealth index quintile | M220: RURAL wealth index quintile | R220: SUB-REGIONS: | BA220: Raw numbers of respondents: | BB220: Access to handwashing | BC220: NATIONAL wealth index quintile | BH220: URBAN wealth index quintile | BM220: RURAL wealth index quintile | BR220: SUB-REGIONS:
A221: Weighted percentage (used in graphs) | C221: Poorest | D221: Poor | E221: Middle | F221: Rich | G221: Richest | H221: Poorest | I221: Poor | J221: Middle | K221: Rich | L221: Richest | M221: Poorest | N221: Poor | O221: Middle | P221: Rich | Q221: Richest | R221: Centre | S221: North | T221: South | BA221: Hygiene data, raw numbers (weighted) | BC221: Poorest | BD221: Poor | BE221: Middle | BF221: Rich | BG221: Richest | BH221: Poorest | BI221: Poor | BJ221: Middle | BK221: Rich | BL221: Richest | BM221: Poorest | BN221: Poor | BO221: Middle | BP221: Rich | BQ221: Richest | BR221: Centre | BS221: North | BT221: South
A222: Hygiene ladder | B222: Basic | C222: N/A | D222: N/A | E222: N/A | F222: N/A | G222: N/A | H222: N/A | I222: N/A | J222: N/A | K222: N/A | L222: N/A | M222: N/A | N222: N/A | O222: N/A | P222: N/A | Q222: N/A | R222: N/A | S222: N/A | T222: N/A | BA222: Hygiene ladder | BB222: Basic | BC222: N/A | BD222: N/A | BE222: N/A | BF222: N/A | BG222: N/A | BH222: N/A | BI222: N/A | BJ222: N/A | BK222: N/A | BL222: N/A | BM222: N/A | BN222: N/A | BO222: N/A | BP222: N/A | BQ222: N/A | BR222: N/A | BS222: N/A | BT222: N/A
B223: Limited | C223: N/A | D223: N/A | E223: N/A | F223: N/A | G223: N/A | H223: N/A | I223: N/A | J223: N/A | K223: N/A | L223: N/A | M223: N/A | N223: N/A | O223: N/A | P223: N/A | Q223: N/A | R223: N/A | S223: N/A | T223: N/A | BB223: Limited | BC223: N/A | BD223: N/A | BE223: N/A | BF223: N/A | BG223: N/A | BH223: N/A | BI223: N/A | BJ223: N/A | BK223: N/A | BL223: N/A | BM223: N/A | BN223: N/A | BO223: N/A | BP223: N/A | BQ223: N/A | BR223: N/A | BS223: N/A | BT223: N/A
B224: No facility | C224: N/A | D224: N/A | E224: N/A | F224: N/A | G224: N/A | H224: N/A | I224: N/A | J224: N/A | K224: N/A | L224: N/A | M224: N/A | N224: N/A | O224: N/A | P224: N/A | Q224: N/A | R224: N/A | S224: N/A | T224: N/A | BB224: No facility | BC224: N/A | BD224: N/A | BE224: N/A | BF224: N/A | BG224: N/A | BH224: N/A | BI224: N/A | BJ224: N/A | BK224: N/A | BL224: N/A | BM224: N/A | BN224: N/A | BO224: N/A | BP224: N/A | BQ224: N/A | BR224: N/A | BS224: N/A | BT224: N/A
BA225: Observed handwashing place | BB225: Fixed | BC225: N/A | BD225: N/A | BE225: N/A | BF225: N/A | BG225: N/A | BH225: N/A | BI225: N/A | BJ225: N/A | BK225: N/A | BL225: N/A | BM225: N/A | BN225: N/A | BO225: N/A | BP225: N/A | BQ225: N/A | BR225: N/A | BS225: N/A | BT225: N/A
BB226: Mobile | BC226: N/A | BD226: N/A | BE226: N/A | BF226: N/A | BG226: N/A | BH226: N/A | BI226: N/A | BJ226: N/A | BK226: N/A | BL226: N/A | BM226: N/A | BN226: N/A | BO226: N/A | BP226: N/A | BQ226: N/A | BR226: N/A | BS226: N/A | BT226: N/A
BA227: Water / Soap | BB227: Water and soap | BC227: N/A | BD227: N/A | BE227: N/A | BF227: N/A | BG227: N/A | BH227: N/A | BI227: N/A | BJ227: N/A | BK227: N/A | BL227: N/A | BM227: N/A | BN227: N/A | BO227: N/A | BP227: N/A | BQ227: N/A | BR227: N/A | BS227: N/A | BT227: N/A
BB228: Water only | BC228: N/A | BD228: N/A | BE228: N/A | BF228: N/A | BG228: N/A | BH228: N/A | BI228: N/A | BJ228: N/A | BK228: N/A | BL228: N/A | BM228: N/A | BN228: N/A | BO228: N/A | BP228: N/A | BQ228: N/A | BR228: N/A | BS228: N/A | BT228: N/A
BB229: Soap only | BC229: N/A | BD229: N/A | BE229: N/A | BF229: N/A | BG229: N/A | BH229: N/A | BI229: N/A | BJ229: N/A | BK229: N/A | BL229: N/A | BM229: N/A | BN229: N/A | BO229: N/A | BP229: N/A | BQ229: N/A | BR229: N/A | BS229: N/A | BT229: N/A
BB230: Neither | BC230: N/A | BD230: N/A | BE230: N/A | BF230: N/A | BG230: N/A | BH230: N/A | BI230: N/A | BJ230: N/A | BK230: N/A | BL230: N/A | BM230: N/A | BN230: N/A | BO230: N/A | BP230: N/A | BQ230: N/A | BR230: N/A | BS230: N/A | BT230: N/A
BA259: Raw numbers of respondents: | BB259: Menstrual health and hygiene | BC259: NATIONAL wealth index quintile | BH259: URBAN wealth index quintile | BM259: RURAL wealth index quintile | BR259: SUB-REGIONS:
BA260: MHH data, raw numbers (weighted) | BC260: Poorest | BD260: Poor | BE260: Middle | BF260: Rich | BG260: Richest | BH260: Poorest | BI260: Poor | BJ260: Middle | BK260: Rich | BL260: Richest | BM260: Poorest | BN260: Poor | BO260: Middle | BP260: Rich | BQ260: Richest | BR260: Centre | BS260: North | BT260: South
BA261: Private place to wash and change | BB261: Yes | BC261: N/A | BD261: N/A | BE261: N/A | BF261: N/A | BG261: N/A | BH261: N/A | BI261: N/A | BJ261: N/A | BK261: N/A | BL261: N/A | BM261: N/A | BN261: N/A | BO261: N/A | BP261: N/A | BQ261: N/A | BR261: N/A | BS261: N/A | BT261: N/A
BB262: No | BC262: N/A | BD262: N/A | BE262: N/A | BF262: N/A | BG262: N/A | BH262: N/A | BI262: N/A | BJ262: N/A | BK262: N/A | BL262: N/A | BM262: N/A | BN262: N/A | BO262: N/A | BP262: N/A | BQ262: N/A | BR262: N/A | BS262: N/A | BT262: N/A
BB263: DK/not sure/missing | BC263: N/A | BD263: N/A | BE263: N/A | BF263: N/A | BG263: N/A | BH263: N/A | BI263: N/A | BJ263: N/A | BK263: N/A | BL263: N/A | BM263: N/A | BN263: N/A | BO263: N/A | BP263: N/A | BQ263: N/A | BR263: N/A | BS263: N/A | BT263: N/A
BA264: Use of menstrual materials | BB264: Materials reusable | BC264: N/A | BD264: N/A | BE264: N/A | BF264: N/A | BG264: N/A | BH264: N/A | BI264: N/A | BJ264: N/A | BK264: N/A | BL264: N/A | BM264: N/A | BN264: N/A | BO264: N/A | BP264: N/A | BQ264: N/A | BR264: N/A | BS264: N/A | BT264: N/A
BB265: Materials not reusable | BC265: N/A | BD265: N/A | BE265: N/A | BF265: N/A | BG265: N/A | BH265: N/A | BI265: N/A | BJ265: N/A | BK265: N/A | BL265: N/A | BM265: N/A | BN265: N/A | BO265: N/A | BP265: N/A | BQ265: N/A | BR265: N/A | BS265: N/A | BT265: N/A
BB266: No materials used | BC266: N/A | BD266: N/A | BE266: N/A | BF266: N/A | BG266: N/A | BH266: N/A | BI266: N/A | BJ266: N/A | BK266: N/A | BL266: N/A | BM266: N/A | BN266: N/A | BO266: N/A | BP266: N/A | BQ266: N/A | BR266: N/A | BS266: N/A | BT266: N/A
BB267: DK/not sure/missing | BC267: N/A | BD267: N/A | BE267: N/A | BF267: N/A | BG267: N/A | BH267: N/A | BI267: N/A | BJ267: N/A | BK267: N/A | BL267: N/A | BM267: N/A | BN267: N/A | BO267: N/A | BP267: N/A | BQ267: N/A | BR267: N/A | BS267: N/A | BT267: N/A
BA268: Use of menstrual materials with private place to wash and change | BB268: Materials reusable | BC268: N/A | BD268: N/A | BE268: N/A | BF268: N/A | BG268: N/A | BH268: N/A | BI268: N/A | BJ268: N/A | BK268: N/A | BL268: N/A | BM268: N/A | BN268: N/A | BO268: N/A | BP268: N/A | BQ268: N/A | BR268: N/A | BS268: N/A | BT268: N/A
BB269: Materials not reusable | BC269: N/A | BD269: N/A | BE269: N/A | BF269: N/A | BG269: N/A | BH269: N/A | BI269: N/A | BJ269: N/A | BK269: N/A | BL269: N/A | BM269: N/A | BN269: N/A | BO269: N/A | BP269: N/A | BQ269: N/A | BR269: N/A | BS269: N/A | BT269: N/A
BB270: No materials used | BC270: N/A | BD270: N/A | BE270: N/A | BF270: N/A | BG270: N/A | BH270: N/A | BI270: N/A | BJ270: N/A | BK270: N/A | BL270: N/A | BM270: N/A | BN270: N/A | BO270: N/A | BP270: N/A | BQ270: N/A | BR270: N/A | BS270: N/A | BT270: N/A
BA271: Awareness of menstruation before menarche | BB271: Yes | BC271: N/A | BD271: N/A | BE271: N/A | BF271: N/A | BG271: N/A | BH271: N/A | BI271: N/A | BJ271: N/A | BK271: N/A | BL271: N/A | BM271: N/A | BN271: N/A | BO271: N/A | BP271: N/A | BQ271: N/A | BR271: N/A | BS271: N/A | BT271: N/A
BB272: No | BC272: N/A | BD272: N/A | BE272: N/A | BF272: N/A | BG272: N/A | BH272: N/A | BI272: N/A | BJ272: N/A | BK272: N/A | BL272: N/A | BM272: N/A | BN272: N/A | BO272: N/A | BP272: N/A | BQ272: N/A | BR272: N/A | BS272: N/A | BT272: N/A
BB273: DK/not sure/missing | BC273: N/A | BD273: N/A | BE273: N/A | BF273: N/A | BG273: N/A | BH273: N/A | BI273: N/A | BJ273: N/A | BK273: N/A | BL273: N/A | BM273: N/A | BN273: N/A | BO273: N/A | BP273: N/A | BQ273: N/A | BR273: N/A | BS273: N/A | BT273: N/A
BA274: Participation in (all) activities during menstruation | BB274: Yes | BC274: N/A | BD274: N/A | BE274: N/A | BF274: N/A | BG274: N/A | BH274: N/A | BI274: N/A | BJ274: N/A | BK274: N/A | BL274: N/A | BM274: N/A | BN274: N/A | BO274: N/A | BP274: N/A | BQ274: N/A | BR274: N/A | BS274: N/A | BT274: N/A
BB275: No | BC275: N/A | BD275: N/A | BE275: N/A | BF275: N/A | BG275: N/A | BH275: N/A | BI275: N/A | BJ275: N/A | BK275: N/A | BL275: N/A | BM275: N/A | BN275: N/A | BO275: N/A | BP275: N/A | BQ275: N/A | BR275: N/A | BS275: N/A | BT275: N/A
BB276: DK/not sure/missing/no such activity | BC276: N/A | BD276: N/A | BE276: N/A | BF276: N/A | BG276: N/A | BH276: N/A | BI276: N/A | BJ276: N/A | BK276: N/A | BL276: N/A | BM276: N/A | BN276: N/A | BO276: N/A | BP276: N/A | BQ276: N/A | BR276: N/A | BS276: N/A | BT276: N/A
BA277: Participation in specific activities during menstruation | BB277: Did not go to school (amongst those usually attending school) | BC277: N/A | BD277: N/A | BE277: N/A | BF277: N/A | BG277: N/A | BH277: N/A | BI277: N/A | BJ277: N/A | BK277: N/A | BL277: N/A | BM277: N/A | BN277: N/A | BO277: N/A | BP277: N/A | BQ277: N/A | BR277: N/A | BS277: N/A | BT277: N/A
BB278: Did not go to work (amongst those who usually work) | BC278: N/A | BD278: N/A | BE278: N/A | BF278: N/A | BG278: N/A | BH278: N/A | BI278: N/A | BJ278: N/A | BK278: N/A | BL278: N/A | BM278: N/A | BN278: N/A | BO278: N/A | BP278: N/A | BQ278: N/A | BR278: N/A | BS278: N/A | BT278: N/A
BB279: Did not participate in social activities | BC279: N/A | BD279: N/A | BE279: N/A | BF279: N/A | BG279: N/A | BH279: N/A | BI279: N/A | BJ279: N/A | BK279: N/A | BL279: N/A | BM279: N/A | BN279: N/A | BO279: N/A | BP279: N/A | BQ279: N/A | BR279: N/A | BS279: N/A | BT279: N/A
BB280: Did not cook food | BC280: N/A | BD280: N/A | BE280: N/A | BF280: N/A | BG280: N/A | BH280: N/A | BI280: N/A | BJ280: N/A | BK280: N/A | BL280: N/A | BM280: N/A | BN280: N/A | BO280: N/A | BP280: N/A | BQ280: N/A | BR280: N/A | BS280: N/A | BT280: N/A
BB281: Did not eat with others | BC281: N/A | BD281: N/A | BE281: N/A | BF281: N/A | BG281: N/A | BH281: N/A | BI281: N/A | BJ281: N/A | BK281: N/A | BL281: N/A | BM281: N/A | BN281: N/A | BO281: N/A | BP281: N/A | BQ281: N/A | BR281: N/A | BS281: N/A | BT281: N/A
BB282: Did not bathe in regular place | BC282: N/A | BD282: N/A | BE282: N/A | BF282: N/A | BG282: N/A | BH282: N/A | BI282: N/A | BJ282: N/A | BK282: N/A | BL282: N/A | BM282: N/A | BN282: N/A | BO282: N/A | BP282: N/A | BQ282: N/A | BR282: N/A | BS282: N/A | BT282: N/A
BB283: Did not participate in other activities | BC283: N/A | BD283: N/A | BE283: N/A | BF283: N/A | BG283: N/A | BH283: N/A | BI283: N/A | BJ283: N/A | BK283: N/A | BL283: N/A | BM283: N/A | BN283: N/A | BO283: N/A | BP283: N/A | BQ283: N/A | BR283: N/A | BS283: N/A | BT283: N/A
BB284: DK/not sure/missing/no such activity | BC284: N/A | BD284: N/A | BE284: N/A | BF284: N/A | BG284: N/A | BH284: N/A | BI284: N/A | BJ284: N/A | BK284: N/A | BL284: N/A | BM284: N/A | BN284: N/A | BO284: N/A | BP284: N/A | BQ284: N/A | BR284: N/A | BS284: N/A | BT284: N/A
BA339: Raw numbers of respondents: | BB339: Basic water, sanitation and hygiene | BC339: NATIONAL wealth index quintile | BH339: URBAN wealth index quintile | BM339: RURAL wealth index quintile | BR339: SUB-REGIONS:
BA340: WatSan data, raw numbers (weighted) | BC340: Poorest | BD340: Poor | BE340: Middle | BF340: Rich | BG340: Richest | BH340: Poorest | BI340: Poor | BJ340: Middle | BK340: Rich | BL340: Richest | BM340: Poorest | BN340: Poor | BO340: Middle | BP340: Rich | BQ340: Richest | BR340: Centre | BS340: North | BT340: South
BA341: Use of Basic Water Sanitation and Hygiene | BB341: Yes | BC341: N/A | BD341: N/A | BE341: N/A | BF341: N/A | BG341: N/A | BH341: N/A | BI341: N/A | BJ341: N/A | BK341: N/A | BL341: N/A | BM341: N/A | BN341: N/A | BO341: N/A | BP341: N/A | BQ341: N/A | BR341: N/A | BS341: N/A | BT341: N/A
BB342: No | BC342: N/A | BD342: N/A | BE342: N/A | BF342: N/A | BG342: N/A | BH342: N/A | BI342: N/A | BJ342: N/A | BK342: N/A | BL342: N/A | BM342: N/A | BN342: N/A | BO342: N/A | BP342: N/A | BQ342: N/A | BR342: N/A | BS342: N/A | BT342: N/A
BA343: Use of Basic Water and Sanitation | BB343: Yes | BC343: N/A | BD343: N/A | BE343: N/A | BF343: N/A | BG343: N/A | BH343: N/A | BI343: N/A | BJ343: N/A | BK343: N/A | BL343: N/A | BM343: N/A | BN343: N/A | BO343: N/A | BP343: N/A | BQ343: N/A | BR343: N/A | BS343: N/A | BT343: N/A
BB344: No | BC344: N/A | BD344: N/A | BE344: N/A | BF344: N/A | BG344: N/A | BH344: N/A | BI344: N/A | BJ344: N/A | BK344: N/A | BL344: N/A | BM344: N/A | BN344: N/A | BO344: N/A | BP344: N/A | BQ344: N/A | BR344: N/A | BS344: N/A | BT344: N/A
BA345: Use of Basic Water and Hygiene | BB345: Yes | BC345: N/A | BD345: N/A | BE345: N/A | BF345: N/A | BG345: N/A | BH345: N/A | BI345: N/A | BJ345: N/A | BK345: N/A | BL345: N/A | BM345: N/A | BN345: N/A | BO345: N/A | BP345: N/A | BQ345: N/A | BR345: N/A | BS345: N/A | BT345: N/A
BB346: No | BC346: N/A | BD346: N/A | BE346: N/A | BF346: N/A | BG346: N/A | BH346: N/A | BI346: N/A | BJ346: N/A | BK346: N/A | BL346: N/A | BM346: N/A | BN346: N/A | BO346: N/A | BP346: N/A | BQ346: N/A | BR346: N/A | BS346: N/A | BT346: N/A
BA347: Use of Basic Sanitation and Hygiene | BB347: Yes | BC347: N/A | BD347: N/A | BE347: N/A | BF347: N/A | BG347: N/A | BH347: N/A | BI347: N/A | BJ347: N/A | BK347: N/A | BL347: N/A | BM347: N/A | BN347: N/A | BO347: N/A | BP347: N/A | BQ347: N/A | BR347: N/A | BS347: N/A | BT347: N/A
BB348: No | BC348: N/A | BD348: N/A | BE348: N/A | BF348: N/A | BG348: N/A | BH348: N/A | BI348: N/A | BJ348: N/A | BK348: N/A | BL348: N/A | BM348: N/A | BN348: N/A | BO348: N/A | BP348: N/A | BQ348: N/A | BR348: N/A | BS348: N/A | BT348: N/A
BA349: Use of Basic Water | BB349: Yes | BC349: N/A | BD349: N/A | BE349: N/A | BF349: N/A | BG349: N/A | BH349: N/A | BI349: N/A | BJ349: N/A | BK349: N/A | BL349: N/A | BM349: N/A | BN349: N/A | BO349: N/A | BP349: N/A | BQ349: N/A | BR349: N/A | BS349: N/A | BT349: N/A
BB350: No | BC350: N/A | BD350: N/A | BE350: N/A | BF350: N/A | BG350: N/A | BH350: N/A | BI350: N/A | BJ350: N/A | BK350: N/A | BL350: N/A | BM350: N/A | BN350: N/A | BO350: N/A | BP350: N/A | BQ350: N/A | BR350: N/A | BS350: N/A | BT350: N/A
BA351: Use of Basic Sanitation | BB351: Yes | BC351: N/A | BD351: N/A | BE351: N/A | BF351: N/A | BG351: N/A | BH351: N/A | BI351: N/A | BJ351: N/A | BK351: N/A | BL351: N/A | BM351: N/A | BN351: N/A | BO351: N/A | BP351: N/A | BQ351: N/A | BR351: N/A | BS351: N/A | BT351: N/A
BB352: No | BC352: N/A | BD352: N/A | BE352: N/A | BF352: N/A | BG352: N/A | BH352: N/A | BI352: N/A | BJ352: N/A | BK352: N/A | BL352: N/A | BM352: N/A | BN352: N/A | BO352: N/A | BP352: N/A | BQ352: N/A | BR352: N/A | BS352: N/A | BT352: N/A
BA353: Access to Basic Hygiene | BB353: Yes | BC353: N/A | BD353: N/A | BE353: N/A | BF353: N/A | BG353: N/A | BH353: N/A | BI353: N/A | BJ353: N/A | BK353: N/A | BL353: N/A | BM353: N/A | BN353: N/A | BO353: N/A | BP353: N/A | BQ353: N/A | BR353: N/A | BS353: N/A | BT353: N/A
BB354: No | BC354: N/A | BD354: N/A | BE354: N/A | BF354: N/A | BG354: N/A | BH354: N/A | BI354: N/A | BJ354: N/A | BK354: N/A | BL354: N/A | BM354: N/A | BN354: N/A | BO354: N/A | BP354: N/A | BQ354: N/A | BR354: N/A | BS354: N/A | BT354: N/A
C398: INITIAL (National) Wealth Index Quintile | H398: URBAN Wealth Index Quintile | M398: RURAL Wealth Index Quintile
C399: INITIAL (national) Wealth Index | H399: URBAN Wealth Index | M399: RURAL Wealth Index
E400: Component | J400: Component | O400: Component
B401: Note: The INITIAL (national) Wealth Index is based on the first component of the Principal Component Analysis (PCA) which has been obtained at national level. The final national-level (NATIONAL) Wealth Index is based on the URBAN and RURAL specific wealth indexes. Regression procedures are used to establish the relationships between the two sets of scores (urban and rural) and the initial (national) wealth factors. This allows best use of the available information for each area and a better precision of the FINAL (NATIONAL) Wealth Index. For dependency reasons, all WASH variables (contained in the generic MICS and DHS scripts) have been excluded from the sets of asset variables used in the PCAs. The PCA can extracts as many components as there are asset variables in the input. Only the first of the components is used to represent the Wealth Index. The scores represent the weights of the asset variables on the Wealth Index (correlations between the variables and the component). The communalities are the proportion of each variable's variance that can be explained by the component. Proportion of explained variance is the part of the model's total variance that is explained by the component. For more information on the procedure used: The DHS Wealth Index, DHS Comparative Reports No. 6, Shea Oscar Rutstein, Kiersten Johnson, ORC Macro International Inc., 2004. The DHS Wealth Index: Approaches for Rural and Urban Areas, Shea O. Rutstein, ORC Macro International Inc., 2008. MICS Methodological Paper No. 4, Review of options for reporting water, sanitation and hygiene coverage by wealth quintile, UNICEF, 2016. | E401: 1 | J401: 1 | O401: 1
C402: Household has: refrigerator | E402: 0.7725940634 | H402: Household has: refrigerator | J402: 0.6990562941 | M402: Household has: tv | O402: 0.6754148298
C403: Household has: mobile telephone | E403: 0.7473871734 | H403: Household has: mobile telephone | J403: 0.6792629124 | M403: Household has: cd | O403: 0.6680853633
C404: Household has: cd | E404: 0.7240021638 | H404: Has cement wall | J404: 0.6656639596 | M404: Household has: refrigerator | O404: 0.6423056914
C405: Household has: tv | E405: 0.7085503722 | H405: Household has: bed | J405: 0.6295171871 | M405: Household has: electricity | O405: 0.6064055685
C406: Household member owns: motorcycle/scooter | E406: 0.6885047438 | H406: Household has: computer | J406: 0.6186683878 | M406: Has jute roof | O406: -0.5935788587
C407: Household has: electricity | E407: 0.6539348611 | H407: Household member owns: motorcycle/scooter | J407: 0.6081234346 | M407: Household has: mobile telephone | O407: 0.5898179529
C408: Has cement wall | E408: 0.6381900016 | H408: Household has: cd | J408: 0.5736993171 | M408: Household member owns: motorcycle/scooter | O408: 0.5863956408
C409: Household fuel type: wood | E409: -0.6109128363 | H409: Household has: tv | J409: 0.5655474706 | M409: Household cooks in owm house | O409: -0.5657227568
C410: Household has: clock | E410: 0.6025110845 | H410: Has ceramic tile floor | J410: 0.5531862746 | M410: Household fuel type: wood | O410: -0.5200856419
C411: Household has: computer | E411: 0.5815294558 | H411: Household has: washing machine | J411: 0.5527549792 | M411: Household cooks in other house | O411: 0.5152775219
C412: Household has: bed | E412: 0.5532625481 | H412: Household has: clock | J412: 0.5400699982 | M412: Has corrugated iron roof | O412: 0.4968021908
C413: Has jute roof | E413: -0.5167971682 | H413: Household has: electricity | J413: 0.5014186552 | M413: Household fuel type: coal/lignite | O413: 0.489990168
C414: Household fuel type: coal/lignite | E414: 0.5082262504 | H414: Household fuel type: wood | J414: -0.4846786624 | M414: Has bamboo with dry leaf wall | O414: -0.4683066985
... 295 more rows

Sheet MICS12
A2: =A1026 -> Lao People's Democratic Republic
A3: =A1034 -> 2012
A4: Use of drinking water sources
A5: by wealth quintile and sub-national region
A6: Notes:
A7: WHO/UNICEF JMP customised wealth index excludes water,
A8: sanitation and hygiene assets.
A9: Survey used for analysis: | B9: =A1025 -> MICS12
A10: =B1028 -> 
A11: =B1027 -> 
A14: Use of drinking water sources | C14: NATIONAL wealth index quintile | H14: URBAN wealth index quintile | M14: RURAL wealth index quintile | R14: SUB-REGIONS: | BA14: Raw numbers of respondents: | BB14: Use of drinking water sources | BC14: NATIONAL wealth index quintile | BH14: URBAN wealth index quintile | BM14: RURAL wealth index quintile | BR14: SUB-REGIONS:
A15: Weighted percentage (used in graphs) | C15: Poorest | D15: Poor | E15: Middle | F15: Rich | G15: Richest | H15: Poorest | I15: Poor | J15: Middle | K15: Rich | L15: Richest | M15: Poorest | N15: Poor | O15: Middle | P15: Rich | Q15: Richest | R15: Attapeu | S15: Bokeo | T15: Borikhamxay | U15: Champasack | V15: Huaphanh | W15: Khammuane | X15: Luangnamtha | Y15: Luangprabang | Z15: Oudomxay | AA15: Phongsaly | AB15: Saravane | AC15: Savannakhet | AD15: Sekong | AE15: Vientiane | AF15: Vientiane Capital | AG15: Xayabury | AH15: Xiengkhuang | BA15: Water data, raw numbers (weighted) | BC15: Poorest | BD15: Poor | BE15: Middle | BF15: Rich | BG15: Richest | BH15: Poorest | BI15: Poor | BJ15: Middle | BK15: Rich | BL15: Richest | BM15: Poorest | BN15: Poor | BO15: Middle | BP15: Rich | BQ15: Richest | BR15: Attapeu | BS15: Bokeo | BT15: Borikhamxay | BU15: Champasack | BV15: Huaphanh | BW15: Khammuane | BX15: Luangnamtha | BY15: Luangprabang | BZ15: Oudomxay | CA15: Phongsaly | CB15: Saravane | CC15: Savannakhet | CD15: Sekong | CE15: Vientiane | CF15: Vientiane Capital | CG15: Xayabury | CH15: Xiengkhuang
A16: Water | B16: Improved | C16: 61.21139646 | D16: 62.93664639 | E16: 70.69110691 | F16: 81.68104176 | G16: 96.29352705 | H16: 77.08196414 | I16: 91.10135524 | J16: 96.45201001 | K16: 99.22168184 | L16: 99.17500188 | M16: 59.98503768 | N16: 61.67179353 | O16: 64.99133116 | P16: 70.55218399 | Q16: 84.72943407 | R16: 61.24301258 | S16: 82.21529453 | T16: 76.55403295 | U16: 73.78876054 | V16: 86.88102873 | W16: 63.89230786 | X16: 97.7722207 | Y16: 82.1660703 | Z16: 80.84327574 | AA16: 76.02103878 | AB16: 59.56171653 | AC16: 52.55566183 | AD16: 75.25497636 | AE16: 78.51220104 | AF16: 95.0595386 | AG16: 73.08369978 | AH16: 77.62161416 | BA16: Water | BB16: Improved | BC16: N/A | BD16: N/A | BE16: N/A | BF16: N/A | BG16: N/A | BH16: N/A | BI16: N/A | BJ16: N/A | BK16: N/A | BL16: N/A | BM16: N/A | BN16: N/A | BO16: N/A | BP16: N/A | BQ16: N/A | BR16: N/A | BS16: N/A | BT16: N/A | BU16: N/A | BV16: N/A | BW16: N/A | BX16: N/A | BY16: N/A | BZ16: N/A | CA16: N/A | CB16: N/A | CC16: N/A | CD16: N/A | CE16: N/A | CF16: N/A | CG16: N/A | CH16: N/A
B17: Not Improved | C17: 38.78860354 | D17: 37.06335361 | E17: 29.30889309 | F17: 18.31895824 | G17: 3.706472951 | H17: 22.91803586 | I17: 8.89864476 | J17: 3.547989992 | K17: 0.7783181611 | L17: 0.8249981153 | M17: 40.01496232 | N17: 38.32820647 | O17: 35.00866884 | P17: 29.44781601 | Q17: 15.27056593 | R17: 38.75698742 | S17: 17.78470547 | T17: 23.44596705 | U17: 26.21123946 | V17: 13.11897127 | W17: 36.10769214 | X17: 2.227779301 | Y17: 17.8339297 | Z17: 19.15672426 | AA17: 23.97896122 | AB17: 40.43828347 | AC17: 47.44433817 | AD17: 24.74502364 | AE17: 21.48779896 | AF17: 4.940461399 | AG17: 26.91630022 | AH17: 22.37838584 | BB17: Not Improved | BC17: N/A | BD17: N/A | BE17: N/A | BF17: N/A | BG17: N/A | BH17: N/A | BI17: N/A | BJ17: N/A | BK17: N/A | BL17: N/A | BM17: N/A | BN17: N/A | BO17: N/A | BP17: N/A | BQ17: N/A | BR17: N/A | BS17: N/A | BT17: N/A | BU17: N/A | BV17: N/A | BW17: N/A | BX17: N/A | BY17: N/A | BZ17: N/A | CA17: N/A | CB17: N/A | CC17: N/A | CD17: N/A | CE17: N/A | CF17: N/A | CG17: N/A | CH17: N/A
A18: Water ladder | B18: Basic | C18: 60.09919114 | D18: 61.71313189 | E18: 70.07216772 | F18: 81.19435555 | G18: 96.21427684 | H18: 76.56299202 | I18: 90.95712345 | J18: 96.38596003 | K18: 99.21597125 | L18: 99.17358338 | M18: 58.99313225 | N18: 60.31274379 | O18: 64.00068838 | P18: 69.86055817 | Q18: 84.39622146 | R18: 61.03358647 | S18: 82.15445322 | T18: 76.1775585 | U18: 73.21999803 | V18: 86.81857739 | W18: 62.51054423 | X18: 97.75389821 | Y18: 81.66894877 | Z18: 80.73181224 | AA18: 74.03541624 | AB18: 58.07248756 | AC18: 51.74543141 | AD18: 71.47451918 | AE18: 78.15758137 | AF18: 94.9920948 | AG18: 72.41510175 | AH18: 77.39810943 | BA18: Water ladder | BB18: Basic | BC18: N/A | BD18: N/A | BE18: N/A | BF18: N/A | BG18: N/A | BH18: N/A | BI18: N/A | BJ18: N/A | BK18: N/A | BL18: N/A | BM18: N/A | BN18: N/A | BO18: N/A | BP18: N/A | BQ18: N/A | BR18: N/A | BS18: N/A | BT18: N/A | BU18: N/A | BV18: N/A | BW18: N/A | BX18: N/A | BY18: N/A | BZ18: N/A | CA18: N/A | CB18: N/A | CC18: N/A | CD18: N/A | CE18: N/A | CF18: N/A | CG18: N/A | CH18: N/A
B19: Limited | C19: 0.7378684058 | D19: 0.6663994489 | E19: 0.3054473207 | F19: 0.3452151916 | G19: 0.05631894127 | H19: 0 | I19: 0.02630151895 | J19: 0 | K19: 0 | L19: 0 | M19: 0.6102685803 | N19: 0.8344200623 | O19: 0.6110348457 | P19: 0.4856928318 | Q19: 0.2804405975 | R19: 0.1057953697 | S19: 0 | T19: 0 | U19: 0.389272464 | V19: 0 | W19: 1.336371817 | X19: 0 | Y19: 0.050977099 | Z19: 0 | AA19: 0 | AB19: 1.26873972 | AC19: 0.5986988179 | AD19: 3.693787912 | AE19: 0.2210448323 | AF19: 0 | AG19: 0.5936434806 | AH19: 0.1929126033 | BB19: Limited | BC19: N/A | BD19: N/A | BE19: N/A | BF19: N/A | BG19: N/A | BH19: N/A | BI19: N/A | BJ19: N/A | BK19: N/A | BL19: N/A | BM19: N/A | BN19: N/A | BO19: N/A | BP19: N/A | BQ19: N/A | BR19: N/A | BS19: N/A | BT19: N/A | BU19: N/A | BV19: N/A | BW19: N/A | BX19: N/A | BY19: N/A | BZ19: N/A | CA19: N/A | CB19: N/A | CC19: N/A | CD19: N/A | CE19: N/A | CF19: N/A | CG19: N/A | CH19: N/A
B20: Unimproved | C20: 17.3190305 | D20: 23.93727423 | E20: 21.50304702 | F20: 13.83004888 | G20: 3.013476731 | H20: 20.47650838 | I20: 6.896021062 | J20: 2.652468317 | K20: 0.7273679266 | L20: 0.8264166152 | M20: 16.48093687 | N20: 22.01699857 | O20: 24.16468778 | P20: 21.59697985 | Q20: 11.72250867 | R20: 23.99329535 | S20: 9.439683999 | T20: 20.06884354 | U20: 4.186498414 | V20: 6.327718686 | W20: 29.10513798 | X20: 0.3535526172 | Y20: 0.6598859389 | Z20: 6.121289369 | AA20: 5.725854281 | AB20: 19.89456615 | AC20: 40.58798574 | AD20: 7.813925647 | AE20: 19.7353149 | AF20: 4.777766335 | AG20: 19.23169716 | AH20: 14.48178073 | BB20: Unimproved | BC20: N/A | BD20: N/A | BE20: N/A | BF20: N/A | BG20: N/A | BH20: N/A | BI20: N/A | BJ20: N/A | BK20: N/A | BL20: N/A | BM20: N/A | BN20: N/A | BO20: N/A | BP20: N/A | BQ20: N/A | BR20: N/A | BS20: N/A | BT20: N/A | BU20: N/A | BV20: N/A | BW20: N/A | BX20: N/A | BY20: N/A | BZ20: N/A | CA20: N/A | CB20: N/A | CC20: N/A | CD20: N/A | CE20: N/A | CF20: N/A | CG20: N/A | CH20: N/A
B21: Surface water | C21: 21.84390996 | D21: 13.68319443 | E21: 8.119337945 | F21: 4.630380385 | G21: 0.7159274861 | H21: 2.960499595 | I21: 2.120553966 | J21: 0.9615716563 | K21: 0.05666082582 | L21: 0 | M21: 23.9156623 | N21: 16.83583757 | O21: 11.223589 | P21: 8.056769146 | Q21: 3.600829266 | R21: 14.86732281 | S21: 8.405862776 | T21: 3.753597962 | U21: 22.20423109 | V21: 6.85370392 | W21: 7.04794598 | X21: 1.892549172 | Y21: 17.62018819 | Z21: 13.14689839 | AA21: 20.23872948 | AB21: 20.76420658 | AC21: 7.067884027 | AD21: 17.01776726 | AE21: 1.886058895 | AF21: 0.2301388622 | AG21: 7.759557607 | AH21: 7.92719724 | BB21: Surface water | BC21: N/A | BD21: N/A | BE21: N/A | BF21: N/A | BG21: N/A | BH21: N/A | BI21: N/A | BJ21: N/A | BK21: N/A | BL21: N/A | BM21: N/A | BN21: N/A | BO21: N/A | BP21: N/A | BQ21: N/A | BR21: N/A | BS21: N/A | BT21: N/A | BU21: N/A | BV21: N/A | BW21: N/A | BX21: N/A | BY21: N/A | BZ21: N/A | CA21: N/A | CB21: N/A | CC21: N/A | CD21: N/A | CE21: N/A | CF21: N/A | CG21: N/A | CH21: N/A
A22: Improved water point at more than 30 minutes | B22: Yes | C22: 1.212860075 | D22: 1.068298262 | E22: 0.4340120371 | F22: 0.4233713625 | G22: 0.05850066763 | H22: 0 | I22: 0.02890803348 | J22: 0 | K22: 0 | L22: 0 | M22: 1.023882147 | N22: 1.36460959 | O22: 0.9457027535 | P22: 0.6904317215 | Q22: 0.3311899532 | R22: 0.1730396456 | S22: 0 | T22: 0 | U22: 0.5288361932 | V22: 0 | W22: 2.093087497 | X22: 0 | Y22: 0.06238025605 | Z22: 0 | AA22: 0 | AB22: 2.138040917 | AC22: 1.143774508 | AD22: 4.914023017 | AE22: 0.2820218254 | AF22: 0 | AG22: 0.8131128383 | AH22: 0.2486274807 | BA22: Improved water point at more than 30 minutes | BB22: Yes | BC22: N/A | BD22: N/A | BE22: N/A | BF22: N/A | BG22: N/A | BH22: N/A | BI22: N/A | BJ22: N/A | BK22: N/A | BL22: N/A | BM22: N/A | BN22: N/A | BO22: N/A | BP22: N/A | BQ22: N/A | BR22: N/A | BS22: N/A | BT22: N/A | BU22: N/A | BV22: N/A | BW22: N/A | BX22: N/A | BY22: N/A | BZ22: N/A | CA22: N/A | CB22: N/A | CC22: N/A | CD22: N/A | CE22: N/A | CF22: N/A | CG22: N/A | CH22: N/A
B23: No | C23: 98.78713993 | D23: 98.93170174 | E23: 99.56598796 | F23: 99.57662864 | G23: 99.94149933 | H23: 100 | I23: 99.97109197 | J23: 100 | K23: 100 | L23: 100 | M23: 98.97611785 | N23: 98.63539041 | O23: 99.05429725 | P23: 99.30956828 | Q23: 99.66881005 | R23: 99.82696035 | S23: 100 | T23: 100 | U23: 99.47116381 | V23: 100 | W23: 97.9069125 | X23: 100 | Y23: 99.93761974 | Z23: 100 | AA23: 100 | AB23: 97.86195908 | AC23: 98.85622549 | AD23: 95.08597698 | AE23: 99.71797817 | AF23: 100 | AG23: 99.18688716 | AH23: 99.75137252 | BB23: No | BC23: N/A | BD23: N/A | BE23: N/A | BF23: N/A | BG23: N/A | BH23: N/A | BI23: N/A | BJ23: N/A | BK23: N/A | BL23: N/A | BM23: N/A | BN23: N/A | BO23: N/A | BP23: N/A | BQ23: N/A | BR23: N/A | BS23: N/A | BT23: N/A | BU23: N/A | BV23: N/A | BW23: N/A | BX23: N/A | BY23: N/A | BZ23: N/A | CA23: N/A | CB23: N/A | CC23: N/A | CD23: N/A | CE23: N/A | CF23: N/A | CG23: N/A | CH23: N/A
A24: Manually calculated ratios | B24: Improved wells
B25: Improved springs
B26: Other
C27: NATIONAL wealth index quintile | H27: URBAN wealth index quintile | M27: RURAL wealth index quintile | R27: SUB-REGIONS: | BA27: Raw numbers of respondents: | BB27: Use of drinking water sources | BC27: NATIONAL wealth index quintile | BH27: URBAN wealth index quintile | BM27: RURAL wealth index quintile | BR27: SUB-REGIONS:
A28: Percentage based on weighted population | C28: Poorest | D28: Poor | E28: Middle | F28: Rich | G28: Richest | H28: Poorest | I28: Poor | J28: Middle | K28: Rich | L28: Richest | M28: Poorest | N28: Poor | O28: Middle | P28: Rich | Q28: Richest | R28: Attapeu | S28: Bokeo | T28: Borikhamxay | U28: Champasack | V28: Huaphanh | W28: Khammuane | X28: Luangnamtha | Y28: Luangprabang | Z28: Oudomxay | AA28: Phongsaly | AB28: Saravane | AC28: Savannakhet | AD28: Sekong | AE28: Vientiane | AF28: Vientiane Capital | AG28: Xayabury | AH28: Xiengkhuang | BA28: Water data, raw numbers (weighted) | BC28: Poorest | BD28: Poor | BE28: Middle | BF28: Rich | BG28: Richest | BH28: Poorest | BI28: Poor | BJ28: Middle | BK28: Rich | BL28: Richest | BM28: Poorest | BN28: Poor | BO28: Middle | BP28: Rich | BQ28: Richest | BR28: Attapeu | BS28: Bokeo | BT28: Borikhamxay | BU28: Champasack | BV28: Huaphanh | BW28: Khammuane | BX28: Luangnamtha | BY28: Luangprabang | BZ28: Oudomxay | CA28: Phongsaly | CB28: Saravane | CC28: Savannakhet | CD28: Sekong | CE28: Vientiane | CF28: Vientiane Capital | CG28: Xayabury | CH28: Xiengkhuang
A29: Piped water | B29: Yes | C29: 31.94679818 | D29: 29.92738311 | E29: 28.88925703 | F29: 30.0508668 | G29: 55.95894958 | H29: 41.52128461 | I29: 51.7499928 | J29: 61.82510249 | K29: 73.09955297 | L29: 87.35843171 | M29: 31.80416178 | N29: 30.08015016 | O29: 27.55315389 | P29: 23.68136996 | Q29: 16.1358338 | R29: 15.66107087 | S29: 13.50435777 | T29: 28.60309797 | U29: 22.15167766 | V29: 81.73467158 | W29: 10.42736002 | X29: 82.39328483 | Y29: 67.26967004 | Z29: 76.6554469 | AA29: 19.09118511 | AB29: 11.63649641 | AC29: 14.75004358 | AD29: 25.92046619 | AE29: 20.50179132 | AF29: 52.61056335 | AG29: 37.72706231 | AH29: 35.54491963 | BA29: Piped water | BB29: Yes | BC29: N/A | BD29: N/A | BE29: N/A | BF29: N/A | BG29: N/A | BH29: N/A | BI29: N/A | BJ29: N/A | BK29: N/A | BL29: N/A | BM29: N/A | BN29: N/A | BO29: N/A | BP29: N/A | BQ29: N/A | BR29: N/A | BS29: N/A | BT29: N/A | BU29: N/A | BV29: N/A | BW29: N/A | BX29: N/A | BY29: N/A | BZ29: N/A | CA29: N/A | CB29: N/A | CC29: N/A | CD29: N/A | CE29: N/A | CF29: N/A | CG29: N/A | CH29: N/A
B30: No | C30: 68.05320182 | D30: 70.07261689 | E30: 71.11074297 | F30: 69.9491332 | G30: 44.04105042 | H30: 58.47871539 | I30: 48.2500072 | J30: 38.17489751 | K30: 26.90044703 | L30: 12.64156829 | M30: 68.19583822 | N30: 69.91984984 | O30: 72.44684611 | P30: 76.31863004 | Q30: 83.8641662 | R30: 84.33892913 | S30: 86.49564223 | T30: 71.39690203 | U30: 77.84832234 | V30: 18.26532842 | W30: 89.57263998 | X30: 17.60671517 | Y30: 32.73032996 | Z30: 23.3445531 | AA30: 80.90881489 | AB30: 88.36350359 | AC30: 85.24995642 | AD30: 74.07953381 | AE30: 79.49820868 | AF30: 47.38943665 | AG30: 62.27293769 | AH30: 64.45508037 | BB30: No | BC30: N/A | BD30: N/A | BE30: N/A | BF30: N/A | BG30: N/A | BH30: N/A | BI30: N/A | BJ30: N/A | BK30: N/A | BL30: N/A | BM30: N/A | BN30: N/A | BO30: N/A | BP30: N/A | BQ30: N/A | BR30: N/A | BS30: N/A | BT30: N/A | BU30: N/A | BV30: N/A | BW30: N/A | BX30: N/A | BY30: N/A | BZ30: N/A | CA30: N/A | CB30: N/A | CC30: N/A | CD30: N/A | CE30: N/A | CF30: N/A | CG30: N/A | CH30: N/A
A31: Piped water on premises | B31: Yes | C31: 4.420948749 | D31: 8.030958957 | E31: 14.62888822 | F31: 23.89762294 | G31: 54.85315277 | H31: 30.60884436 | I31: 46.49198244 | J31: 59.50029372 | K31: 72.24229479 | L31: 87.35843171 | M31: 3.294389584 | N31: 5.957755599 | O31: 7.811916835 | P31: 11.42557017 | Q31: 12.16549314 | R31: 14.86489448 | S31: 9.564508993 | T31: 24.35726405 | U31: 18.29517021 | V31: 20.78662458 | W31: 8.372532712 | X31: 30.72714311 | Y31: 32.88070497 | Z31: 18.56147812 | AA31: 14.54719417 | AB31: 9.925113302 | AC31: 14.02225718 | AD31: 23.84006814 | AE31: 11.79431696 | AF31: 51.4810185 | AG31: 17.46666947 | AH31: 13.11653405 | BA31: Piped water on premises | BB31: Yes | BC31: N/A | BD31: N/A | BE31: N/A | BF31: N/A | BG31: N/A | BH31: N/A | BI31: N/A | BJ31: N/A | BK31: N/A | BL31: N/A | BM31: N/A | BN31: N/A | BO31: N/A | BP31: N/A | BQ31: N/A | BR31: N/A | BS31: N/A | BT31: N/A | BU31: N/A | BV31: N/A | BW31: N/A | BX31: N/A | BY31: N/A | BZ31: N/A | CA31: N/A | CB31: N/A | CC31: N/A | CD31: N/A | CE31: N/A | CF31: N/A | CG31: N/A | CH31: N/A
B32: No | C32: 95.57905125 | D32: 91.96904104 | E32: 85.37111178 | F32: 76.10237706 | G32: 45.14684723 | H32: 69.39115564 | I32: 53.50801756 | J32: 40.49970628 | K32: 27.75770521 | L32: 12.64156829 | M32: 96.70561042 | N32: 94.0422444 | O32: 92.18808316 | P32: 88.57442983 | Q32: 87.83450686 | R32: 85.13510552 | S32: 90.43549101 | T32: 75.64273595 | U32: 81.70482979 | V32: 79.21337542 | W32: 91.62746729 | X32: 69.27285689 | Y32: 67.11929503 | Z32: 81.43852188 | AA32: 85.45280583 | AB32: 90.0748867 | AC32: 85.97774282 | AD32: 76.15993186 | AE32: 88.20568304 | AF32: 48.5189815 | AG32: 82.53333053 | AH32: 86.88346595 | BB32: No | BC32: N/A | BD32: N/A | BE32: N/A | BF32: N/A | BG32: N/A | BH32: N/A | BI32: N/A | BJ32: N/A | BK32: N/A | BL32: N/A | BM32: N/A | BN32: N/A | BO32: N/A | BP32: N/A | BQ32: N/A | BR32: N/A | BS32: N/A | BT32: N/A | BU32: N/A | BV32: N/A | BW32: N/A | BX32: N/A | BY32: N/A | BZ32: N/A | CA32: N/A | CB32: N/A | CC32: N/A | CD32: N/A | CE32: N/A | CF32: N/A | CG32: N/A | CH32: N/A
A33: Piped water into dwelling | B33: Yes | C33: N/A | D33: N/A | E33: N/A | F33: N/A | G33: N/A | H33: N/A | I33: N/A | J33: N/A | K33: N/A | L33: N/A | M33: N/A | N33: N/A | O33: N/A | P33: N/A | Q33: N/A | R33: N/A | S33: N/A | T33: N/A | U33: N/A | V33: N/A | W33: N/A | X33: N/A | Y33: N/A | Z33: N/A | AA33: N/A | AB33: N/A | AC33: N/A | AD33: N/A | AE33: N/A | AF33: N/A | AG33: N/A | AH33: N/A | BA33: Piped water into dwelling | BB33: Yes | BC33: N/A | BD33: N/A | BE33: N/A | BF33: N/A | BG33: N/A | BH33: N/A | BI33: N/A | BJ33: N/A | BK33: N/A | BL33: N/A | BM33: N/A | BN33: N/A | BO33: N/A | BP33: N/A | BQ33: N/A | BR33: N/A | BS33: N/A | BT33: N/A | BU33: N/A | BV33: N/A | BW33: N/A | BX33: N/A | BY33: N/A | BZ33: N/A | CA33: N/A | CB33: N/A | CC33: N/A | CD33: N/A | CE33: N/A | CF33: N/A | CG33: N/A | CH33: N/A
B34: No | C34: N/A | D34: N/A | E34: N/A | F34: N/A | G34: N/A | H34: N/A | I34: N/A | J34: N/A | K34: N/A | L34: N/A | M34: N/A | N34: N/A | O34: N/A | P34: N/A | Q34: N/A | R34: N/A | S34: N/A | T34: N/A | U34: N/A | V34: N/A | W34: N/A | X34: N/A | Y34: N/A | Z34: N/A | AA34: N/A | AB34: N/A | AC34: N/A | AD34: N/A | AE34: N/A | AF34: N/A | AG34: N/A | AH34: N/A | BB34: No | BC34: N/A | BD34: N/A | BE34: N/A | BF34: N/A | BG34: N/A | BH34: N/A | BI34: N/A | BJ34: N/A | BK34: N/A | BL34: N/A | BM34: N/A | BN34: N/A | BO34: N/A | BP34: N/A | BQ34: N/A | BR34: N/A | BS34: N/A | BT34: N/A | BU34: N/A | BV34: N/A | BW34: N/A | BX34: N/A | BY34: N/A | BZ34: N/A | CA34: N/A | CB34: N/A | CC34: N/A | CD34: N/A | CE34: N/A | CF34: N/A | CG34: N/A | CH34: N/A
A35: Water source on premises | B35: Yes | C35: 32.16357184 | D35: 41.95113862 | E35: 61.43717394 | F35: 81.60618992 | G35: 95.28622035 | H35: 71.36039929 | I35: 91.13856944 | J35: 94.06979053 | K35: 98.35219721 | L35: 99.73450839 | M35: 29.65010563 | N35: 37.57298962 | O35: 47.20998666 | P35: 64.21770576 | Q35: 85.11554565 | R35: 50.00355631 | S35: 56.9819328 | T35: 85.37489943 | U35: 77.42102508 | V35: 39.79322322 | W35: 56.54441214 | X35: 55.7814006 | Y35: 47.94462286 | Z35: 82.92574515 | AA35: 31.65048835 | AB35: 25.9774529 | AC35: 54.64957998 | AD35: 43.81033391 | AE35: 75.50382582 | AF35: 94.29113026 | AG35: 52.29613669 | AH35: 76.98641506 | BA35: Water source on premises | BB35: Yes | BC35: N/A | BD35: N/A | BE35: N/A | BF35: N/A | BG35: N/A | BH35: N/A | BI35: N/A | BJ35: N/A | BK35: N/A | BL35: N/A | BM35: N/A | BN35: N/A | BO35: N/A | BP35: N/A | BQ35: N/A | BR35: N/A | BS35: N/A | BT35: N/A | BU35: N/A | BV35: N/A | BW35: N/A | BX35: N/A | BY35: N/A | BZ35: N/A | CA35: N/A | CB35: N/A | CC35: N/A | CD35: N/A | CE35: N/A | CF35: N/A | CG35: N/A | CH35: N/A
B36: No | C36: 67.83642816 | D36: 58.04886138 | E36: 38.56282606 | F36: 18.39381008 | G36: 4.713779648 | H36: 28.63960071 | I36: 8.861430561 | J36: 5.930209472 | K36: 1.647802788 | L36: 0.2654916127 | M36: 70.34989437 | N36: 62.42701038 | O36: 52.79001334 | P36: 35.78229424 | Q36: 14.88445435 | R36: 49.99644369 | S36: 43.0180672 | T36: 14.62510057 | U36: 22.57897492 | V36: 60.20677678 | W36: 43.45558786 | X36: 44.2185994 | Y36: 52.05537714 | Z36: 17.07425485 | AA36: 68.34951165 | AB36: 74.0225471 | AC36: 45.35042002 | AD36: 56.18966609 | AE36: 24.49617418 | AF36: 5.708869742 | AG36: 47.70386331 | AH36: 23.01358494 | BB36: No | BC36: N/A | BD36: N/A | BE36: N/A | BF36: N/A | BG36: N/A | BH36: N/A | BI36: N/A | BJ36: N/A | BK36: N/A | BL36: N/A | BM36: N/A | BN36: N/A | BO36: N/A | BP36: N/A | BQ36: N/A | BR36: N/A | BS36: N/A | BT36: N/A | BU36: N/A | BV36: N/A | BW36: N/A | BX36: N/A | BY36: N/A | BZ36: N/A | CA36: N/A | CB36: N/A | CC36: N/A | CD36: N/A | CE36: N/A | CF36: N/A | CG36: N/A | CH36: N/A
A37: Improved Water source on premises | B37: Yes | C37: 25.02537702 | D37: 32.11940013 | E37: 49.70830629 | F37: 71.81585788 | G37: 93.23432002 | H37: 60.69619495 | I37: 84.05852717 | J37: 92.07868815 | K37: 97.57387905 | L37: 98.90951027 | M37: 22.98806933 | N37: 27.68436245 | O37: 37.12306977 | P37: 52.13224505 | Q37: 76.72171219 | R37: 36.14305316 | S37: 52.46149333 | T37: 68.15231525 | U37: 65.69286856 | V37: 36.95951005 | W37: 41.92035406 | X37: 55.28075059 | Y37: 46.05837406 | Z37: 74.83085761 | AA37: 29.91185641 | AB37: 23.30919992 | AC37: 44.43505967 | AD37: 39.13480538 | AE37: 61.44735041 | AF37: 90.33218309 | AG37: 41.87807241 | AH37: 65.9712232 | BA37: Improved water source on premises | BB37: Yes | BC37: N/A | BD37: N/A | BE37: N/A | BF37: N/A | BG37: N/A | BH37: N/A | BI37: N/A | BJ37: N/A | BK37: N/A | BL37: N/A | BM37: N/A | BN37: N/A | BO37: N/A | BP37: N/A | BQ37: N/A | BR37: N/A | BS37: N/A | BT37: N/A | BU37: N/A | BV37: N/A | BW37: N/A | BX37: N/A | BY37: N/A | BZ37: N/A | CA37: N/A | CB37: N/A | CC37: N/A | CD37: N/A | CE37: N/A | CF37: N/A | CG37: N/A | CH37: N/A
B38: No | C38: 74.97462298 | D38: 67.88059987 | E38: 50.29169371 | F38: 28.18414212 | G38: 6.765679977 | H38: 39.30380505 | I38: 15.94147283 | J38: 7.92131185 | K38: 2.426120949 | L38: 1.090489728 | M38: 77.01193067 | N38: 72.31563755 | O38: 62.87693023 | P38: 47.86775495 | Q38: 23.27828781 | R38: 63.85694684 | S38: 47.53850667 | T38: 31.84768475 | U38: 34.30713144 | V38: 63.04048995 | W38: 58.07964594 | X38: 44.71924941 | Y38: 53.94162594 | Z38: 25.16914239 | AA38: 70.08814359 | AB38: 76.69080008 | AC38: 55.56494033 | AD38: 60.86519462 | AE38: 38.55264959 | AF38: 9.667816914 | AG38: 58.12192759 | AH38: 34.0287768 | BB38: No | BC38: N/A | BD38: N/A | BE38: N/A | BF38: N/A | BG38: N/A | BH38: N/A | BI38: N/A | BJ38: N/A | BK38: N/A | BL38: N/A | BM38: N/A | BN38: N/A | BO38: N/A | BP38: N/A | BQ38: N/A | BR38: N/A | BS38: N/A | BT38: N/A | BU38: N/A | BV38: N/A | BW38: N/A | BX38: N/A | BY38: N/A | BZ38: N/A | CA38: N/A | CB38: N/A | CC38: N/A | CD38: N/A | CE38: N/A | CF38: N/A | CG38: N/A | CH38: N/A
A39: Piped water on premises available when needed | B39: Yes | C39: N/A | D39: N/A | E39: N/A | F39: N/A | G39: N/A | H39: N/A | I39: N/A | J39: N/A | K39: N/A | L39: N/A | M39: N/A | N39: N/A | O39: N/A | P39: N/A | Q39: N/A | R39: N/A | S39: N/A | T39: N/A | U39: N/A | V39: N/A | W39: N/A | X39: N/A | Y39: N/A | Z39: N/A | AA39: N/A | AB39: N/A | AC39: N/A | AD39: N/A | AE39: N/A | AF39: N/A | AG39: N/A | AH39: N/A | BA39: Piped water on premises available when needed | BB39: Yes | BC39: N/A | BD39: N/A | BE39: N/A | BF39: N/A | BG39: N/A | BH39: N/A | BI39: N/A | BJ39: N/A | BK39: N/A | BL39: N/A | BM39: N/A | BN39: N/A | BO39: N/A | BP39: N/A | BQ39: N/A | BR39: N/A | BS39: N/A | BT39: N/A | BU39: N/A | BV39: N/A | BW39: N/A | BX39: N/A | BY39: N/A | BZ39: N/A | CA39: N/A | CB39: N/A | CC39: N/A | CD39: N/A | CE39: N/A | CF39: N/A | CG39: N/A | CH39: N/A
B40: No | C40: N/A | D40: N/A | E40: N/A | F40: N/A | G40: N/A | H40: N/A | I40: N/A | J40: N/A | K40: N/A | L40: N/A | M40: N/A | N40: N/A | O40: N/A | P40: N/A | Q40: N/A | R40: N/A | S40: N/A | T40: N/A | U40: N/A | V40: N/A | W40: N/A | X40: N/A | Y40: N/A | Z40: N/A | AA40: N/A | AB40: N/A | AC40: N/A | AD40: N/A | AE40: N/A | AF40: N/A | AG40: N/A | AH40: N/A | BB40: No | BC40: N/A | BD40: N/A | BE40: N/A | BF40: N/A | BG40: N/A | BH40: N/A | BI40: N/A | BJ40: N/A | BK40: N/A | BL40: N/A | BM40: N/A | BN40: N/A | BO40: N/A | BP40: N/A | BQ40: N/A | BR40: N/A | BS40: N/A | BT40: N/A | BU40: N/A | BV40: N/A | BW40: N/A | BX40: N/A | BY40: N/A | BZ40: N/A | CA40: N/A | CB40: N/A | CC40: N/A | CD40: N/A | CE40: N/A | CF40: N/A | CG40: N/A | CH40: N/A
A41: Water point at more than 30 minutes | B41: Yes | C41: 2.65919727 | D41: 3.206548764 | E41: 2.441355129 | F41: 1.598360867 | G41: 0.286742935 | H41: 0.9833349794 | I41: 0.03896715515 | J41: 0.8780849049 | K41: 0 | L41: 0 | M41: 2.529525437 | N41: 3.099909751 | O41: 3.212210092 | P41: 2.961160534 | Q41: 1.215501888 | R41: 0.7074245334 | S41: 0 | T41: 0.1348199693 | U41: 1.707209282 | V41: 0.86638264 | W41: 4.050333938 | X41: 0 | Y41: 0.050977099 | Z41: 1.191700372 | AA41: 0 | AB41: 6.646147311 | AC41: 5.24362093 | AD41: 6.63341699 | AE41: 0.7463659552 | AF41: 0.1432224006 | AG41: 0.5936434806 | AH41: 0.6978678282 | BA41: Water point at more than 30 minutes | BB41: Yes | BC41: N/A | BD41: N/A | BE41: N/A | BF41: N/A | BG41: N/A | BH41: N/A | BI41: N/A | BJ41: N/A | BK41: N/A | BL41: N/A | BM41: N/A | BN41: N/A | BO41: N/A | BP41: N/A | BQ41: N/A | BR41: N/A | BS41: N/A | BT41: N/A | BU41: N/A | BV41: N/A | BW41: N/A | BX41: N/A | BY41: N/A | BZ41: N/A | CA41: N/A | CB41: N/A | CC41: N/A | CD41: N/A | CE41: N/A | CF41: N/A | CG41: N/A | CH41: N/A
B42: No | C42: 97.34080273 | D42: 96.79345124 | E42: 97.55864487 | F42: 98.40163913 | G42: 99.71325707 | H42: 99.01666502 | I42: 99.96103284 | J42: 99.1219151 | K42: 100 | L42: 100 | M42: 97.47047456 | N42: 96.90009025 | O42: 96.78778991 | P42: 97.03883947 | Q42: 98.78449811 | R42: 99.29257547 | S42: 100 | T42: 99.86518003 | U42: 98.29279072 | V42: 99.13361736 | W42: 95.94966606 | X42: 100 | Y42: 99.9490229 | Z42: 98.80829963 | AA42: 100 | AB42: 93.35385269 | AC42: 94.75637907 | AD42: 93.36658301 | AE42: 99.25363404 | AF42: 99.8567776 | AG42: 99.40635652 | AH42: 99.30213217 | BB42: No | BC42: N/A | BD42: N/A | BE42: N/A | BF42: N/A | BG42: N/A | BH42: N/A | BI42: N/A | BJ42: N/A | BK42: N/A | BL42: N/A | BM42: N/A | BN42: N/A | BO42: N/A | BP42: N/A | BQ42: N/A | BR42: N/A | BS42: N/A | BT42: N/A | BU42: N/A | BV42: N/A | BW42: N/A | BX42: N/A | BY42: N/A | BZ42: N/A | CA42: N/A | CB42: N/A | CC42: N/A | CD42: N/A | CE42: N/A | CF42: N/A | CG42: N/A | CH42: N/A
A43: Water source available when needed | B43: Yes | C43: N/A | D43: N/A | E43: N/A | F43: N/A | G43: N/A | H43: N/A | I43: N/A | J43: N/A | K43: N/A | L43: N/A | M43: N/A | N43: N/A | O43: N/A | P43: N/A | Q43: N/A | R43: N/A | S43: N/A | T43: N/A | U43: N/A | V43: N/A | W43: N/A | X43: N/A | Y43: N/A | Z43: N/A | AA43: N/A | AB43: N/A | AC43: N/A | AD43: N/A | AE43: N/A | AF43: N/A | AG43: N/A | AH43: N/A | BA43: Water source available when needed | BB43: Yes | BC43: N/A | BD43: N/A | BE43: N/A | BF43: N/A | BG43: N/A | BH43: N/A | BI43: N/A | BJ43: N/A | BK43: N/A | BL43: N/A | BM43: N/A | BN43: N/A | BO43: N/A | BP43: N/A | BQ43: N/A | BR43: N/A | BS43: N/A | BT43: N/A | BU43: N/A | BV43: N/A | BW43: N/A | BX43: N/A | BY43: N/A | BZ43: N/A | CA43: N/A | CB43: N/A | CC43: N/A | CD43: N/A | CE43: N/A | CF43: N/A | CG43: N/A | CH43: N/A
B44: No | C44: N/A | D44: N/A | E44: N/A | F44: N/A | G44: N/A | H44: N/A | I44: N/A | J44: N/A | K44: N/A | L44: N/A | M44: N/A | N44: N/A | O44: N/A | P44: N/A | Q44: N/A | R44: N/A | S44: N/A | T44: N/A | U44: N/A | V44: N/A | W44: N/A | X44: N/A | Y44: N/A | Z44: N/A | AA44: N/A | AB44: N/A | AC44: N/A | AD44: N/A | AE44: N/A | AF44: N/A | AG44: N/A | AH44: N/A | BB44: No | BC44: N/A | BD44: N/A | BE44: N/A | BF44: N/A | BG44: N/A | BH44: N/A | BI44: N/A | BJ44: N/A | BK44: N/A | BL44: N/A | BM44: N/A | BN44: N/A | BO44: N/A | BP44: N/A | BQ44: N/A | BR44: N/A | BS44: N/A | BT44: N/A | BU44: N/A | BV44: N/A | BW44: N/A | BX44: N/A | BY44: N/A | BZ44: N/A | CA44: N/A | CB44: N/A | CC44: N/A | CD44: N/A | CE44: N/A | CF44: N/A | CG44: N/A | CH44: N/A
A45: Improved water source available when needed | B45: Yes | C45: N/A | D45: N/A | E45: N/A | F45: N/A | G45: N/A | H45: N/A | I45: N/A | J45: N/A | K45: N/A | L45: N/A | M45: N/A | N45: N/A | O45: N/A | P45: N/A | Q45: N/A | R45: N/A | S45: N/A | T45: N/A | U45: N/A | V45: N/A | W45: N/A | X45: N/A | Y45: N/A | Z45: N/A | AA45: N/A | AB45: N/A | AC45: N/A | AD45: N/A | AE45: N/A | AF45: N/A | AG45: N/A | AH45: N/A | BA45: Improved water source available when needed | BB45: Yes | BC45: N/A | BD45: N/A | BE45: N/A | BF45: N/A | BG45: N/A | BH45: N/A | BI45: N/A | BJ45: N/A | BK45: N/A | BL45: N/A | BM45: N/A | BN45: N/A | BO45: N/A | BP45: N/A | BQ45: N/A | BR45: N/A | BS45: N/A | BT45: N/A | BU45: N/A | BV45: N/A | BW45: N/A | BX45: N/A | BY45: N/A | BZ45: N/A | CA45: N/A | CB45: N/A | CC45: N/A | CD45: N/A | CE45: N/A | CF45: N/A | CG45: N/A | CH45: N/A
B46: No | C46: N/A | D46: N/A | E46: N/A | F46: N/A | G46: N/A | H46: N/A | I46: N/A | J46: N/A | K46: N/A | L46: N/A | M46: N/A | N46: N/A | O46: N/A | P46: N/A | Q46: N/A | R46: N/A | S46: N/A | T46: N/A | U46: N/A | V46: N/A | W46: N/A | X46: N/A | Y46: N/A | Z46: N/A | AA46: N/A | AB46: N/A | AC46: N/A | AD46: N/A | AE46: N/A | AF46: N/A | AG46: N/A | AH46: N/A | BB46: No | BC46: N/A | BD46: N/A | BE46: N/A | BF46: N/A | BG46: N/A | BH46: N/A | BI46: N/A | BJ46: N/A | BK46: N/A | BL46: N/A | BM46: N/A | BN46: N/A | BO46: N/A | BP46: N/A | BQ46: N/A | BR46: N/A | BS46: N/A | BT46: N/A | BU46: N/A | BV46: N/A | BW46: N/A | BX46: N/A | BY46: N/A | BZ46: N/A | CA46: N/A | CB46: N/A | CC46: N/A | CD46: N/A | CE46: N/A | CF46: N/A | CG46: N/A | CH46: N/A
A47: Microbiological quality at point of collection | B47: Not contaminated (No E. coli in 100 mL) | C47: N/A | D47: N/A | E47: N/A | F47: N/A | G47: N/A | H47: N/A | I47: N/A | J47: N/A | K47: N/A | L47: N/A | M47: N/A | N47: N/A | O47: N/A | P47: N/A | Q47: N/A | R47: N/A | S47: N/A | T47: N/A | U47: N/A | V47: N/A | W47: N/A | X47: N/A | Y47: N/A | Z47: N/A | AA47: N/A | AB47: N/A | AC47: N/A | AD47: N/A | AE47: N/A | AF47: N/A | AG47: N/A | AH47: N/A | BA47: Microbiological quality at point of collection | BB47: Not contaminated (No E. coli in 100 mL) | BC47: N/A | BD47: N/A | BE47: N/A | BF47: N/A | BG47: N/A | BH47: N/A | BI47: N/A | BJ47: N/A | BK47: N/A | BL47: N/A | BM47: N/A | BN47: N/A | BO47: N/A | BP47: N/A | BQ47: N/A | BR47: N/A | BS47: N/A | BT47: N/A | BU47: N/A | BV47: N/A | BW47: N/A | BX47: N/A | BY47: N/A | BZ47: N/A | CA47: N/A | CB47: N/A | CC47: N/A | CD47: N/A | CE47: N/A | CF47: N/A | CG47: N/A | CH47: N/A
B48: Contaminated (E. coli detected in 100 mL) | C48: N/A | D48: N/A | E48: N/A | F48: N/A | G48: N/A | H48: N/A | I48: N/A | J48: N/A | K48: N/A | L48: N/A | M48: N/A | N48: N/A | O48: N/A | P48: N/A | Q48: N/A | R48: N/A | S48: N/A | T48: N/A | U48: N/A | V48: N/A | W48: N/A | X48: N/A | Y48: N/A | Z48: N/A | AA48: N/A | AB48: N/A | AC48: N/A | AD48: N/A | AE48: N/A | AF48: N/A | AG48: N/A | AH48: N/A | BB48: Contaminated (E. coli detected in 100 mL) | BC48: N/A | BD48: N/A | BE48: N/A | BF48: N/A | BG48: N/A | BH48: N/A | BI48: N/A | BJ48: N/A | BK48: N/A | BL48: N/A | BM48: N/A | BN48: N/A | BO48: N/A | BP48: N/A | BQ48: N/A | BR48: N/A | BS48: N/A | BT48: N/A | BU48: N/A | BV48: N/A | BW48: N/A | BX48: N/A | BY48: N/A | BZ48: N/A | CA48: N/A | CB48: N/A | CC48: N/A | CD48: N/A | CE48: N/A | CF48: N/A | CG48: N/A | CH48: N/A
B49: Highly contaminated (>100 CFU/100 mL) | C49: N/A | D49: N/A | E49: N/A | F49: N/A | G49: N/A | H49: N/A | I49: N/A | J49: N/A | K49: N/A | L49: N/A | M49: N/A | N49: N/A | O49: N/A | P49: N/A | Q49: N/A | R49: N/A | S49: N/A | T49: N/A | U49: N/A | V49: N/A | W49: N/A | X49: N/A | Y49: N/A | Z49: N/A | AA49: N/A | AB49: N/A | AC49: N/A | AD49: N/A | AE49: N/A | AF49: N/A | AG49: N/A | AH49: N/A | BB49: Highly contaminated (>100 CFU/100 mL) | BC49: N/A | BD49: N/A | BE49: N/A | BF49: N/A | BG49: N/A | BH49: N/A | BI49: N/A | BJ49: N/A | BK49: N/A | BL49: N/A | BM49: N/A | BN49: N/A | BO49: N/A | BP49: N/A | BQ49: N/A | BR49: N/A | BS49: N/A | BT49: N/A | BU49: N/A | BV49: N/A | BW49: N/A | BX49: N/A | BY49: N/A | BZ49: N/A | CA49: N/A | CB49: N/A | CC49: N/A | CD49: N/A | CE49: N/A | CF49: N/A | CG49: N/A | CH49: N/A
A50: Microbiological quality of improved water sources at point of collection | B50: Not contaminated (No E. coli in 100 mL) | C50: N/A | D50: N/A | E50: N/A | F50: N/A | G50: N/A | H50: N/A | I50: N/A | J50: N/A | K50: N/A | L50: N/A | M50: N/A | N50: N/A | O50: N/A | P50: N/A | Q50: N/A | R50: N/A | S50: N/A | T50: N/A | U50: N/A | V50: N/A | W50: N/A | X50: N/A | Y50: N/A | Z50: N/A | AA50: N/A | AB50: N/A | AC50: N/A | AD50: N/A | AE50: N/A | AF50: N/A | AG50: N/A | AH50: N/A | BA50: Microbiological quality of improved water sources at point of collection | BB50: Not contaminated (No E. coli in 100 mL) | BC50: N/A | BD50: N/A | BE50: N/A | BF50: N/A | BG50: N/A | BH50: N/A | BI50: N/A | BJ50: N/A | BK50: N/A | BL50: N/A | BM50: N/A | BN50: N/A | BO50: N/A | BP50: N/A | BQ50: N/A | BR50: N/A | BS50: N/A | BT50: N/A | BU50: N/A | BV50: N/A | BW50: N/A | BX50: N/A | BY50: N/A | BZ50: N/A | CA50: N/A | CB50: N/A | CC50: N/A | CD50: N/A | CE50: N/A | CF50: N/A | CG50: N/A | CH50: N/A
B51: Contaminated (E. coli detected in 100 mL) | C51: N/A | D51: N/A | E51: N/A | F51: N/A | G51: N/A | H51: N/A | I51: N/A | J51: N/A | K51: N/A | L51: N/A | M51: N/A | N51: N/A | O51: N/A | P51: N/A | Q51: N/A | R51: N/A | S51: N/A | T51: N/A | U51: N/A | V51: N/A | W51: N/A | X51: N/A | Y51: N/A | Z51: N/A | AA51: N/A | AB51: N/A | AC51: N/A | AD51: N/A | AE51: N/A | AF51: N/A | AG51: N/A | AH51: N/A | BB51: Contaminated (E. coli detected in 100 mL) | BC51: N/A | BD51: N/A | BE51: N/A | BF51: N/A | BG51: N/A | BH51: N/A | BI51: N/A | BJ51: N/A | BK51: N/A | BL51: N/A | BM51: N/A | BN51: N/A | BO51: N/A | BP51: N/A | BQ51: N/A | BR51: N/A | BS51: N/A | BT51: N/A | BU51: N/A | BV51: N/A | BW51: N/A | BX51: N/A | BY51: N/A | BZ51: N/A | CA51: N/A | CB51: N/A | CC51: N/A | CD51: N/A | CE51: N/A | CF51: N/A | CG51: N/A | CH51: N/A
B52: Highly contaminated (>100 CFU/100 mL) | C52: N/A | D52: N/A | E52: N/A | F52: N/A | G52: N/A | H52: N/A | I52: N/A | J52: N/A | K52: N/A | L52: N/A | M52: N/A | N52: N/A | O52: N/A | P52: N/A | Q52: N/A | R52: N/A | S52: N/A | T52: N/A | U52: N/A | V52: N/A | W52: N/A | X52: N/A | Y52: N/A | Z52: N/A | AA52: N/A | AB52: N/A | AC52: N/A | AD52: N/A | AE52: N/A | AF52: N/A | AG52: N/A | AH52: N/A | BB52: Highly contaminated (>100 CFU/100 mL) | BC52: N/A | BD52: N/A | BE52: N/A | BF52: N/A | BG52: N/A | BH52: N/A | BI52: N/A | BJ52: N/A | BK52: N/A | BL52: N/A | BM52: N/A | BN52: N/A | BO52: N/A | BP52: N/A | BQ52: N/A | BR52: N/A | BS52: N/A | BT52: N/A | BU52: N/A | BV52: N/A | BW52: N/A | BX52: N/A | BY52: N/A | BZ52: N/A | CA52: N/A | CB52: N/A | CC52: N/A | CD52: N/A | CE52: N/A | CF52: N/A | CG52: N/A | CH52: N/A
A53: Microbiological quality of piped on premises at point of collection | B53: Not contaminated (No E. coli in 100 mL) | C53: N/A | D53: N/A | E53: N/A | F53: N/A | G53: N/A | H53: N/A | I53: N/A | J53: N/A | K53: N/A | L53: N/A | M53: N/A | N53: N/A | O53: N/A | P53: N/A | Q53: N/A | R53: N/A | S53: N/A | T53: N/A | U53: N/A | V53: N/A | W53: N/A | X53: N/A | Y53: N/A | Z53: N/A | AA53: N/A | AB53: N/A | AC53: N/A | AD53: N/A | AE53: N/A | AF53: N/A | AG53: N/A | AH53: N/A | BA53: Microbiological quality of piped on premises at point of collection | BB53: Not contaminated (No E. coli in 100 mL) | BC53: N/A | BD53: N/A | BE53: N/A | BF53: N/A | BG53: N/A | BH53: N/A | BI53: N/A | BJ53: N/A | BK53: N/A | BL53: N/A | BM53: N/A | BN53: N/A | BO53: N/A | BP53: N/A | BQ53: N/A | BR53: N/A | BS53: N/A | BT53: N/A | BU53: N/A | BV53: N/A | BW53: N/A | BX53: N/A | BY53: N/A | BZ53: N/A | CA53: N/A | CB53: N/A | CC53: N/A | CD53: N/A | CE53: N/A | CF53: N/A | CG53: N/A | CH53: N/A
B54: Contaminated (E. coli detected in 100 mL) | C54: N/A | D54: N/A | E54: N/A | F54: N/A | G54: N/A | H54: N/A | I54: N/A | J54: N/A | K54: N/A | L54: N/A | M54: N/A | N54: N/A | O54: N/A | P54: N/A | Q54: N/A | R54: N/A | S54: N/A | T54: N/A | U54: N/A | V54: N/A | W54: N/A | X54: N/A | Y54: N/A | Z54: N/A | AA54: N/A | AB54: N/A | AC54: N/A | AD54: N/A | AE54: N/A | AF54: N/A | AG54: N/A | AH54: N/A | BB54: Contaminated (E. coli detected in 100 mL) | BC54: N/A | BD54: N/A | BE54: N/A | BF54: N/A | BG54: N/A | BH54: N/A | BI54: N/A | BJ54: N/A | BK54: N/A | BL54: N/A | BM54: N/A | BN54: N/A | BO54: N/A | BP54: N/A | BQ54: N/A | BR54: N/A | BS54: N/A | BT54: N/A | BU54: N/A | BV54: N/A | BW54: N/A | BX54: N/A | BY54: N/A | BZ54: N/A | CA54: N/A | CB54: N/A | CC54: N/A | CD54: N/A | CE54: N/A | CF54: N/A | CG54: N/A | CH54: N/A
B55: Highly contaminated (>100 CFU/100 mL) | C55: N/A | D55: N/A | E55: N/A | F55: N/A | G55: N/A | H55: N/A | I55: N/A | J55: N/A | K55: N/A | L55: N/A | M55: N/A | N55: N/A | O55: N/A | P55: N/A | Q55: N/A | R55: N/A | S55: N/A | T55: N/A | U55: N/A | V55: N/A | W55: N/A | X55: N/A | Y55: N/A | Z55: N/A | AA55: N/A | AB55: N/A | AC55: N/A | AD55: N/A | AE55: N/A | AF55: N/A | AG55: N/A | AH55: N/A | BB55: Highly contaminated (>100 CFU/100 mL) | BC55: N/A | BD55: N/A | BE55: N/A | BF55: N/A | BG55: N/A | BH55: N/A | BI55: N/A | BJ55: N/A | BK55: N/A | BL55: N/A | BM55: N/A | BN55: N/A | BO55: N/A | BP55: N/A | BQ55: N/A | BR55: N/A | BS55: N/A | BT55: N/A | BU55: N/A | BV55: N/A | BW55: N/A | BX55: N/A | BY55: N/A | BZ55: N/A | CA55: N/A | CB55: N/A | CC55: N/A | CD55: N/A | CE55: N/A | CF55: N/A | CG55: N/A | CH55: N/A
C56: NATIONAL wealth index quintile | H56: URBAN wealth index quintile | M56: RURAL wealth index quintile | R56: SUB-REGIONS: | BA56: Raw numbers of respondents: | BB56: Use of drinking water sources | BC56: NATIONAL wealth index quintile | BH56: URBAN wealth index quintile | BM56: RURAL wealth index quintile | BR56: SUB-REGIONS:
A57: Percentage based on weighted population | C57: Poorest | D57: Poor | E57: Middle | F57: Rich | G57: Richest | H57: Poorest | I57: Poor | J57: Middle | K57: Rich | L57: Richest | M57: Poorest | N57: Poor | O57: Middle | P57: Rich | Q57: Richest | R57: Attapeu | S57: Bokeo | T57: Borikhamxay | U57: Champasack | V57: Huaphanh | W57: Khammuane | X57: Luangnamtha | Y57: Luangprabang | Z57: Oudomxay | AA57: Phongsaly | AB57: Saravane | AC57: Savannakhet | AD57: Sekong | AE57: Vientiane | AF57: Vientiane Capital | AG57: Xayabury | AH57: Xiengkhuang | BA57: Water data, raw numbers (weighted) | BC57: Poorest | BD57: Poor | BE57: Middle | BF57: Rich | BG57: Richest | BH57: Poorest | BI57: Poor | BJ57: Middle | BK57: Rich | BL57: Richest | BM57: Poorest | BN57: Poor | BO57: Middle | BP57: Rich | BQ57: Richest | BR57: Attapeu | BS57: Bokeo | BT57: Borikhamxay | BU57: Champasack | BV57: Huaphanh | BW57: Khammuane | BX57: Luangnamtha | BY57: Luangprabang | BZ57: Oudomxay | CA57: Phongsaly | CB57: Saravane | CC57: Savannakhet | CD57: Sekong | CE57: Vientiane | CF57: Vientiane Capital | CG57: Xayabury | CH57: Xiengkhuang
A58: Main source of drinking water | B58: Piped into dwelling | C58: 1.211037017 | D58: 3.432628899 | E58: 5.192805653 | F58: 5.587011885 | G58: 8.889084081 | H58: 10.37745072 | I58: 9.510134944 | J58: 11.89182685 | K58: 8.414229641 | L58: 15.69497912 | M58: 0.7960554812 | N58: 2.365258941 | O58: 3.205475659 | P58: 4.366040791 | Q58: 2.773225457 | R58: 4.279218546 | S58: 2.337425496 | T58: 12.65374676 | U58: 3.803175956 | V58: 5.7032108 | W58: 0.384340241 | X58: 8.932433156 | Y58: 7.554707527 | Z58: 1.880089504 | AA58: 9.929777346 | AB58: 3.187151886 | AC58: 2.01542996 | AD58: 11.22636422 | AE58: 1.057870785 | AF58: 9.508255042 | AG58: 5.131992235 | AH58: 2.539664925
B59: Piped into compound, yard or plot | C59: 3.143930119 | D59: 4.123151403 | E59: 5.497368001 | F59: 4.702869565 | G59: 2.043517287 | H59: 11.57951484 | I59: 7.298836938 | J59: 3.655164744 | K59: 2.509397219 | L59: 0.8837924844 | M59: 2.498334103 | N59: 3.51744078 | O59: 3.947477658 | P59: 4.537482365 | Q59: 2.815172031 | R59: 2.777746552 | S59: 1.878353486 | T59: 0.1774155701 | U59: 2.841168435 | V59: 12.11047814 | W59: 0.3160315544 | X59: 10.44151413 | Y59: 10.2082893 | Z59: 11.40590487 | AA59: 4.268927979 | AB59: 3.536783208 | AC59: 0.9361603004 | AD59: 7.626393474 | AE59: 1.125321493 | AF59: 1.152235685 | AG59: 4.50955377 | AH59: 3.082008469
B60: Piped to neighbour | C60: 0.5794003812 | D60: 0.6884817537 | E60: 0.4955024196 | F60: 0.3843533864 | G60: 0.09314448149 | H60: 1.177111597 | I60: 0.3842882187 | J60: 0.616776016 | K60: 0.1732620714 | L60: 0 | M60: 0.494682064 | N60: 0.6587736204 | O60: 0.5248003317 | P60: 0.3718318578 | Q60: 0.1531904654 | R60: 0.2666729106 | S60: 0.2312434074 | T60: 1.580335272 | U60: 0.5094461957 | V60: 0.3297445675 | W60: 0.1255544799 | X60: 0.6738518173 | Y60: 1.643774027 | Z60: 0.5584225767 | AA60: 1.191651761 | AB60: 0.327919505 | AC60: 0.1665059891 | AD60: 0.1979336035 | AE60: 0.4085118709 | AF60: 0.09627020054 | AG60: 0.1774335153 | AH60: 0.05334433188
B61: Public tap / standpipe | C61: 26.8288788 | D61: 20.73844781 | E61: 13.06702537 | F61: 5.131198784 | G61: 0.4962609226 | H61: 8.240859906 | I61: 3.062062236 | J61: 0.7204169411 | K61: 0.2778843655 | L61: 0 | M61: 27.9274964 | N61: 23.21878635 | O61: 18.72918253 | P61: 11.44333499 | Q61: 3.412039714 | R61: 0.5295034851 | S61: 3.137599023 | T61: 2.665498648 | U61: 3.094551986 | V61: 60.58849557 | W61: 1.402340333 | X61: 50.45900437 | Y61: 32.02426242 | Z61: 55.86064362 | AA61: 3.352339183 | AB61: 1.383463602 | AC61: 0.2701317403 | AD61: 1.830852526 | AE61: 7.591358418 | AF61: 0.07854259529 | AG61: 19.4917904 | AH61: 21.91385849
B62: Tube well, Borehole | C62: 10.34410799 | D62: 12.35158312 | E62: 15.2907079 | F62: 11.72094032 | G62: 4.509990244 | H62: 8.479396154 | I62: 5.879168366 | J62: 2.307118724 | K62: 1.805481589 | L62: 0.7115437686 | M62: 9.677383899 | N62: 11.39627836 | O62: 15.38826023 | P62: 17.07491652 | Q62: 12.67622655 | R62: 34.14668272 | S62: 0 | T62: 6.833938296 | U62: 40.99802588 | V62: 0.4695908657 | W62: 12.83393543 | X62: 0.3887304316 | Y62: 0.688357511 | Z62: 0.3675864926 | AA62: 0.615191503 | AB62: 37.40497997 | AC62: 10.03373565 | AD62: 18.53488099 | AE62: 4.430873872 | AF62: 4.226050826 | AG62: 1.748662563 | AH62: 0.3222683173
B63: Protected well | C63: 1.943345625 | D63: 4.084002372 | E63: 6.610443081 | F63: 8.552860543 | G63: 3.711528567 | H63: 8.58521987 | I63: 8.70714378 | J63: 4.272402672 | K63: 1.38237081 | L63: 0.7328463228 | M63: 1.46601444 | N63: 3.138871479 | O63: 4.576772761 | P63: 7.310130705 | Q63: 8.831940924 | R63: 2.209991854 | S63: 3.67665166 | T63: 7.781454322 | U63: 1.941844937 | V63: 0 | W63: 19.17488695 | X63: 4.941068346 | Y63: 0.6440679161 | Z63: 0.1182607196 | AA63: 0.8683759966 | AB63: 0.7821691384 | AC63: 7.387969813 | AD63: 3.075903215 | AE63: 7.944023583 | AF63: 2.637893947 | AG63: 8.143013453 | AH63: 11.64983322
B64: Unprotected well | C64: 11.67985167 | D64: 18.94961485 | E64: 18.047344 | F64: 11.95046835 | G64: 2.364027456 | H64: 16.11915442 | I64: 6.412156341 | J64: 2.343791756 | K64: 0.7220700329 | L64: 0 | M64: 11.367126 | N64: 16.24539705 | O64: 20.22166587 | P64: 17.79040365 | Q64: 10.17026 | R64: 19.40234588 | S64: 6.099917821 | T64: 16.84572916 | U64: 3.678007718 | V64: 0.2517699038 | W64: 21.12790937 | X64: 0 | Y64: 0.5026158496 | Z64: 0.1106528507 | AA64: 1.027408933 | AB64: 16.30336477 | AC64: 35.30733066 | AD64: 4.465938779 | AE64: 16.38813868 | AF64: 4.349219001 | AG64: 17.48861513 | AH64: 11.27913192
B65: Protected spring | C65: 16.04559019 | D65: 12.91448788 | E65: 7.767388845 | F65: 3.942361491 | G65: 0.6539148623 | H65: 5.554399922 | I65: 1.573424156 | J65: 0.8037247636 | K65: 0.1709983916 | L65: 0 | M65: 16.35209647 | N65: 14.96829119 | O65: 11.37098032 | P65: 7.207797215 | Q65: 2.795429162 | R65: 4.894884061 | S65: 48.51883181 | T65: 7.497867109 | U65: 2.050336024 | V65: 4.676766281 | W65: 4.052904501 | X65: 7.193140223 | Y65: 12.19162643 | Z65: 0.8165166988 | AA65: 54.15741939 | AB65: 4.650743043 | AC65: 0.9283814693 | AD65: 27.32796371 | AE65: 6.083624814 | AF65: 0 | AG65: 11.3745803 | AH65: 22.4667622
B66: Unprotected spring | C66: 3.613183364 | D66: 2.810937356 | E66: 2.110642027 | F66: 1.231774189 | G66: 0.2897081106 | H66: 2.334520431 | I66: 0.393669763 | J66: 0.2602002067 | K66: 0 | L66: 0 | M66: 3.142573389 | N66: 3.667665498 | O66: 2.224313767 | P66: 2.347691757 | Q66: 1.093533544 | R66: 4.52696585 | S66: 3.307583208 | T66: 2.837620948 | U66: 0.3668782379 | V66: 5.791084293 | W66: 3.754233765 | X66: 0.3506685254 | Y66: 0.141164879 | Z66: 0 | AA66: 4.129138162 | AB66: 3.396511589 | AC66: 1.865096097 | AD66: 3.23987143 | AE66: 2.951812849 | AF66: 0 | AG66: 1.68967573 | AH66: 3.182878672
B67: Rainwater collection | C67: 0.1390743029 | D67: 0.9351824383 | E67: 1.83411854 | F67: 3.042208851 | G67: 1.25209496 | H67: 0.4737580515 | I67: 0.3003522222 | J67: 0.1329235309 | K67: 0.1763104007 | L67: 0.08720836556 | M67: 0.1064195581 | N67: 0.567044738 | O67: 1.515244145 | P67: 2.747111503 | Q67: 4.332498816 | R67: 0.2823723608 | S67: 0 | T67: 0 | U67: 0.6411373186 | V67: 0 | W67: 1.004338415 | X67: 0 | Y67: 0.03181683643 | Z67: 0 | AA67: 0 | AB67: 2.888273259 | AC67: 5.836724574 | AD67: 0 | AE67: 0.24403073 | AF67: 0.4518927578 | AG67: 2.576332974 | AH67: 0
B68: Tanker-truck | C68: 0 | D68: 0.1080377356 | E68: 0.07435527809 | F68: 0.08410031849 | G68: 0 | H68: 0 | I68: 0 | J68: 0 | K68: 0 | L68: 0 | M68: 0 | N68: 0.04982175166 | O68: 0.1950091763 | P68: 0.07138401885 | Q68: 0.04151002269 | R68: 0 | S68: 0 | T68: 0 | U68: 0 | V68: 0 | W68: 0 | X68: 0 | Y68: 0.08290127865 | Z68: 0 | AA68: 0 | AB68: 0 | AC68: 0.270478063 | AD68: 0 | AE68: 0.08510663977 | AF68: 0 | AG68: 0 | AH68: 0
B69: Cart with small tank / drum | C69: 0.4177366629 | D69: 0.1641298203 | E69: 0.2467531226 | F69: 0.02137381996 | G69: 0 | H69: 0.3601344045 | I69: 0 | J69: 0 | K69: 0 | L69: 0 | M69: 0.3698169291 | N69: 0.278581294 | O69: 0.1640803407 | P69: 0.2052265206 | Q69: 0 | R69: 0.233068089 | S69: 0 | T69: 0.139068045 | U69: 0 | V69: 0 | W69: 0 | X69: 0 | Y69: 0 | Z69: 1.117407258 | AA69: 1.288866783 | AB69: 0 | AC69: 0.1877024924 | AD69: 0 | AE69: 0.05882763031 | AF69: 0.1395155 | AG69: 0.06893810696 | AH69: 0.1308204197
B70: Surface water (river, stream, dam, lake, pond, canal, irrigation channel) | C70: 21.63511609 | D70: 13.48056235 | E70: 8.033411491 | F70: 4.594895585 | G70: 0.7115254092 | H70: 2.894944437 | I70: 2.092818657 | J70: 0.9439980295 | K70: 0.05624812817 | L70: 0 | M70: 23.68972501 | N70: 16.60850333 | O70: 11.10319423 | P70: 8.000818227 | Q70: 3.588428378 | R70: 14.82767569 | S70: 8.377204441 | T70: 3.694278529 | U70: 22.05321448 | V70: 6.821232238 | W70: 7.039096968 | X70: 1.877110775 | Y70: 17.19014897 | Z70: 13.07084561 | AA70: 18.69098745 | AB70: 20.65160395 | AC70: 7.036511589 | AD70: 16.95837069 | AE70: 1.874406999 | AF70: 0.2270394746 | AG70: 7.738009363 | AH70: 7.916375245
B71: Bottled water | C71: 0.5582953615 | D71: 3.39651315 | E71: 14.6146387 | F71: 38.51176279 | G71: 74.64399164 | H71: 22.25411867 | I71: 54.38594438 | J71: 72.05165576 | K71: 84.31174735 | L71: 81.06463182 | M71: 0.296738335 | N71: 1.512645026 | O71: 5.374048007 | P71: 15.21692751 | Q71: 46.89820093 | R71: 11.622872 | S71: 22.43518964 | T71: 37.22470892 | U71: 17.90907381 | V71: 3.002742511 | W71: 24.59797596 | X71: 14.74247822 | Y71: 17.09626706 | Z71: 8.718443999 | AA71: 0.3484888403 | AB71: 5.400232927 | AC71: 24.52244178 | AD71: 5.434684614 | AE71: 49.48265121 | AF71: 76.76888205 | AG71: 19.86140246 | AH71: 15.46305379
B72: Other | C72: 1.839396324 | D72: 1.822239052 | E72: 1.11749557 | F72: 0.541820121 | G72: 0.3412119749 | H72: 1.569416569 | I72: 0 | J72: 0 | K72: 0 | L72: 0.8249981153 | M72: 1.787277717 | N72: 1.806640592 | O72: 1.459494975 | P72: 1.308902376 | Q72: 0.4183440021 | R72: 0 | S72: 0 | T72: 0.06833841488 | U72: 0.1131390203 | V72: 0.2548848345 | W72: 4.186452034 | X72: 0 | Y72: 0 | Z72: 5.975225801 | AA72: 0 | AB72: 0.08680315287 | AC72: 3.235399816 | AD72: 0.08084274296 | AE72: 0.2734404302 | AF72: 0.3642029233 | AG72: 0 | AH72: 0
B73: Missing | C73: 0.02105609424 | D73: 0 | E73: 0 | F73: 0 | G73: 0 | H73: 0 | I73: 0 | J73: 0 | K73: 0 | L73: 0 | M73: 0.02826020138 | N73: 0 | O73: 0 | P73: 0 | Q73: 0 | R73: 0 | S73: 0 | T73: 0 | U73: 0 | V73: 0 | W73: 0 | X73: 0 | Y73: 0 | Z73: 0 | AA73: 0.1314266693 | AB73: 0 | AC73: 0 | AD73: 0 | AE73: 0 | AF73: 0 | AG73: 0 | AH73: 0
A108: =A1026 -> Lao People's Democratic Republic
A109: =A1034 -> 2012
A110: Use of sanitation facilities
A111: by wealth quintile and sub-national region
A112: Notes:
A113: WHO/UNICEF JMP customised wealth index excludes water,
A114: sanitation and hygiene assets.
A115: Survey used for analysis: | B115: =A1025 -> MICS12
A116: =B1030 -> 
A117: =B1029 -> 
A120: Use of sanitation facilities | C120: NATIONAL wealth index quintile | H120: URBAN wealth index quintile | M120: RURAL wealth index quintile | R120: SUB-REGIONS: | BA120: Raw numbers of respondents: | BB120: Use of sanitation facilities | BC120: NATIONAL wealth index quintile | BH120: URBAN wealth index quintile | BM120: RURAL wealth index quintile | BR120: SUB-REGIONS:
A121: Weighted percentage (used in graphs) | C121: Poorest | D121: Poor | E121: Middle | F121: Rich | G121: Richest | H121: Poorest | I121: Poor | J121: Middle | K121: Rich | L121: Richest | M121: Poorest | N121: Poor | O121: Middle | P121: Rich | Q121: Richest | R121: Attapeu | S121: Bokeo | T121: Borikhamxay | U121: Champasack | V121: Huaphanh | W121: Khammuane | X121: Luangnamtha | Y121: Luangprabang | Z121: Oudomxay | AA121: Phongsaly | AB121: Saravane | AC121: Savannakhet | AD121: Sekong | AE121: Vientiane | AF121: Vientiane Capital | AG121: Xayabury | AH121: Xiengkhuang | BA121: Sanitation data, raw numbers (weighted) | BC121: Poorest | BD121: Poor | BE121: Middle | BF121: Rich | BG121: Richest | BH121: Poorest | BI121: Poor | BJ121: Middle | BK121: Rich | BL121: Richest | BM121: Poorest | BN121: Poor | BO121: Middle | BP121: Rich | BQ121: Richest | BR121: Attapeu | BS121: Bokeo | BT121: Borikhamxay | BU121: Champasack | BV121: Huaphanh | BW121: Khammuane | BX121: Luangnamtha | BY121: Luangprabang | BZ121: Oudomxay | CA121: Phongsaly | CB121: Saravane | CC121: Savannakhet | CD121: Sekong | CE121: Vientiane | CF121: Vientiane Capital | CG121: Xayabury | CH121: Xiengkhuang
A122: Sanitation | B122: Improved | C122: 19.7153095 | D122: 35.51273349 | E122: 58.22814936 | F122: 83.83564059 | G122: 98.70085162 | H122: 65.24567592 | I122: 93.48708076 | J122: 98.47985336 | K122: 99.41685949 | L122: 100 | M122: 16.76273144 | N122: 28.46921628 | O122: 43.71161528 | P122: 62.95293123 | Q122: 89.11433248 | R122: 37.2445958 | S122: 69.31612477 | T122: 83.99275362 | U122: 43.1962284 | V122: 58.77613649 | W122: 42.11343942 | X122: 67.34804567 | Y122: 58.5750928 | Z122: 44.24558842 | AA122: 34.08148497 | AB122: 22.30386086 | AC122: 43.0459272 | AD122: 37.70722766 | AE122: 88.22322309 | AF122: 97.91351614 | AG122: 89.72835148 | AH122: 54.11668824 | BA122: Sanitation | BB122: Improved | BC122: 3841.366243 | BD122: 6918.14045 | BE122: 11348.25951 | BF122: 16334.32796 | BG122: 19229.7991 | BH122: 3241.660348 | BI122: 4646.291288 | BJ122: 4884.777349 | BK122: 4948.692338 | BL122: 4968.39644 | BM122: 2433.489445 | BN122: 4132.312898 | BO122: 6344.885766 | BP122: 9137.430538 | BQ122: 12933.95684 | BR122: 651.4914914 | BS122: 1905.407688 | BT122: 3245.722817 | BU122: 3834.42821 | BV122: 3034.670542 | BW122: 2159.952306 | BX122: 1823.083938 | BY122: 3852.031368 | BZ122: 2292.205829 | CA122: 1063.885622 | CB122: 1507.820873 | CC122: 6437.084381 | CD122: 680.8163378 | CE122: 6245.343014 | CF122: 11450.06538 | CG122: 5215.825632 | CH122: 2272.057823
B123: Not Improved | C123: 80.2846905 | D123: 64.48726651 | E123: 41.77185064 | F123: 16.16435941 | G123: 1.299148376 | H123: 34.75432408 | I123: 6.512919238 | J123: 1.520146637 | K123: 0.5831405121 | L123: 0 | M123: 83.23726856 | N123: 71.53078372 | O123: 56.28838472 | P123: 37.04706877 | Q123: 10.88566752 | R123: 62.7554042 | S123: 30.68387523 | T123: 16.00724638 | U123: 56.8037716 | V123: 41.22386351 | W123: 57.88656058 | X123: 32.65195433 | Y123: 41.4249072 | Z123: 55.75441158 | AA123: 65.91851503 | AB123: 77.69613914 | AC123: 56.9540728 | AD123: 62.29277234 | AE123: 11.77677691 | AF123: 2.086483857 | AG123: 10.27164852 | AH123: 45.88331176 | BB123: Not Improved | BC123: 15642.81301 | BD123: 12562.59159 | BE123: 8141.041855 | BF123: 3149.423633 | BG123: 253.111922 | BH123: 1726.730741 | BI123: 323.6909279 | BJ123: 75.40199954 | BK123: 29.02709862 | BL123: 0 | BM123: 12083.77138 | BN123: 10382.70872 | BO123: 8170.445514 | BP123: 5377.271732 | BQ123: 1579.93389 | BR123: 1097.732731 | BS123: 843.4587473 | BT123: 618.566276 | BU123: 5042.338007 | BV123: 2128.429184 | BW123: 2968.938462 | BX123: 883.8749947 | BY123: 2724.196145 | BZ123: 2888.436831 | CA123: 2057.708472 | CB123: 5252.537265 | CC123: 8516.907319 | CD123: 1124.716395 | CE123: 833.6808475 | CF123: 243.9946753 | CG123: 597.0813764 | CH123: 1926.384279
